Workbook

Sheet Cover Sheet
C2: Model Details
C4: Model Name: | D4: TasNetworks (Ancillary Service Fees Model)

Sheet Model Information
B2: Process information
B3: The fees have been calculated using estimated average travel and task time and then applicable vehicle, material, overhead and supervision costs. These costs have been sourced from the business to reflect actual costs incurred carrying out the service or connection.
B6: This determination we have again included a margin equal to the distribution WACC.
B8: Overheads have been applied in 3 different ways using the CAM allocation: - Works and service hourly rate - Corporate Shared Costs that is applied on a spend allocation. - Supervision as a per task cost
B13: Because some services attract higher costs of managing, staffing and organising a premium is included in the price.
B16: Assumptions
B17: Task times are an average of actual time to complete the service. This is a best estimate by the employees who work in the area, jobs will vary if there are access issues or technical issues to deal with therefore a average is used.
B20: Travel time is an average for the different services and these times vary. For example tasks that are programmed to be completed resulting in areas being done during a day, creates efficiencies. Other one off premium services can be anywhere in the state therefore travel times can be significant resulting in a higher travel time average.
B24: Time spent by the customer team reflects an average amount of time spent on a request, this is then used to allocate their total annual budget for recovery.
B27: Volumes were received from the Customer team with connection splits based on 2016-17 actual data. Given there are many fees that are not very common a volume of 1 has been included so that a supervision fee is included in the cost build up.
B31: General
B32: Inputs are in $2016-17 unless otherwise stated

Sheet X factor
A2: $ Real 2018-19
A3: Revenue
A4: Year | B4: ='Master Data'!G14 -> 2019-20 | C4: ='Master Data'!H14 -> 2020-21 | D4: ='Master Data'!I14 -> 2021-22 | E4: ='Master Data'!J14 -> 2022-23 | F4: ='Master Data'!K14 -> 2023-24 | G4: Total
A5: Revenue - Unsmoothed | B5: ='Unsmoothed Prices Real $2018-19'!N83/10^6 -> 6.969573195 | C5: ='Unsmoothed Prices Real $2018-19'!O83/10^6 -> 6.907714017 | D5: ='Unsmoothed Prices Real $2018-19'!P83/10^6 -> 6.868287243 | E5: ='Unsmoothed Prices Real $2018-19'!Q83/10^6 -> 6.766733061 | F5: ='Unsmoothed Prices Real $2018-19'!R83/10^6 -> 6.700994449 | G5: =SUM(B5:F5) -> 34.21330196
A6: Revenue - Smoothed | B6: ='Smoothed Prices Real $2018-19'!N83/10^6 -> 6.969573195 | C6: ='Smoothed Prices Real $2018-19'!O83/10^6 -> 6.910802115 | D6: ='Smoothed Prices Real $2018-19'!P83/10^6 -> 6.847600784 | E6: ='Smoothed Prices Real $2018-19'!Q83/10^6 -> 6.779507518 | F6: ='Smoothed Prices Real $2018-19'!R83/10^6 -> 6.706468248 | G6: =SUM(B6:F6) -> 34.21395186 | L6: Unsmoothed Real | M6: Smoothed Real | N6: Unsmoothed Nominal | O6: Smoothed Nominal
K7: Year 1 | L7: =B5*1000 -> 6969.573195 | M7: =B6*1000 -> 6969.573195 | N7: =C15*1000 -> 7140.327738 | O7: =C19*1000 -> 7140.327738
K8: Year 2 | L8: =C5*1000 -> 6907.714017 | M8: =C6*1000 -> 6910.802115 | N8: =D15*1000 -> 7250.338359 | O8: =D19*1000 -> 7253.579627
A9: Smoothed Revenue | K9: Year 3 | L9: =D5*1000 -> 6868.287243 | M9: =D6*1000 -> 6847.600784 | N9: =E15*1000 -> 7385.575429 | O9: =E19*1000 -> 7363.33096
K10: Year 4 | L10: =E5*1000 -> 6766.733061 | M10: =E6*1000 -> 6779.507518 | N10: =F15*1000 -> 7454.643778 | O10: =F19*1000 -> 7468.716895
K11: Year 5 | L11: =F5*1000 -> 6700.994449 | M11: =F6*1000 -> 6706.468248 | N11: =G15*1000 -> 7563.086576 | O11: =G19*1000 -> 7569.264586
A12: Nominal Vanilla WACC Rate | B12: ='Master Data'!C24 -> 0.0589
A14: Nominal ($m) | C14: =B4 -> 2019-20 | D14: =C4 -> 2020-21 | E14: 2021-22 | F14: 2022-23 | G14: 2023-24
A15: Revenue - Unsmoothed | C15: =B5*'Master Data'!G18 -> 7.140327738 | D15: =C5*'Master Data'!H18 -> 7.250338359 | E15: =D5*'Master Data'!I18 -> 7.385575429 | F15: =E5*'Master Data'!J18 -> 7.454643778 | G15: =F5*'Master Data'!K18 -> 7.563086576
A16: NPV | B16: =NPV($B$12,C15:G15) -> 31.04010573
A19: Revenue - Smoothed | C19: =B6*'Master Data'!G18 -> 7.140327738 | D19: =C6*'Master Data'!H18 -> 7.253579627 | E19: =D6*'Master Data'!I18 -> 7.36333096 | F19: =E6*'Master Data'!J18 -> 7.468716895 | G19: =F6*'Master Data'!K18 -> 7.569264586
A20: NPV | B20: =NPV($B$12,C19:G19) -> 31.04009551
A21: Difference in NPVs | B21: =B20-B16 -> -1.022183167e-05
A22: Difference between final year revenue and requirement | G22: =G19/G15-1 -> 0.0008168636828
D24: X_1
A25: X-Factor | D25: 0.01861978235

Sheet Smoothed Prices Nominal
B3: Total Fee | H3: Volumes | N3: Total Revenue
B4: (Nominal $) | N4: (Nominal $)
B5: ='Master Data'!$G14 -> 2019-20 | C5: ='Master Data'!$H14 -> 2020-21 | D5: ='Master Data'!$I14 -> 2021-22 | E5: ='Master Data'!$J14 -> 2022-23 | F5: ='Master Data'!$K14 -> 2023-24 | H5: ='Master Data'!$G14 -> 2019-20 | I5: ='Master Data'!$H14 -> 2020-21 | J5: ='Master Data'!$I14 -> 2021-22 | K5: ='Master Data'!$J14 -> 2022-23 | L5: ='Master Data'!$K14 -> 2023-24 | N5: ='Master Data'!$G14 -> 2019-20 | O5: ='Master Data'!$H14 -> 2020-21 | P5: ='Master Data'!$I14 -> 2021-22 | Q5: ='Master Data'!$J14 -> 2022-23 | R5: ='Master Data'!$K14 -> 2023-24
B6: Base Fee | C6: Base Fee | D6: Base Fee | E6: Base Fee | F6: Base Fee | H6: Volumes | I6: Volumes | J6: Volumes | K6: Volumes | L6: Volumes | N6: Total Revenue | O6: Total Revenue | P6: Total Revenue | Q6: Total Revenue | R6: Total Revenue
A7: ='Table of fees'!A4 -> De-energisation, re-energisation, special reads and retail contract terminations
A8: ='Table of fees'!B5 -> Site visit - no appointment | B8: ='Smoothed Prices Real $2018-19'!B8*'Master Data'!$G$18 -> 81.95943647 | C8: ='Smoothed Prices Real $2018-19'!C8*'Master Data'!$H$18 -> 85.53089817 | D8: ='Smoothed Prices Real $2018-19'!D8*'Master Data'!$I$18 -> 89.25798977 | E8: ='Smoothed Prices Real $2018-19'!E8*'Master Data'!$J$18 -> 93.14749299 | F8: ='Smoothed Prices Real $2018-19'!F8*'Master Data'!$K$18 -> 97.20648507 | H8: =IFERROR(VLOOKUP($A8,'Volumes - Report Summary'!$A:$I,MATCH(H$5,'Volumes - Report Summary'!$A$6:$I$6,0),FALSE),0) -> 54512 | I8: =IFERROR(VLOOKUP($A8,'Volumes - Report Summary'!$A:$I,MATCH(I$5,'Volumes - Report Summary'!$A$6:$I$6,0),FALSE),0) -> 52432 | J8: =IFERROR(VLOOKUP($A8,'Volumes - Report Summary'!$A:$I,MATCH(J$5,'Volumes - Report Summary'!$A$6:$I$6,0),FALSE),0) -> 50351 | K8: =IFERROR(VLOOKUP($A8,'Volumes - Report Summary'!$A:$I,MATCH(K$5,'Volumes - Report Summary'!$A$6:$I$6,0),FALSE),0) -> 48272 | L8: =IFERROR(VLOOKUP($A8,'Volumes - Report Summary'!$A:$I,MATCH(L$5,'Volumes - Report Summary'!$A$6:$I$6,0),FALSE),0) -> 46192 | N8: =H8*B8 -> 4467772.801 | O8: =I8*C8 -> 4484556.053 | P8: =J8*D8 -> 4494229.043 | Q8: =K8*E8 -> 4496415.782 | R8: =L8*F8 -> 4490161.959
A9: ='Table of fees'!B6 -> Site visit - non-scheduled visit | B9: ='Smoothed Prices Real $2018-19'!B9*'Master Data'!$G$18 -> 148.2123272 | C9: ='Smoothed Prices Real $2018-19'!C9*'Master Data'!$H$18 -> 154.6708227 | D9: ='Smoothed Prices Real $2018-19'!D9*'Master Data'!$I$18 -> 161.4107534 | E9: ='Smoothed Prices Real $2018-19'!E9*'Master Data'!$J$18 -> 168.444383 | F9: ='Smoothed Prices Real $2018-19'!F9*'Master Data'!$K$18 -> 175.7845099 | H9: =IFERROR(VLOOKUP($A9,'Volumes - Report Summary'!$A:$I,MATCH(H$5,'Volumes - Report Summary'!$A$6:$I$6,0),FALSE),0) -> 954 | I9: =IFERROR(VLOOKUP($A9,'Volumes - Report Summary'!$A:$I,MATCH(I$5,'Volumes - Report Summary'!$A$6:$I$6,0),FALSE),0) -> 918 | J9: =IFERROR(VLOOKUP($A9,'Volumes - Report Summary'!$A:$I,MATCH(J$5,'Volumes - Report Summary'!$A$6:$I$6,0),FALSE),0) -> 882 | K9: =IFERROR(VLOOKUP($A9,'Volumes - Report Summary'!$A:$I,MATCH(K$5,'Volumes - Report Summary'!$A$6:$I$6,0),FALSE),0) -> 845 | L9: =IFERROR(VLOOKUP($A9,'Volumes - Report Summary'!$A:$I,MATCH(L$5,'Volumes - Report Summary'!$A$6:$I$6,0),FALSE),0) -> 809 | N9: 141394.5602 | O9: 141987.8152 | P9: 142364.2845 | Q9: 142335.5037 | R9: 142209.6685
A10: ='Table of fees'!B7 -> Site visit - same day premium service | B10: ='Smoothed Prices Real $2018-19'!B10*'Master Data'!$G$18 -> 264.3674466 | C10: ='Smoothed Prices Real $2018-19'!C10*'Master Data'!$H$18 -> 275.8875137 | D10: ='Smoothed Prices Real $2018-19'!D10*'Master Data'!$I$18 -> 287.9095789 | E10: ='Smoothed Prices Real $2018-19'!E10*'Master Data'!$J$18 -> 300.4555172 | F10: ='Smoothed Prices Real $2018-19'!F10*'Master Data'!$K$18 -> 313.548157 | H10: =IFERROR(VLOOKUP($A10,'Volumes - Report Summary'!$A:$I,MATCH(H$5,'Volumes - Report Summary'!$A$6:$I$6,0),FALSE),0) -> 225 | I10: =IFERROR(VLOOKUP($A10,'Volumes - Report Summary'!$A:$I,MATCH(I$5,'Volumes - Report Summary'!$A$6:$I$6,0),FALSE),0) -> 225 | J10: =IFERROR(VLOOKUP($A10,'Volumes - Report Summary'!$A:$I,MATCH(J$5,'Volumes - Report Summary'!$A$6:$I$6,0),FALSE),0) -> 225 | K10: =IFERROR(VLOOKUP($A10,'Volumes - Report Summary'!$A:$I,MATCH(K$5,'Volumes - Report Summary'!$A$6:$I$6,0),FALSE),0) -> 225 | L10: =IFERROR(VLOOKUP($A10,'Volumes - Report Summary'!$A:$I,MATCH(L$5,'Volumes - Report Summary'!$A$6:$I$6,0),FALSE),0) -> 225 | N10: 59482.67548 | O10: 62074.69059 | P10: 64779.65526 | Q10: 67602.49138 | R10: 70548.33531
A11: ='Table of fees'!B8 -> Site visit - after hours | B11: ='Smoothed Prices Real $2018-19'!B11*'Master Data'!$G$18 -> 375.7594781 | C11: ='Smoothed Prices Real $2018-19'!C11*'Master Data'!$H$18 -> 392.1335607 | D11: ='Smoothed Prices Real $2018-19'!D11*'Master Data'!$I$18 -> 409.2211598 | E11: ='Smoothed Prices Real $2018-19'!E11*'Master Data'!$J$18 -> 427.0533676 | F11: ='Smoothed Prices Real $2018-19'!F11*'Master Data'!$K$18 -> 445.662631 | H11: =IFERROR(VLOOKUP($A11,'Volumes - Report Summary'!$A:$I,MATCH(H$5,'Volumes - Report Summary'!$A$6:$I$6,0),FALSE),0) -> 1 | I11: =IFERROR(VLOOKUP($A11,'Volumes - Report Summary'!$A:$I,MATCH(I$5,'Volumes - Report Summary'!$A$6:$I$6,0),FALSE),0) -> 1 | J11: =IFERROR(VLOOKUP($A11,'Volumes - Report Summary'!$A:$I,MATCH(J$5,'Volumes - Report Summary'!$A$6:$I$6,0),FALSE),0) -> 1 | K11: =IFERROR(VLOOKUP($A11,'Volumes - Report Summary'!$A:$I,MATCH(K$5,'Volumes - Report Summary'!$A$6:$I$6,0),FALSE),0) -> 1 | L11: =IFERROR(VLOOKUP($A11,'Volumes - Report Summary'!$A:$I,MATCH(L$5,'Volumes - Report Summary'!$A$6:$I$6,0),FALSE),0) -> 1 | N11: 375.7594781 | O11: 392.1335607 | P11: 409.2211598 | Q11: 427.0533676 | R11: 445.662631
A12: ='Table of fees'!B9 -> Site visit - credit actions or site issues | B12: ='Smoothed Prices Real $2018-19'!B12*'Master Data'!$G$18 -> 153.7359345 | C12: ='Smoothed Prices Real $2018-19'!C12*'Master Data'!$H$18 -> 160.4351265 | D12: ='Smoothed Prices Real $2018-19'!D12*'Master Data'!$I$18 -> 167.4262423 | E12: ='Smoothed Prices Real $2018-19'!E12*'Master Data'!$J$18 -> 174.7220027 | F12: ='Smoothed Prices Real $2018-19'!F12*'Master Data'!$K$18 -> 182.335683 | H12: =IFERROR(VLOOKUP($A12,'Volumes - Report Summary'!$A:$I,MATCH(H$5,'Volumes - Report Summary'!$A$6:$I$6,0),FALSE),0) -> 1973 | I12: =IFERROR(VLOOKUP($A12,'Volumes - Report Summary'!$A:$I,MATCH(I$5,'Volumes - Report Summary'!$A$6:$I$6,0),FALSE),0) -> 1898 | J12: =IFERROR(VLOOKUP($A12,'Volumes - Report Summary'!$A:$I,MATCH(J$5,'Volumes - Report Summary'!$A$6:$I$6,0),FALSE),0) -> 1823 | K12: =IFERROR(VLOOKUP($A12,'Volumes - Report Summary'!$A:$I,MATCH(K$5,'Volumes - Report Summary'!$A$6:$I$6,0),FALSE),0) -> 1747 | L12: =IFERROR(VLOOKUP($A12,'Volumes - Report Summary'!$A:$I,MATCH(L$5,'Volumes - Report Summary'!$A$6:$I$6,0),FALSE),0) -> 1672 | N12: 303320.9988 | O12: 304505.8702 | P12: 305218.0397 | Q12: 305239.3388 | R12: 304865.2619
A13: ='Table of fees'!B10 -> Site visit – credit actions pillar box/pole top | B13: ='Smoothed Prices Real $2018-19'!B13*'Master Data'!$G$18 -> 254.4396797 | C13: ='Smoothed Prices Real $2018-19'!C13*'Master Data'!$H$18 -> 265.5271348 | D13: ='Smoothed Prices Real $2018-19'!D13*'Master Data'!$I$18 -> 277.0977365 | E13: ='Smoothed Prices Real $2018-19'!E13*'Master Data'!$J$18 -> 289.1725383 | F13: ='Smoothed Prices Real $2018-19'!F13*'Master Data'!$K$18 -> 301.7735113 | H13: =IFERROR(VLOOKUP($A13,'Volumes - Report Summary'!$A:$I,MATCH(H$5,'Volumes - Report Summary'!$A$6:$I$6,0),FALSE),0) -> 219 | I13: =IFERROR(VLOOKUP($A13,'Volumes - Report Summary'!$A:$I,MATCH(I$5,'Volumes - Report Summary'!$A$6:$I$6,0),FALSE),0) -> 210 | J13: =IFERROR(VLOOKUP($A13,'Volumes - Report Summary'!$A:$I,MATCH(J$5,'Volumes - Report Summary'!$A$6:$I$6,0),FALSE),0) -> 202 | K13: =IFERROR(VLOOKUP($A13,'Volumes - Report Summary'!$A:$I,MATCH(K$5,'Volumes - Report Summary'!$A$6:$I$6,0),FALSE),0) -> 194 | L13: =IFERROR(VLOOKUP($A13,'Volumes - Report Summary'!$A:$I,MATCH(L$5,'Volumes - Report Summary'!$A$6:$I$6,0),FALSE),0) -> 185 | N13: 55722.28986 | O13: 55760.69831 | P13: 55973.74277 | Q13: 56099.47244 | R13: 55828.09959
A14: ='Table of fees'!B11 -> Site visit – current transformer (CT) metering | B14: ='Smoothed Prices Real $2018-19'!B14*'Master Data'!$G$18 -> 145.8169383 | C14: ='Smoothed Prices Real $2018-19'!C14*'Master Data'!$H$18 -> 152.1710523 | D14: ='Smoothed Prices Real $2018-19'!D14*'Master Data'!$I$18 -> 158.8020531 | E14: ='Smoothed Prices Real $2018-19'!E14*'Master Data'!$J$18 -> 165.7220061 | F14: ='Smoothed Prices Real $2018-19'!F14*'Master Data'!$K$18 -> 172.9435028 | H14: =IFERROR(VLOOKUP($A14,'Volumes - Report Summary'!$A:$I,MATCH(H$5,'Volumes - Report Summary'!$A$6:$I$6,0),FALSE),0) -> 5 | I14: =IFERROR(VLOOKUP($A14,'Volumes - Report Summary'!$A:$I,MATCH(I$5,'Volumes - Report Summary'!$A$6:$I$6,0),FALSE),0) -> 5 | J14: =IFERROR(VLOOKUP($A14,'Volumes - Report Summary'!$A:$I,MATCH(J$5,'Volumes - Report Summary'!$A$6:$I$6,0),FALSE),0) -> 5 | K14: =IFERROR(VLOOKUP($A14,'Volumes - Report Summary'!$A:$I,MATCH(K$5,'Volumes - Report Summary'!$A$6:$I$6,0),FALSE),0) -> 5 | L14: =IFERROR(VLOOKUP($A14,'Volumes - Report Summary'!$A:$I,MATCH(L$5,'Volumes - Report Summary'!$A$6:$I$6,0),FALSE),0) -> 5 | N14: 729.0846913 | O14: 760.8552617 | P14: 794.0102655 | Q14: 828.6100307 | R14: 864.717514
A15: ='Table of fees'!B12 -> Site visit – pillar box/pole top | B15: ='Smoothed Prices Real $2018-19'!B15*'Master Data'!$G$18 -> 254.4396797 | C15: ='Smoothed Prices Real $2018-19'!C15*'Master Data'!$H$18 -> 265.5271348 | D15: ='Smoothed Prices Real $2018-19'!D15*'Master Data'!$I$18 -> 277.0977365 | E15: ='Smoothed Prices Real $2018-19'!E15*'Master Data'!$J$18 -> 289.1725383 | F15: ='Smoothed Prices Real $2018-19'!F15*'Master Data'!$K$18 -> 301.7735113 | H15: =IFERROR(VLOOKUP($A15,'Volumes - Report Summary'!$A:$I,MATCH(H$5,'Volumes - Report Summary'!$A$6:$I$6,0),FALSE),0) -> 10 | I15: =IFERROR(VLOOKUP($A15,'Volumes - Report Summary'!$A:$I,MATCH(I$5,'Volumes - Report Summary'!$A$6:$I$6,0),FALSE),0) -> 10 | J15: =IFERROR(VLOOKUP($A15,'Volumes - Report Summary'!$A:$I,MATCH(J$5,'Volumes - Report Summary'!$A$6:$I$6,0),FALSE),0) -> 10 | K15: =IFERROR(VLOOKUP($A15,'Volumes - Report Summary'!$A:$I,MATCH(K$5,'Volumes - Report Summary'!$A$6:$I$6,0),FALSE),0) -> 10 | L15: =IFERROR(VLOOKUP($A15,'Volumes - Report Summary'!$A:$I,MATCH(L$5,'Volumes - Report Summary'!$A$6:$I$6,0),FALSE),0) -> 10 | N15: 2544.396797 | O15: 2655.271348 | P15: 2770.977365 | Q15: 2891.725383 | R15: 3017.735113
A16: ='Table of fees'!B13 -> Site visit - pillar box/pole top Wasted Visit | B16: ='Smoothed Prices Real $2018-19'!B16*'Master Data'!$G$18 -> 162.743641 | C16: ='Smoothed Prices Real $2018-19'!C16*'Master Data'!$H$18 -> 169.8353525 | D16: ='Smoothed Prices Real $2018-19'!D16*'Master Data'!$I$18 -> 177.2360923 | E16: ='Smoothed Prices Real $2018-19'!E16*'Master Data'!$J$18 -> 184.9593264 | F16: ='Smoothed Prices Real $2018-19'!F16*'Master Data'!$K$18 -> 193.0191079 | H16: =IFERROR(VLOOKUP($A16,'Volumes - Report Summary'!$A:$I,MATCH(H$5,'Volumes - Report Summary'!$A$6:$I$6,0),FALSE),0) -> 1 | I16: =IFERROR(VLOOKUP($A16,'Volumes - Report Summary'!$A:$I,MATCH(I$5,'Volumes - Report Summary'!$A$6:$I$6,0),FALSE),0) -> 1 | J16: =IFERROR(VLOOKUP($A16,'Volumes - Report Summary'!$A:$I,MATCH(J$5,'Volumes - Report Summary'!$A$6:$I$6,0),FALSE),0) -> 1 | K16: =IFERROR(VLOOKUP($A16,'Volumes - Report Summary'!$A:$I,MATCH(K$5,'Volumes - Report Summary'!$A$6:$I$6,0),FALSE),0) -> 1 | L16: =IFERROR(VLOOKUP($A16,'Volumes - Report Summary'!$A:$I,MATCH(L$5,'Volumes - Report Summary'!$A$6:$I$6,0),FALSE),0) -> 1 | N16: 162.743641 | O16: 169.8353525 | P16: 177.2360923 | Q16: 184.9593264 | R16: 193.0191079
A17: ='Table of fees'!B14 -> Transfer of retailer | B17: ='Smoothed Prices Real $2018-19'!B17*'Master Data'!$G$18 -> 0 | C17: ='Smoothed Prices Real $2018-19'!C17*'Master Data'!$H$18 -> 0 | D17: ='Smoothed Prices Real $2018-19'!D17*'Master Data'!$I$18 -> 0 | E17: ='Smoothed Prices Real $2018-19'!E17*'Master Data'!$J$18 -> 0 | F17: ='Smoothed Prices Real $2018-19'!F17*'Master Data'!$K$18 -> 0 | H17: =IFERROR(VLOOKUP($A17,'Volumes - Report Summary'!$A:$I,MATCH(H$5,'Volumes - Report Summary'!$A$6:$I$6,0),FALSE),0) -> 0 | I17: =IFERROR(VLOOKUP($A17,'Volumes - Report Summary'!$A:$I,MATCH(I$5,'Volumes - Report Summary'!$A$6:$I$6,0),FALSE),0) -> 0 | J17: =IFERROR(VLOOKUP($A17,'Volumes - Report Summary'!$A:$I,MATCH(J$5,'Volumes - Report Summary'!$A$6:$I$6,0),FALSE),0) -> 0 | K17: =IFERROR(VLOOKUP($A17,'Volumes - Report Summary'!$A:$I,MATCH(K$5,'Volumes - Report Summary'!$A$6:$I$6,0),FALSE),0) -> 0 | L17: =IFERROR(VLOOKUP($A17,'Volumes - Report Summary'!$A:$I,MATCH(L$5,'Volumes - Report Summary'!$A$6:$I$6,0),FALSE),0) -> 0 | N17: 0 | O17: 0 | P17: 0 | Q17: 0 | R17: 0
A18: ='Table of fees'!A15 -> Meter test
A19: ='Table of fees'!B16 -> Meter test - single phase | B19: ='Smoothed Prices Real $2018-19'!B19*'Master Data'!$G$18 -> 208.3739686 | C19: ='Smoothed Prices Real $2018-19'!C19*'Master Data'!$H$18 -> 217.4540658 | D19: ='Smoothed Prices Real $2018-19'!D19*'Master Data'!$I$18 -> 226.929837 | E19: ='Smoothed Prices Real $2018-19'!E19*'Master Data'!$J$18 -> 236.8185241 | F19: ='Smoothed Prices Real $2018-19'!F19*'Master Data'!$K$18 -> 247.1381203 | H19: =IFERROR(VLOOKUP($A19,'Volumes - Report Summary'!$A:$I,MATCH(H$5,'Volumes - Report Summary'!$A$6:$I$6,0),FALSE),0) -> 17 | I19: =IFERROR(VLOOKUP($A19,'Volumes - Report Summary'!$A:$I,MATCH(I$5,'Volumes - Report Summary'!$A$6:$I$6,0),FALSE),0) -> 17 | J19: =IFERROR(VLOOKUP($A19,'Volumes - Report Summary'!$A:$I,MATCH(J$5,'Volumes - Report Summary'!$A$6:$I$6,0),FALSE),0) -> 17 | K19: =IFERROR(VLOOKUP($A19,'Volumes - Report Summary'!$A:$I,MATCH(K$5,'Volumes - Report Summary'!$A$6:$I$6,0),FALSE),0) -> 17 | L19: =IFERROR(VLOOKUP($A19,'Volumes - Report Summary'!$A:$I,MATCH(L$5,'Volumes - Report Summary'!$A$6:$I$6,0),FALSE),0) -> 17 | N19: =H19*B19 -> 3542.357466 | O19: 3696.719118 | P19: 3857.807228 | Q19: 4025.914909 | R19: 4201.348044
A20: ='Table of fees'!B17 -> Meter test - multi phase | B20: ='Smoothed Prices Real $2018-19'!B20*'Master Data'!$G$18 -> 387.9731923 | C20: ='Smoothed Prices Real $2018-19'!C20*'Master Data'!$H$18 -> 404.8794994 | D20: ='Smoothed Prices Real $2018-19'!D20*'Master Data'!$I$18 -> 422.5225151 | E20: ='Smoothed Prices Real $2018-19'!E20*'Master Data'!$J$18 -> 440.9343423 | F20: ='Smoothed Prices Real $2018-19'!F20*'Master Data'!$K$18 -> 460.1484826 | H20: =IFERROR(VLOOKUP($A20,'Volumes - Report Summary'!$A:$I,MATCH(H$5,'Volumes - Report Summary'!$A$6:$I$6,0),FALSE),0) -> 4 | I20: =IFERROR(VLOOKUP($A20,'Volumes - Report Summary'!$A:$I,MATCH(I$5,'Volumes - Report Summary'!$A$6:$I$6,0),FALSE),0) -> 4 | J20: =IFERROR(VLOOKUP($A20,'Volumes - Report Summary'!$A:$I,MATCH(J$5,'Volumes - Report Summary'!$A$6:$I$6,0),FALSE),0) -> 4 | K20: =IFERROR(VLOOKUP($A20,'Volumes - Report Summary'!$A:$I,MATCH(K$5,'Volumes - Report Summary'!$A$6:$I$6,0),FALSE),0) -> 4 | L20: =IFERROR(VLOOKUP($A20,'Volumes - Report Summary'!$A:$I,MATCH(L$5,'Volumes - Report Summary'!$A$6:$I$6,0),FALSE),0) -> 4 | N20: 1551.892769 | O20: 1619.517997 | P20: 1690.09006 | Q20: 1763.737369 | R20: 1840.593931
A21: ='Table of fees'!B18 -> Meter test – current transformer (CT) | B21: ='Smoothed Prices Real $2018-19'!B21*'Master Data'!$G$18 -> 427.884131 | C21: ='Smoothed Prices Real $2018-19'!C21*'Master Data'!$H$18 -> 446.5295957 | D21: ='Smoothed Prices Real $2018-19'!D21*'Master Data'!$I$18 -> 465.9875547 | E21: ='Smoothed Prices Real $2018-19'!E21*'Master Data'!$J$18 -> 486.293413 | F21: ='Smoothed Prices Real $2018-19'!F21*'Master Data'!$K$18 -> 507.4841187 | H21: =IFERROR(VLOOKUP($A21,'Volumes - Report Summary'!$A:$I,MATCH(H$5,'Volumes - Report Summary'!$A$6:$I$6,0),FALSE),0) -> 4 | I21: =IFERROR(VLOOKUP($A21,'Volumes - Report Summary'!$A:$I,MATCH(I$5,'Volumes - Report Summary'!$A$6:$I$6,0),FALSE),0) -> 4 | J21: =IFERROR(VLOOKUP($A21,'Volumes - Report Summary'!$A:$I,MATCH(J$5,'Volumes - Report Summary'!$A$6:$I$6,0),FALSE),0) -> 4 | K21: =IFERROR(VLOOKUP($A21,'Volumes - Report Summary'!$A:$I,MATCH(K$5,'Volumes - Report Summary'!$A$6:$I$6,0),FALSE),0) -> 4 | L21: =IFERROR(VLOOKUP($A21,'Volumes - Report Summary'!$A:$I,MATCH(L$5,'Volumes - Report Summary'!$A$6:$I$6,0),FALSE),0) -> 4 | N21: 1711.536524 | O21: 1786.118383 | P21: 1863.950219 | Q21: 1945.173652 | R21: 2029.936475
A22: ='Table of fees'!B19 -> Meter test - after hours | B22: ='Smoothed Prices Real $2018-19'!B22*'Master Data'!$G$18 -> 810.1936427 | C22: ='Smoothed Prices Real $2018-19'!C22*'Master Data'!$H$18 -> 845.4986141 | D22: ='Smoothed Prices Real $2018-19'!D22*'Master Data'!$I$18 -> 882.3420339 | E22: ='Smoothed Prices Real $2018-19'!E22*'Master Data'!$J$18 -> 920.7909412 | F22: ='Smoothed Prices Real $2018-19'!F22*'Master Data'!$K$18 -> 960.9152969 | H22: =IFERROR(VLOOKUP($A22,'Volumes - Report Summary'!$A:$I,MATCH(H$5,'Volumes - Report Summary'!$A$6:$I$6,0),FALSE),0) -> 1 | I22: =IFERROR(VLOOKUP($A22,'Volumes - Report Summary'!$A:$I,MATCH(I$5,'Volumes - Report Summary'!$A$6:$I$6,0),FALSE),0) -> 1 | J22: =IFERROR(VLOOKUP($A22,'Volumes - Report Summary'!$A:$I,MATCH(J$5,'Volumes - Report Summary'!$A$6:$I$6,0),FALSE),0) -> 1 | K22: =IFERROR(VLOOKUP($A22,'Volumes - Report Summary'!$A:$I,MATCH(K$5,'Volumes - Report Summary'!$A$6:$I$6,0),FALSE),0) -> 1 | L22: =IFERROR(VLOOKUP($A22,'Volumes - Report Summary'!$A:$I,MATCH(L$5,'Volumes - Report Summary'!$A$6:$I$6,0),FALSE),0) -> 1 | N22: 810.1936427 | O22: 845.4986141 | P22: 882.3420339 | Q22: 920.7909412 | R22: 960.9152969
A23: ='Table of fees'!B20 -> Meter test - wasted visit | B23: ='Smoothed Prices Real $2018-19'!B23*'Master Data'!$G$18 -> 88.64115275 | C23: ='Smoothed Prices Real $2018-19'!C23*'Master Data'!$H$18 -> 92.50377669 | D23: ='Smoothed Prices Real $2018-19'!D23*'Master Data'!$I$18 -> 96.53471822 | E23: ='Smoothed Prices Real $2018-19'!E23*'Master Data'!$J$18 -> 100.7413119 | F23: ='Smoothed Prices Real $2018-19'!F23*'Master Data'!$K$18 -> 105.131212 | H23: =IFERROR(VLOOKUP($A23,'Volumes - Report Summary'!$A:$I,MATCH(H$5,'Volumes - Report Summary'!$A$6:$I$6,0),FALSE),0) -> 1 | I23: =IFERROR(VLOOKUP($A23,'Volumes - Report Summary'!$A:$I,MATCH(I$5,'Volumes - Report Summary'!$A$6:$I$6,0),FALSE),0) -> 1 | J23: =IFERROR(VLOOKUP($A23,'Volumes - Report Summary'!$A:$I,MATCH(J$5,'Volumes - Report Summary'!$A$6:$I$6,0),FALSE),0) -> 1 | K23: =IFERROR(VLOOKUP($A23,'Volumes - Report Summary'!$A:$I,MATCH(K$5,'Volumes - Report Summary'!$A$6:$I$6,0),FALSE),0) -> 1 | L23: =IFERROR(VLOOKUP($A23,'Volumes - Report Summary'!$A:$I,MATCH(L$5,'Volumes - Report Summary'!$A$6:$I$6,0),FALSE),0) -> 1 | N23: 88.64115275 | O23: 92.50377669 | P23: 96.53471822 | Q23: 100.7413119 | R23: 105.131212
A24: ='Table of fees'!A21 -> Supply abolishment
A25: ='Table of fees'!B22 -> Remove service & meters | B25: ='Smoothed Prices Real $2018-19'!B25*'Master Data'!$G$18 -> 254.4396797 | C25: ='Smoothed Prices Real $2018-19'!C25*'Master Data'!$H$18 -> 265.5271348 | D25: ='Smoothed Prices Real $2018-19'!D25*'Master Data'!$I$18 -> 277.0977365 | E25: ='Smoothed Prices Real $2018-19'!E25*'Master Data'!$J$18 -> 289.1725383 | F25: ='Smoothed Prices Real $2018-19'!F25*'Master Data'!$K$18 -> 301.7735113 | H25: =IFERROR(VLOOKUP($A25,'Volumes - Report Summary'!$A:$I,MATCH(H$5,'Volumes - Report Summary'!$A$6:$I$6,0),FALSE),0) -> 336 | I25: =IFERROR(VLOOKUP($A25,'Volumes - Report Summary'!$A:$I,MATCH(I$5,'Volumes - Report Summary'!$A$6:$I$6,0),FALSE),0) -> 336 | J25: =IFERROR(VLOOKUP($A25,'Volumes - Report Summary'!$A:$I,MATCH(J$5,'Volumes - Report Summary'!$A$6:$I$6,0),FALSE),0) -> 336 | K25: =IFERROR(VLOOKUP($A25,'Volumes - Report Summary'!$A:$I,MATCH(K$5,'Volumes - Report Summary'!$A$6:$I$6,0),FALSE),0) -> 336 | L25: =IFERROR(VLOOKUP($A25,'Volumes - Report Summary'!$A:$I,MATCH(L$5,'Volumes - Report Summary'!$A$6:$I$6,0),FALSE),0) -> 336 | N25: =H25*B25 -> 85491.73239 | O25: 89217.1173 | P25: 93104.83946 | Q25: 97161.97288 | R25: 101395.8998
A26: ='Table of fees'!B23 -> Supply abolishment - after hours | B26: ='Smoothed Prices Real $2018-19'!B26*'Master Data'!$G$18 -> 653.1377733 | C26: ='Smoothed Prices Real $2018-19'!C26*'Master Data'!$H$18 -> 681.5988834 | D26: ='Smoothed Prices Real $2018-19'!D26*'Master Data'!$I$18 -> 711.3002138 | E26: ='Smoothed Prices Real $2018-19'!E26*'Master Data'!$J$18 -> 742.2958085 | F26: ='Smoothed Prices Real $2018-19'!F26*'Master Data'!$K$18 -> 774.6420662 | H26: =IFERROR(VLOOKUP($A26,'Volumes - Report Summary'!$A:$I,MATCH(H$5,'Volumes - Report Summary'!$A$6:$I$6,0),FALSE),0) -> 1 | I26: =IFERROR(VLOOKUP($A26,'Volumes - Report Summary'!$A:$I,MATCH(I$5,'Volumes - Report Summary'!$A$6:$I$6,0),FALSE),0) -> 1 | J26: =IFERROR(VLOOKUP($A26,'Volumes - Report Summary'!$A:$I,MATCH(J$5,'Volumes - Report Summary'!$A$6:$I$6,0),FALSE),0) -> 1 | K26: =IFERROR(VLOOKUP($A26,'Volumes - Report Summary'!$A:$I,MATCH(K$5,'Volumes - Report Summary'!$A$6:$I$6,0),FALSE),0) -> 1 | L26: =IFERROR(VLOOKUP($A26,'Volumes - Report Summary'!$A:$I,MATCH(L$5,'Volumes - Report Summary'!$A$6:$I$6,0),FALSE),0) -> 1 | N26: 653.1377733 | O26: 681.5988834 | P26: 711.3002138 | Q26: 742.2958085 | R26: 774.6420662
A27: ='Table of fees'!B24 -> Supply abolishment - wasted visit | B27: ='Smoothed Prices Real $2018-19'!B27*'Master Data'!$G$18 -> 171.0796445 | C27: ='Smoothed Prices Real $2018-19'!C27*'Master Data'!$H$18 -> 178.5346055 | D27: ='Smoothed Prices Real $2018-19'!D27*'Master Data'!$I$18 -> 186.3144236 | E27: ='Smoothed Prices Real $2018-19'!E27*'Master Data'!$J$18 -> 194.4332547 | F27: ='Smoothed Prices Real $2018-19'!F27*'Master Data'!$K$18 -> 202.9058718 | H27: =IFERROR(VLOOKUP($A27,'Volumes - Report Summary'!$A:$I,MATCH(H$5,'Volumes - Report Summary'!$A$6:$I$6,0),FALSE),0) -> 24 | I27: =IFERROR(VLOOKUP($A27,'Volumes - Report Summary'!$A:$I,MATCH(I$5,'Volumes - Report Summary'!$A$6:$I$6,0),FALSE),0) -> 24 | J27: =IFERROR(VLOOKUP($A27,'Volumes - Report Summary'!$A:$I,MATCH(J$5,'Volumes - Report Summary'!$A$6:$I$6,0),FALSE),0) -> 24 | K27: =IFERROR(VLOOKUP($A27,'Volumes - Report Summary'!$A:$I,MATCH(K$5,'Volumes - Report Summary'!$A$6:$I$6,0),FALSE),0) -> 24 | L27: =IFERROR(VLOOKUP($A27,'Volumes - Report Summary'!$A:$I,MATCH(L$5,'Volumes - Report Summary'!$A$6:$I$6,0),FALSE),0) -> 24 | N27: 4105.911469 | O27: 4284.830531 | P27: 4471.546165 | Q27: 4666.398114 | R27: 4869.740924
A28: ='Table of fees'!A25 -> Truck tee-up
A29: ='Table of fees'!B26 -> Tee-up/Appointment | B29: ='Smoothed Prices Real $2018-19'!B29*'Master Data'!$G$18 -> 150.3922305 | C29: ='Smoothed Prices Real $2018-19'!C29*'Master Data'!$H$18 -> 156.9457174 | D29: ='Smoothed Prices Real $2018-19'!D29*'Master Data'!$I$18 -> 163.7847788 | E29: ='Smoothed Prices Real $2018-19'!E29*'Master Data'!$J$18 -> 170.9218589 | F29: ='Smoothed Prices Real $2018-19'!F29*'Master Data'!$K$18 -> 178.3699442 | H29: =IFERROR(VLOOKUP($A29,'Volumes - Report Summary'!$A:$I,MATCH(H$5,'Volumes - Report Summary'!$A$6:$I$6,0),FALSE),0) -> 3300 | I29: =IFERROR(VLOOKUP($A29,'Volumes - Report Summary'!$A:$I,MATCH(I$5,'Volumes - Report Summary'!$A$6:$I$6,0),FALSE),0) -> 3300 | J29: =IFERROR(VLOOKUP($A29,'Volumes - Report Summary'!$A:$I,MATCH(J$5,'Volumes - Report Summary'!$A$6:$I$6,0),FALSE),0) -> 3300 | K29: =IFERROR(VLOOKUP($A29,'Volumes - Report Summary'!$A:$I,MATCH(K$5,'Volumes - Report Summary'!$A$6:$I$6,0),FALSE),0) -> 3300 | L29: =IFERROR(VLOOKUP($A29,'Volumes - Report Summary'!$A:$I,MATCH(L$5,'Volumes - Report Summary'!$A$6:$I$6,0),FALSE),0) -> 3300 | N29: =H29*B29 -> 496294.3606 | O29: 517920.8673 | P29: 540489.7699 | Q29: 564042.1343 | R29: 588620.8157
A30: ='Table of fees'!B27 -> Tee-up/Appointment – after hours | B30: ='Smoothed Prices Real $2018-19'!B30*'Master Data'!$G$18 -> 653.1377733 | C30: ='Smoothed Prices Real $2018-19'!C30*'Master Data'!$H$18 -> 681.5988834 | D30: ='Smoothed Prices Real $2018-19'!D30*'Master Data'!$I$18 -> 711.3002138 | E30: ='Smoothed Prices Real $2018-19'!E30*'Master Data'!$J$18 -> 742.2958085 | F30: ='Smoothed Prices Real $2018-19'!F30*'Master Data'!$K$18 -> 774.6420662 | H30: =IFERROR(VLOOKUP($A30,'Volumes - Report Summary'!$A:$I,MATCH(H$5,'Volumes - Report Summary'!$A$6:$I$6,0),FALSE),0) -> 1 | I30: =IFERROR(VLOOKUP($A30,'Volumes - Report Summary'!$A:$I,MATCH(I$5,'Volumes - Report Summary'!$A$6:$I$6,0),FALSE),0) -> 1 | J30: =IFERROR(VLOOKUP($A30,'Volumes - Report Summary'!$A:$I,MATCH(J$5,'Volumes - Report Summary'!$A$6:$I$6,0),FALSE),0) -> 1 | K30: =IFERROR(VLOOKUP($A30,'Volumes - Report Summary'!$A:$I,MATCH(K$5,'Volumes - Report Summary'!$A$6:$I$6,0),FALSE),0) -> 1 | L30: =IFERROR(VLOOKUP($A30,'Volumes - Report Summary'!$A:$I,MATCH(L$5,'Volumes - Report Summary'!$A$6:$I$6,0),FALSE),0) -> 1 | N30: 653.1377733 | O30: 681.5988834 | P30: 711.3002138 | Q30: 742.2958085 | R30: 774.6420662
A31: ='Table of fees'!B28 -> Tee-up/Appointment – no truck – after hours | B31: ='Smoothed Prices Real $2018-19'!B31*'Master Data'!$G$18 -> 375.7594781 | C31: ='Smoothed Prices Real $2018-19'!C31*'Master Data'!$H$18 -> 392.1335607 | D31: ='Smoothed Prices Real $2018-19'!D31*'Master Data'!$I$18 -> 409.2211598 | E31: ='Smoothed Prices Real $2018-19'!E31*'Master Data'!$J$18 -> 427.0533676 | F31: ='Smoothed Prices Real $2018-19'!F31*'Master Data'!$K$18 -> 445.662631 | H31: =IFERROR(VLOOKUP($A31,'Volumes - Report Summary'!$A:$I,MATCH(H$5,'Volumes - Report Summary'!$A$6:$I$6,0),FALSE),0) -> 1 | I31: =IFERROR(VLOOKUP($A31,'Volumes - Report Summary'!$A:$I,MATCH(I$5,'Volumes - Report Summary'!$A$6:$I$6,0),FALSE),0) -> 1 | J31: =IFERROR(VLOOKUP($A31,'Volumes - Report Summary'!$A:$I,MATCH(J$5,'Volumes - Report Summary'!$A$6:$I$6,0),FALSE),0) -> 1 | K31: =IFERROR(VLOOKUP($A31,'Volumes - Report Summary'!$A:$I,MATCH(K$5,'Volumes - Report Summary'!$A$6:$I$6,0),FALSE),0) -> 1 | L31: =IFERROR(VLOOKUP($A31,'Volumes - Report Summary'!$A:$I,MATCH(L$5,'Volumes - Report Summary'!$A$6:$I$6,0),FALSE),0) -> 1 | N31: 375.7594781 | O31: 392.1335607 | P31: 409.2211598 | Q31: 427.0533676 | R31: 445.662631
A32: ='Table of fees'!B29 -> Tee-up/Appointment – wasted visit | B32: ='Smoothed Prices Real $2018-19'!B32*'Master Data'!$G$18 -> 104.0472158 | C32: ='Smoothed Prices Real $2018-19'!C32*'Master Data'!$H$18 -> 108.5811739 | D32: ='Smoothed Prices Real $2018-19'!D32*'Master Data'!$I$18 -> 113.3127035 | E32: ='Smoothed Prices Real $2018-19'!E32*'Master Data'!$J$18 -> 118.2504141 | F32: ='Smoothed Prices Real $2018-19'!F32*'Master Data'!$K$18 -> 123.4032903 | H32: =IFERROR(VLOOKUP($A32,'Volumes - Report Summary'!$A:$I,MATCH(H$5,'Volumes - Report Summary'!$A$6:$I$6,0),FALSE),0) -> 200 | I32: =IFERROR(VLOOKUP($A32,'Volumes - Report Summary'!$A:$I,MATCH(I$5,'Volumes - Report Summary'!$A$6:$I$6,0),FALSE),0) -> 200 | J32: =IFERROR(VLOOKUP($A32,'Volumes - Report Summary'!$A:$I,MATCH(J$5,'Volumes - Report Summary'!$A$6:$I$6,0),FALSE),0) -> 200 | K32: =IFERROR(VLOOKUP($A32,'Volumes - Report Summary'!$A:$I,MATCH(K$5,'Volumes - Report Summary'!$A$6:$I$6,0),FALSE),0) -> 200 | L32: =IFERROR(VLOOKUP($A32,'Volumes - Report Summary'!$A:$I,MATCH(L$5,'Volumes - Report Summary'!$A$6:$I$6,0),FALSE),0) -> 200 | N32: 20809.44316 | O32: 21716.23477 | P32: 22662.5407 | Q32: 23650.08283 | R32: 24680.65806
A33: ='Table of fees'!A30 -> Miscellaneous service
A34: ='Table of fees'!B31 -> Open turret | B34: ='Smoothed Prices Real $2018-19'!B34*'Master Data'!$G$18 -> 133.0510278 | C34: ='Smoothed Prices Real $2018-19'!C34*'Master Data'!$H$18 -> 138.848855 | D34: ='Smoothed Prices Real $2018-19'!D34*'Master Data'!$I$18 -> 144.8993282 | E34: ='Smoothed Prices Real $2018-19'!E34*'Master Data'!$J$18 -> 151.2134565 | F34: ='Smoothed Prices Real $2018-19'!F34*'Master Data'!$K$18 -> 157.8027291 | H34: =IFERROR(VLOOKUP($A34,'Volumes - Report Summary'!$A:$I,MATCH(H$5,'Volumes - Report Summary'!$A$6:$I$6,0),FALSE),0) -> 3 | I34: =IFERROR(VLOOKUP($A34,'Volumes - Report Summary'!$A:$I,MATCH(I$5,'Volumes - Report Summary'!$A$6:$I$6,0),FALSE),0) -> 3 | J34: =IFERROR(VLOOKUP($A34,'Volumes - Report Summary'!$A:$I,MATCH(J$5,'Volumes - Report Summary'!$A$6:$I$6,0),FALSE),0) -> 3 | K34: =IFERROR(VLOOKUP($A34,'Volumes - Report Summary'!$A:$I,MATCH(K$5,'Volumes - Report Summary'!$A$6:$I$6,0),FALSE),0) -> 3 | L34: =IFERROR(VLOOKUP($A34,'Volumes - Report Summary'!$A:$I,MATCH(L$5,'Volumes - Report Summary'!$A$6:$I$6,0),FALSE),0) -> 3 | N34: =H34*B34 -> 399.1530835 | O34: 416.5465651 | P34: 434.6979845 | Q34: 453.6403696 | R34: 473.4081874
A35: ='Table of fees'!B32 -> Data download | B35: ='Smoothed Prices Real $2018-19'!B35*'Master Data'!$G$18 -> 260.4998182 | C35: ='Smoothed Prices Real $2018-19'!C35*'Master Data'!$H$18 -> 271.8513497 | D35: ='Smoothed Prices Real $2018-19'!D35*'Master Data'!$I$18 -> 283.6975351 | E35: ='Smoothed Prices Real $2018-19'!E35*'Master Data'!$J$18 -> 296.0599296 | F35: ='Smoothed Prices Real $2018-19'!F35*'Master Data'!$K$18 -> 308.9610273 | H35: =IFERROR(VLOOKUP($A35,'Volumes - Report Summary'!$A:$I,MATCH(H$5,'Volumes - Report Summary'!$A$6:$I$6,0),FALSE),0) -> 3 | I35: =IFERROR(VLOOKUP($A35,'Volumes - Report Summary'!$A:$I,MATCH(I$5,'Volumes - Report Summary'!$A$6:$I$6,0),FALSE),0) -> 3 | J35: =IFERROR(VLOOKUP($A35,'Volumes - Report Summary'!$A:$I,MATCH(J$5,'Volumes - Report Summary'!$A$6:$I$6,0),FALSE),0) -> 3 | K35: =IFERROR(VLOOKUP($A35,'Volumes - Report Summary'!$A:$I,MATCH(K$5,'Volumes - Report Summary'!$A$6:$I$6,0),FALSE),0) -> 3 | L35: =IFERROR(VLOOKUP($A35,'Volumes - Report Summary'!$A:$I,MATCH(L$5,'Volumes - Report Summary'!$A$6:$I$6,0),FALSE),0) -> 3 | N35: 781.4994546 | O35: 815.5540491 | P35: 851.0926054 | Q35: 888.1797887 | R35: 926.8830819
A36: ='Table of fees'!B33 -> Alteration to unmetered supply | B36: ='Smoothed Prices Real $2018-19'!B36*'Master Data'!$G$18 -> 202.5685499 | C36: ='Smoothed Prices Real $2018-19'!C36*'Master Data'!$H$18 -> 211.3956703 | D36: ='Smoothed Prices Real $2018-19'!D36*'Master Data'!$I$18 -> 220.6074411 | E36: ='Smoothed Prices Real $2018-19'!E36*'Master Data'!$J$18 -> 230.2206236 | F36: ='Smoothed Prices Real $2018-19'!F36*'Master Data'!$K$18 -> 240.2527099 | H36: =IFERROR(VLOOKUP($A36,'Volumes - Report Summary'!$A:$I,MATCH(H$5,'Volumes - Report Summary'!$A$6:$I$6,0),FALSE),0) -> 3 | I36: =IFERROR(VLOOKUP($A36,'Volumes - Report Summary'!$A:$I,MATCH(I$5,'Volumes - Report Summary'!$A$6:$I$6,0),FALSE),0) -> 3 | J36: =IFERROR(VLOOKUP($A36,'Volumes - Report Summary'!$A:$I,MATCH(J$5,'Volumes - Report Summary'!$A$6:$I$6,0),FALSE),0) -> 3 | K36: =IFERROR(VLOOKUP($A36,'Volumes - Report Summary'!$A:$I,MATCH(K$5,'Volumes - Report Summary'!$A$6:$I$6,0),FALSE),0) -> 3 | L36: =IFERROR(VLOOKUP($A36,'Volumes - Report Summary'!$A:$I,MATCH(L$5,'Volumes - Report Summary'!$A$6:$I$6,0),FALSE),0) -> 3 | N36: 607.7056496 | O36: 634.1870109 | P36: 661.8223232 | Q36: 690.6618709 | R36: 720.7581298
A37: ='Table of fees'!B34 -> Meter Relocation | B37: ='Smoothed Prices Real $2018-19'!B37*'Master Data'!$G$18 -> 158.4852953 | C37: ='Smoothed Prices Real $2018-19'!C37*'Master Data'!$H$18 -> 165.3914453 | D37: ='Smoothed Prices Real $2018-19'!D37*'Master Data'!$I$18 -> 172.5985375 | E37: ='Smoothed Prices Real $2018-19'!E37*'Master Data'!$J$18 -> 180.1196857 | F37: ='Smoothed Prices Real $2018-19'!F37*'Master Data'!$K$18 -> 187.9685751 | H37: =IFERROR(VLOOKUP($A37,'Volumes - Report Summary'!$A:$I,MATCH(H$5,'Volumes - Report Summary'!$A$6:$I$6,0),FALSE),0) -> 3 | I37: =IFERROR(VLOOKUP($A37,'Volumes - Report Summary'!$A:$I,MATCH(I$5,'Volumes - Report Summary'!$A$6:$I$6,0),FALSE),0) -> 3 | J37: =IFERROR(VLOOKUP($A37,'Volumes - Report Summary'!$A:$I,MATCH(J$5,'Volumes - Report Summary'!$A$6:$I$6,0),FALSE),0) -> 3 | K37: =IFERROR(VLOOKUP($A37,'Volumes - Report Summary'!$A:$I,MATCH(K$5,'Volumes - Report Summary'!$A$6:$I$6,0),FALSE),0) -> 3 | L37: =IFERROR(VLOOKUP($A37,'Volumes - Report Summary'!$A:$I,MATCH(L$5,'Volumes - Report Summary'!$A$6:$I$6,0),FALSE),0) -> 3 | N37: 475.455886 | O37: 496.174336 | P37: 517.7956125 | Q37: 540.359057 | R37: 563.9057254
A38: ='Table of fees'!B35 -> Tiger tails - standard single/multi phase | B38: ='Smoothed Prices Real $2018-19'!B38*'Master Data'!$G$18 -> 562.3458113 | C38: ='Smoothed Prices Real $2018-19'!C38*'Master Data'!$H$18 -> 586.8505738 | D38: ='Smoothed Prices Real $2018-19'!D38*'Master Data'!$I$18 -> 612.4231551 | E38: ='Smoothed Prices Real $2018-19'!E38*'Master Data'!$J$18 -> 639.1100863 | F38: ='Smoothed Prices Real $2018-19'!F38*'Master Data'!$K$18 -> 666.9599263 | H38: =IFERROR(VLOOKUP($A38,'Volumes - Report Summary'!$A:$I,MATCH(H$5,'Volumes - Report Summary'!$A$6:$I$6,0),FALSE),0) -> 3 | I38: =IFERROR(VLOOKUP($A38,'Volumes - Report Summary'!$A:$I,MATCH(I$5,'Volumes - Report Summary'!$A$6:$I$6,0),FALSE),0) -> 3 | J38: =IFERROR(VLOOKUP($A38,'Volumes - Report Summary'!$A:$I,MATCH(J$5,'Volumes - Report Summary'!$A$6:$I$6,0),FALSE),0) -> 3 | K38: =IFERROR(VLOOKUP($A38,'Volumes - Report Summary'!$A:$I,MATCH(K$5,'Volumes - Report Summary'!$A$6:$I$6,0),FALSE),0) -> 3 | L38: =IFERROR(VLOOKUP($A38,'Volumes - Report Summary'!$A:$I,MATCH(L$5,'Volumes - Report Summary'!$A$6:$I$6,0),FALSE),0) -> 3 | N38: =H38*B38 -> 1687.037434 | O38: =I38*C38 -> 1760.551721 | P38: =J38*D38 -> 1837.269465 | Q38: =K38*E38 -> 1917.330259 | R38: =L38*F38 -> 2000.879779
A39: ='Table of fees'!B36 -> Tiger tails - scaffolding single phase | B39: ='Smoothed Prices Real $2018-19'!B39*'Master Data'!$G$18 -> 882.4884512 | C39: ='Smoothed Prices Real $2018-19'!C39*'Master Data'!$H$18 -> 920.9437388 | D39: ='Smoothed Prices Real $2018-19'!D39*'Master Data'!$I$18 -> 961.0747528 | E39: ='Smoothed Prices Real $2018-19'!E39*'Master Data'!$J$18 -> 1002.954515 | F39: ='Smoothed Prices Real $2018-19'!F39*'Master Data'!$K$18 -> 1046.659227 | H39: =IFERROR(VLOOKUP($A39,'Volumes - Report Summary'!$A:$I,MATCH(H$5,'Volumes - Report Summary'!$A$6:$I$6,0),FALSE),0) -> 3 | I39: =IFERROR(VLOOKUP($A39,'Volumes - Report Summary'!$A:$I,MATCH(I$5,'Volumes - Report Summary'!$A$6:$I$6,0),FALSE),0) -> 3 | J39: =IFERROR(VLOOKUP($A39,'Volumes - Report Summary'!$A:$I,MATCH(J$5,'Volumes - Report Summary'!$A$6:$I$6,0),FALSE),0) -> 3 | K39: =IFERROR(VLOOKUP($A39,'Volumes - Report Summary'!$A:$I,MATCH(K$5,'Volumes - Report Summary'!$A$6:$I$6,0),FALSE),0) -> 3 | L39: =IFERROR(VLOOKUP($A39,'Volumes - Report Summary'!$A:$I,MATCH(L$5,'Volumes - Report Summary'!$A$6:$I$6,0),FALSE),0) -> 3 | N39: 2647.465354 | O39: 2762.831216 | P39: 2883.224258 | Q39: 3008.863544 | R39: 3139.977682
A40: ='Table of fees'!B37 -> Tiger tails - scaffolding multi phase | B40: ='Smoothed Prices Real $2018-19'!B40*'Master Data'!$G$18 -> 965.8484864 | C40: ='Smoothed Prices Real $2018-19'!C40*'Master Data'!$H$18 -> 1007.936268 | D40: ='Smoothed Prices Real $2018-19'!D40*'Master Data'!$I$18 -> 1051.858066 | E40: ='Smoothed Prices Real $2018-19'!E40*'Master Data'!$J$18 -> 1097.693798 | F40: ='Smoothed Prices Real $2018-19'!F40*'Master Data'!$K$18 -> 1145.526867 | H40: =IFERROR(VLOOKUP($A40,'Volumes - Report Summary'!$A:$I,MATCH(H$5,'Volumes - Report Summary'!$A$6:$I$6,0),FALSE),0) -> 3 | I40: =IFERROR(VLOOKUP($A40,'Volumes - Report Summary'!$A:$I,MATCH(I$5,'Volumes - Report Summary'!$A$6:$I$6,0),FALSE),0) -> 3 | J40: =IFERROR(VLOOKUP($A40,'Volumes - Report Summary'!$A:$I,MATCH(J$5,'Volumes - Report Summary'!$A$6:$I$6,0),FALSE),0) -> 3 | K40: =IFERROR(VLOOKUP($A40,'Volumes - Report Summary'!$A:$I,MATCH(K$5,'Volumes - Report Summary'!$A$6:$I$6,0),FALSE),0) -> 3 | L40: =IFERROR(VLOOKUP($A40,'Volumes - Report Summary'!$A:$I,MATCH(L$5,'Volumes - Report Summary'!$A$6:$I$6,0),FALSE),0) -> 3 | N40: 2897.545459 | O40: 3023.808805 | P40: 3155.574197 | Q40: 3293.081394 | R40: 3436.580601
A41: ='Table of fees'!B38 -> Miscellaneous service | B41: ='Smoothed Prices Real $2018-19'!B41*'Master Data'!$G$18 -> 121.4647742 | C41: ='Smoothed Prices Real $2018-19'!C41*'Master Data'!$H$18 -> 126.7577192 | D41: ='Smoothed Prices Real $2018-19'!D41*'Master Data'!$I$18 -> 132.2813094 | E41: ='Smoothed Prices Real $2018-19'!E41*'Master Data'!$J$18 -> 138.0455953 | F41: ='Smoothed Prices Real $2018-19'!F41*'Master Data'!$K$18 -> 144.0610656 | H41: =IFERROR(VLOOKUP($A41,'Volumes - Report Summary'!$A:$I,MATCH(H$5,'Volumes - Report Summary'!$A$6:$I$6,0),FALSE),0) -> 6 | I41: =IFERROR(VLOOKUP($A41,'Volumes - Report Summary'!$A:$I,MATCH(I$5,'Volumes - Report Summary'!$A$6:$I$6,0),FALSE),0) -> 6 | J41: =IFERROR(VLOOKUP($A41,'Volumes - Report Summary'!$A:$I,MATCH(J$5,'Volumes - Report Summary'!$A$6:$I$6,0),FALSE),0) -> 6 | K41: =IFERROR(VLOOKUP($A41,'Volumes - Report Summary'!$A:$I,MATCH(K$5,'Volumes - Report Summary'!$A$6:$I$6,0),FALSE),0) -> 6 | L41: =IFERROR(VLOOKUP($A41,'Volumes - Report Summary'!$A:$I,MATCH(L$5,'Volumes - Report Summary'!$A$6:$I$6,0),FALSE),0) -> 6 | N41: 728.7886451 | O41: 760.546315 | P41: 793.6878562 | Q41: 828.273572 | R41: 864.3663939
A42: ='Table of fees'!B39 -> Miscellaneous service – after hours | B42: ='Smoothed Prices Real $2018-19'!B42*'Master Data'!$G$18 -> 567.8613253 | C42: ='Smoothed Prices Real $2018-19'!C42*'Master Data'!$H$18 -> 592.6064317 | D42: ='Smoothed Prices Real $2018-19'!D42*'Master Data'!$I$18 -> 618.42983 | E42: ='Smoothed Prices Real $2018-19'!E42*'Master Data'!$J$18 -> 645.3785079 | F42: ='Smoothed Prices Real $2018-19'!F42*'Master Data'!$K$18 -> 673.5015005 | H42: =IFERROR(VLOOKUP($A42,'Volumes - Report Summary'!$A:$I,MATCH(H$5,'Volumes - Report Summary'!$A$6:$I$6,0),FALSE),0) -> 3 | I42: =IFERROR(VLOOKUP($A42,'Volumes - Report Summary'!$A:$I,MATCH(I$5,'Volumes - Report Summary'!$A$6:$I$6,0),FALSE),0) -> 3 | J42: =IFERROR(VLOOKUP($A42,'Volumes - Report Summary'!$A:$I,MATCH(J$5,'Volumes - Report Summary'!$A$6:$I$6,0),FALSE),0) -> 3 | K42: =IFERROR(VLOOKUP($A42,'Volumes - Report Summary'!$A:$I,MATCH(K$5,'Volumes - Report Summary'!$A$6:$I$6,0),FALSE),0) -> 3 | L42: =IFERROR(VLOOKUP($A42,'Volumes - Report Summary'!$A:$I,MATCH(L$5,'Volumes - Report Summary'!$A$6:$I$6,0),FALSE),0) -> 3 | N42: 1703.583976 | O42: 1777.819295 | P42: 1855.28949 | Q42: 1936.135524 | R42: 2020.504502
A43: ='Table of fees'!B40 -> Miscellaneous service – wasted visit | B43: ='Smoothed Prices Real $2018-19'!B43*'Master Data'!$G$18 -> 98.29226684 | C43: ='Smoothed Prices Real $2018-19'!C43*'Master Data'!$H$18 -> 102.5754474 | D43: ='Smoothed Prices Real $2018-19'!D43*'Master Data'!$I$18 -> 107.0452717 | E43: ='Smoothed Prices Real $2018-19'!E43*'Master Data'!$J$18 -> 111.709873 | F43: ='Smoothed Prices Real $2018-19'!F43*'Master Data'!$K$18 -> 116.5777387 | H43: =IFERROR(VLOOKUP($A43,'Volumes - Report Summary'!$A:$I,MATCH(H$5,'Volumes - Report Summary'!$A$6:$I$6,0),FALSE),0) -> 3 | I43: =IFERROR(VLOOKUP($A43,'Volumes - Report Summary'!$A:$I,MATCH(I$5,'Volumes - Report Summary'!$A$6:$I$6,0),FALSE),0) -> 3 | J43: =IFERROR(VLOOKUP($A43,'Volumes - Report Summary'!$A:$I,MATCH(J$5,'Volumes - Report Summary'!$A$6:$I$6,0),FALSE),0) -> 3 | K43: =IFERROR(VLOOKUP($A43,'Volumes - Report Summary'!$A:$I,MATCH(K$5,'Volumes - Report Summary'!$A$6:$I$6,0),FALSE),0) -> 3 | L43: =IFERROR(VLOOKUP($A43,'Volumes - Report Summary'!$A:$I,MATCH(L$5,'Volumes - Report Summary'!$A$6:$I$6,0),FALSE),0) -> 3 | N43: 294.8768005 | O43: 307.7263423 | P43: 321.1358152 | Q43: 335.1296189 | R43: 349.7332161
A44: ='Table of fees'!B41 -> Administration | B44: ='Smoothed Prices Real $2018-19'!B44*'Master Data'!$G$18 -> 49.66020507 | C44: ='Smoothed Prices Real $2018-19'!C44*'Master Data'!$H$18 -> 51.82419653 | D44: ='Smoothed Prices Real $2018-19'!D44*'Master Data'!$I$18 -> 54.082486 | E44: ='Smoothed Prices Real $2018-19'!E44*'Master Data'!$J$18 -> 56.43918263 | F44: ='Smoothed Prices Real $2018-19'!F44*'Master Data'!$K$18 -> 58.89857459 | H44: =IFERROR(VLOOKUP($A44,'Volumes - Report Summary'!$A:$I,MATCH(H$5,'Volumes - Report Summary'!$A$6:$I$6,0),FALSE),0) -> 2 | I44: =IFERROR(VLOOKUP($A44,'Volumes - Report Summary'!$A:$I,MATCH(I$5,'Volumes - Report Summary'!$A$6:$I$6,0),FALSE),0) -> 2 | J44: =IFERROR(VLOOKUP($A44,'Volumes - Report Summary'!$A:$I,MATCH(J$5,'Volumes - Report Summary'!$A$6:$I$6,0),FALSE),0) -> 2 | K44: =IFERROR(VLOOKUP($A44,'Volumes - Report Summary'!$A:$I,MATCH(K$5,'Volumes - Report Summary'!$A$6:$I$6,0),FALSE),0) -> 2 | L44: =IFERROR(VLOOKUP($A44,'Volumes - Report Summary'!$A:$I,MATCH(L$5,'Volumes - Report Summary'!$A$6:$I$6,0),FALSE),0) -> 2 | N44: =H44*B44 -> 99.32041014 | O44: =I44*C44 -> 103.6483931 | P44: =J44*D44 -> 108.164972 | Q44: =K44*E44 -> 112.8783653 | R44: =L44*F44 -> 117.7971492
A45: ='Table of fees'!B42 -> Statutory right - access prevented | B45: ='Smoothed Prices Real $2018-19'!B45*'Master Data'!$G$18 -> 891.9395175 | C45: ='Smoothed Prices Real $2018-19'!C45*'Master Data'!$H$18 -> 930.8066445 | D45: ='Smoothed Prices Real $2018-19'!D45*'Master Data'!$I$18 -> 971.3674442 | E45: ='Smoothed Prices Real $2018-19'!E45*'Master Data'!$J$18 -> 1013.69572 | F45: ='Smoothed Prices Real $2018-19'!F45*'Master Data'!$K$18 -> 1057.868491 | H45: =IFERROR(VLOOKUP($A45,'Volumes - Report Summary'!$A:$I,MATCH(H$5,'Volumes - Report Summary'!$A$6:$I$6,0),FALSE),0) -> 1 | I45: =IFERROR(VLOOKUP($A45,'Volumes - Report Summary'!$A:$I,MATCH(I$5,'Volumes - Report Summary'!$A$6:$I$6,0),FALSE),0) -> 1 | J45: =IFERROR(VLOOKUP($A45,'Volumes - Report Summary'!$A:$I,MATCH(J$5,'Volumes - Report Summary'!$A$6:$I$6,0),FALSE),0) -> 1 | K45: =IFERROR(VLOOKUP($A45,'Volumes - Report Summary'!$A:$I,MATCH(K$5,'Volumes - Report Summary'!$A$6:$I$6,0),FALSE),0) -> 1 | L45: =IFERROR(VLOOKUP($A45,'Volumes - Report Summary'!$A:$I,MATCH(L$5,'Volumes - Report Summary'!$A$6:$I$6,0),FALSE),0) -> 1 | N45: =H45*B45 -> 891.9395175 | O45: =I45*C45 -> 930.8066445 | P45: =J45*D45 -> 971.3674442 | Q45: =K45*E45 -> 1013.69572 | R45: =L45*F45 -> 1057.868491
A46: ='Table of fees'!B43 -> Tariff change | B46: ='Smoothed Prices Real $2018-19'!B46*'Master Data'!$G$18 -> 49.66020507 | C46: ='Smoothed Prices Real $2018-19'!C46*'Master Data'!$H$18 -> 51.82419653 | D46: ='Smoothed Prices Real $2018-19'!D46*'Master Data'!$I$18 -> 54.082486 | E46: ='Smoothed Prices Real $2018-19'!E46*'Master Data'!$J$18 -> 56.43918263 | F46: ='Smoothed Prices Real $2018-19'!F46*'Master Data'!$K$18 -> 58.89857459 | H46: =IFERROR(VLOOKUP($A46,'Volumes - Report Summary'!$A:$I,MATCH(H$5,'Volumes - Report Summary'!$A$6:$I$6,0),FALSE),0) -> 1 | I46: =IFERROR(VLOOKUP($A46,'Volumes - Report Summary'!$A:$I,MATCH(I$5,'Volumes - Report Summary'!$A$6:$I$6,0),FALSE),0) -> 1 | J46: =IFERROR(VLOOKUP($A46,'Volumes - Report Summary'!$A:$I,MATCH(J$5,'Volumes - Report Summary'!$A$6:$I$6,0),FALSE),0) -> 1 | K46: =IFERROR(VLOOKUP($A46,'Volumes - Report Summary'!$A:$I,MATCH(K$5,'Volumes - Report Summary'!$A$6:$I$6,0),FALSE),0) -> 1 | L46: =IFERROR(VLOOKUP($A46,'Volumes - Report Summary'!$A:$I,MATCH(L$5,'Volumes - Report Summary'!$A$6:$I$6,0),FALSE),0) -> 1 | N46: =H46*B46 -> 49.66020507 | O46: =I46*C46 -> 51.82419653 | P46: =J46*D46 -> 54.082486 | Q46: =K46*E46 -> 56.43918263 | R46: =L46*F46 -> 58.89857459
A47: ='Table of fees'!B44 -> Emergency maintenance contestable meters | B47: ='Smoothed Prices Real $2018-19'!B47*'Master Data'!$G$18 -> 64.69458958 | C47: ='Smoothed Prices Real $2018-19'!C47*'Master Data'!$H$18 -> 67.51371888 | D47: ='Smoothed Prices Real $2018-19'!D47*'Master Data'!$I$18 -> 70.45569447 | E47: ='Smoothed Prices Real $2018-19'!E47*'Master Data'!$J$18 -> 73.52586949 | F47: ='Smoothed Prices Real $2018-19'!F47*'Master Data'!$K$18 -> 76.72983035 | H47: =IFERROR(VLOOKUP($A47,'Volumes - Report Summary'!$A:$I,MATCH(H$5,'Volumes - Report Summary'!$A$6:$I$6,0),FALSE),0) -> 1 | I47: =IFERROR(VLOOKUP($A47,'Volumes - Report Summary'!$A:$I,MATCH(I$5,'Volumes - Report Summary'!$A$6:$I$6,0),FALSE),0) -> 1 | J47: =IFERROR(VLOOKUP($A47,'Volumes - Report Summary'!$A:$I,MATCH(J$5,'Volumes - Report Summary'!$A$6:$I$6,0),FALSE),0) -> 1 | K47: =IFERROR(VLOOKUP($A47,'Volumes - Report Summary'!$A:$I,MATCH(K$5,'Volumes - Report Summary'!$A$6:$I$6,0),FALSE),0) -> 1 | L47: =IFERROR(VLOOKUP($A47,'Volumes - Report Summary'!$A:$I,MATCH(L$5,'Volumes - Report Summary'!$A$6:$I$6,0),FALSE),0) -> 1 | N47: 64.69458958 | O47: 67.51371888 | P47: 70.45569447 | Q47: 73.52586949 | R47: 76.72983035
A48: ='Table of fees'!B45 -> Emergency maintenance contestable meters - after hours | B48: ='Smoothed Prices Real $2018-19'!B48*'Master Data'!$G$18 -> 375.7594781 | C48: ='Smoothed Prices Real $2018-19'!C48*'Master Data'!$H$18 -> 392.1335607 | D48: ='Smoothed Prices Real $2018-19'!D48*'Master Data'!$I$18 -> 409.2211598 | E48: ='Smoothed Prices Real $2018-19'!E48*'Master Data'!$J$18 -> 427.0533676 | F48: ='Smoothed Prices Real $2018-19'!F48*'Master Data'!$K$18 -> 445.662631 | H48: =IFERROR(VLOOKUP($A48,'Volumes - Report Summary'!$A:$I,MATCH(H$5,'Volumes - Report Summary'!$A$6:$I$6,0),FALSE),0) -> 1 | I48: =IFERROR(VLOOKUP($A48,'Volumes - Report Summary'!$A:$I,MATCH(I$5,'Volumes - Report Summary'!$A$6:$I$6,0),FALSE),0) -> 1 | J48: =IFERROR(VLOOKUP($A48,'Volumes - Report Summary'!$A:$I,MATCH(J$5,'Volumes - Report Summary'!$A$6:$I$6,0),FALSE),0) -> 1 | K48: =IFERROR(VLOOKUP($A48,'Volumes - Report Summary'!$A:$I,MATCH(K$5,'Volumes - Report Summary'!$A$6:$I$6,0),FALSE),0) -> 1 | L48: =IFERROR(VLOOKUP($A48,'Volumes - Report Summary'!$A:$I,MATCH(L$5,'Volumes - Report Summary'!$A$6:$I$6,0),FALSE),0) -> 1 | N48: =H48*B48 -> 375.7594781 | O48: =I48*C48 -> 392.1335607 | P48: =J48*D48 -> 409.2211598 | Q48: =K48*E48 -> 427.0533676 | R48: =L48*F48 -> 445.662631
A49: ='Table of fees'!B46 -> Meter recovery and disposal | B49: ='Smoothed Prices Real $2018-19'!B49*'Master Data'!$G$18 -> 93.55103075 | C49: ='Smoothed Prices Real $2018-19'!C49*'Master Data'!$H$18 -> 97.62760738 | D49: ='Smoothed Prices Real $2018-19'!D49*'Master Data'!$I$18 -> 101.8818248 | E49: ='Smoothed Prices Real $2018-19'!E49*'Master Data'!$J$18 -> 106.3214238 | F49: ='Smoothed Prices Real $2018-19'!F49*'Master Data'!$K$18 -> 110.9544827 | H49: =IFERROR(VLOOKUP($A49,'Volumes - Report Summary'!$A:$I,MATCH(H$5,'Volumes - Report Summary'!$A$6:$I$6,0),FALSE),0) -> 1 | I49: =IFERROR(VLOOKUP($A49,'Volumes - Report Summary'!$A:$I,MATCH(I$5,'Volumes - Report Summary'!$A$6:$I$6,0),FALSE),0) -> 1 | J49: =IFERROR(VLOOKUP($A49,'Volumes - Report Summary'!$A:$I,MATCH(J$5,'Volumes - Report Summary'!$A$6:$I$6,0),FALSE),0) -> 1 | K49: =IFERROR(VLOOKUP($A49,'Volumes - Report Summary'!$A:$I,MATCH(K$5,'Volumes - Report Summary'!$A$6:$I$6,0),FALSE),0) -> 1 | L49: =IFERROR(VLOOKUP($A49,'Volumes - Report Summary'!$A:$I,MATCH(L$5,'Volumes - Report Summary'!$A$6:$I$6,0),FALSE),0) -> 1 | N49: 93.55103075 | O49: 97.62760738 | P49: 101.8818248 | Q49: 106.3214238 | R49: 110.9544827
A50: ='Table of fees'!A47 -> Basic Connection establishment charges (including temporary builders supply)
A51: ='Table of fees'!B48 -> Creation of a NMI | B51: ='Smoothed Prices Real $2018-19'!B51*'Master Data'!$G$18 -> 43.18113343 | C51: ='Smoothed Prices Real $2018-19'!C51*'Master Data'!$H$18 -> 45.06279308 | D51: ='Smoothed Prices Real $2018-19'!D51*'Master Data'!$I$18 -> 47.02644786 | E51: ='Smoothed Prices Real $2018-19'!E51*'Master Data'!$J$18 -> 49.07567081 | F51: ='Smoothed Prices Real $2018-19'!F51*'Master Data'!$K$18 -> 51.21419062 | H51: =IFERROR(VLOOKUP($A51,'Volumes - Report Summary'!$A:$I,MATCH(H$5,'Volumes - Report Summary'!$A$6:$I$6,0),FALSE),0) -> 1 | I51: =IFERROR(VLOOKUP($A51,'Volumes - Report Summary'!$A:$I,MATCH(I$5,'Volumes - Report Summary'!$A$6:$I$6,0),FALSE),0) -> 1 | J51: =IFERROR(VLOOKUP($A51,'Volumes - Report Summary'!$A:$I,MATCH(J$5,'Volumes - Report Summary'!$A$6:$I$6,0),FALSE),0) -> 1 | K51: =IFERROR(VLOOKUP($A51,'Volumes - Report Summary'!$A:$I,MATCH(K$5,'Volumes - Report Summary'!$A$6:$I$6,0),FALSE),0) -> 1 | L51: =IFERROR(VLOOKUP($A51,'Volumes - Report Summary'!$A:$I,MATCH(L$5,'Volumes - Report Summary'!$A$6:$I$6,0),FALSE),0) -> 1 | N51: =H51*B51 -> 43.18113343 | O51: =I51*C51 -> 45.06279308 | P51: =J51*D51 -> 47.02644786 | Q51: =K51*E51 -> 49.07567081 | R51: =L51*F51 -> 51.21419062
A52: ='Table of fees'!B49 -> Overhead service, single span - single phase | B52: ='Smoothed Prices Real $2018-19'!B52*'Master Data'!$G$18 -> 550.2712343 | C52: ='Smoothed Prices Real $2018-19'!C52*'Master Data'!$H$18 -> 574.2498355 | D52: ='Smoothed Prices Real $2018-19'!D52*'Master Data'!$I$18 -> 599.2733274 | E52: ='Smoothed Prices Real $2018-19'!E52*'Master Data'!$J$18 -> 625.3872421 | F52: ='Smoothed Prices Real $2018-19'!F52*'Master Data'!$K$18 -> 652.639096 | H52: =IFERROR(VLOOKUP($A52,'Volumes - Report Summary'!$A:$I,MATCH(H$5,'Volumes - Report Summary'!$A$6:$I$6,0),FALSE),0) -> 319 | I52: =IFERROR(VLOOKUP($A52,'Volumes - Report Summary'!$A:$I,MATCH(I$5,'Volumes - Report Summary'!$A$6:$I$6,0),FALSE),0) -> 319 | J52: =IFERROR(VLOOKUP($A52,'Volumes - Report Summary'!$A:$I,MATCH(J$5,'Volumes - Report Summary'!$A$6:$I$6,0),FALSE),0) -> 319 | K52: =IFERROR(VLOOKUP($A52,'Volumes - Report Summary'!$A:$I,MATCH(K$5,'Volumes - Report Summary'!$A$6:$I$6,0),FALSE),0) -> 319 | L52: =IFERROR(VLOOKUP($A52,'Volumes - Report Summary'!$A:$I,MATCH(L$5,'Volumes - Report Summary'!$A$6:$I$6,0),FALSE),0) -> 319 | N52: =H52*B52 -> 175536.5238 | O52: 183185.6975 | P52: 191168.1914 | Q52: 199498.5302 | R52: 208191.8716
A53: ='Table of fees'!B50 -> Overhead service, single span - multi phase | B53: ='Smoothed Prices Real $2018-19'!B53*'Master Data'!$G$18 -> 773.3242858 | C53: ='Smoothed Prices Real $2018-19'!C53*'Master Data'!$H$18 -> 807.0226393 | D53: ='Smoothed Prices Real $2018-19'!D53*'Master Data'!$I$18 -> 842.1894313 | E53: ='Smoothed Prices Real $2018-19'!E53*'Master Data'!$J$18 -> 878.8886501 | F53: ='Smoothed Prices Real $2018-19'!F53*'Master Data'!$K$18 -> 917.187073 | H53: =IFERROR(VLOOKUP($A53,'Volumes - Report Summary'!$A:$I,MATCH(H$5,'Volumes - Report Summary'!$A$6:$I$6,0),FALSE),0) -> 110 | I53: =IFERROR(VLOOKUP($A53,'Volumes - Report Summary'!$A:$I,MATCH(I$5,'Volumes - Report Summary'!$A$6:$I$6,0),FALSE),0) -> 110 | J53: =IFERROR(VLOOKUP($A53,'Volumes - Report Summary'!$A:$I,MATCH(J$5,'Volumes - Report Summary'!$A$6:$I$6,0),FALSE),0) -> 110 | K53: =IFERROR(VLOOKUP($A53,'Volumes - Report Summary'!$A:$I,MATCH(K$5,'Volumes - Report Summary'!$A$6:$I$6,0),FALSE),0) -> 110 | L53: =IFERROR(VLOOKUP($A53,'Volumes - Report Summary'!$A:$I,MATCH(L$5,'Volumes - Report Summary'!$A$6:$I$6,0),FALSE),0) -> 110 | N53: 85065.67143 | O53: 88772.49033 | P53: 92640.83744 | Q53: 96677.75152 | R53: 100890.578
A54: ='Table of fees'!B51 -> Underground service in turret/cabinet - single phase | B54: ='Smoothed Prices Real $2018-19'!B54*'Master Data'!$G$18 -> 195.808278 | C54: ='Smoothed Prices Real $2018-19'!C54*'Master Data'!$H$18 -> 204.3408131 | D54: ='Smoothed Prices Real $2018-19'!D54*'Master Data'!$I$18 -> 213.2451616 | E54: ='Smoothed Prices Real $2018-19'!E54*'Master Data'!$J$18 -> 222.5375257 | F54: ='Smoothed Prices Real $2018-19'!F54*'Master Data'!$K$18 -> 232.2348136 | H54: =IFERROR(VLOOKUP($A54,'Volumes - Report Summary'!$A:$I,MATCH(H$5,'Volumes - Report Summary'!$A$6:$I$6,0),FALSE),0) -> 1669 | I54: =IFERROR(VLOOKUP($A54,'Volumes - Report Summary'!$A:$I,MATCH(I$5,'Volumes - Report Summary'!$A$6:$I$6,0),FALSE),0) -> 1669 | J54: =IFERROR(VLOOKUP($A54,'Volumes - Report Summary'!$A:$I,MATCH(J$5,'Volumes - Report Summary'!$A$6:$I$6,0),FALSE),0) -> 1669 | K54: =IFERROR(VLOOKUP($A54,'Volumes - Report Summary'!$A:$I,MATCH(K$5,'Volumes - Report Summary'!$A$6:$I$6,0),FALSE),0) -> 1669 | L54: =IFERROR(VLOOKUP($A54,'Volumes - Report Summary'!$A:$I,MATCH(L$5,'Volumes - Report Summary'!$A$6:$I$6,0),FALSE),0) -> 1669 | N54: 326804.016 | O54: 341044.817 | P54: 355906.1747 | Q54: 371415.1304 | R54: 387599.9039
A55: ='Table of fees'!B52 -> Underground service in turret/cabinet - multi phase | B55: ='Smoothed Prices Real $2018-19'!B55*'Master Data'!$G$18 -> 238.264822 | C55: ='Smoothed Prices Real $2018-19'!C55*'Master Data'!$H$18 -> 248.6474421 | D55: ='Smoothed Prices Real $2018-19'!D55*'Master Data'!$I$18 -> 259.4824948 | E55: ='Smoothed Prices Real $2018-19'!E55*'Master Data'!$J$18 -> 270.7896954 | F55: ='Smoothed Prices Real $2018-19'!F55*'Master Data'!$K$18 -> 282.5896183 | H55: =IFERROR(VLOOKUP($A55,'Volumes - Report Summary'!$A:$I,MATCH(H$5,'Volumes - Report Summary'!$A$6:$I$6,0),FALSE),0) -> 332 | I55: =IFERROR(VLOOKUP($A55,'Volumes - Report Summary'!$A:$I,MATCH(I$5,'Volumes - Report Summary'!$A$6:$I$6,0),FALSE),0) -> 332 | J55: =IFERROR(VLOOKUP($A55,'Volumes - Report Summary'!$A:$I,MATCH(J$5,'Volumes - Report Summary'!$A$6:$I$6,0),FALSE),0) -> 332 | K55: =IFERROR(VLOOKUP($A55,'Volumes - Report Summary'!$A:$I,MATCH(K$5,'Volumes - Report Summary'!$A$6:$I$6,0),FALSE),0) -> 332 | L55: =IFERROR(VLOOKUP($A55,'Volumes - Report Summary'!$A:$I,MATCH(L$5,'Volumes - Report Summary'!$A$6:$I$6,0),FALSE),0) -> 332 | N55: 79103.92091 | O55: 82550.95076 | P55: 86148.18827 | Q55: 89902.17888 | R55: 93819.75326
A56: ='Table of fees'!B53 -> Underground service with pole mounted fuse - single phase | B56: ='Smoothed Prices Real $2018-19'!B56*'Master Data'!$G$18 -> 416.98894 | C56: ='Smoothed Prices Real $2018-19'!C56*'Master Data'!$H$18 -> 435.1596363 | D56: ='Smoothed Prices Real $2018-19'!D56*'Master Data'!$I$18 -> 454.1221382 | E56: ='Smoothed Prices Real $2018-19'!E56*'Master Data'!$J$18 -> 473.9109496 | F56: ='Smoothed Prices Real $2018-19'!F56*'Master Data'!$K$18 -> 494.5620775 | H56: =IFERROR(VLOOKUP($A56,'Volumes - Report Summary'!$A:$I,MATCH(H$5,'Volumes - Report Summary'!$A$6:$I$6,0),FALSE),0) -> 379 | I56: =IFERROR(VLOOKUP($A56,'Volumes - Report Summary'!$A:$I,MATCH(I$5,'Volumes - Report Summary'!$A$6:$I$6,0),FALSE),0) -> 379 | J56: =IFERROR(VLOOKUP($A56,'Volumes - Report Summary'!$A:$I,MATCH(J$5,'Volumes - Report Summary'!$A$6:$I$6,0),FALSE),0) -> 379 | K56: =IFERROR(VLOOKUP($A56,'Volumes - Report Summary'!$A:$I,MATCH(K$5,'Volumes - Report Summary'!$A$6:$I$6,0),FALSE),0) -> 379 | L56: =IFERROR(VLOOKUP($A56,'Volumes - Report Summary'!$A:$I,MATCH(L$5,'Volumes - Report Summary'!$A$6:$I$6,0),FALSE),0) -> 379 | N56: 158038.8083 | O56: 164925.5021 | P56: 172112.2904 | Q56: 179612.2499 | R56: 187439.0274
A57: ='Table of fees'!B54 -> Underground service with pole mounted fuse - multi phase | B57: ='Smoothed Prices Real $2018-19'!B57*'Master Data'!$G$18 -> 517.8295775 | C57: ='Smoothed Prices Real $2018-19'!C57*'Master Data'!$H$18 -> 540.3945021 | D57: ='Smoothed Prices Real $2018-19'!D57*'Master Data'!$I$18 -> 563.9427151 | E57: ='Smoothed Prices Real $2018-19'!E57*'Master Data'!$J$18 -> 588.5170642 | F57: ='Smoothed Prices Real $2018-19'!F57*'Master Data'!$K$18 -> 614.1622644 | H57: =IFERROR(VLOOKUP($A57,'Volumes - Report Summary'!$A:$I,MATCH(H$5,'Volumes - Report Summary'!$A$6:$I$6,0),FALSE),0) -> 151 | I57: =IFERROR(VLOOKUP($A57,'Volumes - Report Summary'!$A:$I,MATCH(I$5,'Volumes - Report Summary'!$A$6:$I$6,0),FALSE),0) -> 151 | J57: =IFERROR(VLOOKUP($A57,'Volumes - Report Summary'!$A:$I,MATCH(J$5,'Volumes - Report Summary'!$A$6:$I$6,0),FALSE),0) -> 151 | K57: =IFERROR(VLOOKUP($A57,'Volumes - Report Summary'!$A:$I,MATCH(K$5,'Volumes - Report Summary'!$A$6:$I$6,0),FALSE),0) -> 151 | L57: =IFERROR(VLOOKUP($A57,'Volumes - Report Summary'!$A:$I,MATCH(L$5,'Volumes - Report Summary'!$A$6:$I$6,0),FALSE),0) -> 151 | N57: 78192.2662 | O57: 81599.56981 | P57: 85155.34998 | Q57: 88866.0767 | R57: 92738.50193
A58: ='Table of fees'!B55 -> Basic connection – after hours | B58: ='Smoothed Prices Real $2018-19'!B58*'Master Data'!$G$18 -> 979.5740325 | C58: ='Smoothed Prices Real $2018-19'!C58*'Master Data'!$H$18 -> 1022.259918 | D58: ='Smoothed Prices Real $2018-19'!D58*'Master Data'!$I$18 -> 1066.805883 | E58: ='Smoothed Prices Real $2018-19'!E58*'Master Data'!$J$18 -> 1113.292981 | F58: ='Smoothed Prices Real $2018-19'!F58*'Master Data'!$K$18 -> 1161.805799 | H58: =IFERROR(VLOOKUP($A58,'Volumes - Report Summary'!$A:$I,MATCH(H$5,'Volumes - Report Summary'!$A$6:$I$6,0),FALSE),0) -> 1 | I58: =IFERROR(VLOOKUP($A58,'Volumes - Report Summary'!$A:$I,MATCH(I$5,'Volumes - Report Summary'!$A$6:$I$6,0),FALSE),0) -> 1 | J58: =IFERROR(VLOOKUP($A58,'Volumes - Report Summary'!$A:$I,MATCH(J$5,'Volumes - Report Summary'!$A$6:$I$6,0),FALSE),0) -> 1 | K58: =IFERROR(VLOOKUP($A58,'Volumes - Report Summary'!$A:$I,MATCH(K$5,'Volumes - Report Summary'!$A$6:$I$6,0),FALSE),0) -> 1 | L58: =IFERROR(VLOOKUP($A58,'Volumes - Report Summary'!$A:$I,MATCH(L$5,'Volumes - Report Summary'!$A$6:$I$6,0),FALSE),0) -> 1 | N58: 979.5740325 | O58: 1022.259918 | P58: 1066.805883 | Q58: 1113.292981 | R58: 1161.805799
A59: ='Table of fees'!B56 -> Connection establishment - wasted visit | B59: ='Smoothed Prices Real $2018-19'!B59*'Master Data'!$G$18 -> 170.9717855 | C59: ='Smoothed Prices Real $2018-19'!C59*'Master Data'!$H$18 -> 178.4220464 | D59: ='Smoothed Prices Real $2018-19'!D59*'Master Data'!$I$18 -> 186.1969596 | E59: ='Smoothed Prices Real $2018-19'!E59*'Master Data'!$J$18 -> 194.3106721 | F59: ='Smoothed Prices Real $2018-19'!F59*'Master Data'!$K$18 -> 202.7779476 | H59: =IFERROR(VLOOKUP($A59,'Volumes - Report Summary'!$A:$I,MATCH(H$5,'Volumes - Report Summary'!$A$6:$I$6,0),FALSE),0) -> 1 | I59: =IFERROR(VLOOKUP($A59,'Volumes - Report Summary'!$A:$I,MATCH(I$5,'Volumes - Report Summary'!$A$6:$I$6,0),FALSE),0) -> 1 | J59: =IFERROR(VLOOKUP($A59,'Volumes - Report Summary'!$A:$I,MATCH(J$5,'Volumes - Report Summary'!$A$6:$I$6,0),FALSE),0) -> 1 | K59: =IFERROR(VLOOKUP($A59,'Volumes - Report Summary'!$A:$I,MATCH(K$5,'Volumes - Report Summary'!$A$6:$I$6,0),FALSE),0) -> 1 | L59: =IFERROR(VLOOKUP($A59,'Volumes - Report Summary'!$A:$I,MATCH(L$5,'Volumes - Report Summary'!$A$6:$I$6,0),FALSE),0) -> 1 | N59: 170.9717855 | O59: 178.4220464 | P59: 186.1969596 | Q59: 194.3106721 | R59: 202.7779476
A60: ='Table of fees'!A57 -> Temporary Disconnection/Reconnection
A61: ='Table of fees'!B58 -> Disconnect/reconnect overhead service for facia repairs - single phase | B61: ='Smoothed Prices Real $2018-19'!B61*'Master Data'!$G$18 -> 402.4995284 | C61: ='Smoothed Prices Real $2018-19'!C61*'Master Data'!$H$18 -> 420.0388346 | D61: ='Smoothed Prices Real $2018-19'!D61*'Master Data'!$I$18 -> 438.342433 | E61: ='Smoothed Prices Real $2018-19'!E61*'Master Data'!$J$18 -> 457.4436284 | F61: ='Smoothed Prices Real $2018-19'!F61*'Master Data'!$K$18 -> 477.3771769 | H61: =IFERROR(VLOOKUP($A61,'Volumes - Report Summary'!$A:$I,MATCH(H$5,'Volumes - Report Summary'!$A$6:$I$6,0),FALSE),0) -> 20 | I61: =IFERROR(VLOOKUP($A61,'Volumes - Report Summary'!$A:$I,MATCH(I$5,'Volumes - Report Summary'!$A$6:$I$6,0),FALSE),0) -> 20 | J61: =IFERROR(VLOOKUP($A61,'Volumes - Report Summary'!$A:$I,MATCH(J$5,'Volumes - Report Summary'!$A$6:$I$6,0),FALSE),0) -> 20 | K61: =IFERROR(VLOOKUP($A61,'Volumes - Report Summary'!$A:$I,MATCH(K$5,'Volumes - Report Summary'!$A$6:$I$6,0),FALSE),0) -> 20 | L61: =IFERROR(VLOOKUP($A61,'Volumes - Report Summary'!$A:$I,MATCH(L$5,'Volumes - Report Summary'!$A$6:$I$6,0),FALSE),0) -> 20 | N61: =H61*B61 -> 8049.990568 | O61: 8400.776692 | P61: 8766.84866 | Q61: 9148.872568 | R61: 9547.543537
A62: ='Table of fees'!B59 -> Disconnect/reconnect overhead service for facia repairs - multi phase | B62: ='Smoothed Prices Real $2018-19'!B62*'Master Data'!$G$18 -> 485.8595636 | C62: ='Smoothed Prices Real $2018-19'!C62*'Master Data'!$H$18 -> 507.0313639 | D62: ='Smoothed Prices Real $2018-19'!D62*'Master Data'!$I$18 -> 529.1257459 | E62: ='Smoothed Prices Real $2018-19'!E62*'Master Data'!$J$18 -> 552.182912 | F62: ='Smoothed Prices Real $2018-19'!F62*'Master Data'!$K$18 -> 576.2448163 | H62: =IFERROR(VLOOKUP($A62,'Volumes - Report Summary'!$A:$I,MATCH(H$5,'Volumes - Report Summary'!$A$6:$I$6,0),FALSE),0) -> 20 | I62: =IFERROR(VLOOKUP($A62,'Volumes - Report Summary'!$A:$I,MATCH(I$5,'Volumes - Report Summary'!$A$6:$I$6,0),FALSE),0) -> 20 | J62: =IFERROR(VLOOKUP($A62,'Volumes - Report Summary'!$A:$I,MATCH(J$5,'Volumes - Report Summary'!$A$6:$I$6,0),FALSE),0) -> 20 | K62: =IFERROR(VLOOKUP($A62,'Volumes - Report Summary'!$A:$I,MATCH(K$5,'Volumes - Report Summary'!$A$6:$I$6,0),FALSE),0) -> 20 | L62: =IFERROR(VLOOKUP($A62,'Volumes - Report Summary'!$A:$I,MATCH(L$5,'Volumes - Report Summary'!$A$6:$I$6,0),FALSE),0) -> 20 | N62: 9717.191272 | O62: 10140.62728 | P62: 10582.51492 | Q62: 11043.65824 | R62: 11524.89633
A63: ='Table of fees'!B60 -> Temporary disconnect/reconnect – retailer requested outage | B63: ='Smoothed Prices Real $2018-19'!B63*'Master Data'!$G$18 -> 387.9604496 | C63: ='Smoothed Prices Real $2018-19'!C63*'Master Data'!$H$18 -> 404.8662014 | D63: ='Smoothed Prices Real $2018-19'!D63*'Master Data'!$I$18 -> 422.5086376 | E63: ='Smoothed Prices Real $2018-19'!E63*'Master Data'!$J$18 -> 440.9198601 | F63: ='Smoothed Prices Real $2018-19'!F63*'Master Data'!$K$18 -> 460.1333694 | H63: =IFERROR(VLOOKUP($A63,'Volumes - Report Summary'!$A:$I,MATCH(H$5,'Volumes - Report Summary'!$A$6:$I$6,0),FALSE),0) -> 1 | I63: =IFERROR(VLOOKUP($A63,'Volumes - Report Summary'!$A:$I,MATCH(I$5,'Volumes - Report Summary'!$A$6:$I$6,0),FALSE),0) -> 1 | J63: =IFERROR(VLOOKUP($A63,'Volumes - Report Summary'!$A:$I,MATCH(J$5,'Volumes - Report Summary'!$A$6:$I$6,0),FALSE),0) -> 1 | K63: =IFERROR(VLOOKUP($A63,'Volumes - Report Summary'!$A:$I,MATCH(K$5,'Volumes - Report Summary'!$A$6:$I$6,0),FALSE),0) -> 1 | L63: =IFERROR(VLOOKUP($A63,'Volumes - Report Summary'!$A:$I,MATCH(L$5,'Volumes - Report Summary'!$A$6:$I$6,0),FALSE),0) -> 1 | N63: =H63*B63 -> 387.9604496 | O63: =I63*C63 -> 404.8662014 | P63: =J63*D63 -> 422.5086376 | Q63: =K63*E63 -> 440.9198601 | R63: =L63*F63 -> 460.1333694
A64: ='Table of fees'!B61 -> Temporary disconnect/reconnect – after hours | B64: ='Smoothed Prices Real $2018-19'!B64*'Master Data'!$G$18 -> 832.484038 | C64: ='Smoothed Prices Real $2018-19'!C64*'Master Data'!$H$18 -> 868.7603349 | D64: ='Smoothed Prices Real $2018-19'!D64*'Master Data'!$I$18 -> 906.6174066 | E64: ='Smoothed Prices Real $2018-19'!E64*'Master Data'!$J$18 -> 946.1241369 | F64: ='Smoothed Prices Real $2018-19'!F64*'Master Data'!$K$18 -> 987.352411 | H64: =IFERROR(VLOOKUP($A64,'Volumes - Report Summary'!$A:$I,MATCH(H$5,'Volumes - Report Summary'!$A$6:$I$6,0),FALSE),0) -> 1 | I64: =IFERROR(VLOOKUP($A64,'Volumes - Report Summary'!$A:$I,MATCH(I$5,'Volumes - Report Summary'!$A$6:$I$6,0),FALSE),0) -> 1 | J64: =IFERROR(VLOOKUP($A64,'Volumes - Report Summary'!$A:$I,MATCH(J$5,'Volumes - Report Summary'!$A$6:$I$6,0),FALSE),0) -> 1 | K64: =IFERROR(VLOOKUP($A64,'Volumes - Report Summary'!$A:$I,MATCH(K$5,'Volumes - Report Summary'!$A$6:$I$6,0),FALSE),0) -> 1 | L64: =IFERROR(VLOOKUP($A64,'Volumes - Report Summary'!$A:$I,MATCH(L$5,'Volumes - Report Summary'!$A$6:$I$6,0),FALSE),0) -> 1 | N64: 832.484038 | O64: 868.7603349 | P64: 906.6174066 | Q64: 946.1241369 | R64: 987.352411
A65: ='Table of fees'!B62 -> Temporary disconnect/reconnect – wasted visit | B65: ='Smoothed Prices Real $2018-19'!B65*'Master Data'!$G$18 -> 194.0994404 | C65: ='Smoothed Prices Real $2018-19'!C65*'Master Data'!$H$18 -> 202.5575112 | D65: ='Smoothed Prices Real $2018-19'!D65*'Master Data'!$I$18 -> 211.3841506 | E65: ='Smoothed Prices Real $2018-19'!E65*'Master Data'!$J$18 -> 220.5954194 | F65: ='Smoothed Prices Real $2018-19'!F65*'Master Data'!$K$18 -> 230.2080781 | H65: =IFERROR(VLOOKUP($A65,'Volumes - Report Summary'!$A:$I,MATCH(H$5,'Volumes - Report Summary'!$A$6:$I$6,0),FALSE),0) -> 1 | I65: =IFERROR(VLOOKUP($A65,'Volumes - Report Summary'!$A:$I,MATCH(I$5,'Volumes - Report Summary'!$A$6:$I$6,0),FALSE),0) -> 1 | J65: =IFERROR(VLOOKUP($A65,'Volumes - Report Summary'!$A:$I,MATCH(J$5,'Volumes - Report Summary'!$A$6:$I$6,0),FALSE),0) -> 1 | K65: =IFERROR(VLOOKUP($A65,'Volumes - Report Summary'!$A:$I,MATCH(K$5,'Volumes - Report Summary'!$A$6:$I$6,0),FALSE),0) -> 1 | L65: =IFERROR(VLOOKUP($A65,'Volumes - Report Summary'!$A:$I,MATCH(L$5,'Volumes - Report Summary'!$A$6:$I$6,0),FALSE),0) -> 1 | N65: 194.0994404 | O65: 202.5575112 | P65: 211.3841506 | Q65: 220.5954194 | R65: 230.2080781
A66: ='Table of fees'!A63 -> Basic connection alteration
A67: ='Table of fees'!B64 -> Connection alteration – overhead single phase | B67: ='Smoothed Prices Real $2018-19'!B67*'Master Data'!$G$18 -> 324.8944422 | C67: ='Smoothed Prices Real $2018-19'!C67*'Master Data'!$H$18 -> 339.0520317 | D67: ='Smoothed Prices Real $2018-19'!D67*'Master Data'!$I$18 -> 353.8265518 | E67: ='Smoothed Prices Real $2018-19'!E67*'Master Data'!$J$18 -> 369.244886 | F67: ='Smoothed Prices Real $2018-19'!F67*'Master Data'!$K$18 -> 385.3350889 | H67: =IFERROR(VLOOKUP($A67,'Volumes - Report Summary'!$A:$I,MATCH(H$5,'Volumes - Report Summary'!$A$6:$I$6,0),FALSE),0) -> 712 | I67: =IFERROR(VLOOKUP($A67,'Volumes - Report Summary'!$A:$I,MATCH(I$5,'Volumes - Report Summary'!$A$6:$I$6,0),FALSE),0) -> 712 | J67: =IFERROR(VLOOKUP($A67,'Volumes - Report Summary'!$A:$I,MATCH(J$5,'Volumes - Report Summary'!$A$6:$I$6,0),FALSE),0) -> 712 | K67: =IFERROR(VLOOKUP($A67,'Volumes - Report Summary'!$A:$I,MATCH(K$5,'Volumes - Report Summary'!$A$6:$I$6,0),FALSE),0) -> 712 | L67: =IFERROR(VLOOKUP($A67,'Volumes - Report Summary'!$A:$I,MATCH(L$5,'Volumes - Report Summary'!$A$6:$I$6,0),FALSE),0) -> 712 | N67: =H67*B67 -> 231324.8428 | O67: =I67*C67 -> 241405.0465 | P67: =J67*D67 -> 251924.5049 | Q67: =K67*E67 -> 262902.3588 | R67: =L67*F67 -> 274358.5833
A68: ='Table of fees'!B65 -> Connection alteration – overhead multi phase | B68: ='Smoothed Prices Real $2018-19'!B68*'Master Data'!$G$18 -> 408.2544774 | C68: ='Smoothed Prices Real $2018-19'!C68*'Master Data'!$H$18 -> 426.044561 | D68: ='Smoothed Prices Real $2018-19'!D68*'Master Data'!$I$18 -> 444.6098648 | E68: ='Smoothed Prices Real $2018-19'!E68*'Master Data'!$J$18 -> 463.9841696 | F68: ='Smoothed Prices Real $2018-19'!F68*'Master Data'!$K$18 -> 484.2027284 | H68: =IFERROR(VLOOKUP($A68,'Volumes - Report Summary'!$A:$I,MATCH(H$5,'Volumes - Report Summary'!$A$6:$I$6,0),FALSE),0) -> 154 | I68: =IFERROR(VLOOKUP($A68,'Volumes - Report Summary'!$A:$I,MATCH(I$5,'Volumes - Report Summary'!$A$6:$I$6,0),FALSE),0) -> 154 | J68: =IFERROR(VLOOKUP($A68,'Volumes - Report Summary'!$A:$I,MATCH(J$5,'Volumes - Report Summary'!$A$6:$I$6,0),FALSE),0) -> 154 | K68: =IFERROR(VLOOKUP($A68,'Volumes - Report Summary'!$A:$I,MATCH(K$5,'Volumes - Report Summary'!$A$6:$I$6,0),FALSE),0) -> 154 | L68: =IFERROR(VLOOKUP($A68,'Volumes - Report Summary'!$A:$I,MATCH(L$5,'Volumes - Report Summary'!$A$6:$I$6,0),FALSE),0) -> 154 | N68: 62871.18952 | O68: 65610.8624 | P68: 68469.91917 | Q68: 71453.56211 | R68: 74567.22018
A69: ='Table of fees'!B66 -> Connection of new consumer mains to an existing installation – underground single phase to turret | B69: ='Smoothed Prices Real $2018-19'!B69*'Master Data'!$G$18 -> 237.0218879 | C69: ='Smoothed Prices Real $2018-19'!C69*'Master Data'!$H$18 -> 247.3503459 | D69: ='Smoothed Prices Real $2018-19'!D69*'Master Data'!$I$18 -> 258.1288764 | E69: ='Smoothed Prices Real $2018-19'!E69*'Master Data'!$J$18 -> 269.3770918 | F69: ='Smoothed Prices Real $2018-19'!F69*'Master Data'!$K$18 -> 281.1154591 | H69: =IFERROR(VLOOKUP($A69,'Volumes - Report Summary'!$A:$I,MATCH(H$5,'Volumes - Report Summary'!$A$6:$I$6,0),FALSE),0) -> 39 | I69: =IFERROR(VLOOKUP($A69,'Volumes - Report Summary'!$A:$I,MATCH(I$5,'Volumes - Report Summary'!$A$6:$I$6,0),FALSE),0) -> 39 | J69: =IFERROR(VLOOKUP($A69,'Volumes - Report Summary'!$A:$I,MATCH(J$5,'Volumes - Report Summary'!$A$6:$I$6,0),FALSE),0) -> 39 | K69: =IFERROR(VLOOKUP($A69,'Volumes - Report Summary'!$A:$I,MATCH(K$5,'Volumes - Report Summary'!$A$6:$I$6,0),FALSE),0) -> 39 | L69: =IFERROR(VLOOKUP($A69,'Volumes - Report Summary'!$A:$I,MATCH(L$5,'Volumes - Report Summary'!$A$6:$I$6,0),FALSE),0) -> 39 | N69: 9243.853629 | O69: 9646.66349 | P69: 10067.02618 | Q69: 10505.70658 | R69: 10963.5029
A70: ='Table of fees'!B67 -> Connection of new consumer mains to an existing installation – underground single phase to pole | B70: ='Smoothed Prices Real $2018-19'!B70*'Master Data'!$G$18 -> 366.5744598 | C70: ='Smoothed Prices Real $2018-19'!C70*'Master Data'!$H$18 -> 382.5482963 | D70: ='Smoothed Prices Real $2018-19'!D70*'Master Data'!$I$18 -> 399.2182083 | E70: ='Smoothed Prices Real $2018-19'!E70*'Master Data'!$J$18 -> 416.6145278 | F70: ='Smoothed Prices Real $2018-19'!F70*'Master Data'!$K$18 -> 434.7689087 | H70: =IFERROR(VLOOKUP($A70,'Volumes - Report Summary'!$A:$I,MATCH(H$5,'Volumes - Report Summary'!$A$6:$I$6,0),FALSE),0) -> 218 | I70: =IFERROR(VLOOKUP($A70,'Volumes - Report Summary'!$A:$I,MATCH(I$5,'Volumes - Report Summary'!$A$6:$I$6,0),FALSE),0) -> 218 | J70: =IFERROR(VLOOKUP($A70,'Volumes - Report Summary'!$A:$I,MATCH(J$5,'Volumes - Report Summary'!$A$6:$I$6,0),FALSE),0) -> 218 | K70: =IFERROR(VLOOKUP($A70,'Volumes - Report Summary'!$A:$I,MATCH(K$5,'Volumes - Report Summary'!$A$6:$I$6,0),FALSE),0) -> 218 | L70: =IFERROR(VLOOKUP($A70,'Volumes - Report Summary'!$A:$I,MATCH(L$5,'Volumes - Report Summary'!$A$6:$I$6,0),FALSE),0) -> 218 | N70: =H70*B70 -> 79913.23223 | O70: =I70*C70 -> 83395.5286 | P70: =J70*D70 -> 87029.56941 | Q70: =K70*E70 -> 90821.96705 | R70: =L70*F70 -> 94779.62209
A71: ='Table of fees'!B68 -> Connection of new consumer mains to an existing installation – underground multi phase to turret | B71: ='Smoothed Prices Real $2018-19'!B71*'Master Data'!$G$18 -> 283.3669026 | C71: ='Smoothed Prices Real $2018-19'!C71*'Master Data'!$H$18 -> 295.7148894 | D71: ='Smoothed Prices Real $2018-19'!D71*'Master Data'!$I$18 -> 308.6009517 | E71: ='Smoothed Prices Real $2018-19'!E71*'Master Data'!$J$18 -> 322.0485366 | F71: ='Smoothed Prices Real $2018-19'!F71*'Master Data'!$K$18 -> 336.082113 | H71: =IFERROR(VLOOKUP($A71,'Volumes - Report Summary'!$A:$I,MATCH(H$5,'Volumes - Report Summary'!$A$6:$I$6,0),FALSE),0) -> 39 | I71: =IFERROR(VLOOKUP($A71,'Volumes - Report Summary'!$A:$I,MATCH(I$5,'Volumes - Report Summary'!$A$6:$I$6,0),FALSE),0) -> 39 | J71: =IFERROR(VLOOKUP($A71,'Volumes - Report Summary'!$A:$I,MATCH(J$5,'Volumes - Report Summary'!$A$6:$I$6,0),FALSE),0) -> 39 | K71: =IFERROR(VLOOKUP($A71,'Volumes - Report Summary'!$A:$I,MATCH(K$5,'Volumes - Report Summary'!$A$6:$I$6,0),FALSE),0) -> 39 | L71: =IFERROR(VLOOKUP($A71,'Volumes - Report Summary'!$A:$I,MATCH(L$5,'Volumes - Report Summary'!$A$6:$I$6,0),FALSE),0) -> 39 | N71: 11051.3092 | O71: 11532.88069 | P71: 12035.43711 | Q71: 12559.89293 | R71: 13107.20241
A72: ='Table of fees'!B69 -> Connection of new consumer mains to an existing installation – underground multi phase to pole | B72: ='Smoothed Prices Real $2018-19'!B72*'Master Data'!$G$18 -> 449.934495 | C72: ='Smoothed Prices Real $2018-19'!C72*'Master Data'!$H$18 -> 469.5408257 | D72: ='Smoothed Prices Real $2018-19'!D72*'Master Data'!$I$18 -> 490.0015212 | E72: ='Smoothed Prices Real $2018-19'!E72*'Master Data'!$J$18 -> 511.3538114 | F72: ='Smoothed Prices Real $2018-19'!F72*'Master Data'!$K$18 -> 533.6365482 | H72: =IFERROR(VLOOKUP($A72,'Volumes - Report Summary'!$A:$I,MATCH(H$5,'Volumes - Report Summary'!$A$6:$I$6,0),FALSE),0) -> 177 | I72: =IFERROR(VLOOKUP($A72,'Volumes - Report Summary'!$A:$I,MATCH(I$5,'Volumes - Report Summary'!$A$6:$I$6,0),FALSE),0) -> 177 | J72: =IFERROR(VLOOKUP($A72,'Volumes - Report Summary'!$A:$I,MATCH(J$5,'Volumes - Report Summary'!$A$6:$I$6,0),FALSE),0) -> 177 | K72: =IFERROR(VLOOKUP($A72,'Volumes - Report Summary'!$A:$I,MATCH(K$5,'Volumes - Report Summary'!$A$6:$I$6,0),FALSE),0) -> 177 | L72: =IFERROR(VLOOKUP($A72,'Volumes - Report Summary'!$A:$I,MATCH(L$5,'Volumes - Report Summary'!$A$6:$I$6,0),FALSE),0) -> 177 | N72: =H72*B72 -> 79638.40561 | O72: =I72*C72 -> 83108.72615 | P72: =J72*D72 -> 86730.26926 | Q72: =K72*E72 -> 90509.62461 | R72: =L72*F72 -> 94453.66903
A73: ='Table of fees'!B70 -> Augment single phase overhead service to multi phase supply | B73: ='Smoothed Prices Real $2018-19'!B73*'Master Data'!$G$18 -> 835.8443122 | C73: ='Smoothed Prices Real $2018-19'!C73*'Master Data'!$H$18 -> 872.2670364 | D73: ='Smoothed Prices Real $2018-19'!D73*'Master Data'!$I$18 -> 910.276916 | E73: ='Smoothed Prices Real $2018-19'!E73*'Master Data'!$J$18 -> 949.9431128 | F73: ='Smoothed Prices Real $2018-19'!F73*'Master Data'!$K$18 -> 991.3378026 | H73: =IFERROR(VLOOKUP($A73,'Volumes - Report Summary'!$A:$I,MATCH(H$5,'Volumes - Report Summary'!$A$6:$I$6,0),FALSE),0) -> 6 | I73: =IFERROR(VLOOKUP($A73,'Volumes - Report Summary'!$A:$I,MATCH(I$5,'Volumes - Report Summary'!$A$6:$I$6,0),FALSE),0) -> 6 | J73: =IFERROR(VLOOKUP($A73,'Volumes - Report Summary'!$A:$I,MATCH(J$5,'Volumes - Report Summary'!$A$6:$I$6,0),FALSE),0) -> 6 | K73: =IFERROR(VLOOKUP($A73,'Volumes - Report Summary'!$A:$I,MATCH(K$5,'Volumes - Report Summary'!$A$6:$I$6,0),FALSE),0) -> 6 | L73: =IFERROR(VLOOKUP($A73,'Volumes - Report Summary'!$A:$I,MATCH(L$5,'Volumes - Report Summary'!$A$6:$I$6,0),FALSE),0) -> 6 | N73: 5015.065873 | O73: 5233.602218 | P73: 5461.661496 | Q73: 5699.658677 | R73: 5948.026816
A74: ='Table of fees'!B71 -> Augment multi phase overhead service to single phase supply | B74: ='Smoothed Prices Real $2018-19'!B74*'Master Data'!$G$18 -> 612.7912607 | C74: ='Smoothed Prices Real $2018-19'!C74*'Master Data'!$H$18 -> 639.4942325 | D74: ='Smoothed Prices Real $2018-19'!D74*'Master Data'!$I$18 -> 667.3608121 | E74: ='Smoothed Prices Real $2018-19'!E74*'Master Data'!$J$18 -> 696.4417048 | F74: ='Smoothed Prices Real $2018-19'!F74*'Master Data'!$K$18 -> 726.7898256 | H74: =IFERROR(VLOOKUP($A74,'Volumes - Report Summary'!$A:$I,MATCH(H$5,'Volumes - Report Summary'!$A$6:$I$6,0),FALSE),0) -> 51 | I74: =IFERROR(VLOOKUP($A74,'Volumes - Report Summary'!$A:$I,MATCH(I$5,'Volumes - Report Summary'!$A$6:$I$6,0),FALSE),0) -> 51 | J74: =IFERROR(VLOOKUP($A74,'Volumes - Report Summary'!$A:$I,MATCH(J$5,'Volumes - Report Summary'!$A$6:$I$6,0),FALSE),0) -> 51 | K74: =IFERROR(VLOOKUP($A74,'Volumes - Report Summary'!$A:$I,MATCH(K$5,'Volumes - Report Summary'!$A$6:$I$6,0),FALSE),0) -> 51 | L74: =IFERROR(VLOOKUP($A74,'Volumes - Report Summary'!$A:$I,MATCH(L$5,'Volumes - Report Summary'!$A$6:$I$6,0),FALSE),0) -> 51 | N74: 31252.3543 | O74: 32614.20586 | P74: 34035.40142 | Q74: 35518.52695 | R74: 37066.2811
A75: ='Table of fees'!B72 -> Augment single phase overhead service to underground supply (turret) | B75: ='Smoothed Prices Real $2018-19'!B75*'Master Data'!$G$18 -> 388.6755942 | C75: ='Smoothed Prices Real $2018-19'!C75*'Master Data'!$H$18 -> 405.6125091 | D75: ='Smoothed Prices Real $2018-19'!D75*'Master Data'!$I$18 -> 423.2874664 | E75: ='Smoothed Prices Real $2018-19'!E75*'Master Data'!$J$18 -> 441.7326271 | F75: ='Smoothed Prices Real $2018-19'!F75*'Master Data'!$K$18 -> 460.9815534 | H75: =IFERROR(VLOOKUP($A75,'Volumes - Report Summary'!$A:$I,MATCH(H$5,'Volumes - Report Summary'!$A$6:$I$6,0),FALSE),0) -> 62 | I75: =IFERROR(VLOOKUP($A75,'Volumes - Report Summary'!$A:$I,MATCH(I$5,'Volumes - Report Summary'!$A$6:$I$6,0),FALSE),0) -> 62 | J75: =IFERROR(VLOOKUP($A75,'Volumes - Report Summary'!$A:$I,MATCH(J$5,'Volumes - Report Summary'!$A$6:$I$6,0),FALSE),0) -> 62 | K75: =IFERROR(VLOOKUP($A75,'Volumes - Report Summary'!$A:$I,MATCH(K$5,'Volumes - Report Summary'!$A$6:$I$6,0),FALSE),0) -> 62 | L75: =IFERROR(VLOOKUP($A75,'Volumes - Report Summary'!$A:$I,MATCH(L$5,'Volumes - Report Summary'!$A$6:$I$6,0),FALSE),0) -> 62 | N75: 24097.88684 | O75: 25147.97556 | P75: 26243.82292 | Q75: 27387.42288 | R75: 28580.85631
A76: ='Table of fees'!B73 -> Augment multi phase overhead service to underground supply (turret) | B76: ='Smoothed Prices Real $2018-19'!B76*'Master Data'!$G$18 -> 472.0356294 | C76: ='Smoothed Prices Real $2018-19'!C76*'Master Data'!$H$18 -> 492.6050384 | D76: ='Smoothed Prices Real $2018-19'!D76*'Master Data'!$I$18 -> 514.0707793 | E76: ='Smoothed Prices Real $2018-19'!E76*'Master Data'!$J$18 -> 536.4719106 | F76: ='Smoothed Prices Real $2018-19'!F76*'Master Data'!$K$18 -> 559.8491929 | H76: =IFERROR(VLOOKUP($A76,'Volumes - Report Summary'!$A:$I,MATCH(H$5,'Volumes - Report Summary'!$A$6:$I$6,0),FALSE),0) -> 35 | I76: =IFERROR(VLOOKUP($A76,'Volumes - Report Summary'!$A:$I,MATCH(I$5,'Volumes - Report Summary'!$A$6:$I$6,0),FALSE),0) -> 35 | J76: =IFERROR(VLOOKUP($A76,'Volumes - Report Summary'!$A:$I,MATCH(J$5,'Volumes - Report Summary'!$A$6:$I$6,0),FALSE),0) -> 35 | K76: =IFERROR(VLOOKUP($A76,'Volumes - Report Summary'!$A:$I,MATCH(K$5,'Volumes - Report Summary'!$A$6:$I$6,0),FALSE),0) -> 35 | L76: =IFERROR(VLOOKUP($A76,'Volumes - Report Summary'!$A:$I,MATCH(L$5,'Volumes - Report Summary'!$A$6:$I$6,0),FALSE),0) -> 35 | N76: 16521.24703 | O76: 17241.17634 | P76: 17992.47728 | Q76: 18776.51687 | R76: 19594.72175
A77: ='Table of fees'!B74 -> Augment single phase overhead service to underground supply (pole) | B77: ='Smoothed Prices Real $2018-19'!B77*'Master Data'!$G$18 -> 479.5089664 | C77: ='Smoothed Prices Real $2018-19'!C77*'Master Data'!$H$18 -> 500.4040333 | D77: ='Smoothed Prices Real $2018-19'!D77*'Master Data'!$I$18 -> 522.2096229 | E77: ='Smoothed Prices Real $2018-19'!E77*'Master Data'!$J$18 -> 544.9654122 | F77: ='Smoothed Prices Real $2018-19'!F77*'Master Data'!$K$18 -> 568.7128071 | H77: =IFERROR(VLOOKUP($A77,'Volumes - Report Summary'!$A:$I,MATCH(H$5,'Volumes - Report Summary'!$A$6:$I$6,0),FALSE),0) -> 4 | I77: =IFERROR(VLOOKUP($A77,'Volumes - Report Summary'!$A:$I,MATCH(I$5,'Volumes - Report Summary'!$A$6:$I$6,0),FALSE),0) -> 4 | J77: =IFERROR(VLOOKUP($A77,'Volumes - Report Summary'!$A:$I,MATCH(J$5,'Volumes - Report Summary'!$A$6:$I$6,0),FALSE),0) -> 4 | K77: =IFERROR(VLOOKUP($A77,'Volumes - Report Summary'!$A:$I,MATCH(K$5,'Volumes - Report Summary'!$A$6:$I$6,0),FALSE),0) -> 4 | L77: =IFERROR(VLOOKUP($A77,'Volumes - Report Summary'!$A:$I,MATCH(L$5,'Volumes - Report Summary'!$A$6:$I$6,0),FALSE),0) -> 4 | N77: 1918.035866 | O77: 2001.616133 | P77: 2088.838492 | Q77: 2179.861649 | R77: 2274.851228
A78: ='Table of fees'!B75 -> Augment multi phase overhead service to underground supply (pole) | B78: ='Smoothed Prices Real $2018-19'!B78*'Master Data'!$G$18 -> 580.3496039 | C78: ='Smoothed Prices Real $2018-19'!C78*'Master Data'!$H$18 -> 605.6388991 | D78: ='Smoothed Prices Real $2018-19'!D78*'Master Data'!$I$18 -> 632.0301998 | E78: ='Smoothed Prices Real $2018-19'!E78*'Master Data'!$J$18 -> 659.5715269 | F78: ='Smoothed Prices Real $2018-19'!F78*'Master Data'!$K$18 -> 688.312994 | H78: =IFERROR(VLOOKUP($A78,'Volumes - Report Summary'!$A:$I,MATCH(H$5,'Volumes - Report Summary'!$A$6:$I$6,0),FALSE),0) -> 3 | I78: =IFERROR(VLOOKUP($A78,'Volumes - Report Summary'!$A:$I,MATCH(I$5,'Volumes - Report Summary'!$A$6:$I$6,0),FALSE),0) -> 3 | J78: =IFERROR(VLOOKUP($A78,'Volumes - Report Summary'!$A:$I,MATCH(J$5,'Volumes - Report Summary'!$A$6:$I$6,0),FALSE),0) -> 3 | K78: =IFERROR(VLOOKUP($A78,'Volumes - Report Summary'!$A:$I,MATCH(K$5,'Volumes - Report Summary'!$A$6:$I$6,0),FALSE),0) -> 3 | L78: =IFERROR(VLOOKUP($A78,'Volumes - Report Summary'!$A:$I,MATCH(L$5,'Volumes - Report Summary'!$A$6:$I$6,0),FALSE),0) -> 3 | N78: 1741.048812 | O78: 1816.916697 | P78: 1896.090599 | Q78: 1978.714581 | R78: 2064.938982
A79: ='Table of fees'!B76 -> Basic connection alteration – after hours | B79: ='Smoothed Prices Real $2018-19'!B79*'Master Data'!$G$18 -> 1041.721347 | C79: ='Smoothed Prices Real $2018-19'!C79*'Master Data'!$H$18 -> 1087.115362 | D79: ='Smoothed Prices Real $2018-19'!D79*'Master Data'!$I$18 -> 1134.487465 | E79: ='Smoothed Prices Real $2018-19'!E79*'Master Data'!$J$18 -> 1183.923853 | F79: ='Smoothed Prices Real $2018-19'!F79*'Master Data'!$K$18 -> 1235.51448 | H79: =IFERROR(VLOOKUP($A79,'Volumes - Report Summary'!$A:$I,MATCH(H$5,'Volumes - Report Summary'!$A$6:$I$6,0),FALSE),0) -> 1 | I79: =IFERROR(VLOOKUP($A79,'Volumes - Report Summary'!$A:$I,MATCH(I$5,'Volumes - Report Summary'!$A$6:$I$6,0),FALSE),0) -> 1 | J79: =IFERROR(VLOOKUP($A79,'Volumes - Report Summary'!$A:$I,MATCH(J$5,'Volumes - Report Summary'!$A$6:$I$6,0),FALSE),0) -> 1 | K79: =IFERROR(VLOOKUP($A79,'Volumes - Report Summary'!$A:$I,MATCH(K$5,'Volumes - Report Summary'!$A$6:$I$6,0),FALSE),0) -> 1 | L79: =IFERROR(VLOOKUP($A79,'Volumes - Report Summary'!$A:$I,MATCH(L$5,'Volumes - Report Summary'!$A$6:$I$6,0),FALSE),0) -> 1 | N79: 1041.721347 | O79: 1087.115362 | P79: 1134.487465 | Q79: 1183.923853 | R79: 1235.51448
A80: ='Table of fees'!B77 -> Basic connection wasted visit | B80: ='Smoothed Prices Real $2018-19'!B80*'Master Data'!$G$18 -> 189.434385 | C80: ='Smoothed Prices Real $2018-19'!C80*'Master Data'!$H$18 -> 197.6891715 | D80: ='Smoothed Prices Real $2018-19'!D80*'Master Data'!$I$18 -> 206.3036683 | E80: ='Smoothed Prices Real $2018-19'!E80*'Master Data'!$J$18 -> 215.2935501 | F80: ='Smoothed Prices Real $2018-19'!F80*'Master Data'!$K$18 -> 224.6751748 | H80: =IFERROR(VLOOKUP($A80,'Volumes - Report Summary'!$A:$I,MATCH(H$5,'Volumes - Report Summary'!$A$6:$I$6,0),FALSE),0) -> 1 | I80: =IFERROR(VLOOKUP($A80,'Volumes - Report Summary'!$A:$I,MATCH(I$5,'Volumes - Report Summary'!$A$6:$I$6,0),FALSE),0) -> 1 | J80: =IFERROR(VLOOKUP($A80,'Volumes - Report Summary'!$A:$I,MATCH(J$5,'Volumes - Report Summary'!$A$6:$I$6,0),FALSE),0) -> 1 | K80: =IFERROR(VLOOKUP($A80,'Volumes - Report Summary'!$A:$I,MATCH(K$5,'Volumes - Report Summary'!$A$6:$I$6,0),FALSE),0) -> 1 | L80: =IFERROR(VLOOKUP($A80,'Volumes - Report Summary'!$A:$I,MATCH(L$5,'Volumes - Report Summary'!$A$6:$I$6,0),FALSE),0) -> 1 | N80: 189.434385 | O80: 197.6891715 | P80: 206.3036683 | Q80: 215.2935501 | R80: 224.6751748
I82: =IFERROR(VLOOKUP($A82,'Volumes - Report Summary'!$A:$I,MATCH(C$5,'Volumes - Report Summary'!$A$6:$I$6,0),FALSE),0) -> 0
H83: =SUM(H7:H82) -> 66338 | I83: =SUM(I7:I82) -> 64138 | J83: =SUM(J7:J82) -> 61938 | K83: =SUM(K7:K82) -> 59738 | L83: =SUM(L7:L82) -> 57538 | N83: =SUM(N7:N82) -> 7140327.738 | O83: =SUM(O7:O82) -> 7253579.627 | P83: =SUM(P7:P82) -> 7363330.96 | Q83: =SUM(Q7:Q82) -> 7468716.895 | R83: =SUM(R7:R82) -> 7569264.586

Sheet Smoothed Prices Real $2018-19
A2: X factor applied to all fees | B2: ='X factor'!D25 -> 0.01861978235
B3: Total Fee | H3: Volumes | N3: Total Revenue
B4: (Real $2018-19) | N4: (Real $2018-19)
B5: ='Master Data'!$G14 -> 2019-20 | C5: ='Master Data'!$H14 -> 2020-21 | D5: ='Master Data'!$I14 -> 2021-22 | E5: ='Master Data'!$J14 -> 2022-23 | F5: ='Master Data'!$K14 -> 2023-24 | H5: ='Master Data'!$G14 -> 2019-20 | I5: ='Master Data'!$H14 -> 2020-21 | J5: ='Master Data'!$I14 -> 2021-22 | K5: ='Master Data'!$J14 -> 2022-23 | L5: ='Master Data'!$K14 -> 2023-24 | N5: ='Master Data'!$G14 -> 2019-20 | O5: ='Master Data'!$H14 -> 2020-21 | P5: ='Master Data'!$I14 -> 2021-22 | Q5: ='Master Data'!$J14 -> 2022-23 | R5: ='Master Data'!$K14 -> 2023-24
B6: Base Fee | C6: Base Fee | D6: Base Fee | E6: Base Fee | F6: Base Fee | H6: Volumes | I6: Volumes | J6: Volumes | K6: Volumes | L6: Volumes | N6: Total Revenue | O6: Total Revenue | P6: Total Revenue | Q6: Total Revenue | R6: Total Revenue
A7: ='Table of fees'!A4 -> De-energisation, re-energisation, special reads and retail contract terminations
A8: ='Table of fees'!B5 -> Site visit - no appointment | B8: ='Unsmoothed Prices Real $2018-19'!B8 -> 79.99944995 | C8: =B8*(1+B$2) -> 81.4890223 | D8: =C8*(1+B$2) -> 83.00633016 | E8: =D8*(1+B$2) -> 84.55188996 | F8: =E8*(1+B$2) -> 86.12622775 | H8: =IFERROR(VLOOKUP($A8,'Volumes - Report Summary'!$A:$I,MATCH(H$5,'Volumes - Report Summary'!$A$6:$I$6,0),FALSE),0) -> 54512 | I8: =IFERROR(VLOOKUP($A8,'Volumes - Report Summary'!$A:$I,MATCH(I$5,'Volumes - Report Summary'!$A$6:$I$6,0),FALSE),0) -> 52432 | J8: =IFERROR(VLOOKUP($A8,'Volumes - Report Summary'!$A:$I,MATCH(J$5,'Volumes - Report Summary'!$A$6:$I$6,0),FALSE),0) -> 50351 | K8: =IFERROR(VLOOKUP($A8,'Volumes - Report Summary'!$A:$I,MATCH(K$5,'Volumes - Report Summary'!$A$6:$I$6,0),FALSE),0) -> 48272 | L8: =IFERROR(VLOOKUP($A8,'Volumes - Report Summary'!$A:$I,MATCH(L$5,'Volumes - Report Summary'!$A$6:$I$6,0),FALSE),0) -> 46192 | N8: =H8*B8 -> 4360930.016 | O8: =I8*C8 -> 4272632.417 | P8: =J8*D8 -> 4179451.73 | Q8: =K8*E8 -> 4081488.832 | R8: =L8*F8 -> 3978342.712
A9: ='Table of fees'!B6 -> Site visit - non-scheduled visit | B9: ='Unsmoothed Prices Real $2018-19'!B9 -> 144.6679621 | C9: 147.3616481 | D9: 150.1054899 | E9: 152.9004215 | F9: 155.7473941 | H9: =IFERROR(VLOOKUP($A9,'Volumes - Report Summary'!$A:$I,MATCH(H$5,'Volumes - Report Summary'!$A$6:$I$6,0),FALSE),0) -> 954 | I9: =IFERROR(VLOOKUP($A9,'Volumes - Report Summary'!$A:$I,MATCH(I$5,'Volumes - Report Summary'!$A$6:$I$6,0),FALSE),0) -> 918 | J9: =IFERROR(VLOOKUP($A9,'Volumes - Report Summary'!$A:$I,MATCH(J$5,'Volumes - Report Summary'!$A$6:$I$6,0),FALSE),0) -> 882 | K9: =IFERROR(VLOOKUP($A9,'Volumes - Report Summary'!$A:$I,MATCH(K$5,'Volumes - Report Summary'!$A$6:$I$6,0),FALSE),0) -> 845 | L9: =IFERROR(VLOOKUP($A9,'Volumes - Report Summary'!$A:$I,MATCH(L$5,'Volumes - Report Summary'!$A$6:$I$6,0),FALSE),0) -> 809 | N9: 138013.2359 | O9: 135277.993 | P9: 132393.0421 | Q9: 129200.8562 | R9: 125999.6418
A10: ='Table of fees'!B7 -> Site visit - same day premium service | B10: ='Unsmoothed Prices Real $2018-19'!B10 -> 258.0453359 | C10: 262.8500839 | D10: 267.7442952 | E10: 272.7296357 | F10: 277.8078022 | H10: =IFERROR(VLOOKUP($A10,'Volumes - Report Summary'!$A:$I,MATCH(H$5,'Volumes - Report Summary'!$A$6:$I$6,0),FALSE),0) -> 225 | I10: =IFERROR(VLOOKUP($A10,'Volumes - Report Summary'!$A:$I,MATCH(I$5,'Volumes - Report Summary'!$A$6:$I$6,0),FALSE),0) -> 225 | J10: =IFERROR(VLOOKUP($A10,'Volumes - Report Summary'!$A:$I,MATCH(J$5,'Volumes - Report Summary'!$A$6:$I$6,0),FALSE),0) -> 225 | K10: =IFERROR(VLOOKUP($A10,'Volumes - Report Summary'!$A:$I,MATCH(K$5,'Volumes - Report Summary'!$A$6:$I$6,0),FALSE),0) -> 225 | L10: =IFERROR(VLOOKUP($A10,'Volumes - Report Summary'!$A:$I,MATCH(L$5,'Volumes - Report Summary'!$A$6:$I$6,0),FALSE),0) -> 225 | N10: 58060.20057 | O10: 59141.26887 | P10: 60242.46642 | Q10: 61364.16804 | R10: 62506.75549
A11: ='Table of fees'!B8 -> Site visit - after hours | B11: ='Unsmoothed Prices Real $2018-19'!B11 -> 366.7735267 | C11: 373.6027699 | D11: 380.5591722 | E11: 387.6451011 | F11: 394.8629685 | H11: =IFERROR(VLOOKUP($A11,'Volumes - Report Summary'!$A:$I,MATCH(H$5,'Volumes - Report Summary'!$A$6:$I$6,0),FALSE),0) -> 1 | I11: =IFERROR(VLOOKUP($A11,'Volumes - Report Summary'!$A:$I,MATCH(I$5,'Volumes - Report Summary'!$A$6:$I$6,0),FALSE),0) -> 1 | J11: =IFERROR(VLOOKUP($A11,'Volumes - Report Summary'!$A:$I,MATCH(J$5,'Volumes - Report Summary'!$A$6:$I$6,0),FALSE),0) -> 1 | K11: =IFERROR(VLOOKUP($A11,'Volumes - Report Summary'!$A:$I,MATCH(K$5,'Volumes - Report Summary'!$A$6:$I$6,0),FALSE),0) -> 1 | L11: =IFERROR(VLOOKUP($A11,'Volumes - Report Summary'!$A:$I,MATCH(L$5,'Volumes - Report Summary'!$A$6:$I$6,0),FALSE),0) -> 1 | N11: 366.7735267 | O11: 373.6027699 | P11: 380.5591722 | Q11: 387.6451011 | R11: 394.8629685
A12: ='Table of fees'!B9 -> Site visit - credit actions or site issues | B12: ='Unsmoothed Prices Real $2018-19'!B12 -> 150.0594773 | C12: 152.8535521 | D12: 155.699652 | E12: 158.5987456 | F12: 161.5518198 | H12: =IFERROR(VLOOKUP($A12,'Volumes - Report Summary'!$A:$I,MATCH(H$5,'Volumes - Report Summary'!$A$6:$I$6,0),FALSE),0) -> 1973 | I12: =IFERROR(VLOOKUP($A12,'Volumes - Report Summary'!$A:$I,MATCH(I$5,'Volumes - Report Summary'!$A$6:$I$6,0),FALSE),0) -> 1898 | J12: =IFERROR(VLOOKUP($A12,'Volumes - Report Summary'!$A:$I,MATCH(J$5,'Volumes - Report Summary'!$A$6:$I$6,0),FALSE),0) -> 1823 | K12: =IFERROR(VLOOKUP($A12,'Volumes - Report Summary'!$A:$I,MATCH(K$5,'Volumes - Report Summary'!$A$6:$I$6,0),FALSE),0) -> 1747 | L12: =IFERROR(VLOOKUP($A12,'Volumes - Report Summary'!$A:$I,MATCH(L$5,'Volumes - Report Summary'!$A$6:$I$6,0),FALSE),0) -> 1672 | N12: 296067.3488 | O12: 290116.042 | P12: 283840.4656 | Q12: 277072.0086 | R12: 270114.6426
A13: ='Table of fees'!B10 -> Site visit – credit actions pillar box/pole top | B13: ='Unsmoothed Prices Real $2018-19'!B13 -> 248.3549827 | C13: 252.9792984 | D13: 257.6897179 | E13: 262.4878443 | F13: 267.3753109 | H13: =IFERROR(VLOOKUP($A13,'Volumes - Report Summary'!$A:$I,MATCH(H$5,'Volumes - Report Summary'!$A$6:$I$6,0),FALSE),0) -> 219 | I13: =IFERROR(VLOOKUP($A13,'Volumes - Report Summary'!$A:$I,MATCH(I$5,'Volumes - Report Summary'!$A$6:$I$6,0),FALSE),0) -> 210 | J13: =IFERROR(VLOOKUP($A13,'Volumes - Report Summary'!$A:$I,MATCH(J$5,'Volumes - Report Summary'!$A$6:$I$6,0),FALSE),0) -> 202 | K13: =IFERROR(VLOOKUP($A13,'Volumes - Report Summary'!$A:$I,MATCH(K$5,'Volumes - Report Summary'!$A$6:$I$6,0),FALSE),0) -> 194 | L13: =IFERROR(VLOOKUP($A13,'Volumes - Report Summary'!$A:$I,MATCH(L$5,'Volumes - Report Summary'!$A$6:$I$6,0),FALSE),0) -> 185 | N13: 54389.7412 | O13: 53125.65266 | P13: 52053.32301 | Q13: 50922.6418 | R13: 49464.43251
A14: ='Table of fees'!B11 -> Site visit – current transformer (CT) metering | B14: ='Unsmoothed Prices Real $2018-19'!B14 -> 142.3298568 | C14: 144.9800077 | D14: 147.6795039 | E14: 150.4292641 | F14: 153.2302243 | H14: =IFERROR(VLOOKUP($A14,'Volumes - Report Summary'!$A:$I,MATCH(H$5,'Volumes - Report Summary'!$A$6:$I$6,0),FALSE),0) -> 5 | I14: =IFERROR(VLOOKUP($A14,'Volumes - Report Summary'!$A:$I,MATCH(I$5,'Volumes - Report Summary'!$A$6:$I$6,0),FALSE),0) -> 5 | J14: =IFERROR(VLOOKUP($A14,'Volumes - Report Summary'!$A:$I,MATCH(J$5,'Volumes - Report Summary'!$A$6:$I$6,0),FALSE),0) -> 5 | K14: =IFERROR(VLOOKUP($A14,'Volumes - Report Summary'!$A:$I,MATCH(K$5,'Volumes - Report Summary'!$A$6:$I$6,0),FALSE),0) -> 5 | L14: =IFERROR(VLOOKUP($A14,'Volumes - Report Summary'!$A:$I,MATCH(L$5,'Volumes - Report Summary'!$A$6:$I$6,0),FALSE),0) -> 5 | N14: 711.6492838 | O14: 724.9000386 | P14: 738.3975195 | Q14: 752.1463206 | R14: 766.1511214
A15: ='Table of fees'!B12 -> Site visit – pillar box/pole top | B15: ='Unsmoothed Prices Real $2018-19'!B15 -> 248.3549827 | C15: 252.9792984 | D15: 257.6897179 | E15: 262.4878443 | F15: 267.3753109 | H15: =IFERROR(VLOOKUP($A15,'Volumes - Report Summary'!$A:$I,MATCH(H$5,'Volumes - Report Summary'!$A$6:$I$6,0),FALSE),0) -> 10 | I15: =IFERROR(VLOOKUP($A15,'Volumes - Report Summary'!$A:$I,MATCH(I$5,'Volumes - Report Summary'!$A$6:$I$6,0),FALSE),0) -> 10 | J15: =IFERROR(VLOOKUP($A15,'Volumes - Report Summary'!$A:$I,MATCH(J$5,'Volumes - Report Summary'!$A$6:$I$6,0),FALSE),0) -> 10 | K15: =IFERROR(VLOOKUP($A15,'Volumes - Report Summary'!$A:$I,MATCH(K$5,'Volumes - Report Summary'!$A$6:$I$6,0),FALSE),0) -> 10 | L15: =IFERROR(VLOOKUP($A15,'Volumes - Report Summary'!$A:$I,MATCH(L$5,'Volumes - Report Summary'!$A$6:$I$6,0),FALSE),0) -> 10 | N15: 2483.549827 | O15: 2529.792984 | P15: 2576.897179 | Q15: 2624.878443 | R15: 2673.753109
A16: ='Table of fees'!B13 -> Site visit - pillar box/pole top Wasted Visit | B16: ='Unsmoothed Prices Real $2018-19'!B16 -> 158.8517726 | C16: 161.809558 | D16: 164.8224168 | E16: 167.8913743 | F16: 171.0174751 | H16: =IFERROR(VLOOKUP($A16,'Volumes - Report Summary'!$A:$I,MATCH(H$5,'Volumes - Report Summary'!$A$6:$I$6,0),FALSE),0) -> 1 | I16: =IFERROR(VLOOKUP($A16,'Volumes - Report Summary'!$A:$I,MATCH(I$5,'Volumes - Report Summary'!$A$6:$I$6,0),FALSE),0) -> 1 | J16: =IFERROR(VLOOKUP($A16,'Volumes - Report Summary'!$A:$I,MATCH(J$5,'Volumes - Report Summary'!$A$6:$I$6,0),FALSE),0) -> 1 | K16: =IFERROR(VLOOKUP($A16,'Volumes - Report Summary'!$A:$I,MATCH(K$5,'Volumes - Report Summary'!$A$6:$I$6,0),FALSE),0) -> 1 | L16: =IFERROR(VLOOKUP($A16,'Volumes - Report Summary'!$A:$I,MATCH(L$5,'Volumes - Report Summary'!$A$6:$I$6,0),FALSE),0) -> 1 | N16: 158.8517726 | O16: 161.809558 | P16: 164.8224168 | Q16: 167.8913743 | R16: 171.0174751
A17: ='Table of fees'!B14 -> Transfer of retailer | B17: ='Unsmoothed Prices Real $2018-19'!B17 -> 0 | C17: 0 | D17: 0 | E17: 0 | F17: 0 | H17: =IFERROR(VLOOKUP($A17,'Volumes - Report Summary'!$A:$I,MATCH(H$5,'Volumes - Report Summary'!$A$6:$I$6,0),FALSE),0) -> 0 | I17: =IFERROR(VLOOKUP($A17,'Volumes - Report Summary'!$A:$I,MATCH(I$5,'Volumes - Report Summary'!$A$6:$I$6,0),FALSE),0) -> 0 | J17: =IFERROR(VLOOKUP($A17,'Volumes - Report Summary'!$A:$I,MATCH(J$5,'Volumes - Report Summary'!$A$6:$I$6,0),FALSE),0) -> 0 | K17: =IFERROR(VLOOKUP($A17,'Volumes - Report Summary'!$A:$I,MATCH(K$5,'Volumes - Report Summary'!$A$6:$I$6,0),FALSE),0) -> 0 | L17: =IFERROR(VLOOKUP($A17,'Volumes - Report Summary'!$A:$I,MATCH(L$5,'Volumes - Report Summary'!$A$6:$I$6,0),FALSE),0) -> 0 | N17: 0 | O17: 0 | P17: 0 | Q17: 0 | R17: 0
A18: ='Table of fees'!A15 -> Meter test
A19: ='Table of fees'!B16 -> Meter test - single phase | B19: ='Unsmoothed Prices Real $2018-19'!B19 -> 203.3908917 | C19: =B19*(1+B$2) -> 207.1779859 | D19: =C19*(1+B$2) -> 211.0355949 | E19: =D19*(1+B$2) -> 214.9650317 | F19: =E19*(1+B$2) -> 218.9676338 | H19: =IFERROR(VLOOKUP($A19,'Volumes - Report Summary'!$A:$I,MATCH(H$5,'Volumes - Report Summary'!$A$6:$I$6,0),FALSE),0) -> 17 | I19: =IFERROR(VLOOKUP($A19,'Volumes - Report Summary'!$A:$I,MATCH(I$5,'Volumes - Report Summary'!$A$6:$I$6,0),FALSE),0) -> 17 | J19: =IFERROR(VLOOKUP($A19,'Volumes - Report Summary'!$A:$I,MATCH(J$5,'Volumes - Report Summary'!$A$6:$I$6,0),FALSE),0) -> 17 | K19: =IFERROR(VLOOKUP($A19,'Volumes - Report Summary'!$A:$I,MATCH(K$5,'Volumes - Report Summary'!$A$6:$I$6,0),FALSE),0) -> 17 | L19: =IFERROR(VLOOKUP($A19,'Volumes - Report Summary'!$A:$I,MATCH(L$5,'Volumes - Report Summary'!$A$6:$I$6,0),FALSE),0) -> 17 | N19: =H19*B19 -> 3457.64516 | O19: 3522.02576 | P19: 3587.605113 | Q19: 3654.405539 | R19: 3722.449775
A20: ='Table of fees'!B17 -> Meter test - multi phase | B20: ='Unsmoothed Prices Real $2018-19'!B20 -> 378.6951609 | C20: =B20*(1+B$2) -> 385.7463824 | D20: =C20*(1+B$2) -> 392.9288961 | E20: =D20*(1+B$2) -> 400.2451466 | F20: =E20*(1+B$2) -> 407.6976241 | H20: =IFERROR(VLOOKUP($A20,'Volumes - Report Summary'!$A:$I,MATCH(H$5,'Volumes - Report Summary'!$A$6:$I$6,0),FALSE),0) -> 4 | I20: =IFERROR(VLOOKUP($A20,'Volumes - Report Summary'!$A:$I,MATCH(I$5,'Volumes - Report Summary'!$A$6:$I$6,0),FALSE),0) -> 4 | J20: =IFERROR(VLOOKUP($A20,'Volumes - Report Summary'!$A:$I,MATCH(J$5,'Volumes - Report Summary'!$A$6:$I$6,0),FALSE),0) -> 4 | K20: =IFERROR(VLOOKUP($A20,'Volumes - Report Summary'!$A:$I,MATCH(K$5,'Volumes - Report Summary'!$A$6:$I$6,0),FALSE),0) -> 4 | L20: =IFERROR(VLOOKUP($A20,'Volumes - Report Summary'!$A:$I,MATCH(L$5,'Volumes - Report Summary'!$A$6:$I$6,0),FALSE),0) -> 4 | N20: 1514.780644 | O20: 1542.985529 | P20: 1571.715584 | Q20: 1600.980586 | R20: 1630.790496
A21: ='Table of fees'!B18 -> Meter test – current transformer (CT) | B21: ='Unsmoothed Prices Real $2018-19'!B21 -> 417.6516652 | C21: =B21*(1+B$2) -> 425.4282483 | D21: =C21*(1+B$2) -> 433.3496296 | E21: =D21*(1+B$2) -> 441.4185054 | F21: =E21*(1+B$2) -> 449.6376219 | H21: =IFERROR(VLOOKUP($A21,'Volumes - Report Summary'!$A:$I,MATCH(H$5,'Volumes - Report Summary'!$A$6:$I$6,0),FALSE),0) -> 4 | I21: =IFERROR(VLOOKUP($A21,'Volumes - Report Summary'!$A:$I,MATCH(I$5,'Volumes - Report Summary'!$A$6:$I$6,0),FALSE),0) -> 4 | J21: =IFERROR(VLOOKUP($A21,'Volumes - Report Summary'!$A:$I,MATCH(J$5,'Volumes - Report Summary'!$A$6:$I$6,0),FALSE),0) -> 4 | K21: =IFERROR(VLOOKUP($A21,'Volumes - Report Summary'!$A:$I,MATCH(K$5,'Volumes - Report Summary'!$A$6:$I$6,0),FALSE),0) -> 4 | L21: =IFERROR(VLOOKUP($A21,'Volumes - Report Summary'!$A:$I,MATCH(L$5,'Volumes - Report Summary'!$A$6:$I$6,0),FALSE),0) -> 4 | N21: 1670.606661 | O21: 1701.712993 | P21: 1733.398519 | Q21: 1765.674022 | R21: 1798.550488
A22: ='Table of fees'!B19 -> Meter test - after hours | B22: ='Unsmoothed Prices Real $2018-19'!B22 -> 790.8185873 | C22: =B22*(1+B$2) -> 805.5434573 | D22: =C22*(1+B$2) -> 820.5425011 | E22: =D22*(1+B$2) -> 835.8208239 | F22: =E22*(1+B$2) -> 851.3836257 | H22: =IFERROR(VLOOKUP($A22,'Volumes - Report Summary'!$A:$I,MATCH(H$5,'Volumes - Report Summary'!$A$6:$I$6,0),FALSE),0) -> 1 | I22: =IFERROR(VLOOKUP($A22,'Volumes - Report Summary'!$A:$I,MATCH(I$5,'Volumes - Report Summary'!$A$6:$I$6,0),FALSE),0) -> 1 | J22: =IFERROR(VLOOKUP($A22,'Volumes - Report Summary'!$A:$I,MATCH(J$5,'Volumes - Report Summary'!$A$6:$I$6,0),FALSE),0) -> 1 | K22: =IFERROR(VLOOKUP($A22,'Volumes - Report Summary'!$A:$I,MATCH(K$5,'Volumes - Report Summary'!$A$6:$I$6,0),FALSE),0) -> 1 | L22: =IFERROR(VLOOKUP($A22,'Volumes - Report Summary'!$A:$I,MATCH(L$5,'Volumes - Report Summary'!$A$6:$I$6,0),FALSE),0) -> 1 | N22: 790.8185873 | O22: 805.5434573 | P22: 820.5425011 | Q22: 835.8208239 | R22: 851.3836257
A23: ='Table of fees'!B20 -> Meter test - wasted visit | B23: ='Unsmoothed Prices Real $2018-19'!B23 -> 86.52137896 | C23: =B23*(1+B$2) -> 88.13238821 | D23: =C23*(1+B$2) -> 89.77339409 | E23: =D23*(1+B$2) -> 91.44495515 | F23: =E23*(1+B$2) -> 93.14764031 | H23: =IFERROR(VLOOKUP($A23,'Volumes - Report Summary'!$A:$I,MATCH(H$5,'Volumes - Report Summary'!$A$6:$I$6,0),FALSE),0) -> 1 | I23: =IFERROR(VLOOKUP($A23,'Volumes - Report Summary'!$A:$I,MATCH(I$5,'Volumes - Report Summary'!$A$6:$I$6,0),FALSE),0) -> 1 | J23: =IFERROR(VLOOKUP($A23,'Volumes - Report Summary'!$A:$I,MATCH(J$5,'Volumes - Report Summary'!$A$6:$I$6,0),FALSE),0) -> 1 | K23: =IFERROR(VLOOKUP($A23,'Volumes - Report Summary'!$A:$I,MATCH(K$5,'Volumes - Report Summary'!$A$6:$I$6,0),FALSE),0) -> 1 | L23: =IFERROR(VLOOKUP($A23,'Volumes - Report Summary'!$A:$I,MATCH(L$5,'Volumes - Report Summary'!$A$6:$I$6,0),FALSE),0) -> 1 | N23: 86.52137896 | O23: 88.13238821 | P23: 89.77339409 | Q23: 91.44495515 | R23: 93.14764031
A24: ='Table of fees'!A21 -> Supply abolishment
A25: ='Table of fees'!B22 -> Remove service & meters | B25: ='Unsmoothed Prices Real $2018-19'!B25 -> 248.3549827 | C25: =B25*(1+B$2) -> 252.9792984 | D25: =C25*(1+B$2) -> 257.6897179 | E25: =D25*(1+B$2) -> 262.4878443 | F25: =E25*(1+B$2) -> 267.3753109 | H25: =IFERROR(VLOOKUP($A25,'Volumes - Report Summary'!$A:$I,MATCH(H$5,'Volumes - Report Summary'!$A$6:$I$6,0),FALSE),0) -> 336 | I25: =IFERROR(VLOOKUP($A25,'Volumes - Report Summary'!$A:$I,MATCH(I$5,'Volumes - Report Summary'!$A$6:$I$6,0),FALSE),0) -> 336 | J25: =IFERROR(VLOOKUP($A25,'Volumes - Report Summary'!$A:$I,MATCH(J$5,'Volumes - Report Summary'!$A$6:$I$6,0),FALSE),0) -> 336 | K25: =IFERROR(VLOOKUP($A25,'Volumes - Report Summary'!$A:$I,MATCH(K$5,'Volumes - Report Summary'!$A$6:$I$6,0),FALSE),0) -> 336 | L25: =IFERROR(VLOOKUP($A25,'Volumes - Report Summary'!$A:$I,MATCH(L$5,'Volumes - Report Summary'!$A$6:$I$6,0),FALSE),0) -> 336 | N25: =H25*B25 -> 83447.27417 | O25: 85001.04426 | P25: 86583.7452 | Q25: 88195.91569 | R25: 89838.10445
A26: ='Table of fees'!B23 -> Supply abolishment - after hours | B26: ='Unsmoothed Prices Real $2018-19'!B26 -> 637.5185684 | C26: =B26*(1+B$2) -> 649.3890254 | D26: =C26*(1+B$2) -> 661.4805077 | E26: =D26*(1+B$2) -> 673.7971308 | F26: =E26*(1+B$2) -> 686.3430867 | H26: =IFERROR(VLOOKUP($A26,'Volumes - Report Summary'!$A:$I,MATCH(H$5,'Volumes - Report Summary'!$A$6:$I$6,0),FALSE),0) -> 1 | I26: =IFERROR(VLOOKUP($A26,'Volumes - Report Summary'!$A:$I,MATCH(I$5,'Volumes - Report Summary'!$A$6:$I$6,0),FALSE),0) -> 1 | J26: =IFERROR(VLOOKUP($A26,'Volumes - Report Summary'!$A:$I,MATCH(J$5,'Volumes - Report Summary'!$A$6:$I$6,0),FALSE),0) -> 1 | K26: =IFERROR(VLOOKUP($A26,'Volumes - Report Summary'!$A:$I,MATCH(K$5,'Volumes - Report Summary'!$A$6:$I$6,0),FALSE),0) -> 1 | L26: =IFERROR(VLOOKUP($A26,'Volumes - Report Summary'!$A:$I,MATCH(L$5,'Volumes - Report Summary'!$A$6:$I$6,0),FALSE),0) -> 1 | N26: 637.5185684 | O26: 649.3890254 | P26: 661.4805077 | Q26: 673.7971308 | R26: 686.3430867
A27: ='Table of fees'!B24 -> Supply abolishment - wasted visit | B27: ='Unsmoothed Prices Real $2018-19'!B27 -> 166.988428 | C27: =B27*(1+B$2) -> 170.0977162 | D27: =C27*(1+B$2) -> 173.2648987 | E27: =D27*(1+B$2) -> 176.4910534 | F27: =E27*(1+B$2) -> 179.7772784 | H27: =IFERROR(VLOOKUP($A27,'Volumes - Report Summary'!$A:$I,MATCH(H$5,'Volumes - Report Summary'!$A$6:$I$6,0),FALSE),0) -> 24 | I27: =IFERROR(VLOOKUP($A27,'Volumes - Report Summary'!$A:$I,MATCH(I$5,'Volumes - Report Summary'!$A$6:$I$6,0),FALSE),0) -> 24 | J27: =IFERROR(VLOOKUP($A27,'Volumes - Report Summary'!$A:$I,MATCH(J$5,'Volumes - Report Summary'!$A$6:$I$6,0),FALSE),0) -> 24 | K27: =IFERROR(VLOOKUP($A27,'Volumes - Report Summary'!$A:$I,MATCH(K$5,'Volumes - Report Summary'!$A$6:$I$6,0),FALSE),0) -> 24 | L27: =IFERROR(VLOOKUP($A27,'Volumes - Report Summary'!$A:$I,MATCH(L$5,'Volumes - Report Summary'!$A$6:$I$6,0),FALSE),0) -> 24 | N27: 4007.722273 | O27: 4082.34519 | P27: 4158.357568 | Q27: 4235.785281 | R27: 4314.654681
A28: ='Table of fees'!A25 -> Truck tee-up
A29: ='Table of fees'!B26 -> Tee-up/Appointment | B29: ='Unsmoothed Prices Real $2018-19'!B29 -> 146.795735 | C29: =B29*(1+B$2) -> 149.5290396 | D29: =C29*(1+B$2) -> 152.3132378 | E29: =D29*(1+B$2) -> 155.1492771 | F29: =E29*(1+B$2) -> 158.0381229 | H29: =IFERROR(VLOOKUP($A29,'Volumes - Report Summary'!$A:$I,MATCH(H$5,'Volumes - Report Summary'!$A$6:$I$6,0),FALSE),0) -> 3300 | I29: =IFERROR(VLOOKUP($A29,'Volumes - Report Summary'!$A:$I,MATCH(I$5,'Volumes - Report Summary'!$A$6:$I$6,0),FALSE),0) -> 3300 | J29: =IFERROR(VLOOKUP($A29,'Volumes - Report Summary'!$A:$I,MATCH(J$5,'Volumes - Report Summary'!$A$6:$I$6,0),FALSE),0) -> 3300 | K29: =IFERROR(VLOOKUP($A29,'Volumes - Report Summary'!$A:$I,MATCH(K$5,'Volumes - Report Summary'!$A$6:$I$6,0),FALSE),0) -> 3300 | L29: =IFERROR(VLOOKUP($A29,'Volumes - Report Summary'!$A:$I,MATCH(L$5,'Volumes - Report Summary'!$A$6:$I$6,0),FALSE),0) -> 3300 | N29: =H29*B29 -> 484425.9254 | O29: 493445.8307 | P29: 502633.6847 | Q29: 511992.6145 | R29: 521525.8055
A30: ='Table of fees'!B27 -> Tee-up/Appointment – after hours | B30: ='Unsmoothed Prices Real $2018-19'!B30 -> 637.5185684 | C30: =B30*(1+B$2) -> 649.3890254 | D30: =C30*(1+B$2) -> 661.4805077 | E30: =D30*(1+B$2) -> 673.7971308 | F30: =E30*(1+B$2) -> 686.3430867 | H30: =IFERROR(VLOOKUP($A30,'Volumes - Report Summary'!$A:$I,MATCH(H$5,'Volumes - Report Summary'!$A$6:$I$6,0),FALSE),0) -> 1 | I30: =IFERROR(VLOOKUP($A30,'Volumes - Report Summary'!$A:$I,MATCH(I$5,'Volumes - Report Summary'!$A$6:$I$6,0),FALSE),0) -> 1 | J30: =IFERROR(VLOOKUP($A30,'Volumes - Report Summary'!$A:$I,MATCH(J$5,'Volumes - Report Summary'!$A$6:$I$6,0),FALSE),0) -> 1 | K30: =IFERROR(VLOOKUP($A30,'Volumes - Report Summary'!$A:$I,MATCH(K$5,'Volumes - Report Summary'!$A$6:$I$6,0),FALSE),0) -> 1 | L30: =IFERROR(VLOOKUP($A30,'Volumes - Report Summary'!$A:$I,MATCH(L$5,'Volumes - Report Summary'!$A$6:$I$6,0),FALSE),0) -> 1 | N30: 637.5185684 | O30: 649.3890254 | P30: 661.4805077 | Q30: 673.7971308 | R30: 686.3430867
A31: ='Table of fees'!B28 -> Tee-up/Appointment – no truck – after hours | B31: ='Unsmoothed Prices Real $2018-19'!B31 -> 366.7735267 | C31: =B31*(1+B$2) -> 373.6027699 | D31: =C31*(1+B$2) -> 380.5591722 | E31: =D31*(1+B$2) -> 387.6451011 | F31: =E31*(1+B$2) -> 394.8629685 | H31: =IFERROR(VLOOKUP($A31,'Volumes - Report Summary'!$A:$I,MATCH(H$5,'Volumes - Report Summary'!$A$6:$I$6,0),FALSE),0) -> 1 | I31: =IFERROR(VLOOKUP($A31,'Volumes - Report Summary'!$A:$I,MATCH(I$5,'Volumes - Report Summary'!$A$6:$I$6,0),FALSE),0) -> 1 | J31: =IFERROR(VLOOKUP($A31,'Volumes - Report Summary'!$A:$I,MATCH(J$5,'Volumes - Report Summary'!$A$6:$I$6,0),FALSE),0) -> 1 | K31: =IFERROR(VLOOKUP($A31,'Volumes - Report Summary'!$A:$I,MATCH(K$5,'Volumes - Report Summary'!$A$6:$I$6,0),FALSE),0) -> 1 | L31: =IFERROR(VLOOKUP($A31,'Volumes - Report Summary'!$A:$I,MATCH(L$5,'Volumes - Report Summary'!$A$6:$I$6,0),FALSE),0) -> 1 | N31: 366.7735267 | O31: 373.6027699 | P31: 380.5591722 | Q31: 387.6451011 | R31: 394.8629685
A32: ='Table of fees'!B29 -> Tee-up/Appointment – wasted visit | B32: ='Unsmoothed Prices Real $2018-19'!B32 -> 101.5590198 | C32: =B32*(1+B$2) -> 103.4500267 | D32: =C32*(1+B$2) -> 105.3762436 | E32: =D32*(1+B$2) -> 107.3383264 | F32: =E32*(1+B$2) -> 109.3369426 | H32: =IFERROR(VLOOKUP($A32,'Volumes - Report Summary'!$A:$I,MATCH(H$5,'Volumes - Report Summary'!$A$6:$I$6,0),FALSE),0) -> 200 | I32: =IFERROR(VLOOKUP($A32,'Volumes - Report Summary'!$A:$I,MATCH(I$5,'Volumes - Report Summary'!$A$6:$I$6,0),FALSE),0) -> 200 | J32: =IFERROR(VLOOKUP($A32,'Volumes - Report Summary'!$A:$I,MATCH(J$5,'Volumes - Report Summary'!$A$6:$I$6,0),FALSE),0) -> 200 | K32: =IFERROR(VLOOKUP($A32,'Volumes - Report Summary'!$A:$I,MATCH(K$5,'Volumes - Report Summary'!$A$6:$I$6,0),FALSE),0) -> 200 | L32: =IFERROR(VLOOKUP($A32,'Volumes - Report Summary'!$A:$I,MATCH(L$5,'Volumes - Report Summary'!$A$6:$I$6,0),FALSE),0) -> 200 | N32: 20311.80396 | O32: 20690.00533 | P32: 21075.24873 | Q32: 21467.66527 | R32: 21867.38853
A33: ='Table of fees'!A30 -> Miscellaneous service
A34: ='Table of fees'!B31 -> Open turret | B34: ='Unsmoothed Prices Real $2018-19'!B34 -> 129.8692317 | C34: =B34*(1+B$2) -> 132.2873685 | D34: =C34*(1+B$2) -> 134.7505305 | E34: =D34*(1+B$2) -> 137.2595561 | F34: =E34*(1+B$2) -> 139.8152991 | H34: =IFERROR(VLOOKUP($A34,'Volumes - Report Summary'!$A:$I,MATCH(H$5,'Volumes - Report Summary'!$A$6:$I$6,0),FALSE),0) -> 3 | I34: =IFERROR(VLOOKUP($A34,'Volumes - Report Summary'!$A:$I,MATCH(I$5,'Volumes - Report Summary'!$A$6:$I$6,0),FALSE),0) -> 3 | J34: =IFERROR(VLOOKUP($A34,'Volumes - Report Summary'!$A:$I,MATCH(J$5,'Volumes - Report Summary'!$A$6:$I$6,0),FALSE),0) -> 3 | K34: =IFERROR(VLOOKUP($A34,'Volumes - Report Summary'!$A:$I,MATCH(K$5,'Volumes - Report Summary'!$A$6:$I$6,0),FALSE),0) -> 3 | L34: =IFERROR(VLOOKUP($A34,'Volumes - Report Summary'!$A:$I,MATCH(L$5,'Volumes - Report Summary'!$A$6:$I$6,0),FALSE),0) -> 3 | N34: =H34*B34 -> 389.607695 | O34: 396.8621055 | P34: 404.2515915 | Q34: 411.7786682 | R34: 419.4458974
A35: ='Table of fees'!B32 -> Data download | B35: ='Unsmoothed Prices Real $2018-19'!B35 -> 254.2701983 | C35: 259.0046541 | D35: 263.8272644 | E35: 268.7396706 | F35: 273.7435448 | H35: =IFERROR(VLOOKUP($A35,'Volumes - Report Summary'!$A:$I,MATCH(H$5,'Volumes - Report Summary'!$A$6:$I$6,0),FALSE),0) -> 3 | I35: =IFERROR(VLOOKUP($A35,'Volumes - Report Summary'!$A:$I,MATCH(I$5,'Volumes - Report Summary'!$A$6:$I$6,0),FALSE),0) -> 3 | J35: =IFERROR(VLOOKUP($A35,'Volumes - Report Summary'!$A:$I,MATCH(J$5,'Volumes - Report Summary'!$A$6:$I$6,0),FALSE),0) -> 3 | K35: =IFERROR(VLOOKUP($A35,'Volumes - Report Summary'!$A:$I,MATCH(K$5,'Volumes - Report Summary'!$A$6:$I$6,0),FALSE),0) -> 3 | L35: =IFERROR(VLOOKUP($A35,'Volumes - Report Summary'!$A:$I,MATCH(L$5,'Volumes - Report Summary'!$A$6:$I$6,0),FALSE),0) -> 3 | N35: 762.810595 | O35: 777.0139623 | P35: 791.4817932 | Q35: 806.2190119 | R35: 821.2306344
A36: ='Table of fees'!B33 -> Alteration to unmetered supply | B36: ='Unsmoothed Prices Real $2018-19'!B36 -> 197.7243044 | C36: 201.4058879 | D36: 205.1560217 | E36: 208.9759822 | F36: 212.8670695 | H36: =IFERROR(VLOOKUP($A36,'Volumes - Report Summary'!$A:$I,MATCH(H$5,'Volumes - Report Summary'!$A$6:$I$6,0),FALSE),0) -> 3 | I36: =IFERROR(VLOOKUP($A36,'Volumes - Report Summary'!$A:$I,MATCH(I$5,'Volumes - Report Summary'!$A$6:$I$6,0),FALSE),0) -> 3 | J36: =IFERROR(VLOOKUP($A36,'Volumes - Report Summary'!$A:$I,MATCH(J$5,'Volumes - Report Summary'!$A$6:$I$6,0),FALSE),0) -> 3 | K36: =IFERROR(VLOOKUP($A36,'Volumes - Report Summary'!$A:$I,MATCH(K$5,'Volumes - Report Summary'!$A$6:$I$6,0),FALSE),0) -> 3 | L36: =IFERROR(VLOOKUP($A36,'Volumes - Report Summary'!$A:$I,MATCH(L$5,'Volumes - Report Summary'!$A$6:$I$6,0),FALSE),0) -> 3 | N36: 593.1729132 | O36: 604.2176638 | P36: 615.4680651 | Q36: 626.9279466 | R36: 638.6012085
A37: ='Table of fees'!B34 -> Meter Relocation | B37: ='Unsmoothed Prices Real $2018-19'!B37 -> 154.6952614 | C37: 157.5756535 | D37: 160.5096779 | E37: 163.4983332 | F37: 166.5426365 | H37: =IFERROR(VLOOKUP($A37,'Volumes - Report Summary'!$A:$I,MATCH(H$5,'Volumes - Report Summary'!$A$6:$I$6,0),FALSE),0) -> 3 | I37: =IFERROR(VLOOKUP($A37,'Volumes - Report Summary'!$A:$I,MATCH(I$5,'Volumes - Report Summary'!$A$6:$I$6,0),FALSE),0) -> 3 | J37: =IFERROR(VLOOKUP($A37,'Volumes - Report Summary'!$A:$I,MATCH(J$5,'Volumes - Report Summary'!$A$6:$I$6,0),FALSE),0) -> 3 | K37: =IFERROR(VLOOKUP($A37,'Volumes - Report Summary'!$A:$I,MATCH(K$5,'Volumes - Report Summary'!$A$6:$I$6,0),FALSE),0) -> 3 | L37: =IFERROR(VLOOKUP($A37,'Volumes - Report Summary'!$A:$I,MATCH(L$5,'Volumes - Report Summary'!$A$6:$I$6,0),FALSE),0) -> 3 | N37: 464.0857842 | O37: 472.7269605 | P37: 481.5290337 | Q37: 490.4949995 | R37: 499.6279096
A38: ='Table of fees'!B35 -> Tiger tails - standard single/multi phase | B38: ='Unsmoothed Prices Real $2018-19'!B38 -> 548.8978148 | C38: 559.1181727 | D38: 569.5288314 | E38: 580.1333342 | F38: 590.9352907 | H38: =IFERROR(VLOOKUP($A38,'Volumes - Report Summary'!$A:$I,MATCH(H$5,'Volumes - Report Summary'!$A$6:$I$6,0),FALSE),0) -> 3 | I38: =IFERROR(VLOOKUP($A38,'Volumes - Report Summary'!$A:$I,MATCH(I$5,'Volumes - Report Summary'!$A$6:$I$6,0),FALSE),0) -> 3 | J38: =IFERROR(VLOOKUP($A38,'Volumes - Report Summary'!$A:$I,MATCH(J$5,'Volumes - Report Summary'!$A$6:$I$6,0),FALSE),0) -> 3 | K38: =IFERROR(VLOOKUP($A38,'Volumes - Report Summary'!$A:$I,MATCH(K$5,'Volumes - Report Summary'!$A$6:$I$6,0),FALSE),0) -> 3 | L38: =IFERROR(VLOOKUP($A38,'Volumes - Report Summary'!$A:$I,MATCH(L$5,'Volumes - Report Summary'!$A$6:$I$6,0),FALSE),0) -> 3 | N38: =H38*B38 -> 1646.693445 | O38: =I38*C38 -> 1677.354518 | P38: =J38*D38 -> 1708.586494 | Q38: =K38*E38 -> 1740.400003 | R38: =L38*F38 -> 1772.805872
A39: ='Table of fees'!B36 -> Tiger tails - scaffolding single phase | B39: ='Unsmoothed Prices Real $2018-19'!B39 -> 861.3845302 | C39: 877.4233227 | D39: 893.760754 | E39: 910.4023847 | F39: 927.3538789 | H39: =IFERROR(VLOOKUP($A39,'Volumes - Report Summary'!$A:$I,MATCH(H$5,'Volumes - Report Summary'!$A$6:$I$6,0),FALSE),0) -> 3 | I39: =IFERROR(VLOOKUP($A39,'Volumes - Report Summary'!$A:$I,MATCH(I$5,'Volumes - Report Summary'!$A$6:$I$6,0),FALSE),0) -> 3 | J39: =IFERROR(VLOOKUP($A39,'Volumes - Report Summary'!$A:$I,MATCH(J$5,'Volumes - Report Summary'!$A$6:$I$6,0),FALSE),0) -> 3 | K39: =IFERROR(VLOOKUP($A39,'Volumes - Report Summary'!$A:$I,MATCH(K$5,'Volumes - Report Summary'!$A$6:$I$6,0),FALSE),0) -> 3 | L39: =IFERROR(VLOOKUP($A39,'Volumes - Report Summary'!$A:$I,MATCH(L$5,'Volumes - Report Summary'!$A$6:$I$6,0),FALSE),0) -> 3 | N39: 2584.153591 | O39: 2632.269968 | P39: 2681.282262 | Q39: 2731.207154 | R39: 2782.061637
A40: ='Table of fees'!B37 -> Tiger tails - scaffolding multi phase | B40: ='Unsmoothed Prices Real $2018-19'!B40 -> 942.7510848 | C40: 960.3049048 | D40: 978.1855731 | E40: 996.3991756 | F40: 1014.951911 | H40: =IFERROR(VLOOKUP($A40,'Volumes - Report Summary'!$A:$I,MATCH(H$5,'Volumes - Report Summary'!$A$6:$I$6,0),FALSE),0) -> 3 | I40: =IFERROR(VLOOKUP($A40,'Volumes - Report Summary'!$A:$I,MATCH(I$5,'Volumes - Report Summary'!$A$6:$I$6,0),FALSE),0) -> 3 | J40: =IFERROR(VLOOKUP($A40,'Volumes - Report Summary'!$A:$I,MATCH(J$5,'Volumes - Report Summary'!$A$6:$I$6,0),FALSE),0) -> 3 | K40: =IFERROR(VLOOKUP($A40,'Volumes - Report Summary'!$A:$I,MATCH(K$5,'Volumes - Report Summary'!$A$6:$I$6,0),FALSE),0) -> 3 | L40: =IFERROR(VLOOKUP($A40,'Volumes - Report Summary'!$A:$I,MATCH(L$5,'Volumes - Report Summary'!$A$6:$I$6,0),FALSE),0) -> 3 | N40: 2828.253254 | O40: 2880.914714 | P40: 2934.556719 | Q40: 2989.197527 | R40: 3044.855734
A41: ='Table of fees'!B38 -> Miscellaneous service | B41: ='Unsmoothed Prices Real $2018-19'!B41 -> 118.5600529 | C41: 120.7676153 | D41: 123.016282 | E41: 125.3068184 | F41: 127.6400041 | H41: =IFERROR(VLOOKUP($A41,'Volumes - Report Summary'!$A:$I,MATCH(H$5,'Volumes - Report Summary'!$A$6:$I$6,0),FALSE),0) -> 6 | I41: =IFERROR(VLOOKUP($A41,'Volumes - Report Summary'!$A:$I,MATCH(I$5,'Volumes - Report Summary'!$A$6:$I$6,0),FALSE),0) -> 6 | J41: =IFERROR(VLOOKUP($A41,'Volumes - Report Summary'!$A:$I,MATCH(J$5,'Volumes - Report Summary'!$A$6:$I$6,0),FALSE),0) -> 6 | K41: =IFERROR(VLOOKUP($A41,'Volumes - Report Summary'!$A:$I,MATCH(K$5,'Volumes - Report Summary'!$A$6:$I$6,0),FALSE),0) -> 6 | L41: =IFERROR(VLOOKUP($A41,'Volumes - Report Summary'!$A:$I,MATCH(L$5,'Volumes - Report Summary'!$A$6:$I$6,0),FALSE),0) -> 6 | N41: =H41*B41 -> 711.3603173 | O41: =I41*C41 -> 724.6056916 | P41: =J41*D41 -> 738.0976918 | Q41: =K41*E41 -> 751.8409102 | R41: =L41*F41 -> 765.8400243
A42: ='Table of fees'!B39 -> Miscellaneous service – after hours | B42: ='Unsmoothed Prices Real $2018-19'!B42 -> 554.2814303 | C42: 564.6020299 | D42: 575.1147968 | E42: 585.8233091 | F42: 596.7312117 | H42: =IFERROR(VLOOKUP($A42,'Volumes - Report Summary'!$A:$I,MATCH(H$5,'Volumes - Report Summary'!$A$6:$I$6,0),FALSE),0) -> 3 | I42: =IFERROR(VLOOKUP($A42,'Volumes - Report Summary'!$A:$I,MATCH(I$5,'Volumes - Report Summary'!$A$6:$I$6,0),FALSE),0) -> 3 | J42: =IFERROR(VLOOKUP($A42,'Volumes - Report Summary'!$A:$I,MATCH(J$5,'Volumes - Report Summary'!$A$6:$I$6,0),FALSE),0) -> 3 | K42: =IFERROR(VLOOKUP($A42,'Volumes - Report Summary'!$A:$I,MATCH(K$5,'Volumes - Report Summary'!$A$6:$I$6,0),FALSE),0) -> 3 | L42: =IFERROR(VLOOKUP($A42,'Volumes - Report Summary'!$A:$I,MATCH(L$5,'Volumes - Report Summary'!$A$6:$I$6,0),FALSE),0) -> 3 | N42: 1662.844291 | O42: 1693.80609 | P42: 1725.34439 | Q42: 1757.469927 | R42: 1790.193635
A43: ='Table of fees'!B40 -> Miscellaneous service – wasted visit | B43: ='Unsmoothed Prices Real $2018-19'!B43 -> 95.94169531 | C43: 97.72810879 | D43: 99.54778491 | E43: 101.401343 | F43: 103.2894139 | H43: =IFERROR(VLOOKUP($A43,'Volumes - Report Summary'!$A:$I,MATCH(H$5,'Volumes - Report Summary'!$A$6:$I$6,0),FALSE),0) -> 3 | I43: =IFERROR(VLOOKUP($A43,'Volumes - Report Summary'!$A:$I,MATCH(I$5,'Volumes - Report Summary'!$A$6:$I$6,0),FALSE),0) -> 3 | J43: =IFERROR(VLOOKUP($A43,'Volumes - Report Summary'!$A:$I,MATCH(J$5,'Volumes - Report Summary'!$A$6:$I$6,0),FALSE),0) -> 3 | K43: =IFERROR(VLOOKUP($A43,'Volumes - Report Summary'!$A:$I,MATCH(K$5,'Volumes - Report Summary'!$A$6:$I$6,0),FALSE),0) -> 3 | L43: =IFERROR(VLOOKUP($A43,'Volumes - Report Summary'!$A:$I,MATCH(L$5,'Volumes - Report Summary'!$A$6:$I$6,0),FALSE),0) -> 3 | N43: 287.8250859 | O43: 293.1843264 | P43: 298.6433547 | Q43: 304.204029 | R43: 309.8682418
A44: ='Table of fees'!B41 -> Administration | B44: ='Unsmoothed Prices Real $2018-19'!B44 -> 48.47262574 | C44: 49.37517548 | D44: 50.2945305 | E44: 51.23100371 | F44: 52.18491385 | H44: =IFERROR(VLOOKUP($A44,'Volumes - Report Summary'!$A:$I,MATCH(H$5,'Volumes - Report Summary'!$A$6:$I$6,0),FALSE),0) -> 2 | I44: =IFERROR(VLOOKUP($A44,'Volumes - Report Summary'!$A:$I,MATCH(I$5,'Volumes - Report Summary'!$A$6:$I$6,0),FALSE),0) -> 2 | J44: =IFERROR(VLOOKUP($A44,'Volumes - Report Summary'!$A:$I,MATCH(J$5,'Volumes - Report Summary'!$A$6:$I$6,0),FALSE),0) -> 2 | K44: =IFERROR(VLOOKUP($A44,'Volumes - Report Summary'!$A:$I,MATCH(K$5,'Volumes - Report Summary'!$A$6:$I$6,0),FALSE),0) -> 2 | L44: =IFERROR(VLOOKUP($A44,'Volumes - Report Summary'!$A:$I,MATCH(L$5,'Volumes - Report Summary'!$A$6:$I$6,0),FALSE),0) -> 2 | N44: =H44*B44 -> 96.94525147 | O44: =I44*C44 -> 98.75035096 | P44: =J44*D44 -> 100.589061 | Q44: =K44*E44 -> 102.4620074 | R44: =L44*F44 -> 104.3698277
A45: ='Table of fees'!B42 -> Statutory right - access prevented | B45: ='Unsmoothed Prices Real $2018-19'!B45 -> 870.6095828 | C45: 886.8201437 | D45: 903.3325418 | E45: 920.1523971 | F45: 937.2854345 | H45: =IFERROR(VLOOKUP($A45,'Volumes - Report Summary'!$A:$I,MATCH(H$5,'Volumes - Report Summary'!$A$6:$I$6,0),FALSE),0) -> 1 | I45: =IFERROR(VLOOKUP($A45,'Volumes - Report Summary'!$A:$I,MATCH(I$5,'Volumes - Report Summary'!$A$6:$I$6,0),FALSE),0) -> 1 | J45: =IFERROR(VLOOKUP($A45,'Volumes - Report Summary'!$A:$I,MATCH(J$5,'Volumes - Report Summary'!$A$6:$I$6,0),FALSE),0) -> 1 | K45: =IFERROR(VLOOKUP($A45,'Volumes - Report Summary'!$A:$I,MATCH(K$5,'Volumes - Report Summary'!$A$6:$I$6,0),FALSE),0) -> 1 | L45: =IFERROR(VLOOKUP($A45,'Volumes - Report Summary'!$A:$I,MATCH(L$5,'Volumes - Report Summary'!$A$6:$I$6,0),FALSE),0) -> 1 | N45: =H45*B45 -> 870.6095828 | O45: =I45*C45 -> 886.8201437 | P45: =J45*D45 -> 903.3325418 | Q45: =K45*E45 -> 920.1523971 | R45: =L45*F45 -> 937.2854345
A46: ='Table of fees'!B43 -> Tariff change | B46: ='Unsmoothed Prices Real $2018-19'!B46 -> 48.47262574 | C46: =B46*(1+B$2) -> 49.37517548 | D46: =C46*(1+B$2) -> 50.2945305 | E46: =D46*(1+B$2) -> 51.23100371 | F46: =E46*(1+B$2) -> 52.18491385 | H46: =IFERROR(VLOOKUP($A46,'Volumes - Report Summary'!$A:$I,MATCH(H$5,'Volumes - Report Summary'!$A$6:$I$6,0),FALSE),0) -> 1 | I46: =IFERROR(VLOOKUP($A46,'Volumes - Report Summary'!$A:$I,MATCH(I$5,'Volumes - Report Summary'!$A$6:$I$6,0),FALSE),0) -> 1 | J46: =IFERROR(VLOOKUP($A46,'Volumes - Report Summary'!$A:$I,MATCH(J$5,'Volumes - Report Summary'!$A$6:$I$6,0),FALSE),0) -> 1 | K46: =IFERROR(VLOOKUP($A46,'Volumes - Report Summary'!$A:$I,MATCH(K$5,'Volumes - Report Summary'!$A$6:$I$6,0),FALSE),0) -> 1 | L46: =IFERROR(VLOOKUP($A46,'Volumes - Report Summary'!$A:$I,MATCH(L$5,'Volumes - Report Summary'!$A$6:$I$6,0),FALSE),0) -> 1 | N46: =H46*B46 -> 48.47262574 | O46: =I46*C46 -> 49.37517548 | P46: =J46*D46 -> 50.2945305 | Q46: =K46*E46 -> 51.23100371 | R46: =L46*F46 -> 52.18491385
A47: ='Table of fees'!B44 -> Emergency maintenance contestable meters | B47: ='Unsmoothed Prices Real $2018-19'!B47 -> 63.14747641 | C47: =B47*(1+B$2) -> 64.32326867 | D47: =C47*(1+B$2) -> 65.52095394 | E47: =D47*(1+B$2) -> 66.74093984 | F47: =E47*(1+B$2) -> 67.98364161 | H47: =IFERROR(VLOOKUP($A47,'Volumes - Report Summary'!$A:$I,MATCH(H$5,'Volumes - Report Summary'!$A$6:$I$6,0),FALSE),0) -> 1 | I47: =IFERROR(VLOOKUP($A47,'Volumes - Report Summary'!$A:$I,MATCH(I$5,'Volumes - Report Summary'!$A$6:$I$6,0),FALSE),0) -> 1 | J47: =IFERROR(VLOOKUP($A47,'Volumes - Report Summary'!$A:$I,MATCH(J$5,'Volumes - Report Summary'!$A$6:$I$6,0),FALSE),0) -> 1 | K47: =IFERROR(VLOOKUP($A47,'Volumes - Report Summary'!$A:$I,MATCH(K$5,'Volumes - Report Summary'!$A$6:$I$6,0),FALSE),0) -> 1 | L47: =IFERROR(VLOOKUP($A47,'Volumes - Report Summary'!$A:$I,MATCH(L$5,'Volumes - Report Summary'!$A$6:$I$6,0),FALSE),0) -> 1 | N47: 63.14747641 | O47: 64.32326867 | P47: 65.52095394 | Q47: 66.74093984 | R47: 67.98364161
A48: ='Table of fees'!B45 -> Emergency maintenance contestable meters - after hours | B48: ='Unsmoothed Prices Real $2018-19'!B48 -> 366.7735267 | C48: =B48*(1+B$2) -> 373.6027699 | D48: =C48*(1+B$2) -> 380.5591722 | E48: =D48*(1+B$2) -> 387.6451011 | F48: =E48*(1+B$2) -> 394.8629685 | H48: =IFERROR(VLOOKUP($A48,'Volumes - Report Summary'!$A:$I,MATCH(H$5,'Volumes - Report Summary'!$A$6:$I$6,0),FALSE),0) -> 1 | I48: =IFERROR(VLOOKUP($A48,'Volumes - Report Summary'!$A:$I,MATCH(I$5,'Volumes - Report Summary'!$A$6:$I$6,0),FALSE),0) -> 1 | J48: =IFERROR(VLOOKUP($A48,'Volumes - Report Summary'!$A:$I,MATCH(J$5,'Volumes - Report Summary'!$A$6:$I$6,0),FALSE),0) -> 1 | K48: =IFERROR(VLOOKUP($A48,'Volumes - Report Summary'!$A:$I,MATCH(K$5,'Volumes - Report Summary'!$A$6:$I$6,0),FALSE),0) -> 1 | L48: =IFERROR(VLOOKUP($A48,'Volumes - Report Summary'!$A:$I,MATCH(L$5,'Volumes - Report Summary'!$A$6:$I$6,0),FALSE),0) -> 1 | N48: =H48*B48 -> 366.7735267 | O48: =I48*C48 -> 373.6027699 | P48: =J48*D48 -> 380.5591722 | Q48: =K48*E48 -> 387.6451011 | R48: =L48*F48 -> 394.8629685
A49: ='Table of fees'!B46 -> Meter recovery and disposal | B49: ='Unsmoothed Prices Real $2018-19'!B49 -> 91.31384163 | C49: =B49*(1+B$2) -> 93.01408549 | D49: =C49*(1+B$2) -> 94.74598752 | E49: =D49*(1+B$2) -> 96.51013718 | F49: =E49*(1+B$2) -> 98.30713493 | H49: =IFERROR(VLOOKUP($A49,'Volumes - Report Summary'!$A:$I,MATCH(H$5,'Volumes - Report Summary'!$A$6:$I$6,0),FALSE),0) -> 1 | I49: =IFERROR(VLOOKUP($A49,'Volumes - Report Summary'!$A:$I,MATCH(I$5,'Volumes - Report Summary'!$A$6:$I$6,0),FALSE),0) -> 1 | J49: =IFERROR(VLOOKUP($A49,'Volumes - Report Summary'!$A:$I,MATCH(J$5,'Volumes - Report Summary'!$A$6:$I$6,0),FALSE),0) -> 1 | K49: =IFERROR(VLOOKUP($A49,'Volumes - Report Summary'!$A:$I,MATCH(K$5,'Volumes - Report Summary'!$A$6:$I$6,0),FALSE),0) -> 1 | L49: =IFERROR(VLOOKUP($A49,'Volumes - Report Summary'!$A:$I,MATCH(L$5,'Volumes - Report Summary'!$A$6:$I$6,0),FALSE),0) -> 1 | N49: 91.31384163 | O49: 93.01408549 | P49: 94.74598752 | Q49: 96.51013718 | R49: 98.30713493
A50: ='Table of fees'!A47 -> Basic Connection establishment charges (including temporary builders supply)
A51: ='Table of fees'!B48 -> Creation of a NMI | B51: ='Unsmoothed Prices Real $2018-19'!B51 -> 42.1484953 | C51: =B51*(1+B$2) -> 42.93329111 | D51: =C51*(1+B$2) -> 43.73269964 | E51: =D51*(1+B$2) -> 44.54699299 | F51: =E51*(1+B$2) -> 45.37644831 | H51: =IFERROR(VLOOKUP($A51,'Volumes - Report Summary'!$A:$I,MATCH(H$5,'Volumes - Report Summary'!$A$6:$I$6,0),FALSE),0) -> 1 | I51: =IFERROR(VLOOKUP($A51,'Volumes - Report Summary'!$A:$I,MATCH(I$5,'Volumes - Report Summary'!$A$6:$I$6,0),FALSE),0) -> 1 | J51: =IFERROR(VLOOKUP($A51,'Volumes - Report Summary'!$A:$I,MATCH(J$5,'Volumes - Report Summary'!$A$6:$I$6,0),FALSE),0) -> 1 | K51: =IFERROR(VLOOKUP($A51,'Volumes - Report Summary'!$A:$I,MATCH(K$5,'Volumes - Report Summary'!$A$6:$I$6,0),FALSE),0) -> 1 | L51: =IFERROR(VLOOKUP($A51,'Volumes - Report Summary'!$A:$I,MATCH(L$5,'Volumes - Report Summary'!$A$6:$I$6,0),FALSE),0) -> 1 | N51: =H51*B51 -> 42.1484953 | O51: =I51*C51 -> 42.93329111 | P51: =J51*D51 -> 43.73269964 | Q51: =K51*E51 -> 44.54699299 | R51: =L51*F51 -> 45.37644831
A52: ='Table of fees'!B49 -> Overhead service, single span - single phase | B52: ='Unsmoothed Prices Real $2018-19'!B52 -> 537.1119906 | C52: 547.1128989 | D52: 557.300022 | E52: 567.6768271 | F52: 578.2468461 | H52: =IFERROR(VLOOKUP($A52,'Volumes - Report Summary'!$A:$I,MATCH(H$5,'Volumes - Report Summary'!$A$6:$I$6,0),FALSE),0) -> 319 | I52: =IFERROR(VLOOKUP($A52,'Volumes - Report Summary'!$A:$I,MATCH(I$5,'Volumes - Report Summary'!$A$6:$I$6,0),FALSE),0) -> 319 | J52: =IFERROR(VLOOKUP($A52,'Volumes - Report Summary'!$A:$I,MATCH(J$5,'Volumes - Report Summary'!$A$6:$I$6,0),FALSE),0) -> 319 | K52: =IFERROR(VLOOKUP($A52,'Volumes - Report Summary'!$A:$I,MATCH(K$5,'Volumes - Report Summary'!$A$6:$I$6,0),FALSE),0) -> 319 | L52: =IFERROR(VLOOKUP($A52,'Volumes - Report Summary'!$A:$I,MATCH(L$5,'Volumes - Report Summary'!$A$6:$I$6,0),FALSE),0) -> 319 | N52: =H52*B52 -> 171338.725 | O52: 174529.0148 | P52: 177778.707 | Q52: 181088.9079 | R52: 184460.7439
A53: ='Table of fees'!B50 -> Overhead service, single span - multi phase | B53: ='Unsmoothed Prices Real $2018-19'!B53 -> 754.830928 | C53: 768.8857156 | D53: 783.2022003 | E53: 797.7852548 | F53: 812.6398426 | H53: =IFERROR(VLOOKUP($A53,'Volumes - Report Summary'!$A:$I,MATCH(H$5,'Volumes - Report Summary'!$A$6:$I$6,0),FALSE),0) -> 110 | I53: =IFERROR(VLOOKUP($A53,'Volumes - Report Summary'!$A:$I,MATCH(I$5,'Volumes - Report Summary'!$A$6:$I$6,0),FALSE),0) -> 110 | J53: =IFERROR(VLOOKUP($A53,'Volumes - Report Summary'!$A:$I,MATCH(J$5,'Volumes - Report Summary'!$A$6:$I$6,0),FALSE),0) -> 110 | K53: =IFERROR(VLOOKUP($A53,'Volumes - Report Summary'!$A:$I,MATCH(K$5,'Volumes - Report Summary'!$A$6:$I$6,0),FALSE),0) -> 110 | L53: =IFERROR(VLOOKUP($A53,'Volumes - Report Summary'!$A:$I,MATCH(L$5,'Volumes - Report Summary'!$A$6:$I$6,0),FALSE),0) -> 110 | N53: 83031.40208 | O53: 84577.42872 | P53: 86152.24203 | Q53: 87756.37803 | R53: 89390.38269
A54: ='Table of fees'!B51 -> Underground service in turret/cabinet - single phase | B54: ='Unsmoothed Prices Real $2018-19'!B54 -> 191.1256984 | C54: 194.6844173 | D54: 198.3093988 | E54: 202.0018766 | F54: 205.7631076 | H54: =IFERROR(VLOOKUP($A54,'Volumes - Report Summary'!$A:$I,MATCH(H$5,'Volumes - Report Summary'!$A$6:$I$6,0),FALSE),0) -> 1669 | I54: =IFERROR(VLOOKUP($A54,'Volumes - Report Summary'!$A:$I,MATCH(I$5,'Volumes - Report Summary'!$A$6:$I$6,0),FALSE),0) -> 1669 | J54: =IFERROR(VLOOKUP($A54,'Volumes - Report Summary'!$A:$I,MATCH(J$5,'Volumes - Report Summary'!$A$6:$I$6,0),FALSE),0) -> 1669 | K54: =IFERROR(VLOOKUP($A54,'Volumes - Report Summary'!$A:$I,MATCH(K$5,'Volumes - Report Summary'!$A$6:$I$6,0),FALSE),0) -> 1669 | L54: =IFERROR(VLOOKUP($A54,'Volumes - Report Summary'!$A:$I,MATCH(L$5,'Volumes - Report Summary'!$A$6:$I$6,0),FALSE),0) -> 1669 | N54: 318988.7906 | O54: 324928.2925 | P54: 330978.3866 | Q54: 337141.1321 | R54: 343418.6266
A55: ='Table of fees'!B52 -> Underground service in turret/cabinet - multi phase | B55: ='Unsmoothed Prices Real $2018-19'!B55 -> 232.5669322 | C55: 236.8972778 | D55: 241.3082536 | E55: 245.8013608 | F55: 250.3781286 | H55: =IFERROR(VLOOKUP($A55,'Volumes - Report Summary'!$A:$I,MATCH(H$5,'Volumes - Report Summary'!$A$6:$I$6,0),FALSE),0) -> 332 | I55: =IFERROR(VLOOKUP($A55,'Volumes - Report Summary'!$A:$I,MATCH(I$5,'Volumes - Report Summary'!$A$6:$I$6,0),FALSE),0) -> 332 | J55: =IFERROR(VLOOKUP($A55,'Volumes - Report Summary'!$A:$I,MATCH(J$5,'Volumes - Report Summary'!$A$6:$I$6,0),FALSE),0) -> 332 | K55: =IFERROR(VLOOKUP($A55,'Volumes - Report Summary'!$A:$I,MATCH(K$5,'Volumes - Report Summary'!$A$6:$I$6,0),FALSE),0) -> 332 | L55: =IFERROR(VLOOKUP($A55,'Volumes - Report Summary'!$A:$I,MATCH(L$5,'Volumes - Report Summary'!$A$6:$I$6,0),FALSE),0) -> 332 | N55: 77212.22149 | O55: 78649.89625 | P55: 80114.3402 | Q55: 81606.05177 | R55: 83125.5387
A56: ='Table of fees'!B53 -> Underground service with pole mounted fuse - single phase | B56: ='Unsmoothed Prices Real $2018-19'!B56 -> 407.0170229 | C56: 414.5955913 | D56: 422.315271 | E56: 430.1786894 | F56: 438.188523 | H56: =IFERROR(VLOOKUP($A56,'Volumes - Report Summary'!$A:$I,MATCH(H$5,'Volumes - Report Summary'!$A$6:$I$6,0),FALSE),0) -> 379 | I56: =IFERROR(VLOOKUP($A56,'Volumes - Report Summary'!$A:$I,MATCH(I$5,'Volumes - Report Summary'!$A$6:$I$6,0),FALSE),0) -> 379 | J56: =IFERROR(VLOOKUP($A56,'Volumes - Report Summary'!$A:$I,MATCH(J$5,'Volumes - Report Summary'!$A$6:$I$6,0),FALSE),0) -> 379 | K56: =IFERROR(VLOOKUP($A56,'Volumes - Report Summary'!$A:$I,MATCH(K$5,'Volumes - Report Summary'!$A$6:$I$6,0),FALSE),0) -> 379 | L56: =IFERROR(VLOOKUP($A56,'Volumes - Report Summary'!$A:$I,MATCH(L$5,'Volumes - Report Summary'!$A$6:$I$6,0),FALSE),0) -> 379 | N56: 154259.4517 | O56: 157131.7291 | P56: 160057.4877 | Q56: 163037.7233 | R56: 166073.4502
A57: ='Table of fees'!B54 -> Underground service with pole mounted fuse - multi phase | B57: ='Unsmoothed Prices Real $2018-19'!B57 -> 505.4461469 | C57: 514.8574441 | D57: 524.4439777 | E57: 534.2090104 | F57: 544.1558659 | H57: =IFERROR(VLOOKUP($A57,'Volumes - Report Summary'!$A:$I,MATCH(H$5,'Volumes - Report Summary'!$A$6:$I$6,0),FALSE),0) -> 151 | I57: =IFERROR(VLOOKUP($A57,'Volumes - Report Summary'!$A:$I,MATCH(I$5,'Volumes - Report Summary'!$A$6:$I$6,0),FALSE),0) -> 151 | J57: =IFERROR(VLOOKUP($A57,'Volumes - Report Summary'!$A:$I,MATCH(J$5,'Volumes - Report Summary'!$A$6:$I$6,0),FALSE),0) -> 151 | K57: =IFERROR(VLOOKUP($A57,'Volumes - Report Summary'!$A:$I,MATCH(K$5,'Volumes - Report Summary'!$A$6:$I$6,0),FALSE),0) -> 151 | L57: =IFERROR(VLOOKUP($A57,'Volumes - Report Summary'!$A:$I,MATCH(L$5,'Volumes - Report Summary'!$A$6:$I$6,0),FALSE),0) -> 151 | N57: 76322.36818 | O57: 77743.47406 | P57: 79191.04063 | Q57: 80665.56057 | R57: 82167.53575
A58: ='Table of fees'!B55 -> Basic connection – after hours | B58: ='Unsmoothed Prices Real $2018-19'!B58 -> 956.1483968 | C58: 973.9516719 | D58: 992.08644 | E58: 1010.558874 | F58: 1029.37526 | H58: =IFERROR(VLOOKUP($A58,'Volumes - Report Summary'!$A:$I,MATCH(H$5,'Volumes - Report Summary'!$A$6:$I$6,0),FALSE),0) -> 1 | I58: =IFERROR(VLOOKUP($A58,'Volumes - Report Summary'!$A:$I,MATCH(I$5,'Volumes - Report Summary'!$A$6:$I$6,0),FALSE),0) -> 1 | J58: =IFERROR(VLOOKUP($A58,'Volumes - Report Summary'!$A:$I,MATCH(J$5,'Volumes - Report Summary'!$A$6:$I$6,0),FALSE),0) -> 1 | K58: =IFERROR(VLOOKUP($A58,'Volumes - Report Summary'!$A:$I,MATCH(K$5,'Volumes - Report Summary'!$A$6:$I$6,0),FALSE),0) -> 1 | L58: =IFERROR(VLOOKUP($A58,'Volumes - Report Summary'!$A:$I,MATCH(L$5,'Volumes - Report Summary'!$A$6:$I$6,0),FALSE),0) -> 1 | N58: 956.1483968 | O58: 973.9516719 | P58: 992.08644 | Q58: 1010.558874 | R58: 1029.37526
A59: ='Table of fees'!B56 -> Connection establishment - wasted visit | B59: ='Unsmoothed Prices Real $2018-19'!B59 -> 166.8831483 | C59: 169.9904762 | D59: 173.1556619 | E59: 176.3797827 | F59: 179.6639358 | H59: =IFERROR(VLOOKUP($A59,'Volumes - Report Summary'!$A:$I,MATCH(H$5,'Volumes - Report Summary'!$A$6:$I$6,0),FALSE),0) -> 1 | I59: =IFERROR(VLOOKUP($A59,'Volumes - Report Summary'!$A:$I,MATCH(I$5,'Volumes - Report Summary'!$A$6:$I$6,0),FALSE),0) -> 1 | J59: =IFERROR(VLOOKUP($A59,'Volumes - Report Summary'!$A:$I,MATCH(J$5,'Volumes - Report Summary'!$A$6:$I$6,0),FALSE),0) -> 1 | K59: =IFERROR(VLOOKUP($A59,'Volumes - Report Summary'!$A:$I,MATCH(K$5,'Volumes - Report Summary'!$A$6:$I$6,0),FALSE),0) -> 1 | L59: =IFERROR(VLOOKUP($A59,'Volumes - Report Summary'!$A:$I,MATCH(L$5,'Volumes - Report Summary'!$A$6:$I$6,0),FALSE),0) -> 1 | N59: 166.8831483 | O59: 169.9904762 | P59: 173.1556619 | Q59: 176.3797827 | R59: 179.6639358
A60: ='Table of fees'!A57 -> Temporary Disconnection/Reconnection
A61: ='Table of fees'!B58 -> Disconnect/reconnect overhead service for facia repairs - single phase | B61: ='Unsmoothed Prices Real $2018-19'!B61 -> 392.8741126 | C61: =B61*(1+B$2) -> 400.1893431 | D61: =C61*(1+B$2) -> 407.6407816 | E61: =D61*(1+B$2) -> 415.2309642 | F61: =E61*(1+B$2) -> 422.9624744 | H61: =IFERROR(VLOOKUP($A61,'Volumes - Report Summary'!$A:$I,MATCH(H$5,'Volumes - Report Summary'!$A$6:$I$6,0),FALSE),0) -> 20 | I61: =IFERROR(VLOOKUP($A61,'Volumes - Report Summary'!$A:$I,MATCH(I$5,'Volumes - Report Summary'!$A$6:$I$6,0),FALSE),0) -> 20 | J61: =IFERROR(VLOOKUP($A61,'Volumes - Report Summary'!$A:$I,MATCH(J$5,'Volumes - Report Summary'!$A$6:$I$6,0),FALSE),0) -> 20 | K61: =IFERROR(VLOOKUP($A61,'Volumes - Report Summary'!$A:$I,MATCH(K$5,'Volumes - Report Summary'!$A$6:$I$6,0),FALSE),0) -> 20 | L61: =IFERROR(VLOOKUP($A61,'Volumes - Report Summary'!$A:$I,MATCH(L$5,'Volumes - Report Summary'!$A$6:$I$6,0),FALSE),0) -> 20 | N61: =H61*B61 -> 7857.482253 | O61: 8003.786862 | P61: 8152.815632 | Q61: 8304.619284 | R61: 8459.249488
A62: ='Table of fees'!B59 -> Disconnect/reconnect overhead service for facia repairs - multi phase | B62: ='Unsmoothed Prices Real $2018-19'!B62 -> 474.2406673 | C62: =B62*(1+B$2) -> 483.0709253 | D62: =C62*(1+B$2) -> 492.0656008 | E62: =D62*(1+B$2) -> 501.2277551 | F62: =E62*(1+B$2) -> 510.5605069 | H62: =IFERROR(VLOOKUP($A62,'Volumes - Report Summary'!$A:$I,MATCH(H$5,'Volumes - Report Summary'!$A$6:$I$6,0),FALSE),0) -> 20 | I62: =IFERROR(VLOOKUP($A62,'Volumes - Report Summary'!$A:$I,MATCH(I$5,'Volumes - Report Summary'!$A$6:$I$6,0),FALSE),0) -> 20 | J62: =IFERROR(VLOOKUP($A62,'Volumes - Report Summary'!$A:$I,MATCH(J$5,'Volumes - Report Summary'!$A$6:$I$6,0),FALSE),0) -> 20 | K62: =IFERROR(VLOOKUP($A62,'Volumes - Report Summary'!$A:$I,MATCH(K$5,'Volumes - Report Summary'!$A$6:$I$6,0),FALSE),0) -> 20 | L62: =IFERROR(VLOOKUP($A62,'Volumes - Report Summary'!$A:$I,MATCH(L$5,'Volumes - Report Summary'!$A$6:$I$6,0),FALSE),0) -> 20 | N62: 9484.813345 | O62: 9661.418505 | P62: 9841.312015 | Q62: 10024.5551 | R62: 10211.21014
A63: ='Table of fees'!B60 -> Temporary disconnect/reconnect – retailer requested outage | B63: ='Unsmoothed Prices Real $2018-19'!B63 -> 378.6827229 | C63: =B63*(1+B$2) -> 385.7337128 | D63: =C63*(1+B$2) -> 392.9159906 | E63: =D63*(1+B$2) -> 400.2320008 | F63: =E63*(1+B$2) -> 407.6842336 | H63: =IFERROR(VLOOKUP($A63,'Volumes - Report Summary'!$A:$I,MATCH(H$5,'Volumes - Report Summary'!$A$6:$I$6,0),FALSE),0) -> 1 | I63: =IFERROR(VLOOKUP($A63,'Volumes - Report Summary'!$A:$I,MATCH(I$5,'Volumes - Report Summary'!$A$6:$I$6,0),FALSE),0) -> 1 | J63: =IFERROR(VLOOKUP($A63,'Volumes - Report Summary'!$A:$I,MATCH(J$5,'Volumes - Report Summary'!$A$6:$I$6,0),FALSE),0) -> 1 | K63: =IFERROR(VLOOKUP($A63,'Volumes - Report Summary'!$A:$I,MATCH(K$5,'Volumes - Report Summary'!$A$6:$I$6,0),FALSE),0) -> 1 | L63: =IFERROR(VLOOKUP($A63,'Volumes - Report Summary'!$A:$I,MATCH(L$5,'Volumes - Report Summary'!$A$6:$I$6,0),FALSE),0) -> 1 | N63: =H63*B63 -> 378.6827229 | O63: =I63*C63 -> 385.7337128 | P63: =J63*D63 -> 392.9159906 | Q63: =K63*E63 -> 400.2320008 | R63: =L63*F63 -> 407.6842336
A64: ='Table of fees'!B61 -> Temporary disconnect/reconnect – after hours | B64: ='Unsmoothed Prices Real $2018-19'!B64 -> 812.5759277 | C64: =B64*(1+B$2) -> 827.7059146 | D64: =C64*(1+B$2) -> 843.1176186 | E64: =D64*(1+B$2) -> 858.8162852 | F64: =E64*(1+B$2) -> 874.8072575 | H64: =IFERROR(VLOOKUP($A64,'Volumes - Report Summary'!$A:$I,MATCH(H$5,'Volumes - Report Summary'!$A$6:$I$6,0),FALSE),0) -> 1 | I64: =IFERROR(VLOOKUP($A64,'Volumes - Report Summary'!$A:$I,MATCH(I$5,'Volumes - Report Summary'!$A$6:$I$6,0),FALSE),0) -> 1 | J64: =IFERROR(VLOOKUP($A64,'Volumes - Report Summary'!$A:$I,MATCH(J$5,'Volumes - Report Summary'!$A$6:$I$6,0),FALSE),0) -> 1 | K64: =IFERROR(VLOOKUP($A64,'Volumes - Report Summary'!$A:$I,MATCH(K$5,'Volumes - Report Summary'!$A$6:$I$6,0),FALSE),0) -> 1 | L64: =IFERROR(VLOOKUP($A64,'Volumes - Report Summary'!$A:$I,MATCH(L$5,'Volumes - Report Summary'!$A$6:$I$6,0),FALSE),0) -> 1 | N64: 812.5759277 | O64: 827.7059146 | P64: 843.1176186 | Q64: 858.8162852 | R64: 874.8072575
A65: ='Table of fees'!B62 -> Temporary disconnect/reconnect – wasted visit | B65: ='Unsmoothed Prices Real $2018-19'!B65 -> 189.4577261 | C65: =B65*(1+B$2) -> 192.9853877 | D65: =C65*(1+B$2) -> 196.5787336 | E65: =D65*(1+B$2) -> 200.2389869 | F65: =E65*(1+B$2) -> 203.9673932 | H65: =IFERROR(VLOOKUP($A65,'Volumes - Report Summary'!$A:$I,MATCH(H$5,'Volumes - Report Summary'!$A$6:$I$6,0),FALSE),0) -> 1 | I65: =IFERROR(VLOOKUP($A65,'Volumes - Report Summary'!$A:$I,MATCH(I$5,'Volumes - Report Summary'!$A$6:$I$6,0),FALSE),0) -> 1 | J65: =IFERROR(VLOOKUP($A65,'Volumes - Report Summary'!$A:$I,MATCH(J$5,'Volumes - Report Summary'!$A$6:$I$6,0),FALSE),0) -> 1 | K65: =IFERROR(VLOOKUP($A65,'Volumes - Report Summary'!$A:$I,MATCH(K$5,'Volumes - Report Summary'!$A$6:$I$6,0),FALSE),0) -> 1 | L65: =IFERROR(VLOOKUP($A65,'Volumes - Report Summary'!$A:$I,MATCH(L$5,'Volumes - Report Summary'!$A$6:$I$6,0),FALSE),0) -> 1 | N65: 189.4577261 | O65: 192.9853877 | P65: 196.5787336 | Q65: 200.2389869 | R65: 203.9673932
A66: ='Table of fees'!A63 -> Basic connection alteration
A67: ='Table of fees'!B64 -> Connection alteration – overhead single phase | B67: ='Unsmoothed Prices Real $2018-19'!B67 -> 317.1248825 | C67: =B67*(1+B$2) -> 323.0296788 | D67: =C67*(1+B$2) -> 329.0444211 | E67: =D67*(1+B$2) -> 335.1711567 | F67: =E67*(1+B$2) -> 341.4119706 | H67: =IFERROR(VLOOKUP($A67,'Volumes - Report Summary'!$A:$I,MATCH(H$5,'Volumes - Report Summary'!$A$6:$I$6,0),FALSE),0) -> 712 | I67: =IFERROR(VLOOKUP($A67,'Volumes - Report Summary'!$A:$I,MATCH(I$5,'Volumes - Report Summary'!$A$6:$I$6,0),FALSE),0) -> 712 | J67: =IFERROR(VLOOKUP($A67,'Volumes - Report Summary'!$A:$I,MATCH(J$5,'Volumes - Report Summary'!$A$6:$I$6,0),FALSE),0) -> 712 | K67: =IFERROR(VLOOKUP($A67,'Volumes - Report Summary'!$A:$I,MATCH(K$5,'Volumes - Report Summary'!$A$6:$I$6,0),FALSE),0) -> 712 | L67: =IFERROR(VLOOKUP($A67,'Volumes - Report Summary'!$A:$I,MATCH(L$5,'Volumes - Report Summary'!$A$6:$I$6,0),FALSE),0) -> 712 | N67: =H67*B67 -> 225792.9164 | O67: =I67*C67 -> 229997.1313 | P67: =J67*D67 -> 234279.6279 | Q67: =K67*E67 -> 238641.8635 | R67: =L67*F67 -> 243085.3231
A68: ='Table of fees'!B65 -> Connection alteration – overhead multi phase | B68: ='Unsmoothed Prices Real $2018-19'!B68 -> 398.4914372 | C68: 405.911261 | D68: 413.4692403 | E68: 421.1679476 | F68: 429.0100031 | H68: =IFERROR(VLOOKUP($A68,'Volumes - Report Summary'!$A:$I,MATCH(H$5,'Volumes - Report Summary'!$A$6:$I$6,0),FALSE),0) -> 154 | I68: =IFERROR(VLOOKUP($A68,'Volumes - Report Summary'!$A:$I,MATCH(I$5,'Volumes - Report Summary'!$A$6:$I$6,0),FALSE),0) -> 154 | J68: =IFERROR(VLOOKUP($A68,'Volumes - Report Summary'!$A:$I,MATCH(J$5,'Volumes - Report Summary'!$A$6:$I$6,0),FALSE),0) -> 154 | K68: =IFERROR(VLOOKUP($A68,'Volumes - Report Summary'!$A:$I,MATCH(K$5,'Volumes - Report Summary'!$A$6:$I$6,0),FALSE),0) -> 154 | L68: =IFERROR(VLOOKUP($A68,'Volumes - Report Summary'!$A:$I,MATCH(L$5,'Volumes - Report Summary'!$A$6:$I$6,0),FALSE),0) -> 154 | N68: 61367.68132 | O68: 62510.33419 | P68: 63674.26301 | Q68: 64859.86393 | R68: 66067.54048
A69: ='Table of fees'!B66 -> Connection of new consumer mains to an existing installation – underground single phase to turret | B69: ='Unsmoothed Prices Real $2018-19'!B69 -> 231.3537217 | C69: 235.6614777 | D69: 240.0494431 | E69: 244.5191115 | F69: 249.0720041 | H69: =IFERROR(VLOOKUP($A69,'Volumes - Report Summary'!$A:$I,MATCH(H$5,'Volumes - Report Summary'!$A$6:$I$6,0),FALSE),0) -> 39 | I69: =IFERROR(VLOOKUP($A69,'Volumes - Report Summary'!$A:$I,MATCH(I$5,'Volumes - Report Summary'!$A$6:$I$6,0),FALSE),0) -> 39 | J69: =IFERROR(VLOOKUP($A69,'Volumes - Report Summary'!$A:$I,MATCH(J$5,'Volumes - Report Summary'!$A$6:$I$6,0),FALSE),0) -> 39 | K69: =IFERROR(VLOOKUP($A69,'Volumes - Report Summary'!$A:$I,MATCH(K$5,'Volumes - Report Summary'!$A$6:$I$6,0),FALSE),0) -> 39 | L69: =IFERROR(VLOOKUP($A69,'Volumes - Report Summary'!$A:$I,MATCH(L$5,'Volumes - Report Summary'!$A$6:$I$6,0),FALSE),0) -> 39 | N69: 9022.795148 | O69: 9190.797629 | P69: 9361.928281 | Q69: 9536.245348 | R69: 9713.808161
A70: ='Table of fees'!B67 -> Connection of new consumer mains to an existing installation – underground single phase to pole | B70: ='Unsmoothed Prices Real $2018-19'!B70 -> 357.8081599 | C70: 364.4704699 | D70: 371.2568307 | E70: 378.1695521 | F70: 385.2109869 | H70: =IFERROR(VLOOKUP($A70,'Volumes - Report Summary'!$A:$I,MATCH(H$5,'Volumes - Report Summary'!$A$6:$I$6,0),FALSE),0) -> 218 | I70: =IFERROR(VLOOKUP($A70,'Volumes - Report Summary'!$A:$I,MATCH(I$5,'Volumes - Report Summary'!$A$6:$I$6,0),FALSE),0) -> 218 | J70: =IFERROR(VLOOKUP($A70,'Volumes - Report Summary'!$A:$I,MATCH(J$5,'Volumes - Report Summary'!$A$6:$I$6,0),FALSE),0) -> 218 | K70: =IFERROR(VLOOKUP($A70,'Volumes - Report Summary'!$A:$I,MATCH(K$5,'Volumes - Report Summary'!$A$6:$I$6,0),FALSE),0) -> 218 | L70: =IFERROR(VLOOKUP($A70,'Volumes - Report Summary'!$A:$I,MATCH(L$5,'Volumes - Report Summary'!$A$6:$I$6,0),FALSE),0) -> 218 | N70: =H70*B70 -> 78002.17885 | O70: =I70*C70 -> 79454.56244 | P70: =J70*D70 -> 80933.9891 | Q70: =K70*E70 -> 82440.96236 | R70: =L70*F70 -> 83975.99514
A71: ='Table of fees'!B68 -> Connection of new consumer mains to an existing installation – underground multi phase to turret | B71: ='Unsmoothed Prices Real $2018-19'!B71 -> 276.5904369 | C71: 281.7404906 | D71: 286.9864372 | E71: 292.3300622 | F71: 297.7731844 | H71: =IFERROR(VLOOKUP($A71,'Volumes - Report Summary'!$A:$I,MATCH(H$5,'Volumes - Report Summary'!$A$6:$I$6,0),FALSE),0) -> 39 | I71: =IFERROR(VLOOKUP($A71,'Volumes - Report Summary'!$A:$I,MATCH(I$5,'Volumes - Report Summary'!$A$6:$I$6,0),FALSE),0) -> 39 | J71: =IFERROR(VLOOKUP($A71,'Volumes - Report Summary'!$A:$I,MATCH(J$5,'Volumes - Report Summary'!$A$6:$I$6,0),FALSE),0) -> 39 | K71: =IFERROR(VLOOKUP($A71,'Volumes - Report Summary'!$A:$I,MATCH(K$5,'Volumes - Report Summary'!$A$6:$I$6,0),FALSE),0) -> 39 | L71: =IFERROR(VLOOKUP($A71,'Volumes - Report Summary'!$A:$I,MATCH(L$5,'Volumes - Report Summary'!$A$6:$I$6,0),FALSE),0) -> 39 | N71: 10787.02704 | O71: 10987.87913 | P71: 11192.47105 | Q71: 11400.87243 | R71: 11613.15419
A72: ='Table of fees'!B69 -> Connection of new consumer mains to an existing installation – underground multi phase to pole | B72: ='Unsmoothed Prices Real $2018-19'!B72 -> 439.1747145 | C72: 447.3520521 | D72: 455.6816499 | E72: 464.1663431 | F72: 472.8090193 | H72: =IFERROR(VLOOKUP($A72,'Volumes - Report Summary'!$A:$I,MATCH(H$5,'Volumes - Report Summary'!$A$6:$I$6,0),FALSE),0) -> 177 | I72: =IFERROR(VLOOKUP($A72,'Volumes - Report Summary'!$A:$I,MATCH(I$5,'Volumes - Report Summary'!$A$6:$I$6,0),FALSE),0) -> 177 | J72: =IFERROR(VLOOKUP($A72,'Volumes - Report Summary'!$A:$I,MATCH(J$5,'Volumes - Report Summary'!$A$6:$I$6,0),FALSE),0) -> 177 | K72: =IFERROR(VLOOKUP($A72,'Volumes - Report Summary'!$A:$I,MATCH(K$5,'Volumes - Report Summary'!$A$6:$I$6,0),FALSE),0) -> 177 | L72: =IFERROR(VLOOKUP($A72,'Volumes - Report Summary'!$A:$I,MATCH(L$5,'Volumes - Report Summary'!$A$6:$I$6,0),FALSE),0) -> 177 | N72: =H72*B72 -> 77733.92446 | O72: =I72*C72 -> 79181.31322 | P72: =J72*D72 -> 80655.65203 | Q72: =K72*E72 -> 82157.44272 | R72: =L72*F72 -> 83687.19642
A73: ='Table of fees'!B70 -> Augment single phase overhead service to multi phase supply | B73: ='Unsmoothed Prices Real $2018-19'!B73 -> 815.855844 | C73: 831.0469022 | D73: 846.5208147 | E73: 862.282848 | F73: 878.338367 | H73: =IFERROR(VLOOKUP($A73,'Volumes - Report Summary'!$A:$I,MATCH(H$5,'Volumes - Report Summary'!$A$6:$I$6,0),FALSE),0) -> 6 | I73: =IFERROR(VLOOKUP($A73,'Volumes - Report Summary'!$A:$I,MATCH(I$5,'Volumes - Report Summary'!$A$6:$I$6,0),FALSE),0) -> 6 | J73: =IFERROR(VLOOKUP($A73,'Volumes - Report Summary'!$A:$I,MATCH(J$5,'Volumes - Report Summary'!$A$6:$I$6,0),FALSE),0) -> 6 | K73: =IFERROR(VLOOKUP($A73,'Volumes - Report Summary'!$A:$I,MATCH(K$5,'Volumes - Report Summary'!$A$6:$I$6,0),FALSE),0) -> 6 | L73: =IFERROR(VLOOKUP($A73,'Volumes - Report Summary'!$A:$I,MATCH(L$5,'Volumes - Report Summary'!$A$6:$I$6,0),FALSE),0) -> 6 | N73: 4895.135064 | O73: 4986.281413 | P73: 5079.124888 | Q73: 5173.697088 | R73: 5270.030202
A74: ='Table of fees'!B71 -> Augment multi phase overhead service to single phase supply | B74: ='Unsmoothed Prices Real $2018-19'!B74 -> 598.1369065 | C74: 609.2740855 | D74: 620.6186364 | E74: 632.1744203 | F74: 643.9453705 | H74: =IFERROR(VLOOKUP($A74,'Volumes - Report Summary'!$A:$I,MATCH(H$5,'Volumes - Report Summary'!$A$6:$I$6,0),FALSE),0) -> 51 | I74: =IFERROR(VLOOKUP($A74,'Volumes - Report Summary'!$A:$I,MATCH(I$5,'Volumes - Report Summary'!$A$6:$I$6,0),FALSE),0) -> 51 | J74: =IFERROR(VLOOKUP($A74,'Volumes - Report Summary'!$A:$I,MATCH(J$5,'Volumes - Report Summary'!$A$6:$I$6,0),FALSE),0) -> 51 | K74: =IFERROR(VLOOKUP($A74,'Volumes - Report Summary'!$A:$I,MATCH(K$5,'Volumes - Report Summary'!$A$6:$I$6,0),FALSE),0) -> 51 | L74: =IFERROR(VLOOKUP($A74,'Volumes - Report Summary'!$A:$I,MATCH(L$5,'Volumes - Report Summary'!$A$6:$I$6,0),FALSE),0) -> 51 | N74: 30504.98223 | O74: 31072.97836 | P74: 31651.55046 | Q74: 32240.89544 | R74: 32841.21389
A75: ='Table of fees'!B72 -> Augment single phase overhead service to underground supply (turret) | B75: ='Unsmoothed Prices Real $2018-19'!B75 -> 379.3807654 | C75: 386.4447527 | D75: 393.6402699 | E75: 400.9697661 | F75: 408.4357358 | H75: =IFERROR(VLOOKUP($A75,'Volumes - Report Summary'!$A:$I,MATCH(H$5,'Volumes - Report Summary'!$A$6:$I$6,0),FALSE),0) -> 62 | I75: =IFERROR(VLOOKUP($A75,'Volumes - Report Summary'!$A:$I,MATCH(I$5,'Volumes - Report Summary'!$A$6:$I$6,0),FALSE),0) -> 62 | J75: =IFERROR(VLOOKUP($A75,'Volumes - Report Summary'!$A:$I,MATCH(J$5,'Volumes - Report Summary'!$A$6:$I$6,0),FALSE),0) -> 62 | K75: =IFERROR(VLOOKUP($A75,'Volumes - Report Summary'!$A:$I,MATCH(K$5,'Volumes - Report Summary'!$A$6:$I$6,0),FALSE),0) -> 62 | L75: =IFERROR(VLOOKUP($A75,'Volumes - Report Summary'!$A:$I,MATCH(L$5,'Volumes - Report Summary'!$A$6:$I$6,0),FALSE),0) -> 62 | N75: 23521.60746 | O75: 23959.57467 | P75: 24405.69673 | Q75: 24860.1255 | R75: 25323.01562
A76: ='Table of fees'!B73 -> Augment multi phase overhead service to underground supply (turret) | B76: ='Unsmoothed Prices Real $2018-19'!B76 -> 460.7473201 | C76: 469.3263349 | D76: 478.0650891 | E76: 486.966557 | F76: 496.0337683 | H76: =IFERROR(VLOOKUP($A76,'Volumes - Report Summary'!$A:$I,MATCH(H$5,'Volumes - Report Summary'!$A$6:$I$6,0),FALSE),0) -> 35 | I76: =IFERROR(VLOOKUP($A76,'Volumes - Report Summary'!$A:$I,MATCH(I$5,'Volumes - Report Summary'!$A$6:$I$6,0),FALSE),0) -> 35 | J76: =IFERROR(VLOOKUP($A76,'Volumes - Report Summary'!$A:$I,MATCH(J$5,'Volumes - Report Summary'!$A$6:$I$6,0),FALSE),0) -> 35 | K76: =IFERROR(VLOOKUP($A76,'Volumes - Report Summary'!$A:$I,MATCH(K$5,'Volumes - Report Summary'!$A$6:$I$6,0),FALSE),0) -> 35 | L76: =IFERROR(VLOOKUP($A76,'Volumes - Report Summary'!$A:$I,MATCH(L$5,'Volumes - Report Summary'!$A$6:$I$6,0),FALSE),0) -> 35 | N76: 16126.1562 | O76: 16426.42172 | P76: 16732.27812 | Q76: 17043.82949 | R76: 17361.18189
A77: ='Table of fees'!B74 -> Augment single phase overhead service to underground supply (pole) | B77: ='Unsmoothed Prices Real $2018-19'!B77 -> 468.0419389 | C77: 476.7567779 | D77: 485.6338854 | E77: 494.6762826 | F77: 503.8870473 | H77: =IFERROR(VLOOKUP($A77,'Volumes - Report Summary'!$A:$I,MATCH(H$5,'Volumes - Report Summary'!$A$6:$I$6,0),FALSE),0) -> 4 | I77: =IFERROR(VLOOKUP($A77,'Volumes - Report Summary'!$A:$I,MATCH(I$5,'Volumes - Report Summary'!$A$6:$I$6,0),FALSE),0) -> 4 | J77: =IFERROR(VLOOKUP($A77,'Volumes - Report Summary'!$A:$I,MATCH(J$5,'Volumes - Report Summary'!$A$6:$I$6,0),FALSE),0) -> 4 | K77: =IFERROR(VLOOKUP($A77,'Volumes - Report Summary'!$A:$I,MATCH(K$5,'Volumes - Report Summary'!$A$6:$I$6,0),FALSE),0) -> 4 | L77: =IFERROR(VLOOKUP($A77,'Volumes - Report Summary'!$A:$I,MATCH(L$5,'Volumes - Report Summary'!$A$6:$I$6,0),FALSE),0) -> 4 | N77: 1872.167756 | O77: 1907.027112 | P77: 1942.535541 | Q77: 1978.70513 | R77: 2015.548189
A78: ='Table of fees'!B75 -> Augment multi phase overhead service to underground supply (pole) | B78: ='Unsmoothed Prices Real $2018-19'!B78 -> 566.4710628 | C78: 577.0186307 | D78: 587.7625921 | E78: 598.7066036 | F78: 609.8543903 | H78: =IFERROR(VLOOKUP($A78,'Volumes - Report Summary'!$A:$I,MATCH(H$5,'Volumes - Report Summary'!$A$6:$I$6,0),FALSE),0) -> 3 | I78: =IFERROR(VLOOKUP($A78,'Volumes - Report Summary'!$A:$I,MATCH(I$5,'Volumes - Report Summary'!$A$6:$I$6,0),FALSE),0) -> 3 | J78: =IFERROR(VLOOKUP($A78,'Volumes - Report Summary'!$A:$I,MATCH(J$5,'Volumes - Report Summary'!$A$6:$I$6,0),FALSE),0) -> 3 | K78: =IFERROR(VLOOKUP($A78,'Volumes - Report Summary'!$A:$I,MATCH(K$5,'Volumes - Report Summary'!$A$6:$I$6,0),FALSE),0) -> 3 | L78: =IFERROR(VLOOKUP($A78,'Volumes - Report Summary'!$A:$I,MATCH(L$5,'Volumes - Report Summary'!$A$6:$I$6,0),FALSE),0) -> 3 | N78: 1699.413189 | O78: 1731.055892 | P78: 1763.287776 | Q78: 1796.119811 | R78: 1829.563171
A79: ='Table of fees'!B76 -> Basic connection alteration – after hours | B79: ='Unsmoothed Prices Real $2018-19'!B79 -> 1016.809514 | C79: 1035.742285 | D79: 1055.027581 | E79: 1074.671965 | F79: 1094.682123 | H79: =IFERROR(VLOOKUP($A79,'Volumes - Report Summary'!$A:$I,MATCH(H$5,'Volumes - Report Summary'!$A$6:$I$6,0),FALSE),0) -> 1 | I79: =IFERROR(VLOOKUP($A79,'Volumes - Report Summary'!$A:$I,MATCH(I$5,'Volumes - Report Summary'!$A$6:$I$6,0),FALSE),0) -> 1 | J79: =IFERROR(VLOOKUP($A79,'Volumes - Report Summary'!$A:$I,MATCH(J$5,'Volumes - Report Summary'!$A$6:$I$6,0),FALSE),0) -> 1 | K79: =IFERROR(VLOOKUP($A79,'Volumes - Report Summary'!$A:$I,MATCH(K$5,'Volumes - Report Summary'!$A$6:$I$6,0),FALSE),0) -> 1 | L79: =IFERROR(VLOOKUP($A79,'Volumes - Report Summary'!$A:$I,MATCH(L$5,'Volumes - Report Summary'!$A$6:$I$6,0),FALSE),0) -> 1 | N79: 1016.809514 | O79: 1035.742285 | P79: 1055.027581 | Q79: 1074.671965 | R79: 1094.682123
A80: ='Table of fees'!B77 -> Basic connection wasted visit | B80: ='Unsmoothed Prices Real $2018-19'!B80 -> 184.9042313 | C80: 188.3471078 | D80: 191.85409 | E80: 195.4263714 | F80: 199.0651679 | H80: =IFERROR(VLOOKUP($A80,'Volumes - Report Summary'!$A:$I,MATCH(H$5,'Volumes - Report Summary'!$A$6:$I$6,0),FALSE),0) -> 1 | I80: =IFERROR(VLOOKUP($A80,'Volumes - Report Summary'!$A:$I,MATCH(I$5,'Volumes - Report Summary'!$A$6:$I$6,0),FALSE),0) -> 1 | J80: =IFERROR(VLOOKUP($A80,'Volumes - Report Summary'!$A:$I,MATCH(J$5,'Volumes - Report Summary'!$A$6:$I$6,0),FALSE),0) -> 1 | K80: =IFERROR(VLOOKUP($A80,'Volumes - Report Summary'!$A:$I,MATCH(K$5,'Volumes - Report Summary'!$A$6:$I$6,0),FALSE),0) -> 1 | L80: =IFERROR(VLOOKUP($A80,'Volumes - Report Summary'!$A:$I,MATCH(L$5,'Volumes - Report Summary'!$A$6:$I$6,0),FALSE),0) -> 1 | N80: 184.9042313 | O80: 188.3471078 | P80: 191.85409 | Q80: 195.4263714 | R80: 199.0651679
I82: =IFERROR(VLOOKUP($A82,'Volumes - Report Summary'!$A:$I,MATCH(C$5,'Volumes - Report Summary'!$A$6:$I$6,0),FALSE),0) -> 0
H83: =SUM(H7:H82) -> 66338 | I83: =SUM(I7:I82) -> 64138 | J83: =SUM(J7:J82) -> 61938 | K83: =SUM(K7:K82) -> 59738 | L83: =SUM(L7:L82) -> 57538 | N83: =SUM(N7:N82) -> 6969573.195 | O83: =SUM(O7:O82) -> 6910802.115 | P83: =SUM(P7:P82) -> 6847600.784 | Q83: =SUM(Q7:Q82) -> 6779507.518 | R83: =SUM(R7:R82) -> 6706468.248

Sheet Unsmoothed Prices Real $2018-19
B3: Total Fee | H3: Volumes | N3: Total Revenue
B4: (Real $2018-19) | N4: (Real $2018-19)
B5: ='Master Data'!$G14 -> 2019-20 | C5: ='Master Data'!$H14 -> 2020-21 | D5: ='Master Data'!$I14 -> 2021-22 | E5: ='Master Data'!$J14 -> 2022-23 | F5: ='Master Data'!$K14 -> 2023-24 | H5: ='Master Data'!$G14 -> 2019-20 | I5: ='Master Data'!$H14 -> 2020-21 | J5: ='Master Data'!$I14 -> 2021-22 | K5: ='Master Data'!$J14 -> 2022-23 | L5: ='Master Data'!$K14 -> 2023-24 | N5: ='Master Data'!$G14 -> 2019-20 | O5: ='Master Data'!$H14 -> 2020-21 | P5: ='Master Data'!$I14 -> 2021-22 | Q5: ='Master Data'!$J14 -> 2022-23 | R5: ='Master Data'!$K14 -> 2023-24
B6: Base Fee | C6: Base Fee | D6: Base Fee | E6: Base Fee | F6: Base Fee | H6: Volumes | I6: Volumes | J6: Volumes | K6: Volumes | L6: Volumes | N6: Total Revenue | O6: Total Revenue | P6: Total Revenue | Q6: Total Revenue | R6: Total Revenue
A7: ='Table of fees'!A4 -> De-energisation, re-energisation, special reads and retail contract terminations
A8: ='Table of fees'!B5 -> Site visit - no appointment | B8: =IFERROR(VLOOKUP($A8,'Cost buildup Yr1'!C:AO,MATCH($B$3,'Cost buildup Yr1'!$C$3:$AO$3,0),FALSE),0)*'Master Data'!$F$16 -> 79.99944995 | C8: =IFERROR(VLOOKUP($A8,'Cost buildup Yr2'!C:AO,MATCH($B$3,'Cost buildup Yr2'!$C$3:$AO$3,0),FALSE),0)*'Master Data'!$F$16 -> 81.72228157 | D8: =IFERROR(VLOOKUP($A8,'Cost buildup Yr3'!C:AO,MATCH($B$3,'Cost buildup Yr3'!$C$3:$AO$3,0),FALSE),0)*'Master Data'!$F$16 -> 83.78228956 | E8: =IFERROR(VLOOKUP($A8,'Cost buildup Yr4'!C:AO,MATCH($B$3,'Cost buildup Yr4'!$C$3:$AO$3,0),FALSE),0)*'Master Data'!$F$16 -> 85.33596498 | F8: =IFERROR(VLOOKUP($A8,'Cost buildup Yr5'!C:AO,MATCH($B$3,'Cost buildup Yr4'!$C$3:$AO$3,0),FALSE),0)*'Master Data'!$F$16 -> 87.38674596 | H8: =IFERROR(VLOOKUP($A8,'Volumes - Report Summary'!$A:$I,MATCH(H$5,'Volumes - Report Summary'!$A$6:$I$6,0),FALSE),0) -> 54512 | I8: =IFERROR(VLOOKUP($A8,'Volumes - Report Summary'!$A:$I,MATCH(I$5,'Volumes - Report Summary'!$A$6:$I$6,0),FALSE),0) -> 52432 | J8: =IFERROR(VLOOKUP($A8,'Volumes - Report Summary'!$A:$I,MATCH(J$5,'Volumes - Report Summary'!$A$6:$I$6,0),FALSE),0) -> 50351 | K8: =IFERROR(VLOOKUP($A8,'Volumes - Report Summary'!$A:$I,MATCH(K$5,'Volumes - Report Summary'!$A$6:$I$6,0),FALSE),0) -> 48272 | L8: =IFERROR(VLOOKUP($A8,'Volumes - Report Summary'!$A:$I,MATCH(L$5,'Volumes - Report Summary'!$A$6:$I$6,0),FALSE),0) -> 46192 | N8: =H8*B8 -> 4360930.016 | O8: =I8*C8 -> 4284862.667 | P8: =J8*D8 -> 4218522.062 | Q8: =K8*E8 -> 4119337.702 | R8: =L8*F8 -> 4036568.57
A9: ='Table of fees'!B6 -> Site visit - non-scheduled visit | B9: =IFERROR(VLOOKUP($A9,'Cost buildup Yr1'!C:AO,MATCH($B$3,'Cost buildup Yr1'!$C$3:$AO$3,0),FALSE),0)*'Master Data'!$F$16 -> 144.6679621 | C9: =IFERROR(VLOOKUP($A9,'Cost buildup Yr2'!C:AO,MATCH($B$3,'Cost buildup Yr2'!$C$3:$AO$3,0),FALSE),0)*'Master Data'!$F$16 -> 146.8176732 | D9: =IFERROR(VLOOKUP($A9,'Cost buildup Yr3'!C:AO,MATCH($B$3,'Cost buildup Yr3'!$C$3:$AO$3,0),FALSE),0)*'Master Data'!$F$16 -> 149.6856591 | E9: =IFERROR(VLOOKUP($A9,'Cost buildup Yr4'!C:AO,MATCH($B$3,'Cost buildup Yr4'!$C$3:$AO$3,0),FALSE),0)*'Master Data'!$F$16 -> 151.0683563 | F9: =IFERROR(VLOOKUP($A9,'Cost buildup Yr5'!C:AO,MATCH($B$3,'Cost buildup Yr4'!$C$3:$AO$3,0),FALSE),0)*'Master Data'!$F$16 -> 153.5469325 | H9: =IFERROR(VLOOKUP($A9,'Volumes - Report Summary'!$A:$I,MATCH(H$5,'Volumes - Report Summary'!$A$6:$I$6,0),FALSE),0) -> 954 | I9: =IFERROR(VLOOKUP($A9,'Volumes - Report Summary'!$A:$I,MATCH(I$5,'Volumes - Report Summary'!$A$6:$I$6,0),FALSE),0) -> 918 | J9: =IFERROR(VLOOKUP($A9,'Volumes - Report Summary'!$A:$I,MATCH(J$5,'Volumes - Report Summary'!$A$6:$I$6,0),FALSE),0) -> 882 | K9: =IFERROR(VLOOKUP($A9,'Volumes - Report Summary'!$A:$I,MATCH(K$5,'Volumes - Report Summary'!$A$6:$I$6,0),FALSE),0) -> 845 | L9: =IFERROR(VLOOKUP($A9,'Volumes - Report Summary'!$A:$I,MATCH(L$5,'Volumes - Report Summary'!$A$6:$I$6,0),FALSE),0) -> 809 | N9: 138013.2359 | O9: 134778.624 | P9: 132022.7513 | Q9: 127652.7611 | R9: 124219.4684
A10: ='Table of fees'!B7 -> Site visit - same day premium service | B10: =IFERROR(VLOOKUP($A10,'Cost buildup Yr1'!C:AO,MATCH($B$3,'Cost buildup Yr1'!$C$3:$AO$3,0),FALSE),0)*'Master Data'!$F$16 -> 258.0453359 | C10: =IFERROR(VLOOKUP($A10,'Cost buildup Yr2'!C:AO,MATCH($B$3,'Cost buildup Yr2'!$C$3:$AO$3,0),FALSE),0)*'Master Data'!$F$16 -> 262.7216254 | D10: =IFERROR(VLOOKUP($A10,'Cost buildup Yr3'!C:AO,MATCH($B$3,'Cost buildup Yr3'!$C$3:$AO$3,0),FALSE),0)*'Master Data'!$F$16 -> 268.5388914 | E10: =IFERROR(VLOOKUP($A10,'Cost buildup Yr4'!C:AO,MATCH($B$3,'Cost buildup Yr4'!$C$3:$AO$3,0),FALSE),0)*'Master Data'!$F$16 -> 272.3165806 | F10: =IFERROR(VLOOKUP($A10,'Cost buildup Yr5'!C:AO,MATCH($B$3,'Cost buildup Yr4'!$C$3:$AO$3,0),FALSE),0)*'Master Data'!$F$16 -> 277.8065693 | H10: =IFERROR(VLOOKUP($A10,'Volumes - Report Summary'!$A:$I,MATCH(H$5,'Volumes - Report Summary'!$A$6:$I$6,0),FALSE),0) -> 225 | I10: =IFERROR(VLOOKUP($A10,'Volumes - Report Summary'!$A:$I,MATCH(I$5,'Volumes - Report Summary'!$A$6:$I$6,0),FALSE),0) -> 225 | J10: =IFERROR(VLOOKUP($A10,'Volumes - Report Summary'!$A:$I,MATCH(J$5,'Volumes - Report Summary'!$A$6:$I$6,0),FALSE),0) -> 225 | K10: =IFERROR(VLOOKUP($A10,'Volumes - Report Summary'!$A:$I,MATCH(K$5,'Volumes - Report Summary'!$A$6:$I$6,0),FALSE),0) -> 225 | L10: =IFERROR(VLOOKUP($A10,'Volumes - Report Summary'!$A:$I,MATCH(L$5,'Volumes - Report Summary'!$A$6:$I$6,0),FALSE),0) -> 225 | N10: 58060.20057 | O10: 59112.36572 | P10: 60421.25057 | Q10: 61271.23064 | R10: 62506.47809
A11: ='Table of fees'!B8 -> Site visit - after hours | B11: =IFERROR(VLOOKUP($A11,'Cost buildup Yr1'!C:AO,MATCH($B$3,'Cost buildup Yr1'!$C$3:$AO$3,0),FALSE),0)*'Master Data'!$F$16 -> 366.7735267 | C11: =IFERROR(VLOOKUP($A11,'Cost buildup Yr2'!C:AO,MATCH($B$3,'Cost buildup Yr2'!$C$3:$AO$3,0),FALSE),0)*'Master Data'!$F$16 -> 372.1055772 | D11: =IFERROR(VLOOKUP($A11,'Cost buildup Yr3'!C:AO,MATCH($B$3,'Cost buildup Yr3'!$C$3:$AO$3,0),FALSE),0)*'Master Data'!$F$16 -> 378.9007921 | E11: =IFERROR(VLOOKUP($A11,'Cost buildup Yr4'!C:AO,MATCH($B$3,'Cost buildup Yr4'!$C$3:$AO$3,0),FALSE),0)*'Master Data'!$F$16 -> 382.7704403 | F11: =IFERROR(VLOOKUP($A11,'Cost buildup Yr5'!C:AO,MATCH($B$3,'Cost buildup Yr4'!$C$3:$AO$3,0),FALSE),0)*'Master Data'!$F$16 -> 388.8675991 | H11: =IFERROR(VLOOKUP($A11,'Volumes - Report Summary'!$A:$I,MATCH(H$5,'Volumes - Report Summary'!$A$6:$I$6,0),FALSE),0) -> 1 | I11: =IFERROR(VLOOKUP($A11,'Volumes - Report Summary'!$A:$I,MATCH(I$5,'Volumes - Report Summary'!$A$6:$I$6,0),FALSE),0) -> 1 | J11: =IFERROR(VLOOKUP($A11,'Volumes - Report Summary'!$A:$I,MATCH(J$5,'Volumes - Report Summary'!$A$6:$I$6,0),FALSE),0) -> 1 | K11: =IFERROR(VLOOKUP($A11,'Volumes - Report Summary'!$A:$I,MATCH(K$5,'Volumes - Report Summary'!$A$6:$I$6,0),FALSE),0) -> 1 | L11: =IFERROR(VLOOKUP($A11,'Volumes - Report Summary'!$A:$I,MATCH(L$5,'Volumes - Report Summary'!$A$6:$I$6,0),FALSE),0) -> 1 | N11: 366.7735267 | O11: 372.1055772 | P11: 378.9007921 | Q11: 382.7704403 | R11: 388.8675991
A12: ='Table of fees'!B9 -> Site visit - credit actions or site issues | B12: =IFERROR(VLOOKUP($A12,'Cost buildup Yr1'!C:AO,MATCH($B$3,'Cost buildup Yr1'!$C$3:$AO$3,0),FALSE),0)*'Master Data'!$F$16 -> 150.0594773 | C12: =IFERROR(VLOOKUP($A12,'Cost buildup Yr2'!C:AO,MATCH($B$3,'Cost buildup Yr2'!$C$3:$AO$3,0),FALSE),0)*'Master Data'!$F$16 -> 152.2816084 | D12: =IFERROR(VLOOKUP($A12,'Cost buildup Yr3'!C:AO,MATCH($B$3,'Cost buildup Yr3'!$C$3:$AO$3,0),FALSE),0)*'Master Data'!$F$16 -> 155.315565 | E12: =IFERROR(VLOOKUP($A12,'Cost buildup Yr4'!C:AO,MATCH($B$3,'Cost buildup Yr4'!$C$3:$AO$3,0),FALSE),0)*'Master Data'!$F$16 -> 156.6356581 | F12: =IFERROR(VLOOKUP($A12,'Cost buildup Yr5'!C:AO,MATCH($B$3,'Cost buildup Yr4'!$C$3:$AO$3,0),FALSE),0)*'Master Data'!$F$16 -> 159.1967555 | H12: =IFERROR(VLOOKUP($A12,'Volumes - Report Summary'!$A:$I,MATCH(H$5,'Volumes - Report Summary'!$A$6:$I$6,0),FALSE),0) -> 1973 | I12: =IFERROR(VLOOKUP($A12,'Volumes - Report Summary'!$A:$I,MATCH(I$5,'Volumes - Report Summary'!$A$6:$I$6,0),FALSE),0) -> 1898 | J12: =IFERROR(VLOOKUP($A12,'Volumes - Report Summary'!$A:$I,MATCH(J$5,'Volumes - Report Summary'!$A$6:$I$6,0),FALSE),0) -> 1823 | K12: =IFERROR(VLOOKUP($A12,'Volumes - Report Summary'!$A:$I,MATCH(K$5,'Volumes - Report Summary'!$A$6:$I$6,0),FALSE),0) -> 1747 | L12: =IFERROR(VLOOKUP($A12,'Volumes - Report Summary'!$A:$I,MATCH(L$5,'Volumes - Report Summary'!$A$6:$I$6,0),FALSE),0) -> 1672 | N12: 296067.3488 | O12: 289030.4927 | P12: 283140.2749 | Q12: 273642.4947 | R12: 266176.9753
A13: ='Table of fees'!B10 -> Site visit – credit actions pillar box/pole top | B13: =IFERROR(VLOOKUP($A13,'Cost buildup Yr1'!C:AO,MATCH($B$3,'Cost buildup Yr1'!$C$3:$AO$3,0),FALSE),0)*'Master Data'!$F$16 -> 248.3549827 | C13: =IFERROR(VLOOKUP($A13,'Cost buildup Yr2'!C:AO,MATCH($B$3,'Cost buildup Yr2'!$C$3:$AO$3,0),FALSE),0)*'Master Data'!$F$16 -> 251.1652672 | D13: =IFERROR(VLOOKUP($A13,'Cost buildup Yr3'!C:AO,MATCH($B$3,'Cost buildup Yr3'!$C$3:$AO$3,0),FALSE),0)*'Master Data'!$F$16 -> 255.3483016 | E13: =IFERROR(VLOOKUP($A13,'Cost buildup Yr4'!C:AO,MATCH($B$3,'Cost buildup Yr4'!$C$3:$AO$3,0),FALSE),0)*'Master Data'!$F$16 -> 256.372262 | F13: =IFERROR(VLOOKUP($A13,'Cost buildup Yr5'!C:AO,MATCH($B$3,'Cost buildup Yr4'!$C$3:$AO$3,0),FALSE),0)*'Master Data'!$F$16 -> 259.5193207 | H13: =IFERROR(VLOOKUP($A13,'Volumes - Report Summary'!$A:$I,MATCH(H$5,'Volumes - Report Summary'!$A$6:$I$6,0),FALSE),0) -> 219 | I13: =IFERROR(VLOOKUP($A13,'Volumes - Report Summary'!$A:$I,MATCH(I$5,'Volumes - Report Summary'!$A$6:$I$6,0),FALSE),0) -> 210 | J13: =IFERROR(VLOOKUP($A13,'Volumes - Report Summary'!$A:$I,MATCH(J$5,'Volumes - Report Summary'!$A$6:$I$6,0),FALSE),0) -> 202 | K13: =IFERROR(VLOOKUP($A13,'Volumes - Report Summary'!$A:$I,MATCH(K$5,'Volumes - Report Summary'!$A$6:$I$6,0),FALSE),0) -> 194 | L13: =IFERROR(VLOOKUP($A13,'Volumes - Report Summary'!$A:$I,MATCH(L$5,'Volumes - Report Summary'!$A$6:$I$6,0),FALSE),0) -> 185 | N13: 54389.7412 | O13: 52744.70612 | P13: 51580.35692 | Q13: 49736.21883 | R13: 48011.07433
A14: ='Table of fees'!B11 -> Site visit – current transformer (CT) metering | B14: =IFERROR(VLOOKUP($A14,'Cost buildup Yr1'!C:AO,MATCH($B$3,'Cost buildup Yr1'!$C$3:$AO$3,0),FALSE),0)*'Master Data'!$F$16 -> 142.3298568 | C14: =IFERROR(VLOOKUP($A14,'Cost buildup Yr2'!C:AO,MATCH($B$3,'Cost buildup Yr2'!$C$3:$AO$3,0),FALSE),0)*'Master Data'!$F$16 -> 144.4750949 | D14: =IFERROR(VLOOKUP($A14,'Cost buildup Yr3'!C:AO,MATCH($B$3,'Cost buildup Yr3'!$C$3:$AO$3,0),FALSE),0)*'Master Data'!$F$16 -> 147.3594127 | E14: =IFERROR(VLOOKUP($A14,'Cost buildup Yr4'!C:AO,MATCH($B$3,'Cost buildup Yr4'!$C$3:$AO$3,0),FALSE),0)*'Master Data'!$F$16 -> 148.7114062 | F14: =IFERROR(VLOOKUP($A14,'Cost buildup Yr5'!C:AO,MATCH($B$3,'Cost buildup Yr4'!$C$3:$AO$3,0),FALSE),0)*'Master Data'!$F$16 -> 151.1909704 | H14: =IFERROR(VLOOKUP($A14,'Volumes - Report Summary'!$A:$I,MATCH(H$5,'Volumes - Report Summary'!$A$6:$I$6,0),FALSE),0) -> 5 | I14: =IFERROR(VLOOKUP($A14,'Volumes - Report Summary'!$A:$I,MATCH(I$5,'Volumes - Report Summary'!$A$6:$I$6,0),FALSE),0) -> 5 | J14: =IFERROR(VLOOKUP($A14,'Volumes - Report Summary'!$A:$I,MATCH(J$5,'Volumes - Report Summary'!$A$6:$I$6,0),FALSE),0) -> 5 | K14: =IFERROR(VLOOKUP($A14,'Volumes - Report Summary'!$A:$I,MATCH(K$5,'Volumes - Report Summary'!$A$6:$I$6,0),FALSE),0) -> 5 | L14: =IFERROR(VLOOKUP($A14,'Volumes - Report Summary'!$A:$I,MATCH(L$5,'Volumes - Report Summary'!$A$6:$I$6,0),FALSE),0) -> 5 | N14: 711.6492838 | O14: 722.3754746 | P14: 736.7970635 | Q14: 743.5570308 | R14: 755.9548519
A15: ='Table of fees'!B12 -> Site visit – pillar box/pole top | B15: =IFERROR(VLOOKUP($A15,'Cost buildup Yr1'!C:AO,MATCH($B$3,'Cost buildup Yr1'!$C$3:$AO$3,0),FALSE),0)*'Master Data'!$F$16 -> 248.3549827 | C15: =IFERROR(VLOOKUP($A15,'Cost buildup Yr2'!C:AO,MATCH($B$3,'Cost buildup Yr2'!$C$3:$AO$3,0),FALSE),0)*'Master Data'!$F$16 -> 251.1652672 | D15: =IFERROR(VLOOKUP($A15,'Cost buildup Yr3'!C:AO,MATCH($B$3,'Cost buildup Yr3'!$C$3:$AO$3,0),FALSE),0)*'Master Data'!$F$16 -> 255.3483016 | E15: =IFERROR(VLOOKUP($A15,'Cost buildup Yr4'!C:AO,MATCH($B$3,'Cost buildup Yr4'!$C$3:$AO$3,0),FALSE),0)*'Master Data'!$F$16 -> 256.372262 | F15: =IFERROR(VLOOKUP($A15,'Cost buildup Yr5'!C:AO,MATCH($B$3,'Cost buildup Yr4'!$C$3:$AO$3,0),FALSE),0)*'Master Data'!$F$16 -> 259.5193207 | H15: =IFERROR(VLOOKUP($A15,'Volumes - Report Summary'!$A:$I,MATCH(H$5,'Volumes - Report Summary'!$A$6:$I$6,0),FALSE),0) -> 10 | I15: =IFERROR(VLOOKUP($A15,'Volumes - Report Summary'!$A:$I,MATCH(I$5,'Volumes - Report Summary'!$A$6:$I$6,0),FALSE),0) -> 10 | J15: =IFERROR(VLOOKUP($A15,'Volumes - Report Summary'!$A:$I,MATCH(J$5,'Volumes - Report Summary'!$A$6:$I$6,0),FALSE),0) -> 10 | K15: =IFERROR(VLOOKUP($A15,'Volumes - Report Summary'!$A:$I,MATCH(K$5,'Volumes - Report Summary'!$A$6:$I$6,0),FALSE),0) -> 10 | L15: =IFERROR(VLOOKUP($A15,'Volumes - Report Summary'!$A:$I,MATCH(L$5,'Volumes - Report Summary'!$A$6:$I$6,0),FALSE),0) -> 10 | N15: 2483.549827 | O15: 2511.652672 | P15: 2553.483016 | Q15: 2563.72262 | R15: 2595.193207
A16: ='Table of fees'!B13 -> Site visit - pillar box/pole top Wasted Visit | B16: =IFERROR(VLOOKUP($A16,'Cost buildup Yr1'!C:AO,MATCH($B$3,'Cost buildup Yr1'!$C$3:$AO$3,0),FALSE),0)*'Master Data'!$F$16 -> 158.8517726 | C16: =IFERROR(VLOOKUP($A16,'Cost buildup Yr2'!C:AO,MATCH($B$3,'Cost buildup Yr2'!$C$3:$AO$3,0),FALSE),0)*'Master Data'!$F$16 -> 161.0790322 | D16: =IFERROR(VLOOKUP($A16,'Cost buildup Yr3'!C:AO,MATCH($B$3,'Cost buildup Yr3'!$C$3:$AO$3,0),FALSE),0)*'Master Data'!$F$16 -> 164.1239183 | E16: =IFERROR(VLOOKUP($A16,'Cost buildup Yr4'!C:AO,MATCH($B$3,'Cost buildup Yr4'!$C$3:$AO$3,0),FALSE),0)*'Master Data'!$F$16 -> 165.4308696 | F16: =IFERROR(VLOOKUP($A16,'Cost buildup Yr5'!C:AO,MATCH($B$3,'Cost buildup Yr4'!$C$3:$AO$3,0),FALSE),0)*'Master Data'!$F$16 -> 167.9894423 | H16: =IFERROR(VLOOKUP($A16,'Volumes - Report Summary'!$A:$I,MATCH(H$5,'Volumes - Report Summary'!$A$6:$I$6,0),FALSE),0) -> 1 | I16: =IFERROR(VLOOKUP($A16,'Volumes - Report Summary'!$A:$I,MATCH(I$5,'Volumes - Report Summary'!$A$6:$I$6,0),FALSE),0) -> 1 | J16: =IFERROR(VLOOKUP($A16,'Volumes - Report Summary'!$A:$I,MATCH(J$5,'Volumes - Report Summary'!$A$6:$I$6,0),FALSE),0) -> 1 | K16: =IFERROR(VLOOKUP($A16,'Volumes - Report Summary'!$A:$I,MATCH(K$5,'Volumes - Report Summary'!$A$6:$I$6,0),FALSE),0) -> 1 | L16: =IFERROR(VLOOKUP($A16,'Volumes - Report Summary'!$A:$I,MATCH(L$5,'Volumes - Report Summary'!$A$6:$I$6,0),FALSE),0) -> 1 | N16: 158.8517726 | O16: 161.0790322 | P16: 164.1239183 | Q16: 165.4308696 | R16: 167.9894423
A17: ='Table of fees'!B14 -> Transfer of retailer | B17: =IFERROR(VLOOKUP($A17,'Cost buildup Yr1'!C:AO,MATCH($B$3,'Cost buildup Yr1'!$C$3:$AO$3,0),FALSE),0)*'Master Data'!$F$16 -> 0 | C17: =IFERROR(VLOOKUP($A17,'Cost buildup Yr2'!C:AO,MATCH($B$3,'Cost buildup Yr2'!$C$3:$AO$3,0),FALSE),0)*'Master Data'!$F$16 -> 0 | D17: =IFERROR(VLOOKUP($A17,'Cost buildup Yr3'!C:AO,MATCH($B$3,'Cost buildup Yr3'!$C$3:$AO$3,0),FALSE),0)*'Master Data'!$F$16 -> 0 | E17: =IFERROR(VLOOKUP($A17,'Cost buildup Yr4'!C:AO,MATCH($B$3,'Cost buildup Yr4'!$C$3:$AO$3,0),FALSE),0)*'Master Data'!$F$16 -> 0 | F17: =IFERROR(VLOOKUP($A17,'Cost buildup Yr5'!C:AO,MATCH($B$3,'Cost buildup Yr4'!$C$3:$AO$3,0),FALSE),0)*'Master Data'!$F$16 -> 0 | H17: =IFERROR(VLOOKUP($A17,'Volumes - Report Summary'!$A:$I,MATCH(H$5,'Volumes - Report Summary'!$A$6:$I$6,0),FALSE),0) -> 0 | I17: =IFERROR(VLOOKUP($A17,'Volumes - Report Summary'!$A:$I,MATCH(I$5,'Volumes - Report Summary'!$A$6:$I$6,0),FALSE),0) -> 0 | J17: =IFERROR(VLOOKUP($A17,'Volumes - Report Summary'!$A:$I,MATCH(J$5,'Volumes - Report Summary'!$A$6:$I$6,0),FALSE),0) -> 0 | K17: =IFERROR(VLOOKUP($A17,'Volumes - Report Summary'!$A:$I,MATCH(K$5,'Volumes - Report Summary'!$A$6:$I$6,0),FALSE),0) -> 0 | L17: =IFERROR(VLOOKUP($A17,'Volumes - Report Summary'!$A:$I,MATCH(L$5,'Volumes - Report Summary'!$A$6:$I$6,0),FALSE),0) -> 0 | N17: 0 | O17: 0 | P17: 0 | Q17: 0 | R17: 0
A18: ='Table of fees'!A15 -> Meter test
A19: ='Table of fees'!B16 -> Meter test - single phase | B19: =IFERROR(VLOOKUP(A19,'Cost buildup Yr1'!C:AO,MATCH($B$3,'Cost buildup Yr1'!$C$3:$AO$3,0),FALSE),0)*'Master Data'!$F$16 -> 203.3908917 | C19: =IFERROR(VLOOKUP($A19,'Cost buildup Yr2'!C:AO,MATCH($B$3,'Cost buildup Yr2'!$C$3:$AO$3,0),FALSE),0)*'Master Data'!$F$16 -> 205.5071776 | D19: =IFERROR(VLOOKUP($A19,'Cost buildup Yr3'!C:AO,MATCH($B$3,'Cost buildup Yr3'!$C$3:$AO$3,0),FALSE),0)*'Master Data'!$F$16 -> 208.8232574 | E19: =IFERROR(VLOOKUP($A19,'Cost buildup Yr4'!C:AO,MATCH($B$3,'Cost buildup Yr4'!$C$3:$AO$3,0),FALSE),0)*'Master Data'!$F$16 -> 209.2979779 | F19: =IFERROR(VLOOKUP($A19,'Cost buildup Yr5'!C:AO,MATCH($B$3,'Cost buildup Yr4'!$C$3:$AO$3,0),FALSE),0)*'Master Data'!$F$16 -> 211.6349248 | H19: =IFERROR(VLOOKUP($A19,'Volumes - Report Summary'!$A:$I,MATCH(H$5,'Volumes - Report Summary'!$A$6:$I$6,0),FALSE),0) -> 17 | I19: =IFERROR(VLOOKUP($A19,'Volumes - Report Summary'!$A:$I,MATCH(I$5,'Volumes - Report Summary'!$A$6:$I$6,0),FALSE),0) -> 17 | J19: =IFERROR(VLOOKUP($A19,'Volumes - Report Summary'!$A:$I,MATCH(J$5,'Volumes - Report Summary'!$A$6:$I$6,0),FALSE),0) -> 17 | K19: =IFERROR(VLOOKUP($A19,'Volumes - Report Summary'!$A:$I,MATCH(K$5,'Volumes - Report Summary'!$A$6:$I$6,0),FALSE),0) -> 17 | L19: =IFERROR(VLOOKUP($A19,'Volumes - Report Summary'!$A:$I,MATCH(L$5,'Volumes - Report Summary'!$A$6:$I$6,0),FALSE),0) -> 17 | N19: =H19*B19 -> 3457.64516 | O19: 3493.622019 | P19: 3549.995376 | Q19: 3558.065624 | R19: 3597.793721
A20: ='Table of fees'!B17 -> Meter test - multi phase | B20: =IFERROR(VLOOKUP(A20,'Cost buildup Yr1'!C:AO,MATCH($B$3,'Cost buildup Yr1'!$C$3:$AO$3,0),FALSE),0)*'Master Data'!$F$16 -> 378.6951609 | C20: =IFERROR(VLOOKUP($A20,'Cost buildup Yr2'!C:AO,MATCH($B$3,'Cost buildup Yr2'!$C$3:$AO$3,0),FALSE),0)*'Master Data'!$F$16 -> 381.9994651 | D20: =IFERROR(VLOOKUP($A20,'Cost buildup Yr3'!C:AO,MATCH($B$3,'Cost buildup Yr3'!$C$3:$AO$3,0),FALSE),0)*'Master Data'!$F$16 -> 387.6339163 | E20: =IFERROR(VLOOKUP($A20,'Cost buildup Yr4'!C:AO,MATCH($B$3,'Cost buildup Yr4'!$C$3:$AO$3,0),FALSE),0)*'Master Data'!$F$16 -> 387.5414062 | F20: =IFERROR(VLOOKUP($A20,'Cost buildup Yr5'!C:AO,MATCH($B$3,'Cost buildup Yr4'!$C$3:$AO$3,0),FALSE),0)*'Master Data'!$F$16 -> 391.0843059 | H20: =IFERROR(VLOOKUP($A20,'Volumes - Report Summary'!$A:$I,MATCH(H$5,'Volumes - Report Summary'!$A$6:$I$6,0),FALSE),0) -> 4 | I20: =IFERROR(VLOOKUP($A20,'Volumes - Report Summary'!$A:$I,MATCH(I$5,'Volumes - Report Summary'!$A$6:$I$6,0),FALSE),0) -> 4 | J20: =IFERROR(VLOOKUP($A20,'Volumes - Report Summary'!$A:$I,MATCH(J$5,'Volumes - Report Summary'!$A$6:$I$6,0),FALSE),0) -> 4 | K20: =IFERROR(VLOOKUP($A20,'Volumes - Report Summary'!$A:$I,MATCH(K$5,'Volumes - Report Summary'!$A$6:$I$6,0),FALSE),0) -> 4 | L20: =IFERROR(VLOOKUP($A20,'Volumes - Report Summary'!$A:$I,MATCH(L$5,'Volumes - Report Summary'!$A$6:$I$6,0),FALSE),0) -> 4 | N20: 1514.780644 | O20: 1527.99786 | P20: 1550.535665 | Q20: 1550.165625 | R20: 1564.337224
A21: ='Table of fees'!B18 -> Meter test – current transformer (CT) | B21: =IFERROR(VLOOKUP(A21,'Cost buildup Yr1'!C:AO,MATCH($B$3,'Cost buildup Yr1'!$C$3:$AO$3,0),FALSE),0)*'Master Data'!$F$16 -> 417.6516652 | C21: =IFERROR(VLOOKUP($A21,'Cost buildup Yr2'!C:AO,MATCH($B$3,'Cost buildup Yr2'!$C$3:$AO$3,0),FALSE),0)*'Master Data'!$F$16 -> 421.2199735 | D21: =IFERROR(VLOOKUP($A21,'Cost buildup Yr3'!C:AO,MATCH($B$3,'Cost buildup Yr3'!$C$3:$AO$3,0),FALSE),0)*'Master Data'!$F$16 -> 427.3696182 | E21: =IFERROR(VLOOKUP($A21,'Cost buildup Yr4'!C:AO,MATCH($B$3,'Cost buildup Yr4'!$C$3:$AO$3,0),FALSE),0)*'Master Data'!$F$16 -> 427.151057 | F21: =IFERROR(VLOOKUP($A21,'Cost buildup Yr5'!C:AO,MATCH($B$3,'Cost buildup Yr4'!$C$3:$AO$3,0),FALSE),0)*'Master Data'!$F$16 -> 430.9619462 | H21: =IFERROR(VLOOKUP($A21,'Volumes - Report Summary'!$A:$I,MATCH(H$5,'Volumes - Report Summary'!$A$6:$I$6,0),FALSE),0) -> 4 | I21: =IFERROR(VLOOKUP($A21,'Volumes - Report Summary'!$A:$I,MATCH(I$5,'Volumes - Report Summary'!$A$6:$I$6,0),FALSE),0) -> 4 | J21: =IFERROR(VLOOKUP($A21,'Volumes - Report Summary'!$A:$I,MATCH(J$5,'Volumes - Report Summary'!$A$6:$I$6,0),FALSE),0) -> 4 | K21: =IFERROR(VLOOKUP($A21,'Volumes - Report Summary'!$A:$I,MATCH(K$5,'Volumes - Report Summary'!$A$6:$I$6,0),FALSE),0) -> 4 | L21: =IFERROR(VLOOKUP($A21,'Volumes - Report Summary'!$A:$I,MATCH(L$5,'Volumes - Report Summary'!$A$6:$I$6,0),FALSE),0) -> 4 | N21: 1670.606661 | O21: 1684.879894 | P21: 1709.478473 | Q21: 1708.604228 | R21: 1723.847785
A22: ='Table of fees'!B19 -> Meter test - after hours | B22: =IFERROR(VLOOKUP(A22,'Cost buildup Yr1'!C:AO,MATCH($B$3,'Cost buildup Yr1'!$C$3:$AO$3,0),FALSE),0)*'Master Data'!$F$16 -> 790.8185873 | C22: =IFERROR(VLOOKUP($A22,'Cost buildup Yr2'!C:AO,MATCH($B$3,'Cost buildup Yr2'!$C$3:$AO$3,0),FALSE),0)*'Master Data'!$F$16 -> 798.848939 | D22: =IFERROR(VLOOKUP($A22,'Cost buildup Yr3'!C:AO,MATCH($B$3,'Cost buildup Yr3'!$C$3:$AO$3,0),FALSE),0)*'Master Data'!$F$16 -> 810.3181213 | E22: =IFERROR(VLOOKUP($A22,'Cost buildup Yr4'!C:AO,MATCH($B$3,'Cost buildup Yr4'!$C$3:$AO$3,0),FALSE),0)*'Master Data'!$F$16 -> 813.6908436 | F22: =IFERROR(VLOOKUP($A22,'Cost buildup Yr5'!C:AO,MATCH($B$3,'Cost buildup Yr4'!$C$3:$AO$3,0),FALSE),0)*'Master Data'!$F$16 -> 822.4099737 | H22: =IFERROR(VLOOKUP($A22,'Volumes - Report Summary'!$A:$I,MATCH(H$5,'Volumes - Report Summary'!$A$6:$I$6,0),FALSE),0) -> 1 | I22: =IFERROR(VLOOKUP($A22,'Volumes - Report Summary'!$A:$I,MATCH(I$5,'Volumes - Report Summary'!$A$6:$I$6,0),FALSE),0) -> 1 | J22: =IFERROR(VLOOKUP($A22,'Volumes - Report Summary'!$A:$I,MATCH(J$5,'Volumes - Report Summary'!$A$6:$I$6,0),FALSE),0) -> 1 | K22: =IFERROR(VLOOKUP($A22,'Volumes - Report Summary'!$A:$I,MATCH(K$5,'Volumes - Report Summary'!$A$6:$I$6,0),FALSE),0) -> 1 | L22: =IFERROR(VLOOKUP($A22,'Volumes - Report Summary'!$A:$I,MATCH(L$5,'Volumes - Report Summary'!$A$6:$I$6,0),FALSE),0) -> 1 | N22: 790.8185873 | O22: 798.848939 | P22: 810.3181213 | Q22: 813.6908436 | R22: 822.4099737
A23: ='Table of fees'!B20 -> Meter test - wasted visit | B23: =IFERROR(VLOOKUP(A23,'Cost buildup Yr1'!C:AO,MATCH($B$3,'Cost buildup Yr1'!$C$3:$AO$3,0),FALSE),0)*'Master Data'!$F$16 -> 86.52137896 | C23: =IFERROR(VLOOKUP($A23,'Cost buildup Yr2'!C:AO,MATCH($B$3,'Cost buildup Yr2'!$C$3:$AO$3,0),FALSE),0)*'Master Data'!$F$16 -> 87.84565255 | D23: =IFERROR(VLOOKUP($A23,'Cost buildup Yr3'!C:AO,MATCH($B$3,'Cost buildup Yr3'!$C$3:$AO$3,0),FALSE),0)*'Master Data'!$F$16 -> 89.61615156 | E23: =IFERROR(VLOOKUP($A23,'Cost buildup Yr4'!C:AO,MATCH($B$3,'Cost buildup Yr4'!$C$3:$AO$3,0),FALSE),0)*'Master Data'!$F$16 -> 90.46902568 | F23: =IFERROR(VLOOKUP($A23,'Cost buildup Yr5'!C:AO,MATCH($B$3,'Cost buildup Yr4'!$C$3:$AO$3,0),FALSE),0)*'Master Data'!$F$16 -> 92.00200397 | H23: =IFERROR(VLOOKUP($A23,'Volumes - Report Summary'!$A:$I,MATCH(H$5,'Volumes - Report Summary'!$A$6:$I$6,0),FALSE),0) -> 1 | I23: =IFERROR(VLOOKUP($A23,'Volumes - Report Summary'!$A:$I,MATCH(I$5,'Volumes - Report Summary'!$A$6:$I$6,0),FALSE),0) -> 1 | J23: =IFERROR(VLOOKUP($A23,'Volumes - Report Summary'!$A:$I,MATCH(J$5,'Volumes - Report Summary'!$A$6:$I$6,0),FALSE),0) -> 1 | K23: =IFERROR(VLOOKUP($A23,'Volumes - Report Summary'!$A:$I,MATCH(K$5,'Volumes - Report Summary'!$A$6:$I$6,0),FALSE),0) -> 1 | L23: =IFERROR(VLOOKUP($A23,'Volumes - Report Summary'!$A:$I,MATCH(L$5,'Volumes - Report Summary'!$A$6:$I$6,0),FALSE),0) -> 1 | N23: 86.52137896 | O23: 87.84565255 | P23: 89.61615156 | Q23: 90.46902568 | R23: 92.00200397
A24: ='Table of fees'!A21 -> Supply abolishment
A25: ='Table of fees'!B22 -> Remove service & meters | B25: =IFERROR(VLOOKUP(A25,'Cost buildup Yr1'!C:AO,MATCH($B$3,'Cost buildup Yr1'!$C$3:$AO$3,0),FALSE),0)*'Master Data'!$F$16 -> 248.3549827 | C25: =IFERROR(VLOOKUP($A25,'Cost buildup Yr2'!C:AO,MATCH($B$3,'Cost buildup Yr2'!$C$3:$AO$3,0),FALSE),0)*'Master Data'!$F$16 -> 251.1652672 | D25: =IFERROR(VLOOKUP($A25,'Cost buildup Yr3'!C:AO,MATCH($B$3,'Cost buildup Yr3'!$C$3:$AO$3,0),FALSE),0)*'Master Data'!$F$16 -> 255.3483016 | E25: =IFERROR(VLOOKUP($A25,'Cost buildup Yr4'!C:AO,MATCH($B$3,'Cost buildup Yr4'!$C$3:$AO$3,0),FALSE),0)*'Master Data'!$F$16 -> 256.372262 | F25: =IFERROR(VLOOKUP($A25,'Cost buildup Yr5'!C:AO,MATCH($B$3,'Cost buildup Yr4'!$C$3:$AO$3,0),FALSE),0)*'Master Data'!$F$16 -> 259.5193207 | H25: =IFERROR(VLOOKUP($A25,'Volumes - Report Summary'!$A:$I,MATCH(H$5,'Volumes - Report Summary'!$A$6:$I$6,0),FALSE),0) -> 336 | I25: =IFERROR(VLOOKUP($A25,'Volumes - Report Summary'!$A:$I,MATCH(I$5,'Volumes - Report Summary'!$A$6:$I$6,0),FALSE),0) -> 336 | J25: =IFERROR(VLOOKUP($A25,'Volumes - Report Summary'!$A:$I,MATCH(J$5,'Volumes - Report Summary'!$A$6:$I$6,0),FALSE),0) -> 336 | K25: =IFERROR(VLOOKUP($A25,'Volumes - Report Summary'!$A:$I,MATCH(K$5,'Volumes - Report Summary'!$A$6:$I$6,0),FALSE),0) -> 336 | L25: =IFERROR(VLOOKUP($A25,'Volumes - Report Summary'!$A:$I,MATCH(L$5,'Volumes - Report Summary'!$A$6:$I$6,0),FALSE),0) -> 336 | N25: =H25*B25 -> 83447.27417 | O25: 84391.52978 | P25: 85797.02933 | Q25: 86141.08003 | R25: 87198.49176
A26: ='Table of fees'!B23 -> Supply abolishment - after hours | B26: =IFERROR(VLOOKUP(A26,'Cost buildup Yr1'!C:AO,MATCH($B$3,'Cost buildup Yr1'!$C$3:$AO$3,0),FALSE),0)*'Master Data'!$F$16 -> 637.5185684 | C26: =IFERROR(VLOOKUP($A26,'Cost buildup Yr2'!C:AO,MATCH($B$3,'Cost buildup Yr2'!$C$3:$AO$3,0),FALSE),0)*'Master Data'!$F$16 -> 644.4791181 | D26: =IFERROR(VLOOKUP($A26,'Cost buildup Yr3'!C:AO,MATCH($B$3,'Cost buildup Yr3'!$C$3:$AO$3,0),FALSE),0)*'Master Data'!$F$16 -> 654.0989979 | E26: =IFERROR(VLOOKUP($A26,'Cost buildup Yr4'!C:AO,MATCH($B$3,'Cost buildup Yr4'!$C$3:$AO$3,0),FALSE),0)*'Master Data'!$F$16 -> 657.6461 | F26: =IFERROR(VLOOKUP($A26,'Cost buildup Yr5'!C:AO,MATCH($B$3,'Cost buildup Yr4'!$C$3:$AO$3,0),FALSE),0)*'Master Data'!$F$16 -> 665.3117557 | H26: =IFERROR(VLOOKUP($A26,'Volumes - Report Summary'!$A:$I,MATCH(H$5,'Volumes - Report Summary'!$A$6:$I$6,0),FALSE),0) -> 1 | I26: =IFERROR(VLOOKUP($A26,'Volumes - Report Summary'!$A:$I,MATCH(I$5,'Volumes - Report Summary'!$A$6:$I$6,0),FALSE),0) -> 1 | J26: =IFERROR(VLOOKUP($A26,'Volumes - Report Summary'!$A:$I,MATCH(J$5,'Volumes - Report Summary'!$A$6:$I$6,0),FALSE),0) -> 1 | K26: =IFERROR(VLOOKUP($A26,'Volumes - Report Summary'!$A:$I,MATCH(K$5,'Volumes - Report Summary'!$A$6:$I$6,0),FALSE),0) -> 1 | L26: =IFERROR(VLOOKUP($A26,'Volumes - Report Summary'!$A:$I,MATCH(L$5,'Volumes - Report Summary'!$A$6:$I$6,0),FALSE),0) -> 1 | N26: 637.5185684 | O26: 644.4791181 | P26: 654.0989979 | Q26: 657.6461 | R26: 665.3117557
A27: ='Table of fees'!B24 -> Supply abolishment - wasted visit | B27: =IFERROR(VLOOKUP(A27,'Cost buildup Yr1'!C:AO,MATCH($B$3,'Cost buildup Yr1'!$C$3:$AO$3,0),FALSE),0)*'Master Data'!$F$16 -> 166.988428 | C27: =IFERROR(VLOOKUP($A27,'Cost buildup Yr2'!C:AO,MATCH($B$3,'Cost buildup Yr2'!$C$3:$AO$3,0),FALSE),0)*'Master Data'!$F$16 -> 169.26869 | D27: =IFERROR(VLOOKUP($A27,'Cost buildup Yr3'!C:AO,MATCH($B$3,'Cost buildup Yr3'!$C$3:$AO$3,0),FALSE),0)*'Master Data'!$F$16 -> 172.4170441 | E27: =IFERROR(VLOOKUP($A27,'Cost buildup Yr4'!C:AO,MATCH($B$3,'Cost buildup Yr4'!$C$3:$AO$3,0),FALSE),0)*'Master Data'!$F$16 -> 173.6982689 | F27: =IFERROR(VLOOKUP($A27,'Cost buildup Yr5'!C:AO,MATCH($B$3,'Cost buildup Yr4'!$C$3:$AO$3,0),FALSE),0)*'Master Data'!$F$16 -> 176.3103403 | H27: =IFERROR(VLOOKUP($A27,'Volumes - Report Summary'!$A:$I,MATCH(H$5,'Volumes - Report Summary'!$A$6:$I$6,0),FALSE),0) -> 24 | I27: =IFERROR(VLOOKUP($A27,'Volumes - Report Summary'!$A:$I,MATCH(I$5,'Volumes - Report Summary'!$A$6:$I$6,0),FALSE),0) -> 24 | J27: =IFERROR(VLOOKUP($A27,'Volumes - Report Summary'!$A:$I,MATCH(J$5,'Volumes - Report Summary'!$A$6:$I$6,0),FALSE),0) -> 24 | K27: =IFERROR(VLOOKUP($A27,'Volumes - Report Summary'!$A:$I,MATCH(K$5,'Volumes - Report Summary'!$A$6:$I$6,0),FALSE),0) -> 24 | L27: =IFERROR(VLOOKUP($A27,'Volumes - Report Summary'!$A:$I,MATCH(L$5,'Volumes - Report Summary'!$A$6:$I$6,0),FALSE),0) -> 24 | N27: 4007.722273 | O27: 4062.448559 | P27: 4138.009058 | Q27: 4168.758454 | R27: 4231.448168
A28: ='Table of fees'!A25 -> Truck tee-up
A29: ='Table of fees'!B26 -> Tee-up/Appointment | B29: =IFERROR(VLOOKUP(A29,'Cost buildup Yr1'!C:AO,MATCH($B$3,'Cost buildup Yr1'!$C$3:$AO$3,0),FALSE),0)*'Master Data'!$F$16 -> 146.795735 | C29: =IFERROR(VLOOKUP($A29,'Cost buildup Yr2'!C:AO,MATCH($B$3,'Cost buildup Yr2'!$C$3:$AO$3,0),FALSE),0)*'Master Data'!$F$16 -> 148.5788244 | D29: =IFERROR(VLOOKUP($A29,'Cost buildup Yr3'!C:AO,MATCH($B$3,'Cost buildup Yr3'!$C$3:$AO$3,0),FALSE),0)*'Master Data'!$F$16 -> 151.0835757 | E29: =IFERROR(VLOOKUP($A29,'Cost buildup Yr4'!C:AO,MATCH($B$3,'Cost buildup Yr4'!$C$3:$AO$3,0),FALSE),0)*'Master Data'!$F$16 -> 151.9953212 | F29: =IFERROR(VLOOKUP($A29,'Cost buildup Yr5'!C:AO,MATCH($B$3,'Cost buildup Yr4'!$C$3:$AO$3,0),FALSE),0)*'Master Data'!$F$16 -> 154.0179793 | H29: =IFERROR(VLOOKUP($A29,'Volumes - Report Summary'!$A:$I,MATCH(H$5,'Volumes - Report Summary'!$A$6:$I$6,0),FALSE),0) -> 3300 | I29: =IFERROR(VLOOKUP($A29,'Volumes - Report Summary'!$A:$I,MATCH(I$5,'Volumes - Report Summary'!$A$6:$I$6,0),FALSE),0) -> 3300 | J29: =IFERROR(VLOOKUP($A29,'Volumes - Report Summary'!$A:$I,MATCH(J$5,'Volumes - Report Summary'!$A$6:$I$6,0),FALSE),0) -> 3300 | K29: =IFERROR(VLOOKUP($A29,'Volumes - Report Summary'!$A:$I,MATCH(K$5,'Volumes - Report Summary'!$A$6:$I$6,0),FALSE),0) -> 3300 | L29: =IFERROR(VLOOKUP($A29,'Volumes - Report Summary'!$A:$I,MATCH(L$5,'Volumes - Report Summary'!$A$6:$I$6,0),FALSE),0) -> 3300 | N29: =H29*B29 -> 484425.9254 | O29: 490310.1204 | P29: 498575.7997 | Q29: 501584.5599 | R29: 508259.3315
A30: ='Table of fees'!B27 -> Tee-up/Appointment – after hours | B30: =IFERROR(VLOOKUP(A30,'Cost buildup Yr1'!C:AO,MATCH($B$3,'Cost buildup Yr1'!$C$3:$AO$3,0),FALSE),0)*'Master Data'!$F$16 -> 637.5185684 | C30: =IFERROR(VLOOKUP($A30,'Cost buildup Yr2'!C:AO,MATCH($B$3,'Cost buildup Yr2'!$C$3:$AO$3,0),FALSE),0)*'Master Data'!$F$16 -> 644.4791181 | D30: =IFERROR(VLOOKUP($A30,'Cost buildup Yr3'!C:AO,MATCH($B$3,'Cost buildup Yr3'!$C$3:$AO$3,0),FALSE),0)*'Master Data'!$F$16 -> 654.0989979 | E30: =IFERROR(VLOOKUP($A30,'Cost buildup Yr4'!C:AO,MATCH($B$3,'Cost buildup Yr4'!$C$3:$AO$3,0),FALSE),0)*'Master Data'!$F$16 -> 657.6461 | F30: =IFERROR(VLOOKUP($A30,'Cost buildup Yr5'!C:AO,MATCH($B$3,'Cost buildup Yr4'!$C$3:$AO$3,0),FALSE),0)*'Master Data'!$F$16 -> 665.3117557 | H30: =IFERROR(VLOOKUP($A30,'Volumes - Report Summary'!$A:$I,MATCH(H$5,'Volumes - Report Summary'!$A$6:$I$6,0),FALSE),0) -> 1 | I30: =IFERROR(VLOOKUP($A30,'Volumes - Report Summary'!$A:$I,MATCH(I$5,'Volumes - Report Summary'!$A$6:$I$6,0),FALSE),0) -> 1 | J30: =IFERROR(VLOOKUP($A30,'Volumes - Report Summary'!$A:$I,MATCH(J$5,'Volumes - Report Summary'!$A$6:$I$6,0),FALSE),0) -> 1 | K30: =IFERROR(VLOOKUP($A30,'Volumes - Report Summary'!$A:$I,MATCH(K$5,'Volumes - Report Summary'!$A$6:$I$6,0),FALSE),0) -> 1 | L30: =IFERROR(VLOOKUP($A30,'Volumes - Report Summary'!$A:$I,MATCH(L$5,'Volumes - Report Summary'!$A$6:$I$6,0),FALSE),0) -> 1 | N30: 637.5185684 | O30: 644.4791181 | P30: 654.0989979 | Q30: 657.6461 | R30: 665.3117557
A31: ='Table of fees'!B28 -> Tee-up/Appointment – no truck – after hours | B31: =IFERROR(VLOOKUP(A31,'Cost buildup Yr1'!C:AO,MATCH($B$3,'Cost buildup Yr1'!$C$3:$AO$3,0),FALSE),0)*'Master Data'!$F$16 -> 366.7735267 | C31: =IFERROR(VLOOKUP($A31,'Cost buildup Yr2'!C:AO,MATCH($B$3,'Cost buildup Yr2'!$C$3:$AO$3,0),FALSE),0)*'Master Data'!$F$16 -> 372.1055772 | D31: =IFERROR(VLOOKUP($A31,'Cost buildup Yr3'!C:AO,MATCH($B$3,'Cost buildup Yr3'!$C$3:$AO$3,0),FALSE),0)*'Master Data'!$F$16 -> 378.9007921 | E31: =IFERROR(VLOOKUP($A31,'Cost buildup Yr4'!C:AO,MATCH($B$3,'Cost buildup Yr4'!$C$3:$AO$3,0),FALSE),0)*'Master Data'!$F$16 -> 382.7704403 | F31: =IFERROR(VLOOKUP($A31,'Cost buildup Yr5'!C:AO,MATCH($B$3,'Cost buildup Yr4'!$C$3:$AO$3,0),FALSE),0)*'Master Data'!$F$16 -> 388.8675991 | H31: =IFERROR(VLOOKUP($A31,'Volumes - Report Summary'!$A:$I,MATCH(H$5,'Volumes - Report Summary'!$A$6:$I$6,0),FALSE),0) -> 1 | I31: =IFERROR(VLOOKUP($A31,'Volumes - Report Summary'!$A:$I,MATCH(I$5,'Volumes - Report Summary'!$A$6:$I$6,0),FALSE),0) -> 1 | J31: =IFERROR(VLOOKUP($A31,'Volumes - Report Summary'!$A:$I,MATCH(J$5,'Volumes - Report Summary'!$A$6:$I$6,0),FALSE),0) -> 1 | K31: =IFERROR(VLOOKUP($A31,'Volumes - Report Summary'!$A:$I,MATCH(K$5,'Volumes - Report Summary'!$A$6:$I$6,0),FALSE),0) -> 1 | L31: =IFERROR(VLOOKUP($A31,'Volumes - Report Summary'!$A:$I,MATCH(L$5,'Volumes - Report Summary'!$A$6:$I$6,0),FALSE),0) -> 1 | N31: 366.7735267 | O31: 372.1055772 | P31: 378.9007921 | Q31: 382.7704403 | R31: 388.8675991
A32: ='Table of fees'!B29 -> Tee-up/Appointment – wasted visit | B32: =IFERROR(VLOOKUP(A32,'Cost buildup Yr1'!C:AO,MATCH($B$3,'Cost buildup Yr1'!$C$3:$AO$3,0),FALSE),0)*'Master Data'!$F$16 -> 101.5590198 | C32: =IFERROR(VLOOKUP($A32,'Cost buildup Yr2'!C:AO,MATCH($B$3,'Cost buildup Yr2'!$C$3:$AO$3,0),FALSE),0)*'Master Data'!$F$16 -> 103.0744418 | D32: =IFERROR(VLOOKUP($A32,'Cost buildup Yr3'!C:AO,MATCH($B$3,'Cost buildup Yr3'!$C$3:$AO$3,0),FALSE),0)*'Master Data'!$F$16 -> 105.0561927 | E32: =IFERROR(VLOOKUP($A32,'Cost buildup Yr4'!C:AO,MATCH($B$3,'Cost buildup Yr4'!$C$3:$AO$3,0),FALSE),0)*'Master Data'!$F$16 -> 106.1033765 | F32: =IFERROR(VLOOKUP($A32,'Cost buildup Yr5'!C:AO,MATCH($B$3,'Cost buildup Yr4'!$C$3:$AO$3,0),FALSE),0)*'Master Data'!$F$16 -> 107.8598485 | H32: =IFERROR(VLOOKUP($A32,'Volumes - Report Summary'!$A:$I,MATCH(H$5,'Volumes - Report Summary'!$A$6:$I$6,0),FALSE),0) -> 200 | I32: =IFERROR(VLOOKUP($A32,'Volumes - Report Summary'!$A:$I,MATCH(I$5,'Volumes - Report Summary'!$A$6:$I$6,0),FALSE),0) -> 200 | J32: =IFERROR(VLOOKUP($A32,'Volumes - Report Summary'!$A:$I,MATCH(J$5,'Volumes - Report Summary'!$A$6:$I$6,0),FALSE),0) -> 200 | K32: =IFERROR(VLOOKUP($A32,'Volumes - Report Summary'!$A:$I,MATCH(K$5,'Volumes - Report Summary'!$A$6:$I$6,0),FALSE),0) -> 200 | L32: =IFERROR(VLOOKUP($A32,'Volumes - Report Summary'!$A:$I,MATCH(L$5,'Volumes - Report Summary'!$A$6:$I$6,0),FALSE),0) -> 200 | N32: 20311.80396 | O32: 20614.88837 | P32: 21011.23855 | Q32: 21220.6753 | R32: 21571.96969
A33: ='Table of fees'!A30 -> Miscellaneous service
A34: ='Table of fees'!B31 -> Open turret | B34: =IFERROR(VLOOKUP(A34,'Cost buildup Yr1'!C:AO,MATCH($B$3,'Cost buildup Yr1'!$C$3:$AO$3,0),FALSE),0)*'Master Data'!$F$16 -> 129.8692317 | C34: =IFERROR(VLOOKUP($A34,'Cost buildup Yr2'!C:AO,MATCH($B$3,'Cost buildup Yr2'!$C$3:$AO$3,0),FALSE),0)*'Master Data'!$F$16 -> 131.3997507 | D34: =IFERROR(VLOOKUP($A34,'Cost buildup Yr3'!C:AO,MATCH($B$3,'Cost buildup Yr3'!$C$3:$AO$3,0),FALSE),0)*'Master Data'!$F$16 -> 133.5742102 | E34: =IFERROR(VLOOKUP($A34,'Cost buildup Yr4'!C:AO,MATCH($B$3,'Cost buildup Yr4'!$C$3:$AO$3,0),FALSE),0)*'Master Data'!$F$16 -> 134.3114251 | F34: =IFERROR(VLOOKUP($A34,'Cost buildup Yr5'!C:AO,MATCH($B$3,'Cost buildup Yr4'!$C$3:$AO$3,0),FALSE),0)*'Master Data'!$F$16 -> 136.0413378 | H34: =IFERROR(VLOOKUP($A34,'Volumes - Report Summary'!$A:$I,MATCH(H$5,'Volumes - Report Summary'!$A$6:$I$6,0),FALSE),0) -> 3 | I34: =IFERROR(VLOOKUP($A34,'Volumes - Report Summary'!$A:$I,MATCH(I$5,'Volumes - Report Summary'!$A$6:$I$6,0),FALSE),0) -> 3 | J34: =IFERROR(VLOOKUP($A34,'Volumes - Report Summary'!$A:$I,MATCH(J$5,'Volumes - Report Summary'!$A$6:$I$6,0),FALSE),0) -> 3 | K34: =IFERROR(VLOOKUP($A34,'Volumes - Report Summary'!$A:$I,MATCH(K$5,'Volumes - Report Summary'!$A$6:$I$6,0),FALSE),0) -> 3 | L34: =IFERROR(VLOOKUP($A34,'Volumes - Report Summary'!$A:$I,MATCH(L$5,'Volumes - Report Summary'!$A$6:$I$6,0),FALSE),0) -> 3 | N34: =H34*B34 -> 389.607695 | O34: 394.1992522 | P34: 400.7226306 | Q34: 402.9342753 | R34: 408.1240135
A35: ='Table of fees'!B32 -> Data download | B35: =IFERROR(VLOOKUP(A35,'Cost buildup Yr1'!C:AO,MATCH($B$3,'Cost buildup Yr1'!$C$3:$AO$3,0),FALSE),0)*'Master Data'!$F$16 -> 254.2701983 | C35: =IFERROR(VLOOKUP($A35,'Cost buildup Yr2'!C:AO,MATCH($B$3,'Cost buildup Yr2'!$C$3:$AO$3,0),FALSE),0)*'Master Data'!$F$16 -> 256.5368027 | D35: =IFERROR(VLOOKUP($A35,'Cost buildup Yr3'!C:AO,MATCH($B$3,'Cost buildup Yr3'!$C$3:$AO$3,0),FALSE),0)*'Master Data'!$F$16 -> 260.1495133 | E35: =IFERROR(VLOOKUP($A35,'Cost buildup Yr4'!C:AO,MATCH($B$3,'Cost buildup Yr4'!$C$3:$AO$3,0),FALSE),0)*'Master Data'!$F$16 -> 260.514273 | F35: =IFERROR(VLOOKUP($A35,'Cost buildup Yr5'!C:AO,MATCH($B$3,'Cost buildup Yr4'!$C$3:$AO$3,0),FALSE),0)*'Master Data'!$F$16 -> 262.9761975 | H35: =IFERROR(VLOOKUP($A35,'Volumes - Report Summary'!$A:$I,MATCH(H$5,'Volumes - Report Summary'!$A$6:$I$6,0),FALSE),0) -> 3 | I35: =IFERROR(VLOOKUP($A35,'Volumes - Report Summary'!$A:$I,MATCH(I$5,'Volumes - Report Summary'!$A$6:$I$6,0),FALSE),0) -> 3 | J35: =IFERROR(VLOOKUP($A35,'Volumes - Report Summary'!$A:$I,MATCH(J$5,'Volumes - Report Summary'!$A$6:$I$6,0),FALSE),0) -> 3 | K35: =IFERROR(VLOOKUP($A35,'Volumes - Report Summary'!$A:$I,MATCH(K$5,'Volumes - Report Summary'!$A$6:$I$6,0),FALSE),0) -> 3 | L35: =IFERROR(VLOOKUP($A35,'Volumes - Report Summary'!$A:$I,MATCH(L$5,'Volumes - Report Summary'!$A$6:$I$6,0),FALSE),0) -> 3 | N35: 762.810595 | O35: 769.610408 | P35: 780.4485398 | Q35: 781.542819 | R35: 788.9285925
A36: ='Table of fees'!B33 -> Alteration to unmetered supply | B36: =IFERROR(VLOOKUP(A36,'Cost buildup Yr1'!C:AO,MATCH($B$3,'Cost buildup Yr1'!$C$3:$AO$3,0),FALSE),0)*'Master Data'!$F$16 -> 197.7243044 | C36: =IFERROR(VLOOKUP($A36,'Cost buildup Yr2'!C:AO,MATCH($B$3,'Cost buildup Yr2'!$C$3:$AO$3,0),FALSE),0)*'Master Data'!$F$16 -> 199.6563245 | D36: =IFERROR(VLOOKUP($A36,'Cost buildup Yr3'!C:AO,MATCH($B$3,'Cost buildup Yr3'!$C$3:$AO$3,0),FALSE),0)*'Master Data'!$F$16 -> 202.6152846 | E36: =IFERROR(VLOOKUP($A36,'Cost buildup Yr4'!C:AO,MATCH($B$3,'Cost buildup Yr4'!$C$3:$AO$3,0),FALSE),0)*'Master Data'!$F$16 -> 203.1493421 | F36: =IFERROR(VLOOKUP($A36,'Cost buildup Yr5'!C:AO,MATCH($B$3,'Cost buildup Yr4'!$C$3:$AO$3,0),FALSE),0)*'Master Data'!$F$16 -> 205.278534 | H36: =IFERROR(VLOOKUP($A36,'Volumes - Report Summary'!$A:$I,MATCH(H$5,'Volumes - Report Summary'!$A$6:$I$6,0),FALSE),0) -> 3 | I36: =IFERROR(VLOOKUP($A36,'Volumes - Report Summary'!$A:$I,MATCH(I$5,'Volumes - Report Summary'!$A$6:$I$6,0),FALSE),0) -> 3 | J36: =IFERROR(VLOOKUP($A36,'Volumes - Report Summary'!$A:$I,MATCH(J$5,'Volumes - Report Summary'!$A$6:$I$6,0),FALSE),0) -> 3 | K36: =IFERROR(VLOOKUP($A36,'Volumes - Report Summary'!$A:$I,MATCH(K$5,'Volumes - Report Summary'!$A$6:$I$6,0),FALSE),0) -> 3 | L36: =IFERROR(VLOOKUP($A36,'Volumes - Report Summary'!$A:$I,MATCH(L$5,'Volumes - Report Summary'!$A$6:$I$6,0),FALSE),0) -> 3 | N36: 593.1729132 | O36: 598.9689736 | P36: 607.8458538 | Q36: 609.4480264 | R36: 615.8356021
A37: ='Table of fees'!B34 -> Meter Relocation | B37: =IFERROR(VLOOKUP(A37,'Cost buildup Yr1'!C:AO,MATCH($B$3,'Cost buildup Yr1'!$C$3:$AO$3,0),FALSE),0)*'Master Data'!$F$16 -> 154.6952614 | C37: =IFERROR(VLOOKUP($A37,'Cost buildup Yr2'!C:AO,MATCH($B$3,'Cost buildup Yr2'!$C$3:$AO$3,0),FALSE),0)*'Master Data'!$F$16 -> 156.4815422 | D37: =IFERROR(VLOOKUP($A37,'Cost buildup Yr3'!C:AO,MATCH($B$3,'Cost buildup Yr3'!$C$3:$AO$3,0),FALSE),0)*'Master Data'!$F$16 -> 159.15363 | E37: =IFERROR(VLOOKUP($A37,'Cost buildup Yr4'!C:AO,MATCH($B$3,'Cost buildup Yr4'!$C$3:$AO$3,0),FALSE),0)*'Master Data'!$F$16 -> 159.7859145 | F37: =IFERROR(VLOOKUP($A37,'Cost buildup Yr5'!C:AO,MATCH($B$3,'Cost buildup Yr4'!$C$3:$AO$3,0),FALSE),0)*'Master Data'!$F$16 -> 161.7878744 | H37: =IFERROR(VLOOKUP($A37,'Volumes - Report Summary'!$A:$I,MATCH(H$5,'Volumes - Report Summary'!$A$6:$I$6,0),FALSE),0) -> 3 | I37: =IFERROR(VLOOKUP($A37,'Volumes - Report Summary'!$A:$I,MATCH(I$5,'Volumes - Report Summary'!$A$6:$I$6,0),FALSE),0) -> 3 | J37: =IFERROR(VLOOKUP($A37,'Volumes - Report Summary'!$A:$I,MATCH(J$5,'Volumes - Report Summary'!$A$6:$I$6,0),FALSE),0) -> 3 | K37: =IFERROR(VLOOKUP($A37,'Volumes - Report Summary'!$A:$I,MATCH(K$5,'Volumes - Report Summary'!$A$6:$I$6,0),FALSE),0) -> 3 | L37: =IFERROR(VLOOKUP($A37,'Volumes - Report Summary'!$A:$I,MATCH(L$5,'Volumes - Report Summary'!$A$6:$I$6,0),FALSE),0) -> 3 | N37: 464.0857842 | O37: 469.4446265 | P37: 477.46089 | Q37: 479.3577434 | R37: 485.3636233
A38: ='Table of fees'!B35 -> Tiger tails - standard single/multi phase | B38: =IFERROR(VLOOKUP(A38,'Cost buildup Yr1'!C:AO,MATCH($B$3,'Cost buildup Yr1'!$C$3:$AO$3,0),FALSE),0)*'Master Data'!$F$16 -> 548.8978148 | C38: =IFERROR(VLOOKUP($A38,'Cost buildup Yr2'!C:AO,MATCH($B$3,'Cost buildup Yr2'!$C$3:$AO$3,0),FALSE),0)*'Master Data'!$F$16 -> 552.5426799 | D38: =IFERROR(VLOOKUP($A38,'Cost buildup Yr3'!C:AO,MATCH($B$3,'Cost buildup Yr3'!$C$3:$AO$3,0),FALSE),0)*'Master Data'!$F$16 -> 558.8554737 | E38: =IFERROR(VLOOKUP($A38,'Cost buildup Yr4'!C:AO,MATCH($B$3,'Cost buildup Yr4'!$C$3:$AO$3,0),FALSE),0)*'Master Data'!$F$16 -> 558.4407389 | F38: =IFERROR(VLOOKUP($A38,'Cost buildup Yr5'!C:AO,MATCH($B$3,'Cost buildup Yr4'!$C$3:$AO$3,0),FALSE),0)*'Master Data'!$F$16 -> 562.2139396 | H38: =IFERROR(VLOOKUP($A38,'Volumes - Report Summary'!$A:$I,MATCH(H$5,'Volumes - Report Summary'!$A$6:$I$6,0),FALSE),0) -> 3 | I38: =IFERROR(VLOOKUP($A38,'Volumes - Report Summary'!$A:$I,MATCH(I$5,'Volumes - Report Summary'!$A$6:$I$6,0),FALSE),0) -> 3 | J38: =IFERROR(VLOOKUP($A38,'Volumes - Report Summary'!$A:$I,MATCH(J$5,'Volumes - Report Summary'!$A$6:$I$6,0),FALSE),0) -> 3 | K38: =IFERROR(VLOOKUP($A38,'Volumes - Report Summary'!$A:$I,MATCH(K$5,'Volumes - Report Summary'!$A$6:$I$6,0),FALSE),0) -> 3 | L38: =IFERROR(VLOOKUP($A38,'Volumes - Report Summary'!$A:$I,MATCH(L$5,'Volumes - Report Summary'!$A$6:$I$6,0),FALSE),0) -> 3 | N38: =H38*B38 -> 1646.693445 | O38: =I38*C38 -> 1657.62804 | P38: =J38*D38 -> 1676.566421 | Q38: =K38*E38 -> 1675.322217 | R38: =L38*F38 -> 1686.641819
A39: ='Table of fees'!B36 -> Tiger tails - scaffolding single phase | B39: =IFERROR(VLOOKUP(A39,'Cost buildup Yr1'!C:AO,MATCH($B$3,'Cost buildup Yr1'!$C$3:$AO$3,0),FALSE),0)*'Master Data'!$F$16 -> 861.3845302 | C39: =IFERROR(VLOOKUP($A39,'Cost buildup Yr2'!C:AO,MATCH($B$3,'Cost buildup Yr2'!$C$3:$AO$3,0),FALSE),0)*'Master Data'!$F$16 -> 866.6593538 | D39: =IFERROR(VLOOKUP($A39,'Cost buildup Yr3'!C:AO,MATCH($B$3,'Cost buildup Yr3'!$C$3:$AO$3,0),FALSE),0)*'Master Data'!$F$16 -> 876.1611987 | E39: =IFERROR(VLOOKUP($A39,'Cost buildup Yr4'!C:AO,MATCH($B$3,'Cost buildup Yr4'!$C$3:$AO$3,0),FALSE),0)*'Master Data'!$F$16 -> 874.8724525 | F39: =IFERROR(VLOOKUP($A39,'Cost buildup Yr5'!C:AO,MATCH($B$3,'Cost buildup Yr4'!$C$3:$AO$3,0),FALSE),0)*'Master Data'!$F$16 -> 880.2309772 | H39: =IFERROR(VLOOKUP($A39,'Volumes - Report Summary'!$A:$I,MATCH(H$5,'Volumes - Report Summary'!$A$6:$I$6,0),FALSE),0) -> 3 | I39: =IFERROR(VLOOKUP($A39,'Volumes - Report Summary'!$A:$I,MATCH(I$5,'Volumes - Report Summary'!$A$6:$I$6,0),FALSE),0) -> 3 | J39: =IFERROR(VLOOKUP($A39,'Volumes - Report Summary'!$A:$I,MATCH(J$5,'Volumes - Report Summary'!$A$6:$I$6,0),FALSE),0) -> 3 | K39: =IFERROR(VLOOKUP($A39,'Volumes - Report Summary'!$A:$I,MATCH(K$5,'Volumes - Report Summary'!$A$6:$I$6,0),FALSE),0) -> 3 | L39: =IFERROR(VLOOKUP($A39,'Volumes - Report Summary'!$A:$I,MATCH(L$5,'Volumes - Report Summary'!$A$6:$I$6,0),FALSE),0) -> 3 | N39: =H39*B39 -> 2584.153591 | O39: =I39*C39 -> 2599.978061 | P39: =J39*D39 -> 2628.483596 | Q39: =K39*E39 -> 2624.617358 | R39: =L39*F39 -> 2640.692932
A40: ='Table of fees'!B37 -> Tiger tails - scaffolding multi phase | B40: =IFERROR(VLOOKUP(A40,'Cost buildup Yr1'!C:AO,MATCH($B$3,'Cost buildup Yr1'!$C$3:$AO$3,0),FALSE),0)*'Master Data'!$F$16 -> 942.7510848 | C40: =IFERROR(VLOOKUP($A40,'Cost buildup Yr2'!C:AO,MATCH($B$3,'Cost buildup Yr2'!$C$3:$AO$3,0),FALSE),0)*'Master Data'!$F$16 -> 948.5559311 | D40: =IFERROR(VLOOKUP($A40,'Cost buildup Yr3'!C:AO,MATCH($B$3,'Cost buildup Yr3'!$C$3:$AO$3,0),FALSE),0)*'Master Data'!$F$16 -> 959.0924562 | E40: =IFERROR(VLOOKUP($A40,'Cost buildup Yr4'!C:AO,MATCH($B$3,'Cost buildup Yr4'!$C$3:$AO$3,0),FALSE),0)*'Master Data'!$F$16 -> 957.5464456 | F40: =IFERROR(VLOOKUP($A40,'Cost buildup Yr5'!C:AO,MATCH($B$3,'Cost buildup Yr4'!$C$3:$AO$3,0),FALSE),0)*'Master Data'!$F$16 -> 963.4399576 | H40: =IFERROR(VLOOKUP($A40,'Volumes - Report Summary'!$A:$I,MATCH(H$5,'Volumes - Report Summary'!$A$6:$I$6,0),FALSE),0) -> 3 | I40: =IFERROR(VLOOKUP($A40,'Volumes - Report Summary'!$A:$I,MATCH(I$5,'Volumes - Report Summary'!$A$6:$I$6,0),FALSE),0) -> 3 | J40: =IFERROR(VLOOKUP($A40,'Volumes - Report Summary'!$A:$I,MATCH(J$5,'Volumes - Report Summary'!$A$6:$I$6,0),FALSE),0) -> 3 | K40: =IFERROR(VLOOKUP($A40,'Volumes - Report Summary'!$A:$I,MATCH(K$5,'Volumes - Report Summary'!$A$6:$I$6,0),FALSE),0) -> 3 | L40: =IFERROR(VLOOKUP($A40,'Volumes - Report Summary'!$A:$I,MATCH(L$5,'Volumes - Report Summary'!$A$6:$I$6,0),FALSE),0) -> 3 | N40: 2828.253254 | O40: 2845.667793 | P40: 2877.277369 | Q40: 2872.639337 | R40: 2890.319873
A41: ='Table of fees'!B38 -> Miscellaneous service | B41: =IFERROR(VLOOKUP(A41,'Cost buildup Yr1'!C:AO,MATCH($B$3,'Cost buildup Yr1'!$C$3:$AO$3,0),FALSE),0)*'Master Data'!$F$16 -> 118.5600529 | C41: =IFERROR(VLOOKUP($A41,'Cost buildup Yr2'!C:AO,MATCH($B$3,'Cost buildup Yr2'!$C$3:$AO$3,0),FALSE),0)*'Master Data'!$F$16 -> 120.0236551 | D41: =IFERROR(VLOOKUP($A41,'Cost buildup Yr3'!C:AO,MATCH($B$3,'Cost buildup Yr3'!$C$3:$AO$3,0),FALSE),0)*'Master Data'!$F$16 -> 122.0673645 | E41: =IFERROR(VLOOKUP($A41,'Cost buildup Yr4'!C:AO,MATCH($B$3,'Cost buildup Yr4'!$C$3:$AO$3,0),FALSE),0)*'Master Data'!$F$16 -> 122.8384389 | F41: =IFERROR(VLOOKUP($A41,'Cost buildup Yr5'!C:AO,MATCH($B$3,'Cost buildup Yr4'!$C$3:$AO$3,0),FALSE),0)*'Master Data'!$F$16 -> 124.5018051 | H41: =IFERROR(VLOOKUP($A41,'Volumes - Report Summary'!$A:$I,MATCH(H$5,'Volumes - Report Summary'!$A$6:$I$6,0),FALSE),0) -> 6 | I41: =IFERROR(VLOOKUP($A41,'Volumes - Report Summary'!$A:$I,MATCH(I$5,'Volumes - Report Summary'!$A$6:$I$6,0),FALSE),0) -> 6 | J41: =IFERROR(VLOOKUP($A41,'Volumes - Report Summary'!$A:$I,MATCH(J$5,'Volumes - Report Summary'!$A$6:$I$6,0),FALSE),0) -> 6 | K41: =IFERROR(VLOOKUP($A41,'Volumes - Report Summary'!$A:$I,MATCH(K$5,'Volumes - Report Summary'!$A$6:$I$6,0),FALSE),0) -> 6 | L41: =IFERROR(VLOOKUP($A41,'Volumes - Report Summary'!$A:$I,MATCH(L$5,'Volumes - Report Summary'!$A$6:$I$6,0),FALSE),0) -> 6 | N41: 711.3603173 | O41: 720.1419306 | P41: 732.4041869 | Q41: 737.0306336 | R41: 747.0108309
A42: ='Table of fees'!B39 -> Miscellaneous service – after hours | B42: =IFERROR(VLOOKUP(A42,'Cost buildup Yr1'!C:AO,MATCH($B$3,'Cost buildup Yr1'!$C$3:$AO$3,0),FALSE),0)*'Master Data'!$F$16 -> 554.2814303 | C42: =IFERROR(VLOOKUP($A42,'Cost buildup Yr2'!C:AO,MATCH($B$3,'Cost buildup Yr2'!$C$3:$AO$3,0),FALSE),0)*'Master Data'!$F$16 -> 560.5398398 | D42: =IFERROR(VLOOKUP($A42,'Cost buildup Yr3'!C:AO,MATCH($B$3,'Cost buildup Yr3'!$C$3:$AO$3,0),FALSE),0)*'Master Data'!$F$16 -> 568.9504236 | E42: =IFERROR(VLOOKUP($A42,'Cost buildup Yr4'!C:AO,MATCH($B$3,'Cost buildup Yr4'!$C$3:$AO$3,0),FALSE),0)*'Master Data'!$F$16 -> 572.5854352 | F42: =IFERROR(VLOOKUP($A42,'Cost buildup Yr5'!C:AO,MATCH($B$3,'Cost buildup Yr4'!$C$3:$AO$3,0),FALSE),0)*'Master Data'!$F$16 -> 579.5433293 | H42: =IFERROR(VLOOKUP($A42,'Volumes - Report Summary'!$A:$I,MATCH(H$5,'Volumes - Report Summary'!$A$6:$I$6,0),FALSE),0) -> 3 | I42: =IFERROR(VLOOKUP($A42,'Volumes - Report Summary'!$A:$I,MATCH(I$5,'Volumes - Report Summary'!$A$6:$I$6,0),FALSE),0) -> 3 | J42: =IFERROR(VLOOKUP($A42,'Volumes - Report Summary'!$A:$I,MATCH(J$5,'Volumes - Report Summary'!$A$6:$I$6,0),FALSE),0) -> 3 | K42: =IFERROR(VLOOKUP($A42,'Volumes - Report Summary'!$A:$I,MATCH(K$5,'Volumes - Report Summary'!$A$6:$I$6,0),FALSE),0) -> 3 | L42: =IFERROR(VLOOKUP($A42,'Volumes - Report Summary'!$A:$I,MATCH(L$5,'Volumes - Report Summary'!$A$6:$I$6,0),FALSE),0) -> 3 | N42: 1662.844291 | O42: 1681.619519 | P42: 1706.851271 | Q42: 1717.756306 | R42: 1738.629988
A43: ='Table of fees'!B40 -> Miscellaneous service – wasted visit | B43: =IFERROR(VLOOKUP(A43,'Cost buildup Yr1'!C:AO,MATCH($B$3,'Cost buildup Yr1'!$C$3:$AO$3,0),FALSE),0)*'Master Data'!$F$16 -> 95.94169531 | C43: =IFERROR(VLOOKUP($A43,'Cost buildup Yr2'!C:AO,MATCH($B$3,'Cost buildup Yr2'!$C$3:$AO$3,0),FALSE),0)*'Master Data'!$F$16 -> 97.27146383 | D43: =IFERROR(VLOOKUP($A43,'Cost buildup Yr3'!C:AO,MATCH($B$3,'Cost buildup Yr3'!$C$3:$AO$3,0),FALSE),0)*'Master Data'!$F$16 -> 99.05367301 | E43: =IFERROR(VLOOKUP($A43,'Cost buildup Yr4'!C:AO,MATCH($B$3,'Cost buildup Yr4'!$C$3:$AO$3,0),FALSE),0)*'Master Data'!$F$16 -> 99.8924666 | F43: =IFERROR(VLOOKUP($A43,'Cost buildup Yr5'!C:AO,MATCH($B$3,'Cost buildup Yr4'!$C$3:$AO$3,0),FALSE),0)*'Master Data'!$F$16 -> 101.4227398 | H43: =IFERROR(VLOOKUP($A43,'Volumes - Report Summary'!$A:$I,MATCH(H$5,'Volumes - Report Summary'!$A$6:$I$6,0),FALSE),0) -> 3 | I43: =IFERROR(VLOOKUP($A43,'Volumes - Report Summary'!$A:$I,MATCH(I$5,'Volumes - Report Summary'!$A$6:$I$6,0),FALSE),0) -> 3 | J43: =IFERROR(VLOOKUP($A43,'Volumes - Report Summary'!$A:$I,MATCH(J$5,'Volumes - Report Summary'!$A$6:$I$6,0),FALSE),0) -> 3 | K43: =IFERROR(VLOOKUP($A43,'Volumes - Report Summary'!$A:$I,MATCH(K$5,'Volumes - Report Summary'!$A$6:$I$6,0),FALSE),0) -> 3 | L43: =IFERROR(VLOOKUP($A43,'Volumes - Report Summary'!$A:$I,MATCH(L$5,'Volumes - Report Summary'!$A$6:$I$6,0),FALSE),0) -> 3 | N43: 287.8250859 | O43: 291.8143915 | P43: 297.161019 | Q43: 299.6773998 | R43: 304.2682193
A44: ='Table of fees'!B41 -> Administration | B44: =IFERROR(VLOOKUP(A44,'Cost buildup Yr1'!C:AO,MATCH($B$3,'Cost buildup Yr1'!$C$3:$AO$3,0),FALSE),0)*'Master Data'!$F$16 -> 48.47262574 | C44: =IFERROR(VLOOKUP($A44,'Cost buildup Yr2'!C:AO,MATCH($B$3,'Cost buildup Yr2'!$C$3:$AO$3,0),FALSE),0)*'Master Data'!$F$16 -> 49.20306233 | D44: =IFERROR(VLOOKUP($A44,'Cost buildup Yr3'!C:AO,MATCH($B$3,'Cost buildup Yr3'!$C$3:$AO$3,0),FALSE),0)*'Master Data'!$F$16 -> 49.99717176 | E44: =IFERROR(VLOOKUP($A44,'Cost buildup Yr4'!C:AO,MATCH($B$3,'Cost buildup Yr4'!$C$3:$AO$3,0),FALSE),0)*'Master Data'!$F$16 -> 50.73112988 | F44: =IFERROR(VLOOKUP($A44,'Cost buildup Yr5'!C:AO,MATCH($B$3,'Cost buildup Yr4'!$C$3:$AO$3,0),FALSE),0)*'Master Data'!$F$16 -> 51.55774901 | H44: =IFERROR(VLOOKUP($A44,'Volumes - Report Summary'!$A:$I,MATCH(H$5,'Volumes - Report Summary'!$A$6:$I$6,0),FALSE),0) -> 2 | I44: =IFERROR(VLOOKUP($A44,'Volumes - Report Summary'!$A:$I,MATCH(I$5,'Volumes - Report Summary'!$A$6:$I$6,0),FALSE),0) -> 2 | J44: =IFERROR(VLOOKUP($A44,'Volumes - Report Summary'!$A:$I,MATCH(J$5,'Volumes - Report Summary'!$A$6:$I$6,0),FALSE),0) -> 2 | K44: =IFERROR(VLOOKUP($A44,'Volumes - Report Summary'!$A:$I,MATCH(K$5,'Volumes - Report Summary'!$A$6:$I$6,0),FALSE),0) -> 2 | L44: =IFERROR(VLOOKUP($A44,'Volumes - Report Summary'!$A:$I,MATCH(L$5,'Volumes - Report Summary'!$A$6:$I$6,0),FALSE),0) -> 2 | N44: =H44*B44 -> 96.94525147 | O44: =I44*C44 -> 98.40612466 | P44: =J44*D44 -> 99.99434351 | Q44: =K44*E44 -> 101.4622598 | R44: =L44*F44 -> 103.115498
A45: ='Table of fees'!B42 -> Statutory right - access prevented | B45: =IFERROR(VLOOKUP(A45,'Cost buildup Yr1'!C:AO,MATCH($B$3,'Cost buildup Yr1'!$C$3:$AO$3,0),FALSE),0)*'Master Data'!$F$16 -> 870.6095828 | C45: =IFERROR(VLOOKUP($A45,'Cost buildup Yr2'!C:AO,MATCH($B$3,'Cost buildup Yr2'!$C$3:$AO$3,0),FALSE),0)*'Master Data'!$F$16 -> 875.8503983 | D45: =IFERROR(VLOOKUP($A45,'Cost buildup Yr3'!C:AO,MATCH($B$3,'Cost buildup Yr3'!$C$3:$AO$3,0),FALSE),0)*'Master Data'!$F$16 -> 881.7270989 | E45: =IFERROR(VLOOKUP($A45,'Cost buildup Yr4'!C:AO,MATCH($B$3,'Cost buildup Yr4'!$C$3:$AO$3,0),FALSE),0)*'Master Data'!$F$16 -> 885.2895333 | F45: =IFERROR(VLOOKUP($A45,'Cost buildup Yr5'!C:AO,MATCH($B$3,'Cost buildup Yr4'!$C$3:$AO$3,0),FALSE),0)*'Master Data'!$F$16 -> 889.9647434 | H45: =IFERROR(VLOOKUP($A45,'Volumes - Report Summary'!$A:$I,MATCH(H$5,'Volumes - Report Summary'!$A$6:$I$6,0),FALSE),0) -> 1 | I45: =IFERROR(VLOOKUP($A45,'Volumes - Report Summary'!$A:$I,MATCH(I$5,'Volumes - Report Summary'!$A$6:$I$6,0),FALSE),0) -> 1 | J45: =IFERROR(VLOOKUP($A45,'Volumes - Report Summary'!$A:$I,MATCH(J$5,'Volumes - Report Summary'!$A$6:$I$6,0),FALSE),0) -> 1 | K45: =IFERROR(VLOOKUP($A45,'Volumes - Report Summary'!$A:$I,MATCH(K$5,'Volumes - Report Summary'!$A$6:$I$6,0),FALSE),0) -> 1 | L45: =IFERROR(VLOOKUP($A45,'Volumes - Report Summary'!$A:$I,MATCH(L$5,'Volumes - Report Summary'!$A$6:$I$6,0),FALSE),0) -> 1 | N45: =H45*B45 -> 870.6095828 | O45: =I45*C45 -> 875.8503983 | P45: =J45*D45 -> 881.7270989 | Q45: =K45*E45 -> 885.2895333 | R45: =L45*F45 -> 889.9647434
A46: ='Table of fees'!B43 -> Tariff change | B46: =IFERROR(VLOOKUP(A46,'Cost buildup Yr1'!C:AO,MATCH($B$3,'Cost buildup Yr1'!$C$3:$AO$3,0),FALSE),0)*'Master Data'!$F$16 -> 48.47262574 | C46: =IFERROR(VLOOKUP($A46,'Cost buildup Yr2'!C:AO,MATCH($B$3,'Cost buildup Yr2'!$C$3:$AO$3,0),FALSE),0)*'Master Data'!$F$16 -> 49.20306233 | D46: =IFERROR(VLOOKUP($A46,'Cost buildup Yr3'!C:AO,MATCH($B$3,'Cost buildup Yr3'!$C$3:$AO$3,0),FALSE),0)*'Master Data'!$F$16 -> 49.99717176 | E46: =IFERROR(VLOOKUP($A46,'Cost buildup Yr4'!C:AO,MATCH($B$3,'Cost buildup Yr4'!$C$3:$AO$3,0),FALSE),0)*'Master Data'!$F$16 -> 50.73112988 | F46: =IFERROR(VLOOKUP($A46,'Cost buildup Yr5'!C:AO,MATCH($B$3,'Cost buildup Yr4'!$C$3:$AO$3,0),FALSE),0)*'Master Data'!$F$16 -> 51.55774901 | H46: =IFERROR(VLOOKUP($A46,'Volumes - Report Summary'!$A:$I,MATCH(H$5,'Volumes - Report Summary'!$A$6:$I$6,0),FALSE),0) -> 1 | I46: =IFERROR(VLOOKUP($A46,'Volumes - Report Summary'!$A:$I,MATCH(I$5,'Volumes - Report Summary'!$A$6:$I$6,0),FALSE),0) -> 1 | J46: =IFERROR(VLOOKUP($A46,'Volumes - Report Summary'!$A:$I,MATCH(J$5,'Volumes - Report Summary'!$A$6:$I$6,0),FALSE),0) -> 1 | K46: =IFERROR(VLOOKUP($A46,'Volumes - Report Summary'!$A:$I,MATCH(K$5,'Volumes - Report Summary'!$A$6:$I$6,0),FALSE),0) -> 1 | L46: =IFERROR(VLOOKUP($A46,'Volumes - Report Summary'!$A:$I,MATCH(L$5,'Volumes - Report Summary'!$A$6:$I$6,0),FALSE),0) -> 1 | N46: =H46*B46 -> 48.47262574 | O46: =I46*C46 -> 49.20306233 | P46: =J46*D46 -> 49.99717176 | Q46: =K46*E46 -> 50.73112988 | R46: =L46*F46 -> 51.55774901
A47: ='Table of fees'!B44 -> Emergency maintenance contestable meters | B47: =IFERROR(VLOOKUP(A47,'Cost buildup Yr1'!C:AO,MATCH($B$3,'Cost buildup Yr1'!$C$3:$AO$3,0),FALSE),0)*'Master Data'!$F$16 -> 63.14747641 | C47: =IFERROR(VLOOKUP($A47,'Cost buildup Yr2'!C:AO,MATCH($B$3,'Cost buildup Yr2'!$C$3:$AO$3,0),FALSE),0)*'Master Data'!$F$16 -> 64.31334755 | D47: =IFERROR(VLOOKUP($A47,'Cost buildup Yr3'!C:AO,MATCH($B$3,'Cost buildup Yr3'!$C$3:$AO$3,0),FALSE),0)*'Master Data'!$F$16 -> 65.77473039 | E47: =IFERROR(VLOOKUP($A47,'Cost buildup Yr4'!C:AO,MATCH($B$3,'Cost buildup Yr4'!$C$3:$AO$3,0),FALSE),0)*'Master Data'!$F$16 -> 66.70323524 | F47: =IFERROR(VLOOKUP($A47,'Cost buildup Yr5'!C:AO,MATCH($B$3,'Cost buildup Yr4'!$C$3:$AO$3,0),FALSE),0)*'Master Data'!$F$16 -> 68.07541982 | H47: =IFERROR(VLOOKUP($A47,'Volumes - Report Summary'!$A:$I,MATCH(H$5,'Volumes - Report Summary'!$A$6:$I$6,0),FALSE),0) -> 1 | I47: =IFERROR(VLOOKUP($A47,'Volumes - Report Summary'!$A:$I,MATCH(I$5,'Volumes - Report Summary'!$A$6:$I$6,0),FALSE),0) -> 1 | J47: =IFERROR(VLOOKUP($A47,'Volumes - Report Summary'!$A:$I,MATCH(J$5,'Volumes - Report Summary'!$A$6:$I$6,0),FALSE),0) -> 1 | K47: =IFERROR(VLOOKUP($A47,'Volumes - Report Summary'!$A:$I,MATCH(K$5,'Volumes - Report Summary'!$A$6:$I$6,0),FALSE),0) -> 1 | L47: =IFERROR(VLOOKUP($A47,'Volumes - Report Summary'!$A:$I,MATCH(L$5,'Volumes - Report Summary'!$A$6:$I$6,0),FALSE),0) -> 1 | N47: 63.14747641 | O47: 64.31334755 | P47: 65.77473039 | Q47: 66.70323524 | R47: 68.07541982
A48: ='Table of fees'!B45 -> Emergency maintenance contestable meters - after hours | B48: =IFERROR(VLOOKUP(A48,'Cost buildup Yr1'!C:AO,MATCH($B$3,'Cost buildup Yr1'!$C$3:$AO$3,0),FALSE),0)*'Master Data'!$F$16 -> 366.7735267 | C48: =IFERROR(VLOOKUP($A48,'Cost buildup Yr2'!C:AO,MATCH($B$3,'Cost buildup Yr2'!$C$3:$AO$3,0),FALSE),0)*'Master Data'!$F$16 -> 372.1055772 | D48: =IFERROR(VLOOKUP($A48,'Cost buildup Yr3'!C:AO,MATCH($B$3,'Cost buildup Yr3'!$C$3:$AO$3,0),FALSE),0)*'Master Data'!$F$16 -> 378.9007921 | E48: =IFERROR(VLOOKUP($A48,'Cost buildup Yr4'!C:AO,MATCH($B$3,'Cost buildup Yr4'!$C$3:$AO$3,0),FALSE),0)*'Master Data'!$F$16 -> 382.7704403 | F48: =IFERROR(VLOOKUP($A48,'Cost buildup Yr5'!C:AO,MATCH($B$3,'Cost buildup Yr4'!$C$3:$AO$3,0),FALSE),0)*'Master Data'!$F$16 -> 388.8675991 | H48: =IFERROR(VLOOKUP($A48,'Volumes - Report Summary'!$A:$I,MATCH(H$5,'Volumes - Report Summary'!$A$6:$I$6,0),FALSE),0) -> 1 | I48: =IFERROR(VLOOKUP($A48,'Volumes - Report Summary'!$A:$I,MATCH(I$5,'Volumes - Report Summary'!$A$6:$I$6,0),FALSE),0) -> 1 | J48: =IFERROR(VLOOKUP($A48,'Volumes - Report Summary'!$A:$I,MATCH(J$5,'Volumes - Report Summary'!$A$6:$I$6,0),FALSE),0) -> 1 | K48: =IFERROR(VLOOKUP($A48,'Volumes - Report Summary'!$A:$I,MATCH(K$5,'Volumes - Report Summary'!$A$6:$I$6,0),FALSE),0) -> 1 | L48: =IFERROR(VLOOKUP($A48,'Volumes - Report Summary'!$A:$I,MATCH(L$5,'Volumes - Report Summary'!$A$6:$I$6,0),FALSE),0) -> 1 | N48: =H48*B48 -> 366.7735267 | O48: =I48*C48 -> 372.1055772 | P48: =J48*D48 -> 378.9007921 | Q48: =K48*E48 -> 382.7704403 | R48: =L48*F48 -> 388.8675991
A49: ='Table of fees'!B46 -> Meter recovery and disposal | B49: =IFERROR(VLOOKUP(A49,'Cost buildup Yr1'!C:AO,MATCH($B$3,'Cost buildup Yr1'!$C$3:$AO$3,0),FALSE),0)*'Master Data'!$F$16 -> 91.31384163 | C49: =IFERROR(VLOOKUP($A49,'Cost buildup Yr2'!C:AO,MATCH($B$3,'Cost buildup Yr2'!$C$3:$AO$3,0),FALSE),0)*'Master Data'!$F$16 -> 92.70123082 | D49: =IFERROR(VLOOKUP($A49,'Cost buildup Yr3'!C:AO,MATCH($B$3,'Cost buildup Yr3'!$C$3:$AO$3,0),FALSE),0)*'Master Data'!$F$16 -> 94.59437915 | E49: =IFERROR(VLOOKUP($A49,'Cost buildup Yr4'!C:AO,MATCH($B$3,'Cost buildup Yr4'!$C$3:$AO$3,0),FALSE),0)*'Master Data'!$F$16 -> 95.42313425 | F49: =IFERROR(VLOOKUP($A49,'Cost buildup Yr5'!C:AO,MATCH($B$3,'Cost buildup Yr4'!$C$3:$AO$3,0),FALSE),0)*'Master Data'!$F$16 -> 97.02453039 | H49: =IFERROR(VLOOKUP($A49,'Volumes - Report Summary'!$A:$I,MATCH(H$5,'Volumes - Report Summary'!$A$6:$I$6,0),FALSE),0) -> 1 | I49: =IFERROR(VLOOKUP($A49,'Volumes - Report Summary'!$A:$I,MATCH(I$5,'Volumes - Report Summary'!$A$6:$I$6,0),FALSE),0) -> 1 | J49: =IFERROR(VLOOKUP($A49,'Volumes - Report Summary'!$A:$I,MATCH(J$5,'Volumes - Report Summary'!$A$6:$I$6,0),FALSE),0) -> 1 | K49: =IFERROR(VLOOKUP($A49,'Volumes - Report Summary'!$A:$I,MATCH(K$5,'Volumes - Report Summary'!$A$6:$I$6,0),FALSE),0) -> 1 | L49: =IFERROR(VLOOKUP($A49,'Volumes - Report Summary'!$A:$I,MATCH(L$5,'Volumes - Report Summary'!$A$6:$I$6,0),FALSE),0) -> 1 | N49: 91.31384163 | O49: 92.70123082 | P49: 94.59437915 | Q49: 95.42313425 | R49: 97.02453039
A50: ='Table of fees'!A47 -> Basic Connection establishment charges (including temporary builders supply)
A51: ='Table of fees'!B48 -> Creation of a NMI | B51: =IFERROR(VLOOKUP(A51,'Cost buildup Yr1'!C:AO,MATCH($B$3,'Cost buildup Yr1'!$C$3:$AO$3,0),FALSE),0)*'Master Data'!$F$16 -> 42.1484953 | C51: =IFERROR(VLOOKUP($A51,'Cost buildup Yr2'!C:AO,MATCH($B$3,'Cost buildup Yr2'!$C$3:$AO$3,0),FALSE),0)*'Master Data'!$F$16 -> 42.84423667 | D51: =IFERROR(VLOOKUP($A51,'Cost buildup Yr3'!C:AO,MATCH($B$3,'Cost buildup Yr3'!$C$3:$AO$3,0),FALSE),0)*'Master Data'!$F$16 -> 43.59924924 | E51: =IFERROR(VLOOKUP($A51,'Cost buildup Yr4'!C:AO,MATCH($B$3,'Cost buildup Yr4'!$C$3:$AO$3,0),FALSE),0)*'Master Data'!$F$16 -> 44.31144985 | F51: =IFERROR(VLOOKUP($A51,'Cost buildup Yr5'!C:AO,MATCH($B$3,'Cost buildup Yr4'!$C$3:$AO$3,0),FALSE),0)*'Master Data'!$F$16 -> 45.10846444 | H51: =IFERROR(VLOOKUP($A51,'Volumes - Report Summary'!$A:$I,MATCH(H$5,'Volumes - Report Summary'!$A$6:$I$6,0),FALSE),0) -> 1 | I51: =IFERROR(VLOOKUP($A51,'Volumes - Report Summary'!$A:$I,MATCH(I$5,'Volumes - Report Summary'!$A$6:$I$6,0),FALSE),0) -> 1 | J51: =IFERROR(VLOOKUP($A51,'Volumes - Report Summary'!$A:$I,MATCH(J$5,'Volumes - Report Summary'!$A$6:$I$6,0),FALSE),0) -> 1 | K51: =IFERROR(VLOOKUP($A51,'Volumes - Report Summary'!$A:$I,MATCH(K$5,'Volumes - Report Summary'!$A$6:$I$6,0),FALSE),0) -> 1 | L51: =IFERROR(VLOOKUP($A51,'Volumes - Report Summary'!$A:$I,MATCH(L$5,'Volumes - Report Summary'!$A$6:$I$6,0),FALSE),0) -> 1 | N51: =H51*B51 -> 42.1484953 | O51: =I51*C51 -> 42.84423667 | P51: =J51*D51 -> 43.59924924 | Q51: =K51*E51 -> 44.31144985 | R51: =L51*F51 -> 45.10846444
A52: ='Table of fees'!B49 -> Overhead service, single span - single phase | B52: =IFERROR(VLOOKUP(A52,'Cost buildup Yr1'!C:AO,MATCH($B$3,'Cost buildup Yr1'!$C$3:$AO$3,0),FALSE),0)*'Master Data'!$F$16 -> 537.1119906 | C52: =IFERROR(VLOOKUP($A52,'Cost buildup Yr2'!C:AO,MATCH($B$3,'Cost buildup Yr2'!$C$3:$AO$3,0),FALSE),0)*'Master Data'!$F$16 -> 541.7264348 | D52: =IFERROR(VLOOKUP($A52,'Cost buildup Yr3'!C:AO,MATCH($B$3,'Cost buildup Yr3'!$C$3:$AO$3,0),FALSE),0)*'Master Data'!$F$16 -> 548.6315142 | E52: =IFERROR(VLOOKUP($A52,'Cost buildup Yr4'!C:AO,MATCH($B$3,'Cost buildup Yr4'!$C$3:$AO$3,0),FALSE),0)*'Master Data'!$F$16 -> 550.1043328 | F52: =IFERROR(VLOOKUP($A52,'Cost buildup Yr5'!C:AO,MATCH($B$3,'Cost buildup Yr4'!$C$3:$AO$3,0),FALSE),0)*'Master Data'!$F$16 -> 555.1450604 | H52: =IFERROR(VLOOKUP($A52,'Volumes - Report Summary'!$A:$I,MATCH(H$5,'Volumes - Report Summary'!$A$6:$I$6,0),FALSE),0) -> 319 | I52: =IFERROR(VLOOKUP($A52,'Volumes - Report Summary'!$A:$I,MATCH(I$5,'Volumes - Report Summary'!$A$6:$I$6,0),FALSE),0) -> 319 | J52: =IFERROR(VLOOKUP($A52,'Volumes - Report Summary'!$A:$I,MATCH(J$5,'Volumes - Report Summary'!$A$6:$I$6,0),FALSE),0) -> 319 | K52: =IFERROR(VLOOKUP($A52,'Volumes - Report Summary'!$A:$I,MATCH(K$5,'Volumes - Report Summary'!$A$6:$I$6,0),FALSE),0) -> 319 | L52: =IFERROR(VLOOKUP($A52,'Volumes - Report Summary'!$A:$I,MATCH(L$5,'Volumes - Report Summary'!$A$6:$I$6,0),FALSE),0) -> 319 | N52: =H52*B52 -> 171338.725 | O52: 172810.7327 | P52: 175013.453 | Q52: 175483.2822 | R52: 177091.2743
A53: ='Table of fees'!B50 -> Overhead service, single span - multi phase | B53: =IFERROR(VLOOKUP(A53,'Cost buildup Yr1'!C:AO,MATCH($B$3,'Cost buildup Yr1'!$C$3:$AO$3,0),FALSE),0)*'Master Data'!$F$16 -> 754.830928 | C53: =IFERROR(VLOOKUP($A53,'Cost buildup Yr2'!C:AO,MATCH($B$3,'Cost buildup Yr2'!$C$3:$AO$3,0),FALSE),0)*'Master Data'!$F$16 -> 760.0549302 | D53: =IFERROR(VLOOKUP($A53,'Cost buildup Yr3'!C:AO,MATCH($B$3,'Cost buildup Yr3'!$C$3:$AO$3,0),FALSE),0)*'Master Data'!$F$16 -> 768.1641863 | E53: =IFERROR(VLOOKUP($A53,'Cost buildup Yr4'!C:AO,MATCH($B$3,'Cost buildup Yr4'!$C$3:$AO$3,0),FALSE),0)*'Master Data'!$F$16 -> 769.1759346 | F53: =IFERROR(VLOOKUP($A53,'Cost buildup Yr5'!C:AO,MATCH($B$3,'Cost buildup Yr4'!$C$3:$AO$3,0),FALSE),0)*'Master Data'!$F$16 -> 774.7124947 | H53: =IFERROR(VLOOKUP($A53,'Volumes - Report Summary'!$A:$I,MATCH(H$5,'Volumes - Report Summary'!$A$6:$I$6,0),FALSE),0) -> 110 | I53: =IFERROR(VLOOKUP($A53,'Volumes - Report Summary'!$A:$I,MATCH(I$5,'Volumes - Report Summary'!$A$6:$I$6,0),FALSE),0) -> 110 | J53: =IFERROR(VLOOKUP($A53,'Volumes - Report Summary'!$A:$I,MATCH(J$5,'Volumes - Report Summary'!$A$6:$I$6,0),FALSE),0) -> 110 | K53: =IFERROR(VLOOKUP($A53,'Volumes - Report Summary'!$A:$I,MATCH(K$5,'Volumes - Report Summary'!$A$6:$I$6,0),FALSE),0) -> 110 | L53: =IFERROR(VLOOKUP($A53,'Volumes - Report Summary'!$A:$I,MATCH(L$5,'Volumes - Report Summary'!$A$6:$I$6,0),FALSE),0) -> 110 | N53: 83031.40208 | O53: 83606.04233 | P53: 84498.06049 | Q53: 84609.35281 | R53: 85218.37442
A54: ='Table of fees'!B51 -> Underground service in turret/cabinet - single phase | B54: =IFERROR(VLOOKUP(A54,'Cost buildup Yr1'!C:AO,MATCH($B$3,'Cost buildup Yr1'!$C$3:$AO$3,0),FALSE),0)*'Master Data'!$F$16 -> 191.1256984 | C54: =IFERROR(VLOOKUP($A54,'Cost buildup Yr2'!C:AO,MATCH($B$3,'Cost buildup Yr2'!$C$3:$AO$3,0),FALSE),0)*'Master Data'!$F$16 -> 194.3319241 | D54: =IFERROR(VLOOKUP($A54,'Cost buildup Yr3'!C:AO,MATCH($B$3,'Cost buildup Yr3'!$C$3:$AO$3,0),FALSE),0)*'Master Data'!$F$16 -> 198.4730774 | E54: =IFERROR(VLOOKUP($A54,'Cost buildup Yr4'!C:AO,MATCH($B$3,'Cost buildup Yr4'!$C$3:$AO$3,0),FALSE),0)*'Master Data'!$F$16 -> 200.8021563 | F54: =IFERROR(VLOOKUP($A54,'Cost buildup Yr5'!C:AO,MATCH($B$3,'Cost buildup Yr4'!$C$3:$AO$3,0),FALSE),0)*'Master Data'!$F$16 -> 204.5463558 | H54: =IFERROR(VLOOKUP($A54,'Volumes - Report Summary'!$A:$I,MATCH(H$5,'Volumes - Report Summary'!$A$6:$I$6,0),FALSE),0) -> 1669 | I54: =IFERROR(VLOOKUP($A54,'Volumes - Report Summary'!$A:$I,MATCH(I$5,'Volumes - Report Summary'!$A$6:$I$6,0),FALSE),0) -> 1669 | J54: =IFERROR(VLOOKUP($A54,'Volumes - Report Summary'!$A:$I,MATCH(J$5,'Volumes - Report Summary'!$A$6:$I$6,0),FALSE),0) -> 1669 | K54: =IFERROR(VLOOKUP($A54,'Volumes - Report Summary'!$A:$I,MATCH(K$5,'Volumes - Report Summary'!$A$6:$I$6,0),FALSE),0) -> 1669 | L54: =IFERROR(VLOOKUP($A54,'Volumes - Report Summary'!$A:$I,MATCH(L$5,'Volumes - Report Summary'!$A$6:$I$6,0),FALSE),0) -> 1669 | N54: 318988.7906 | O54: 324339.9813 | P54: 331251.5662 | Q54: 335138.7989 | R54: 341387.8679
A55: ='Table of fees'!B52 -> Underground service in turret/cabinet - multi phase | B55: =IFERROR(VLOOKUP(A55,'Cost buildup Yr1'!C:AO,MATCH($B$3,'Cost buildup Yr1'!$C$3:$AO$3,0),FALSE),0)*'Master Data'!$F$16 -> 232.5669322 | C55: =IFERROR(VLOOKUP($A55,'Cost buildup Yr2'!C:AO,MATCH($B$3,'Cost buildup Yr2'!$C$3:$AO$3,0),FALSE),0)*'Master Data'!$F$16 -> 236.0386113 | D55: =IFERROR(VLOOKUP($A55,'Cost buildup Yr3'!C:AO,MATCH($B$3,'Cost buildup Yr3'!$C$3:$AO$3,0),FALSE),0)*'Master Data'!$F$16 -> 240.698047 | E55: =IFERROR(VLOOKUP($A55,'Cost buildup Yr4'!C:AO,MATCH($B$3,'Cost buildup Yr4'!$C$3:$AO$3,0),FALSE),0)*'Master Data'!$F$16 -> 242.8973608 | F55: =IFERROR(VLOOKUP($A55,'Cost buildup Yr5'!C:AO,MATCH($B$3,'Cost buildup Yr4'!$C$3:$AO$3,0),FALSE),0)*'Master Data'!$F$16 -> 246.9088363 | H55: =IFERROR(VLOOKUP($A55,'Volumes - Report Summary'!$A:$I,MATCH(H$5,'Volumes - Report Summary'!$A$6:$I$6,0),FALSE),0) -> 332 | I55: =IFERROR(VLOOKUP($A55,'Volumes - Report Summary'!$A:$I,MATCH(I$5,'Volumes - Report Summary'!$A$6:$I$6,0),FALSE),0) -> 332 | J55: =IFERROR(VLOOKUP($A55,'Volumes - Report Summary'!$A:$I,MATCH(J$5,'Volumes - Report Summary'!$A$6:$I$6,0),FALSE),0) -> 332 | K55: =IFERROR(VLOOKUP($A55,'Volumes - Report Summary'!$A:$I,MATCH(K$5,'Volumes - Report Summary'!$A$6:$I$6,0),FALSE),0) -> 332 | L55: =IFERROR(VLOOKUP($A55,'Volumes - Report Summary'!$A:$I,MATCH(L$5,'Volumes - Report Summary'!$A$6:$I$6,0),FALSE),0) -> 332 | N55: 77212.22149 | O55: 78364.81896 | P55: 79911.75161 | Q55: 80641.92377 | R55: 81973.73364
A56: ='Table of fees'!B53 -> Underground service with pole mounted fuse - single phase | B56: =IFERROR(VLOOKUP(A56,'Cost buildup Yr1'!C:AO,MATCH($B$3,'Cost buildup Yr1'!$C$3:$AO$3,0),FALSE),0)*'Master Data'!$F$16 -> 407.0170229 | C56: =IFERROR(VLOOKUP($A56,'Cost buildup Yr2'!C:AO,MATCH($B$3,'Cost buildup Yr2'!$C$3:$AO$3,0),FALSE),0)*'Master Data'!$F$16 -> 411.5555819 | D56: =IFERROR(VLOOKUP($A56,'Cost buildup Yr3'!C:AO,MATCH($B$3,'Cost buildup Yr3'!$C$3:$AO$3,0),FALSE),0)*'Master Data'!$F$16 -> 418.2989432 | E56: =IFERROR(VLOOKUP($A56,'Cost buildup Yr4'!C:AO,MATCH($B$3,'Cost buildup Yr4'!$C$3:$AO$3,0),FALSE),0)*'Master Data'!$F$16 -> 419.9662147 | F56: =IFERROR(VLOOKUP($A56,'Cost buildup Yr5'!C:AO,MATCH($B$3,'Cost buildup Yr4'!$C$3:$AO$3,0),FALSE),0)*'Master Data'!$F$16 -> 425.0443002 | H56: =IFERROR(VLOOKUP($A56,'Volumes - Report Summary'!$A:$I,MATCH(H$5,'Volumes - Report Summary'!$A$6:$I$6,0),FALSE),0) -> 379 | I56: =IFERROR(VLOOKUP($A56,'Volumes - Report Summary'!$A:$I,MATCH(I$5,'Volumes - Report Summary'!$A$6:$I$6,0),FALSE),0) -> 379 | J56: =IFERROR(VLOOKUP($A56,'Volumes - Report Summary'!$A:$I,MATCH(J$5,'Volumes - Report Summary'!$A$6:$I$6,0),FALSE),0) -> 379 | K56: =IFERROR(VLOOKUP($A56,'Volumes - Report Summary'!$A:$I,MATCH(K$5,'Volumes - Report Summary'!$A$6:$I$6,0),FALSE),0) -> 379 | L56: =IFERROR(VLOOKUP($A56,'Volumes - Report Summary'!$A:$I,MATCH(L$5,'Volumes - Report Summary'!$A$6:$I$6,0),FALSE),0) -> 379 | N56: 154259.4517 | O56: 155979.5656 | P56: 158535.2995 | Q56: 159167.1954 | R56: 161091.7898
A57: ='Table of fees'!B54 -> Underground service with pole mounted fuse - multi phase | B57: =IFERROR(VLOOKUP(A57,'Cost buildup Yr1'!C:AO,MATCH($B$3,'Cost buildup Yr1'!$C$3:$AO$3,0),FALSE),0)*'Master Data'!$F$16 -> 505.4461469 | C57: =IFERROR(VLOOKUP($A57,'Cost buildup Yr2'!C:AO,MATCH($B$3,'Cost buildup Yr2'!$C$3:$AO$3,0),FALSE),0)*'Master Data'!$F$16 -> 510.5246813 | D57: =IFERROR(VLOOKUP($A57,'Cost buildup Yr3'!C:AO,MATCH($B$3,'Cost buildup Yr3'!$C$3:$AO$3,0),FALSE),0)*'Master Data'!$F$16 -> 518.3239329 | E57: =IFERROR(VLOOKUP($A57,'Cost buildup Yr4'!C:AO,MATCH($B$3,'Cost buildup Yr4'!$C$3:$AO$3,0),FALSE),0)*'Master Data'!$F$16 -> 519.7084365 | F57: =IFERROR(VLOOKUP($A57,'Cost buildup Yr5'!C:AO,MATCH($B$3,'Cost buildup Yr4'!$C$3:$AO$3,0),FALSE),0)*'Master Data'!$F$16 -> 525.3166097 | H57: =IFERROR(VLOOKUP($A57,'Volumes - Report Summary'!$A:$I,MATCH(H$5,'Volumes - Report Summary'!$A$6:$I$6,0),FALSE),0) -> 151 | I57: =IFERROR(VLOOKUP($A57,'Volumes - Report Summary'!$A:$I,MATCH(I$5,'Volumes - Report Summary'!$A$6:$I$6,0),FALSE),0) -> 151 | J57: =IFERROR(VLOOKUP($A57,'Volumes - Report Summary'!$A:$I,MATCH(J$5,'Volumes - Report Summary'!$A$6:$I$6,0),FALSE),0) -> 151 | K57: =IFERROR(VLOOKUP($A57,'Volumes - Report Summary'!$A:$I,MATCH(K$5,'Volumes - Report Summary'!$A$6:$I$6,0),FALSE),0) -> 151 | L57: =IFERROR(VLOOKUP($A57,'Volumes - Report Summary'!$A:$I,MATCH(L$5,'Volumes - Report Summary'!$A$6:$I$6,0),FALSE),0) -> 151 | N57: 76322.36818 | O57: 77089.22687 | P57: 78266.91387 | Q57: 78475.97391 | R57: 79322.80806
A58: ='Table of fees'!B55 -> Basic connection – after hours | B58: =IFERROR(VLOOKUP(A58,'Cost buildup Yr1'!C:AO,MATCH($B$3,'Cost buildup Yr1'!$C$3:$AO$3,0),FALSE),0)*'Master Data'!$F$16 -> 956.1483968 | C58: =IFERROR(VLOOKUP($A58,'Cost buildup Yr2'!C:AO,MATCH($B$3,'Cost buildup Yr2'!$C$3:$AO$3,0),FALSE),0)*'Master Data'!$F$16 -> 964.928774 | D58: =IFERROR(VLOOKUP($A58,'Cost buildup Yr3'!C:AO,MATCH($B$3,'Cost buildup Yr3'!$C$3:$AO$3,0),FALSE),0)*'Master Data'!$F$16 -> 977.7092998 | E58: =IFERROR(VLOOKUP($A58,'Cost buildup Yr4'!C:AO,MATCH($B$3,'Cost buildup Yr4'!$C$3:$AO$3,0),FALSE),0)*'Master Data'!$F$16 -> 980.8714087 | F58: =IFERROR(VLOOKUP($A58,'Cost buildup Yr5'!C:AO,MATCH($B$3,'Cost buildup Yr4'!$C$3:$AO$3,0),FALSE),0)*'Master Data'!$F$16 -> 990.2747268 | H58: =IFERROR(VLOOKUP($A58,'Volumes - Report Summary'!$A:$I,MATCH(H$5,'Volumes - Report Summary'!$A$6:$I$6,0),FALSE),0) -> 1 | I58: =IFERROR(VLOOKUP($A58,'Volumes - Report Summary'!$A:$I,MATCH(I$5,'Volumes - Report Summary'!$A$6:$I$6,0),FALSE),0) -> 1 | J58: =IFERROR(VLOOKUP($A58,'Volumes - Report Summary'!$A:$I,MATCH(J$5,'Volumes - Report Summary'!$A$6:$I$6,0),FALSE),0) -> 1 | K58: =IFERROR(VLOOKUP($A58,'Volumes - Report Summary'!$A:$I,MATCH(K$5,'Volumes - Report Summary'!$A$6:$I$6,0),FALSE),0) -> 1 | L58: =IFERROR(VLOOKUP($A58,'Volumes - Report Summary'!$A:$I,MATCH(L$5,'Volumes - Report Summary'!$A$6:$I$6,0),FALSE),0) -> 1 | N58: 956.1483968 | O58: 964.928774 | P58: 977.7092998 | Q58: 980.8714087 | R58: 990.2747268
A59: ='Table of fees'!B56 -> Connection establishment - wasted visit | B59: =IFERROR(VLOOKUP(A59,'Cost buildup Yr1'!C:AO,MATCH($B$3,'Cost buildup Yr1'!$C$3:$AO$3,0),FALSE),0)*'Master Data'!$F$16 -> 166.8831483 | C59: =IFERROR(VLOOKUP($A59,'Cost buildup Yr2'!C:AO,MATCH($B$3,'Cost buildup Yr2'!$C$3:$AO$3,0),FALSE),0)*'Master Data'!$F$16 -> 169.9545929 | D59: =IFERROR(VLOOKUP($A59,'Cost buildup Yr3'!C:AO,MATCH($B$3,'Cost buildup Yr3'!$C$3:$AO$3,0),FALSE),0)*'Master Data'!$F$16 -> 173.8322271 | E59: =IFERROR(VLOOKUP($A59,'Cost buildup Yr4'!C:AO,MATCH($B$3,'Cost buildup Yr4'!$C$3:$AO$3,0),FALSE),0)*'Master Data'!$F$16 -> 176.2314528 | F59: =IFERROR(VLOOKUP($A59,'Cost buildup Yr5'!C:AO,MATCH($B$3,'Cost buildup Yr4'!$C$3:$AO$3,0),FALSE),0)*'Master Data'!$F$16 -> 179.8430256 | H59: =IFERROR(VLOOKUP($A59,'Volumes - Report Summary'!$A:$I,MATCH(H$5,'Volumes - Report Summary'!$A$6:$I$6,0),FALSE),0) -> 1 | I59: =IFERROR(VLOOKUP($A59,'Volumes - Report Summary'!$A:$I,MATCH(I$5,'Volumes - Report Summary'!$A$6:$I$6,0),FALSE),0) -> 1 | J59: =IFERROR(VLOOKUP($A59,'Volumes - Report Summary'!$A:$I,MATCH(J$5,'Volumes - Report Summary'!$A$6:$I$6,0),FALSE),0) -> 1 | K59: =IFERROR(VLOOKUP($A59,'Volumes - Report Summary'!$A:$I,MATCH(K$5,'Volumes - Report Summary'!$A$6:$I$6,0),FALSE),0) -> 1 | L59: =IFERROR(VLOOKUP($A59,'Volumes - Report Summary'!$A:$I,MATCH(L$5,'Volumes - Report Summary'!$A$6:$I$6,0),FALSE),0) -> 1 | N59: 166.8831483 | O59: 169.9545929 | P59: 173.8322271 | Q59: 176.2314528 | R59: 179.8430256
A60: ='Table of fees'!A57 -> Temporary Disconnection/Reconnection
A61: ='Table of fees'!B58 -> Disconnect/reconnect overhead service for facia repairs - single phase | B61: =IFERROR(VLOOKUP(A61,'Cost buildup Yr1'!C:AO,MATCH($B$3,'Cost buildup Yr1'!$C$3:$AO$3,0),FALSE),0)*'Master Data'!$F$16 -> 392.8741126 | C61: =IFERROR(VLOOKUP($A61,'Cost buildup Yr2'!C:AO,MATCH($B$3,'Cost buildup Yr2'!$C$3:$AO$3,0),FALSE),0)*'Master Data'!$F$16 -> 397.2220451 | D61: =IFERROR(VLOOKUP($A61,'Cost buildup Yr3'!C:AO,MATCH($B$3,'Cost buildup Yr3'!$C$3:$AO$3,0),FALSE),0)*'Master Data'!$F$16 -> 403.7552668 | E61: =IFERROR(VLOOKUP($A61,'Cost buildup Yr4'!C:AO,MATCH($B$3,'Cost buildup Yr4'!$C$3:$AO$3,0),FALSE),0)*'Master Data'!$F$16 -> 405.2268912 | F61: =IFERROR(VLOOKUP($A61,'Cost buildup Yr5'!C:AO,MATCH($B$3,'Cost buildup Yr4'!$C$3:$AO$3,0),FALSE),0)*'Master Data'!$F$16 -> 410.0812262 | H61: =IFERROR(VLOOKUP($A61,'Volumes - Report Summary'!$A:$I,MATCH(H$5,'Volumes - Report Summary'!$A$6:$I$6,0),FALSE),0) -> 20 | I61: =IFERROR(VLOOKUP($A61,'Volumes - Report Summary'!$A:$I,MATCH(I$5,'Volumes - Report Summary'!$A$6:$I$6,0),FALSE),0) -> 20 | J61: =IFERROR(VLOOKUP($A61,'Volumes - Report Summary'!$A:$I,MATCH(J$5,'Volumes - Report Summary'!$A$6:$I$6,0),FALSE),0) -> 20 | K61: =IFERROR(VLOOKUP($A61,'Volumes - Report Summary'!$A:$I,MATCH(K$5,'Volumes - Report Summary'!$A$6:$I$6,0),FALSE),0) -> 20 | L61: =IFERROR(VLOOKUP($A61,'Volumes - Report Summary'!$A:$I,MATCH(L$5,'Volumes - Report Summary'!$A$6:$I$6,0),FALSE),0) -> 20 | N61: =H61*B61 -> 7857.482253 | O61: 7944.440903 | P61: 8075.105335 | Q61: 8104.537825 | R61: 8201.624523
A62: ='Table of fees'!B59 -> Disconnect/reconnect overhead service for facia repairs - multi phase | B62: =IFERROR(VLOOKUP(A62,'Cost buildup Yr1'!C:AO,MATCH($B$3,'Cost buildup Yr1'!$C$3:$AO$3,0),FALSE),0)*'Master Data'!$F$16 -> 474.2406673 | C62: =IFERROR(VLOOKUP($A62,'Cost buildup Yr2'!C:AO,MATCH($B$3,'Cost buildup Yr2'!$C$3:$AO$3,0),FALSE),0)*'Master Data'!$F$16 -> 479.1186224 | D62: =IFERROR(VLOOKUP($A62,'Cost buildup Yr3'!C:AO,MATCH($B$3,'Cost buildup Yr3'!$C$3:$AO$3,0),FALSE),0)*'Master Data'!$F$16 -> 486.6865243 | E62: =IFERROR(VLOOKUP($A62,'Cost buildup Yr4'!C:AO,MATCH($B$3,'Cost buildup Yr4'!$C$3:$AO$3,0),FALSE),0)*'Master Data'!$F$16 -> 487.9008843 | F62: =IFERROR(VLOOKUP($A62,'Cost buildup Yr5'!C:AO,MATCH($B$3,'Cost buildup Yr4'!$C$3:$AO$3,0),FALSE),0)*'Master Data'!$F$16 -> 493.2902065 | H62: =IFERROR(VLOOKUP($A62,'Volumes - Report Summary'!$A:$I,MATCH(H$5,'Volumes - Report Summary'!$A$6:$I$6,0),FALSE),0) -> 20 | I62: =IFERROR(VLOOKUP($A62,'Volumes - Report Summary'!$A:$I,MATCH(I$5,'Volumes - Report Summary'!$A$6:$I$6,0),FALSE),0) -> 20 | J62: =IFERROR(VLOOKUP($A62,'Volumes - Report Summary'!$A:$I,MATCH(J$5,'Volumes - Report Summary'!$A$6:$I$6,0),FALSE),0) -> 20 | K62: =IFERROR(VLOOKUP($A62,'Volumes - Report Summary'!$A:$I,MATCH(K$5,'Volumes - Report Summary'!$A$6:$I$6,0),FALSE),0) -> 20 | L62: =IFERROR(VLOOKUP($A62,'Volumes - Report Summary'!$A:$I,MATCH(L$5,'Volumes - Report Summary'!$A$6:$I$6,0),FALSE),0) -> 20 | N62: 9484.813345 | O62: 9582.372448 | P62: 9733.730486 | Q62: 9758.017686 | R62: 9865.804131
A63: ='Table of fees'!B60 -> Temporary disconnect/reconnect – retailer requested outage | B63: =IFERROR(VLOOKUP(A63,'Cost buildup Yr1'!C:AO,MATCH($B$3,'Cost buildup Yr1'!$C$3:$AO$3,0),FALSE),0)*'Master Data'!$F$16 -> 378.6827229 | C63: =IFERROR(VLOOKUP($A63,'Cost buildup Yr2'!C:AO,MATCH($B$3,'Cost buildup Yr2'!$C$3:$AO$3,0),FALSE),0)*'Master Data'!$F$16 -> 383.4832592 | D63: =IFERROR(VLOOKUP($A63,'Cost buildup Yr3'!C:AO,MATCH($B$3,'Cost buildup Yr3'!$C$3:$AO$3,0),FALSE),0)*'Master Data'!$F$16 -> 390.2659264 | E63: =IFERROR(VLOOKUP($A63,'Cost buildup Yr4'!C:AO,MATCH($B$3,'Cost buildup Yr4'!$C$3:$AO$3,0),FALSE),0)*'Master Data'!$F$16 -> 392.6329958 | F63: =IFERROR(VLOOKUP($A63,'Cost buildup Yr5'!C:AO,MATCH($B$3,'Cost buildup Yr4'!$C$3:$AO$3,0),FALSE),0)*'Master Data'!$F$16 -> 398.0527681 | H63: =IFERROR(VLOOKUP($A63,'Volumes - Report Summary'!$A:$I,MATCH(H$5,'Volumes - Report Summary'!$A$6:$I$6,0),FALSE),0) -> 1 | I63: =IFERROR(VLOOKUP($A63,'Volumes - Report Summary'!$A:$I,MATCH(I$5,'Volumes - Report Summary'!$A$6:$I$6,0),FALSE),0) -> 1 | J63: =IFERROR(VLOOKUP($A63,'Volumes - Report Summary'!$A:$I,MATCH(J$5,'Volumes - Report Summary'!$A$6:$I$6,0),FALSE),0) -> 1 | K63: =IFERROR(VLOOKUP($A63,'Volumes - Report Summary'!$A:$I,MATCH(K$5,'Volumes - Report Summary'!$A$6:$I$6,0),FALSE),0) -> 1 | L63: =IFERROR(VLOOKUP($A63,'Volumes - Report Summary'!$A:$I,MATCH(L$5,'Volumes - Report Summary'!$A$6:$I$6,0),FALSE),0) -> 1 | N63: =H63*B63 -> 378.6827229 | O63: =I63*C63 -> 383.4832592 | P63: =J63*D63 -> 390.2659264 | Q63: =K63*E63 -> 392.6329958 | R63: =L63*F63 -> 398.0527681
A64: ='Table of fees'!B61 -> Temporary disconnect/reconnect – after hours | B64: =IFERROR(VLOOKUP(A64,'Cost buildup Yr1'!C:AO,MATCH($B$3,'Cost buildup Yr1'!$C$3:$AO$3,0),FALSE),0)*'Master Data'!$F$16 -> 812.5759277 | C64: =IFERROR(VLOOKUP($A64,'Cost buildup Yr2'!C:AO,MATCH($B$3,'Cost buildup Yr2'!$C$3:$AO$3,0),FALSE),0)*'Master Data'!$F$16 -> 820.6189707 | D64: =IFERROR(VLOOKUP($A64,'Cost buildup Yr3'!C:AO,MATCH($B$3,'Cost buildup Yr3'!$C$3:$AO$3,0),FALSE),0)*'Master Data'!$F$16 -> 832.115199 | E64: =IFERROR(VLOOKUP($A64,'Cost buildup Yr4'!C:AO,MATCH($B$3,'Cost buildup Yr4'!$C$3:$AO$3,0),FALSE),0)*'Master Data'!$F$16 -> 835.4554006 | F64: =IFERROR(VLOOKUP($A64,'Cost buildup Yr5'!C:AO,MATCH($B$3,'Cost buildup Yr4'!$C$3:$AO$3,0),FALSE),0)*'Master Data'!$F$16 -> 844.1682829 | H64: =IFERROR(VLOOKUP($A64,'Volumes - Report Summary'!$A:$I,MATCH(H$5,'Volumes - Report Summary'!$A$6:$I$6,0),FALSE),0) -> 1 | I64: =IFERROR(VLOOKUP($A64,'Volumes - Report Summary'!$A:$I,MATCH(I$5,'Volumes - Report Summary'!$A$6:$I$6,0),FALSE),0) -> 1 | J64: =IFERROR(VLOOKUP($A64,'Volumes - Report Summary'!$A:$I,MATCH(J$5,'Volumes - Report Summary'!$A$6:$I$6,0),FALSE),0) -> 1 | K64: =IFERROR(VLOOKUP($A64,'Volumes - Report Summary'!$A:$I,MATCH(K$5,'Volumes - Report Summary'!$A$6:$I$6,0),FALSE),0) -> 1 | L64: =IFERROR(VLOOKUP($A64,'Volumes - Report Summary'!$A:$I,MATCH(L$5,'Volumes - Report Summary'!$A$6:$I$6,0),FALSE),0) -> 1 | N64: 812.5759277 | O64: 820.6189707 | P64: 832.115199 | Q64: 835.4554006 | R64: 844.1682829
A65: ='Table of fees'!B62 -> Temporary disconnect/reconnect – wasted visit | B65: =IFERROR(VLOOKUP(A65,'Cost buildup Yr1'!C:AO,MATCH($B$3,'Cost buildup Yr1'!$C$3:$AO$3,0),FALSE),0)*'Master Data'!$F$16 -> 189.4577261 | C65: =IFERROR(VLOOKUP($A65,'Cost buildup Yr2'!C:AO,MATCH($B$3,'Cost buildup Yr2'!$C$3:$AO$3,0),FALSE),0)*'Master Data'!$F$16 -> 192.480602 | D65: =IFERROR(VLOOKUP($A65,'Cost buildup Yr3'!C:AO,MATCH($B$3,'Cost buildup Yr3'!$C$3:$AO$3,0),FALSE),0)*'Master Data'!$F$16 -> 196.427123 | E65: =IFERROR(VLOOKUP($A65,'Cost buildup Yr4'!C:AO,MATCH($B$3,'Cost buildup Yr4'!$C$3:$AO$3,0),FALSE),0)*'Master Data'!$F$16 -> 198.5419086 | F65: =IFERROR(VLOOKUP($A65,'Cost buildup Yr5'!C:AO,MATCH($B$3,'Cost buildup Yr4'!$C$3:$AO$3,0),FALSE),0)*'Master Data'!$F$16 -> 202.0587752 | H65: =IFERROR(VLOOKUP($A65,'Volumes - Report Summary'!$A:$I,MATCH(H$5,'Volumes - Report Summary'!$A$6:$I$6,0),FALSE),0) -> 1 | I65: =IFERROR(VLOOKUP($A65,'Volumes - Report Summary'!$A:$I,MATCH(I$5,'Volumes - Report Summary'!$A$6:$I$6,0),FALSE),0) -> 1 | J65: =IFERROR(VLOOKUP($A65,'Volumes - Report Summary'!$A:$I,MATCH(J$5,'Volumes - Report Summary'!$A$6:$I$6,0),FALSE),0) -> 1 | K65: =IFERROR(VLOOKUP($A65,'Volumes - Report Summary'!$A:$I,MATCH(K$5,'Volumes - Report Summary'!$A$6:$I$6,0),FALSE),0) -> 1 | L65: =IFERROR(VLOOKUP($A65,'Volumes - Report Summary'!$A:$I,MATCH(L$5,'Volumes - Report Summary'!$A$6:$I$6,0),FALSE),0) -> 1 | N65: 189.4577261 | O65: 192.480602 | P65: 196.427123 | Q65: 198.5419086 | R65: 202.0587752
A66: ='Table of fees'!A63 -> Basic connection alteration
A67: ='Table of fees'!B64 -> Connection alteration – overhead single phase | B67: =IFERROR(VLOOKUP(A67,'Cost buildup Yr1'!C:AO,MATCH($B$3,'Cost buildup Yr1'!$C$3:$AO$3,0),FALSE),0)*'Master Data'!$F$16 -> 317.1248825 | C67: =IFERROR(VLOOKUP($A67,'Cost buildup Yr2'!C:AO,MATCH($B$3,'Cost buildup Yr2'!$C$3:$AO$3,0),FALSE),0)*'Master Data'!$F$16 -> 321.1284459 | D67: =IFERROR(VLOOKUP($A67,'Cost buildup Yr3'!C:AO,MATCH($B$3,'Cost buildup Yr3'!$C$3:$AO$3,0),FALSE),0)*'Master Data'!$F$16 -> 326.826529 | E67: =IFERROR(VLOOKUP($A67,'Cost buildup Yr4'!C:AO,MATCH($B$3,'Cost buildup Yr4'!$C$3:$AO$3,0),FALSE),0)*'Master Data'!$F$16 -> 328.7638081 | F67: =IFERROR(VLOOKUP($A67,'Cost buildup Yr5'!C:AO,MATCH($B$3,'Cost buildup Yr4'!$C$3:$AO$3,0),FALSE),0)*'Master Data'!$F$16 -> 333.3093545 | H67: =IFERROR(VLOOKUP($A67,'Volumes - Report Summary'!$A:$I,MATCH(H$5,'Volumes - Report Summary'!$A$6:$I$6,0),FALSE),0) -> 712 | I67: =IFERROR(VLOOKUP($A67,'Volumes - Report Summary'!$A:$I,MATCH(I$5,'Volumes - Report Summary'!$A$6:$I$6,0),FALSE),0) -> 712 | J67: =IFERROR(VLOOKUP($A67,'Volumes - Report Summary'!$A:$I,MATCH(J$5,'Volumes - Report Summary'!$A$6:$I$6,0),FALSE),0) -> 712 | K67: =IFERROR(VLOOKUP($A67,'Volumes - Report Summary'!$A:$I,MATCH(K$5,'Volumes - Report Summary'!$A$6:$I$6,0),FALSE),0) -> 712 | L67: =IFERROR(VLOOKUP($A67,'Volumes - Report Summary'!$A:$I,MATCH(L$5,'Volumes - Report Summary'!$A$6:$I$6,0),FALSE),0) -> 712 | N67: =H67*B67 -> 225792.9164 | O67: =I67*C67 -> 228643.4535 | P67: =J67*D67 -> 232700.4886 | Q67: =K67*E67 -> 234079.8314 | R67: =L67*F67 -> 237316.2604
A68: ='Table of fees'!B65 -> Connection alteration – overhead multi phase | B68: =IFERROR(VLOOKUP(A68,'Cost buildup Yr1'!C:AO,MATCH($B$3,'Cost buildup Yr1'!$C$3:$AO$3,0),FALSE),0)*'Master Data'!$F$16 -> 398.4914372 | C68: =IFERROR(VLOOKUP($A68,'Cost buildup Yr2'!C:AO,MATCH($B$3,'Cost buildup Yr2'!$C$3:$AO$3,0),FALSE),0)*'Master Data'!$F$16 -> 403.0250231 | D68: =IFERROR(VLOOKUP($A68,'Cost buildup Yr3'!C:AO,MATCH($B$3,'Cost buildup Yr3'!$C$3:$AO$3,0),FALSE),0)*'Master Data'!$F$16 -> 409.7577865 | E68: =IFERROR(VLOOKUP($A68,'Cost buildup Yr4'!C:AO,MATCH($B$3,'Cost buildup Yr4'!$C$3:$AO$3,0),FALSE),0)*'Master Data'!$F$16 -> 411.4378012 | F68: =IFERROR(VLOOKUP($A68,'Cost buildup Yr5'!C:AO,MATCH($B$3,'Cost buildup Yr4'!$C$3:$AO$3,0),FALSE),0)*'Master Data'!$F$16 -> 416.5183349 | H68: =IFERROR(VLOOKUP($A68,'Volumes - Report Summary'!$A:$I,MATCH(H$5,'Volumes - Report Summary'!$A$6:$I$6,0),FALSE),0) -> 154 | I68: =IFERROR(VLOOKUP($A68,'Volumes - Report Summary'!$A:$I,MATCH(I$5,'Volumes - Report Summary'!$A$6:$I$6,0),FALSE),0) -> 154 | J68: =IFERROR(VLOOKUP($A68,'Volumes - Report Summary'!$A:$I,MATCH(J$5,'Volumes - Report Summary'!$A$6:$I$6,0),FALSE),0) -> 154 | K68: =IFERROR(VLOOKUP($A68,'Volumes - Report Summary'!$A:$I,MATCH(K$5,'Volumes - Report Summary'!$A$6:$I$6,0),FALSE),0) -> 154 | L68: =IFERROR(VLOOKUP($A68,'Volumes - Report Summary'!$A:$I,MATCH(L$5,'Volumes - Report Summary'!$A$6:$I$6,0),FALSE),0) -> 154 | N68: 61367.68132 | O68: 62065.85356 | P68: 63102.69912 | Q68: 63361.42138 | R68: 64143.82357
A69: ='Table of fees'!B66 -> Connection of new consumer mains to an existing installation – underground single phase to turret | B69: =IFERROR(VLOOKUP(A69,'Cost buildup Yr1'!C:AO,MATCH($B$3,'Cost buildup Yr1'!$C$3:$AO$3,0),FALSE),0)*'Master Data'!$F$16 -> 231.3537217 | C69: =IFERROR(VLOOKUP($A69,'Cost buildup Yr2'!C:AO,MATCH($B$3,'Cost buildup Yr2'!$C$3:$AO$3,0),FALSE),0)*'Master Data'!$F$16 -> 234.7040529 | D69: =IFERROR(VLOOKUP($A69,'Cost buildup Yr3'!C:AO,MATCH($B$3,'Cost buildup Yr3'!$C$3:$AO$3,0),FALSE),0)*'Master Data'!$F$16 -> 239.1285967 | E69: =IFERROR(VLOOKUP($A69,'Cost buildup Yr4'!C:AO,MATCH($B$3,'Cost buildup Yr4'!$C$3:$AO$3,0),FALSE),0)*'Master Data'!$F$16 -> 241.3636353 | F69: =IFERROR(VLOOKUP($A69,'Cost buildup Yr5'!C:AO,MATCH($B$3,'Cost buildup Yr4'!$C$3:$AO$3,0),FALSE),0)*'Master Data'!$F$16 -> 245.2358711 | H69: =IFERROR(VLOOKUP($A69,'Volumes - Report Summary'!$A:$I,MATCH(H$5,'Volumes - Report Summary'!$A$6:$I$6,0),FALSE),0) -> 39 | I69: =IFERROR(VLOOKUP($A69,'Volumes - Report Summary'!$A:$I,MATCH(I$5,'Volumes - Report Summary'!$A$6:$I$6,0),FALSE),0) -> 39 | J69: =IFERROR(VLOOKUP($A69,'Volumes - Report Summary'!$A:$I,MATCH(J$5,'Volumes - Report Summary'!$A$6:$I$6,0),FALSE),0) -> 39 | K69: =IFERROR(VLOOKUP($A69,'Volumes - Report Summary'!$A:$I,MATCH(K$5,'Volumes - Report Summary'!$A$6:$I$6,0),FALSE),0) -> 39 | L69: =IFERROR(VLOOKUP($A69,'Volumes - Report Summary'!$A:$I,MATCH(L$5,'Volumes - Report Summary'!$A$6:$I$6,0),FALSE),0) -> 39 | N69: 9022.795148 | O69: 9153.458065 | P69: 9326.01527 | Q69: 9413.181776 | R69: 9564.198971
A70: ='Table of fees'!B67 -> Connection of new consumer mains to an existing installation – underground single phase to pole | B70: =IFERROR(VLOOKUP(A70,'Cost buildup Yr1'!C:AO,MATCH($B$3,'Cost buildup Yr1'!$C$3:$AO$3,0),FALSE),0)*'Master Data'!$F$16 -> 357.8081599 | C70: =IFERROR(VLOOKUP($A70,'Cost buildup Yr2'!C:AO,MATCH($B$3,'Cost buildup Yr2'!$C$3:$AO$3,0),FALSE),0)*'Master Data'!$F$16 -> 362.0767345 | D70: =IFERROR(VLOOKUP($A70,'Cost buildup Yr3'!C:AO,MATCH($B$3,'Cost buildup Yr3'!$C$3:$AO$3,0),FALSE),0)*'Master Data'!$F$16 -> 368.2921577 | E70: =IFERROR(VLOOKUP($A70,'Cost buildup Yr4'!C:AO,MATCH($B$3,'Cost buildup Yr4'!$C$3:$AO$3,0),FALSE),0)*'Master Data'!$F$16 -> 370.1008046 | F70: =IFERROR(VLOOKUP($A70,'Cost buildup Yr5'!C:AO,MATCH($B$3,'Cost buildup Yr4'!$C$3:$AO$3,0),FALSE),0)*'Master Data'!$F$16 -> 374.9138447 | H70: =IFERROR(VLOOKUP($A70,'Volumes - Report Summary'!$A:$I,MATCH(H$5,'Volumes - Report Summary'!$A$6:$I$6,0),FALSE),0) -> 218 | I70: =IFERROR(VLOOKUP($A70,'Volumes - Report Summary'!$A:$I,MATCH(I$5,'Volumes - Report Summary'!$A$6:$I$6,0),FALSE),0) -> 218 | J70: =IFERROR(VLOOKUP($A70,'Volumes - Report Summary'!$A:$I,MATCH(J$5,'Volumes - Report Summary'!$A$6:$I$6,0),FALSE),0) -> 218 | K70: =IFERROR(VLOOKUP($A70,'Volumes - Report Summary'!$A:$I,MATCH(K$5,'Volumes - Report Summary'!$A$6:$I$6,0),FALSE),0) -> 218 | L70: =IFERROR(VLOOKUP($A70,'Volumes - Report Summary'!$A:$I,MATCH(L$5,'Volumes - Report Summary'!$A$6:$I$6,0),FALSE),0) -> 218 | N70: =H70*B70 -> 78002.17885 | O70: =I70*C70 -> 78932.72812 | P70: =J70*D70 -> 80287.69039 | Q70: =K70*E70 -> 80681.97541 | R70: =L70*F70 -> 81731.21814
A71: ='Table of fees'!B68 -> Connection of new consumer mains to an existing installation – underground multi phase to turret | B71: =IFERROR(VLOOKUP(A71,'Cost buildup Yr1'!C:AO,MATCH($B$3,'Cost buildup Yr1'!$C$3:$AO$3,0),FALSE),0)*'Master Data'!$F$16 -> 276.5904369 | C71: =IFERROR(VLOOKUP($A71,'Cost buildup Yr2'!C:AO,MATCH($B$3,'Cost buildup Yr2'!$C$3:$AO$3,0),FALSE),0)*'Master Data'!$F$16 -> 280.2084355 | D71: =IFERROR(VLOOKUP($A71,'Cost buildup Yr3'!C:AO,MATCH($B$3,'Cost buildup Yr3'!$C$3:$AO$3,0),FALSE),0)*'Master Data'!$F$16 -> 285.1559796 | E71: =IFERROR(VLOOKUP($A71,'Cost buildup Yr4'!C:AO,MATCH($B$3,'Cost buildup Yr4'!$C$3:$AO$3,0),FALSE),0)*'Master Data'!$F$16 -> 287.25558 | F71: =IFERROR(VLOOKUP($A71,'Cost buildup Yr5'!C:AO,MATCH($B$3,'Cost buildup Yr4'!$C$3:$AO$3,0),FALSE),0)*'Master Data'!$F$16 -> 291.3940018 | H71: =IFERROR(VLOOKUP($A71,'Volumes - Report Summary'!$A:$I,MATCH(H$5,'Volumes - Report Summary'!$A$6:$I$6,0),FALSE),0) -> 39 | I71: =IFERROR(VLOOKUP($A71,'Volumes - Report Summary'!$A:$I,MATCH(I$5,'Volumes - Report Summary'!$A$6:$I$6,0),FALSE),0) -> 39 | J71: =IFERROR(VLOOKUP($A71,'Volumes - Report Summary'!$A:$I,MATCH(J$5,'Volumes - Report Summary'!$A$6:$I$6,0),FALSE),0) -> 39 | K71: =IFERROR(VLOOKUP($A71,'Volumes - Report Summary'!$A:$I,MATCH(K$5,'Volumes - Report Summary'!$A$6:$I$6,0),FALSE),0) -> 39 | L71: =IFERROR(VLOOKUP($A71,'Volumes - Report Summary'!$A:$I,MATCH(L$5,'Volumes - Report Summary'!$A$6:$I$6,0),FALSE),0) -> 39 | N71: 10787.02704 | O71: 10928.12898 | P71: 11121.0832 | Q71: 11202.96762 | R71: 11364.36607
A72: ='Table of fees'!B69 -> Connection of new consumer mains to an existing installation – underground multi phase to pole | B72: =IFERROR(VLOOKUP(A72,'Cost buildup Yr1'!C:AO,MATCH($B$3,'Cost buildup Yr1'!$C$3:$AO$3,0),FALSE),0)*'Master Data'!$F$16 -> 439.1747145 | C72: =IFERROR(VLOOKUP($A72,'Cost buildup Yr2'!C:AO,MATCH($B$3,'Cost buildup Yr2'!$C$3:$AO$3,0),FALSE),0)*'Master Data'!$F$16 -> 443.9733118 | D72: =IFERROR(VLOOKUP($A72,'Cost buildup Yr3'!C:AO,MATCH($B$3,'Cost buildup Yr3'!$C$3:$AO$3,0),FALSE),0)*'Master Data'!$F$16 -> 451.2234152 | E72: =IFERROR(VLOOKUP($A72,'Cost buildup Yr4'!C:AO,MATCH($B$3,'Cost buildup Yr4'!$C$3:$AO$3,0),FALSE),0)*'Master Data'!$F$16 -> 452.7747977 | F72: =IFERROR(VLOOKUP($A72,'Cost buildup Yr5'!C:AO,MATCH($B$3,'Cost buildup Yr4'!$C$3:$AO$3,0),FALSE),0)*'Master Data'!$F$16 -> 458.1228251 | H72: =IFERROR(VLOOKUP($A72,'Volumes - Report Summary'!$A:$I,MATCH(H$5,'Volumes - Report Summary'!$A$6:$I$6,0),FALSE),0) -> 177 | I72: =IFERROR(VLOOKUP($A72,'Volumes - Report Summary'!$A:$I,MATCH(I$5,'Volumes - Report Summary'!$A$6:$I$6,0),FALSE),0) -> 177 | J72: =IFERROR(VLOOKUP($A72,'Volumes - Report Summary'!$A:$I,MATCH(J$5,'Volumes - Report Summary'!$A$6:$I$6,0),FALSE),0) -> 177 | K72: =IFERROR(VLOOKUP($A72,'Volumes - Report Summary'!$A:$I,MATCH(K$5,'Volumes - Report Summary'!$A$6:$I$6,0),FALSE),0) -> 177 | L72: =IFERROR(VLOOKUP($A72,'Volumes - Report Summary'!$A:$I,MATCH(L$5,'Volumes - Report Summary'!$A$6:$I$6,0),FALSE),0) -> 177 | N72: =H72*B72 -> 77733.92446 | O72: =I72*C72 -> 78583.27618 | P72: =J72*D72 -> 79866.5445 | Q72: =K72*E72 -> 80141.13919 | R72: =L72*F72 -> 81087.74004
A73: ='Table of fees'!B70 -> Augment single phase overhead service to multi phase supply | B73: =IFERROR(VLOOKUP(A73,'Cost buildup Yr1'!C:AO,MATCH($B$3,'Cost buildup Yr1'!$C$3:$AO$3,0),FALSE),0)*'Master Data'!$F$16 -> 815.855844 | C73: =IFERROR(VLOOKUP($A73,'Cost buildup Yr2'!C:AO,MATCH($B$3,'Cost buildup Yr2'!$C$3:$AO$3,0),FALSE),0)*'Master Data'!$F$16 -> 821.4773632 | D73: =IFERROR(VLOOKUP($A73,'Cost buildup Yr3'!C:AO,MATCH($B$3,'Cost buildup Yr3'!$C$3:$AO$3,0),FALSE),0)*'Master Data'!$F$16 -> 830.3626294 | E73: =IFERROR(VLOOKUP($A73,'Cost buildup Yr4'!C:AO,MATCH($B$3,'Cost buildup Yr4'!$C$3:$AO$3,0),FALSE),0)*'Master Data'!$F$16 -> 831.1814294 | F73: =IFERROR(VLOOKUP($A73,'Cost buildup Yr5'!C:AO,MATCH($B$3,'Cost buildup Yr4'!$C$3:$AO$3,0),FALSE),0)*'Master Data'!$F$16 -> 837.11923 | H73: =IFERROR(VLOOKUP($A73,'Volumes - Report Summary'!$A:$I,MATCH(H$5,'Volumes - Report Summary'!$A$6:$I$6,0),FALSE),0) -> 6 | I73: =IFERROR(VLOOKUP($A73,'Volumes - Report Summary'!$A:$I,MATCH(I$5,'Volumes - Report Summary'!$A$6:$I$6,0),FALSE),0) -> 6 | J73: =IFERROR(VLOOKUP($A73,'Volumes - Report Summary'!$A:$I,MATCH(J$5,'Volumes - Report Summary'!$A$6:$I$6,0),FALSE),0) -> 6 | K73: =IFERROR(VLOOKUP($A73,'Volumes - Report Summary'!$A:$I,MATCH(K$5,'Volumes - Report Summary'!$A$6:$I$6,0),FALSE),0) -> 6 | L73: =IFERROR(VLOOKUP($A73,'Volumes - Report Summary'!$A:$I,MATCH(L$5,'Volumes - Report Summary'!$A$6:$I$6,0),FALSE),0) -> 6 | N73: 4895.135064 | O73: 4928.864179 | P73: 4982.175776 | Q73: 4987.088576 | R73: 5022.71538
A74: ='Table of fees'!B71 -> Augment multi phase overhead service to single phase supply | B74: =IFERROR(VLOOKUP(A74,'Cost buildup Yr1'!C:AO,MATCH($B$3,'Cost buildup Yr1'!$C$3:$AO$3,0),FALSE),0)*'Master Data'!$F$16 -> 598.1369065 | C74: =IFERROR(VLOOKUP($A74,'Cost buildup Yr2'!C:AO,MATCH($B$3,'Cost buildup Yr2'!$C$3:$AO$3,0),FALSE),0)*'Master Data'!$F$16 -> 603.1488678 | D74: =IFERROR(VLOOKUP($A74,'Cost buildup Yr3'!C:AO,MATCH($B$3,'Cost buildup Yr3'!$C$3:$AO$3,0),FALSE),0)*'Master Data'!$F$16 -> 610.8299573 | E74: =IFERROR(VLOOKUP($A74,'Cost buildup Yr4'!C:AO,MATCH($B$3,'Cost buildup Yr4'!$C$3:$AO$3,0),FALSE),0)*'Master Data'!$F$16 -> 612.1098276 | F74: =IFERROR(VLOOKUP($A74,'Cost buildup Yr5'!C:AO,MATCH($B$3,'Cost buildup Yr4'!$C$3:$AO$3,0),FALSE),0)*'Master Data'!$F$16 -> 617.5517957 | H74: =IFERROR(VLOOKUP($A74,'Volumes - Report Summary'!$A:$I,MATCH(H$5,'Volumes - Report Summary'!$A$6:$I$6,0),FALSE),0) -> 51 | I74: =IFERROR(VLOOKUP($A74,'Volumes - Report Summary'!$A:$I,MATCH(I$5,'Volumes - Report Summary'!$A$6:$I$6,0),FALSE),0) -> 51 | J74: =IFERROR(VLOOKUP($A74,'Volumes - Report Summary'!$A:$I,MATCH(J$5,'Volumes - Report Summary'!$A$6:$I$6,0),FALSE),0) -> 51 | K74: =IFERROR(VLOOKUP($A74,'Volumes - Report Summary'!$A:$I,MATCH(K$5,'Volumes - Report Summary'!$A$6:$I$6,0),FALSE),0) -> 51 | L74: =IFERROR(VLOOKUP($A74,'Volumes - Report Summary'!$A:$I,MATCH(L$5,'Volumes - Report Summary'!$A$6:$I$6,0),FALSE),0) -> 51 | N74: 30504.98223 | O74: 30760.59226 | P74: 31152.32782 | Q74: 31217.60121 | R74: 31495.14158
A75: ='Table of fees'!B72 -> Augment single phase overhead service to underground supply (turret) | B75: =IFERROR(VLOOKUP(A75,'Cost buildup Yr1'!C:AO,MATCH($B$3,'Cost buildup Yr1'!$C$3:$AO$3,0),FALSE),0)*'Master Data'!$F$16 -> 379.3807654 | C75: =IFERROR(VLOOKUP($A75,'Cost buildup Yr2'!C:AO,MATCH($B$3,'Cost buildup Yr2'!$C$3:$AO$3,0),FALSE),0)*'Master Data'!$F$16 -> 383.7825638 | D75: =IFERROR(VLOOKUP($A75,'Cost buildup Yr3'!C:AO,MATCH($B$3,'Cost buildup Yr3'!$C$3:$AO$3,0),FALSE),0)*'Master Data'!$F$16 -> 390.2581873 | E75: =IFERROR(VLOOKUP($A75,'Cost buildup Yr4'!C:AO,MATCH($B$3,'Cost buildup Yr4'!$C$3:$AO$3,0),FALSE),0)*'Master Data'!$F$16 -> 392.0006781 | F75: =IFERROR(VLOOKUP($A75,'Cost buildup Yr5'!C:AO,MATCH($B$3,'Cost buildup Yr4'!$C$3:$AO$3,0),FALSE),0)*'Master Data'!$F$16 -> 396.9471115 | H75: =IFERROR(VLOOKUP($A75,'Volumes - Report Summary'!$A:$I,MATCH(H$5,'Volumes - Report Summary'!$A$6:$I$6,0),FALSE),0) -> 62 | I75: =IFERROR(VLOOKUP($A75,'Volumes - Report Summary'!$A:$I,MATCH(I$5,'Volumes - Report Summary'!$A$6:$I$6,0),FALSE),0) -> 62 | J75: =IFERROR(VLOOKUP($A75,'Volumes - Report Summary'!$A:$I,MATCH(J$5,'Volumes - Report Summary'!$A$6:$I$6,0),FALSE),0) -> 62 | K75: =IFERROR(VLOOKUP($A75,'Volumes - Report Summary'!$A:$I,MATCH(K$5,'Volumes - Report Summary'!$A$6:$I$6,0),FALSE),0) -> 62 | L75: =IFERROR(VLOOKUP($A75,'Volumes - Report Summary'!$A:$I,MATCH(L$5,'Volumes - Report Summary'!$A$6:$I$6,0),FALSE),0) -> 62 | N75: 23521.60746 | O75: 23794.51895 | P75: 24196.00761 | Q75: 24304.04204 | R75: 24610.72091
A76: ='Table of fees'!B73 -> Augment multi phase overhead service to underground supply (turret) | B76: =IFERROR(VLOOKUP(A76,'Cost buildup Yr1'!C:AO,MATCH($B$3,'Cost buildup Yr1'!$C$3:$AO$3,0),FALSE),0)*'Master Data'!$F$16 -> 460.7473201 | C76: =IFERROR(VLOOKUP($A76,'Cost buildup Yr2'!C:AO,MATCH($B$3,'Cost buildup Yr2'!$C$3:$AO$3,0),FALSE),0)*'Master Data'!$F$16 -> 465.6791411 | D76: =IFERROR(VLOOKUP($A76,'Cost buildup Yr3'!C:AO,MATCH($B$3,'Cost buildup Yr3'!$C$3:$AO$3,0),FALSE),0)*'Master Data'!$F$16 -> 473.1894448 | E76: =IFERROR(VLOOKUP($A76,'Cost buildup Yr4'!C:AO,MATCH($B$3,'Cost buildup Yr4'!$C$3:$AO$3,0),FALSE),0)*'Master Data'!$F$16 -> 474.6746712 | F76: =IFERROR(VLOOKUP($A76,'Cost buildup Yr5'!C:AO,MATCH($B$3,'Cost buildup Yr4'!$C$3:$AO$3,0),FALSE),0)*'Master Data'!$F$16 -> 480.1560919 | H76: =IFERROR(VLOOKUP($A76,'Volumes - Report Summary'!$A:$I,MATCH(H$5,'Volumes - Report Summary'!$A$6:$I$6,0),FALSE),0) -> 35 | I76: =IFERROR(VLOOKUP($A76,'Volumes - Report Summary'!$A:$I,MATCH(I$5,'Volumes - Report Summary'!$A$6:$I$6,0),FALSE),0) -> 35 | J76: =IFERROR(VLOOKUP($A76,'Volumes - Report Summary'!$A:$I,MATCH(J$5,'Volumes - Report Summary'!$A$6:$I$6,0),FALSE),0) -> 35 | K76: =IFERROR(VLOOKUP($A76,'Volumes - Report Summary'!$A:$I,MATCH(K$5,'Volumes - Report Summary'!$A$6:$I$6,0),FALSE),0) -> 35 | L76: =IFERROR(VLOOKUP($A76,'Volumes - Report Summary'!$A:$I,MATCH(L$5,'Volumes - Report Summary'!$A$6:$I$6,0),FALSE),0) -> 35 | N76: 16126.1562 | O76: 16298.76994 | P76: 16561.63057 | Q76: 16613.61349 | R76: 16805.46322
A77: ='Table of fees'!B74 -> Augment single phase overhead service to underground supply (pole) | B77: =IFERROR(VLOOKUP(A77,'Cost buildup Yr1'!C:AO,MATCH($B$3,'Cost buildup Yr1'!$C$3:$AO$3,0),FALSE),0)*'Master Data'!$F$16 -> 468.0419389 | C77: =IFERROR(VLOOKUP($A77,'Cost buildup Yr2'!C:AO,MATCH($B$3,'Cost buildup Yr2'!$C$3:$AO$3,0),FALSE),0)*'Master Data'!$F$16 -> 472.9780149 | D77: =IFERROR(VLOOKUP($A77,'Cost buildup Yr3'!C:AO,MATCH($B$3,'Cost buildup Yr3'!$C$3:$AO$3,0),FALSE),0)*'Master Data'!$F$16 -> 480.4973864 | E77: =IFERROR(VLOOKUP($A77,'Cost buildup Yr4'!C:AO,MATCH($B$3,'Cost buildup Yr4'!$C$3:$AO$3,0),FALSE),0)*'Master Data'!$F$16 -> 481.9717095 | F77: =IFERROR(VLOOKUP($A77,'Cost buildup Yr5'!C:AO,MATCH($B$3,'Cost buildup Yr4'!$C$3:$AO$3,0),FALSE),0)*'Master Data'!$F$16 -> 487.4510355 | H77: =IFERROR(VLOOKUP($A77,'Volumes - Report Summary'!$A:$I,MATCH(H$5,'Volumes - Report Summary'!$A$6:$I$6,0),FALSE),0) -> 4 | I77: =IFERROR(VLOOKUP($A77,'Volumes - Report Summary'!$A:$I,MATCH(I$5,'Volumes - Report Summary'!$A$6:$I$6,0),FALSE),0) -> 4 | J77: =IFERROR(VLOOKUP($A77,'Volumes - Report Summary'!$A:$I,MATCH(J$5,'Volumes - Report Summary'!$A$6:$I$6,0),FALSE),0) -> 4 | K77: =IFERROR(VLOOKUP($A77,'Volumes - Report Summary'!$A:$I,MATCH(K$5,'Volumes - Report Summary'!$A$6:$I$6,0),FALSE),0) -> 4 | L77: =IFERROR(VLOOKUP($A77,'Volumes - Report Summary'!$A:$I,MATCH(L$5,'Volumes - Report Summary'!$A$6:$I$6,0),FALSE),0) -> 4 | N77: 1872.167756 | O77: 1891.91206 | P77: 1921.989545 | Q77: 1927.886838 | R77: 1949.804142
A78: ='Table of fees'!B75 -> Augment multi phase overhead service to underground supply (pole) | B78: =IFERROR(VLOOKUP(A78,'Cost buildup Yr1'!C:AO,MATCH($B$3,'Cost buildup Yr1'!$C$3:$AO$3,0),FALSE),0)*'Master Data'!$F$16 -> 566.4710628 | C78: =IFERROR(VLOOKUP($A78,'Cost buildup Yr2'!C:AO,MATCH($B$3,'Cost buildup Yr2'!$C$3:$AO$3,0),FALSE),0)*'Master Data'!$F$16 -> 571.9471142 | D78: =IFERROR(VLOOKUP($A78,'Cost buildup Yr3'!C:AO,MATCH($B$3,'Cost buildup Yr3'!$C$3:$AO$3,0),FALSE),0)*'Master Data'!$F$16 -> 580.522376 | E78: =IFERROR(VLOOKUP($A78,'Cost buildup Yr4'!C:AO,MATCH($B$3,'Cost buildup Yr4'!$C$3:$AO$3,0),FALSE),0)*'Master Data'!$F$16 -> 581.7139313 | F78: =IFERROR(VLOOKUP($A78,'Cost buildup Yr5'!C:AO,MATCH($B$3,'Cost buildup Yr4'!$C$3:$AO$3,0),FALSE),0)*'Master Data'!$F$16 -> 587.723345 | H78: =IFERROR(VLOOKUP($A78,'Volumes - Report Summary'!$A:$I,MATCH(H$5,'Volumes - Report Summary'!$A$6:$I$6,0),FALSE),0) -> 3 | I78: =IFERROR(VLOOKUP($A78,'Volumes - Report Summary'!$A:$I,MATCH(I$5,'Volumes - Report Summary'!$A$6:$I$6,0),FALSE),0) -> 3 | J78: =IFERROR(VLOOKUP($A78,'Volumes - Report Summary'!$A:$I,MATCH(J$5,'Volumes - Report Summary'!$A$6:$I$6,0),FALSE),0) -> 3 | K78: =IFERROR(VLOOKUP($A78,'Volumes - Report Summary'!$A:$I,MATCH(K$5,'Volumes - Report Summary'!$A$6:$I$6,0),FALSE),0) -> 3 | L78: =IFERROR(VLOOKUP($A78,'Volumes - Report Summary'!$A:$I,MATCH(L$5,'Volumes - Report Summary'!$A$6:$I$6,0),FALSE),0) -> 3 | N78: 1699.413189 | O78: 1715.841343 | P78: 1741.567128 | Q78: 1745.141794 | R78: 1763.170035
A79: ='Table of fees'!B76 -> Basic connection alteration – after hours | B79: =IFERROR(VLOOKUP(A79,'Cost buildup Yr1'!C:AO,MATCH($B$3,'Cost buildup Yr1'!$C$3:$AO$3,0),FALSE),0)*'Master Data'!$F$16 -> 1016.809514 | C79: =IFERROR(VLOOKUP($A79,'Cost buildup Yr2'!C:AO,MATCH($B$3,'Cost buildup Yr2'!$C$3:$AO$3,0),FALSE),0)*'Master Data'!$F$16 -> 1026.115465 | D79: =IFERROR(VLOOKUP($A79,'Cost buildup Yr3'!C:AO,MATCH($B$3,'Cost buildup Yr3'!$C$3:$AO$3,0),FALSE),0)*'Master Data'!$F$16 -> 1039.800767 | E79: =IFERROR(VLOOKUP($A79,'Cost buildup Yr4'!C:AO,MATCH($B$3,'Cost buildup Yr4'!$C$3:$AO$3,0),FALSE),0)*'Master Data'!$F$16 -> 1042.899585 | F79: =IFERROR(VLOOKUP($A79,'Cost buildup Yr5'!C:AO,MATCH($B$3,'Cost buildup Yr4'!$C$3:$AO$3,0),FALSE),0)*'Master Data'!$F$16 -> 1052.834231 | H79: =IFERROR(VLOOKUP($A79,'Volumes - Report Summary'!$A:$I,MATCH(H$5,'Volumes - Report Summary'!$A$6:$I$6,0),FALSE),0) -> 1 | I79: =IFERROR(VLOOKUP($A79,'Volumes - Report Summary'!$A:$I,MATCH(I$5,'Volumes - Report Summary'!$A$6:$I$6,0),FALSE),0) -> 1 | J79: =IFERROR(VLOOKUP($A79,'Volumes - Report Summary'!$A:$I,MATCH(J$5,'Volumes - Report Summary'!$A$6:$I$6,0),FALSE),0) -> 1 | K79: =IFERROR(VLOOKUP($A79,'Volumes - Report Summary'!$A:$I,MATCH(K$5,'Volumes - Report Summary'!$A$6:$I$6,0),FALSE),0) -> 1 | L79: =IFERROR(VLOOKUP($A79,'Volumes - Report Summary'!$A:$I,MATCH(L$5,'Volumes - Report Summary'!$A$6:$I$6,0),FALSE),0) -> 1 | N79: 1016.809514 | O79: 1026.115465 | P79: 1039.800767 | Q79: 1042.899585 | R79: 1052.834231
A80: ='Table of fees'!B77 -> Basic connection wasted visit | B80: =IFERROR(VLOOKUP(A80,'Cost buildup Yr1'!C:AO,MATCH($B$3,'Cost buildup Yr1'!$C$3:$AO$3,0),FALSE),0)*'Master Data'!$F$16 -> 184.9042313 | C80: =IFERROR(VLOOKUP($A80,'Cost buildup Yr2'!C:AO,MATCH($B$3,'Cost buildup Yr2'!$C$3:$AO$3,0),FALSE),0)*'Master Data'!$F$16 -> 188.0465078 | D80: =IFERROR(VLOOKUP($A80,'Cost buildup Yr3'!C:AO,MATCH($B$3,'Cost buildup Yr3'!$C$3:$AO$3,0),FALSE),0)*'Master Data'!$F$16 -> 192.0632355 | E80: =IFERROR(VLOOKUP($A80,'Cost buildup Yr4'!C:AO,MATCH($B$3,'Cost buildup Yr4'!$C$3:$AO$3,0),FALSE),0)*'Master Data'!$F$16 -> 194.4185694 | F80: =IFERROR(VLOOKUP($A80,'Cost buildup Yr5'!C:AO,MATCH($B$3,'Cost buildup Yr4'!$C$3:$AO$3,0),FALSE),0)*'Master Data'!$F$16 -> 198.0947613 | H80: =IFERROR(VLOOKUP($A80,'Volumes - Report Summary'!$A:$I,MATCH(H$5,'Volumes - Report Summary'!$A$6:$I$6,0),FALSE),0) -> 1 | I80: =IFERROR(VLOOKUP($A80,'Volumes - Report Summary'!$A:$I,MATCH(I$5,'Volumes - Report Summary'!$A$6:$I$6,0),FALSE),0) -> 1 | J80: =IFERROR(VLOOKUP($A80,'Volumes - Report Summary'!$A:$I,MATCH(J$5,'Volumes - Report Summary'!$A$6:$I$6,0),FALSE),0) -> 1 | K80: =IFERROR(VLOOKUP($A80,'Volumes - Report Summary'!$A:$I,MATCH(K$5,'Volumes - Report Summary'!$A$6:$I$6,0),FALSE),0) -> 1 | L80: =IFERROR(VLOOKUP($A80,'Volumes - Report Summary'!$A:$I,MATCH(L$5,'Volumes - Report Summary'!$A$6:$I$6,0),FALSE),0) -> 1 | N80: 184.9042313 | O80: 188.0465078 | P80: 192.0632355 | Q80: 194.4185694 | R80: 198.0947613
I82: =IFERROR(VLOOKUP($A82,'Volumes - Report Summary'!$A:$I,MATCH(C$5,'Volumes - Report Summary'!$A$6:$I$6,0),FALSE),0) -> 0
H83: =SUM(H7:H82) -> 66338 | I83: =SUM(I7:I82) -> 64138 | J83: =SUM(J7:J82) -> 61938 | K83: =SUM(K7:K82) -> 59738 | L83: =SUM(L7:L82) -> 57538 | N83: =SUM(N7:N82) -> 6969573.195 | O83: =SUM(O7:O82) -> 6907714.017 | P83: =SUM(P7:P82) -> 6868287.243 | Q83: =SUM(Q7:Q82) -> 6766733.061 | R83: =SUM(R7:R82) -> 6700994.449

Sheet Revenue Data
C1: Total Fee | G1: Total Fee | K1: Total Fee | O1: Total Fee | S1: Total Fee
B2: (Real $2016-17) | F2: (Real $2016-17) | J2: (Real $2016-17) | N2: (Real $2016-17) | R2: (Real $2016-17)
B3: ='Master Data'!G14 -> 2019-20 | F3: ='Master Data'!H14 -> 2020-21 | J3: ='Master Data'!I14 -> 2021-22 | N3: ='Master Data'!J14 -> 2022-23 | R3: ='Master Data'!K14 -> 2023-24
B4: Volumes | C4: Base Fee | D4: Total Revenue | F4: Volumes | G4: Base Fee | H4: Total Revenue | J4: Volumes | K4: Base Fee | L4: Total Revenue | N4: Volumes | O4: Base Fee | P4: Total Revenue | R4: Volumes | S4: Base Fee | T4: Total Revenue
A5: ='Table of fees'!A4 -> De-energisation, re-energisation, special reads and retail contract terminations
A6: ='Table of fees'!B5 -> Site visit - no appointment | B6: =IFERROR(VLOOKUP($A6,'Volumes - Report Summary'!$A:$I,MATCH(B$3,'Volumes - Report Summary'!$A$6:$I$6,0),FALSE),0) -> 54512 | C6: =IFERROR(VLOOKUP($A6,'Cost buildup Yr1'!C:AO,MATCH($C$1,'Cost buildup Yr1'!$C$3:$AO$3,0),FALSE),0) -> 76.21896998 | D6: =B6*C6 -> 4154848.492 | F6: =IFERROR(VLOOKUP($A6,'Volumes - Report Summary'!$A:$I,MATCH(F$3,'Volumes - Report Summary'!$A$6:$I$6,0),FALSE),0) -> 52432 | G6: =IFERROR(VLOOKUP($A6,'Cost buildup Yr2'!C:AO,MATCH($C$1,'Cost buildup Yr2'!$C$3:$AO$3,0),FALSE),0) -> 77.86038691 | H6: =F6*G6 -> 4082375.807 | J6: =IFERROR(VLOOKUP($A6,'Volumes - Report Summary'!$A:$I,MATCH(J$3,'Volumes - Report Summary'!$A$6:$I$6,0),FALSE),0) -> 50351 | K6: =IFERROR(VLOOKUP($A6,'Cost buildup Yr3'!C:AO,MATCH($C$1,'Cost buildup Yr3'!$C$3:$AO$3,0),FALSE),0) -> 79.8230465 | L6: =J6*K6 -> 4019170.214 | N6: =IFERROR(VLOOKUP($A6,'Volumes - Report Summary'!$A:$I,MATCH(N$3,'Volumes - Report Summary'!$A$6:$I$6,0),FALSE),0) -> 48272 | O6: =IFERROR(VLOOKUP($A6,'Cost buildup Yr4'!C:AO,MATCH($C$1,'Cost buildup Yr4'!$C$3:$AO$3,0),FALSE),0) -> 81.30330093 | P6: =N6*O6 -> 3924672.942 | R6: =IFERROR(VLOOKUP($A6,'Volumes - Report Summary'!$A:$I,MATCH(R$3,'Volumes - Report Summary'!$A$6:$I$6,0),FALSE),0) -> 46192 | S6: =IFERROR(VLOOKUP($A6,'Cost buildup Yr5'!C:AO,MATCH($C$1,'Cost buildup Yr4'!$C$3:$AO$3,0),FALSE),0) -> 83.25716954 | T6: =R6*S6 -> 3845815.175
A7: ='Table of fees'!B6 -> Site visit - non-scheduled visit | B7: =IFERROR(VLOOKUP($A7,'Volumes - Report Summary'!$A:$I,MATCH(B$3,'Volumes - Report Summary'!$A$6:$I$6,0),FALSE),0) -> 954 | C7: =IFERROR(VLOOKUP(A7,'Cost buildup Yr1'!C:AO,MATCH($C$1,'Cost buildup Yr1'!$C$3:$AO$3,0),FALSE),0) -> 137.831486 | D7: 131491.2376 | F7: =IFERROR(VLOOKUP($A7,'Volumes - Report Summary'!$A:$I,MATCH(F$3,'Volumes - Report Summary'!$A$6:$I$6,0),FALSE),0) -> 918 | G7: =IFERROR(VLOOKUP($A7,'Cost buildup Yr2'!C:AO,MATCH($C$1,'Cost buildup Yr2'!$C$3:$AO$3,0),FALSE),0) -> 139.8796096 | H7: 128409.4816 | J7: =IFERROR(VLOOKUP($A7,'Volumes - Report Summary'!$A:$I,MATCH(J$3,'Volumes - Report Summary'!$A$6:$I$6,0),FALSE),0) -> 882 | K7: =IFERROR(VLOOKUP($A7,'Cost buildup Yr3'!C:AO,MATCH($C$1,'Cost buildup Yr3'!$C$3:$AO$3,0),FALSE),0) -> 142.612065 | L7: 125783.8413 | N7: =IFERROR(VLOOKUP($A7,'Volumes - Report Summary'!$A:$I,MATCH(N$3,'Volumes - Report Summary'!$A$6:$I$6,0),FALSE),0) -> 845 | O7: =IFERROR(VLOOKUP($A7,'Cost buildup Yr4'!C:AO,MATCH($C$1,'Cost buildup Yr4'!$C$3:$AO$3,0),FALSE),0) -> 143.929421 | P7: 121620.3608 | R7: =IFERROR(VLOOKUP($A7,'Volumes - Report Summary'!$A:$I,MATCH(R$3,'Volumes - Report Summary'!$A$6:$I$6,0),FALSE),0) -> 809 | S7: =IFERROR(VLOOKUP($A7,'Cost buildup Yr5'!C:AO,MATCH($C$1,'Cost buildup Yr4'!$C$3:$AO$3,0),FALSE),0) -> 146.2908688 | T7: 118349.3129
A8: ='Table of fees'!B7 -> Site visit - same day premium service | B8: =IFERROR(VLOOKUP($A8,'Volumes - Report Summary'!$A:$I,MATCH(B$3,'Volumes - Report Summary'!$A$6:$I$6,0),FALSE),0) -> 225 | C8: =IFERROR(VLOOKUP(A8,'Cost buildup Yr1'!C:AO,MATCH($C$1,'Cost buildup Yr1'!$C$3:$AO$3,0),FALSE),0) -> 245.8510617 | D8: 55316.48889 | F8: =IFERROR(VLOOKUP($A8,'Volumes - Report Summary'!$A:$I,MATCH(F$3,'Volumes - Report Summary'!$A$6:$I$6,0),FALSE),0) -> 225 | G8: =IFERROR(VLOOKUP($A8,'Cost buildup Yr2'!C:AO,MATCH($C$1,'Cost buildup Yr2'!$C$3:$AO$3,0),FALSE),0) -> 250.306367 | H8: 56318.93258 | J8: =IFERROR(VLOOKUP($A8,'Volumes - Report Summary'!$A:$I,MATCH(J$3,'Volumes - Report Summary'!$A$6:$I$6,0),FALSE),0) -> 225 | K8: =IFERROR(VLOOKUP($A8,'Cost buildup Yr3'!C:AO,MATCH($C$1,'Cost buildup Yr3'!$C$3:$AO$3,0),FALSE),0) -> 255.8487304 | L8: 57565.96434 | N8: =IFERROR(VLOOKUP($A8,'Volumes - Report Summary'!$A:$I,MATCH(N$3,'Volumes - Report Summary'!$A$6:$I$6,0),FALSE),0) -> 225 | O8: =IFERROR(VLOOKUP($A8,'Cost buildup Yr4'!C:AO,MATCH($C$1,'Cost buildup Yr4'!$C$3:$AO$3,0),FALSE),0) -> 259.4478999 | P8: 58375.77748 | R8: =IFERROR(VLOOKUP($A8,'Volumes - Report Summary'!$A:$I,MATCH(R$3,'Volumes - Report Summary'!$A$6:$I$6,0),FALSE),0) -> 225 | S8: =IFERROR(VLOOKUP($A8,'Cost buildup Yr5'!C:AO,MATCH($C$1,'Cost buildup Yr4'!$C$3:$AO$3,0),FALSE),0) -> 264.6784519 | T8: 59552.65168
A9: ='Table of fees'!B8 -> Site visit - after hours | B9: =IFERROR(VLOOKUP($A9,'Volumes - Report Summary'!$A:$I,MATCH(B$3,'Volumes - Report Summary'!$A$6:$I$6,0),FALSE),0) -> 1 | C9: =IFERROR(VLOOKUP(A9,'Cost buildup Yr1'!C:AO,MATCH($C$1,'Cost buildup Yr1'!$C$3:$AO$3,0),FALSE),0) -> 349.4411579 | D9: 349.4411579 | F9: =IFERROR(VLOOKUP($A9,'Volumes - Report Summary'!$A:$I,MATCH(F$3,'Volumes - Report Summary'!$A$6:$I$6,0),FALSE),0) -> 1 | G9: =IFERROR(VLOOKUP($A9,'Cost buildup Yr2'!C:AO,MATCH($C$1,'Cost buildup Yr2'!$C$3:$AO$3,0),FALSE),0) -> 354.5212353 | H9: 354.5212353 | J9: =IFERROR(VLOOKUP($A9,'Volumes - Report Summary'!$A:$I,MATCH(J$3,'Volumes - Report Summary'!$A$6:$I$6,0),FALSE),0) -> 1 | K9: =IFERROR(VLOOKUP($A9,'Cost buildup Yr3'!C:AO,MATCH($C$1,'Cost buildup Yr3'!$C$3:$AO$3,0),FALSE),0) -> 360.9953333 | L9: 360.9953333 | N9: =IFERROR(VLOOKUP($A9,'Volumes - Report Summary'!$A:$I,MATCH(N$3,'Volumes - Report Summary'!$A$6:$I$6,0),FALSE),0) -> 1 | O9: =IFERROR(VLOOKUP($A9,'Cost buildup Yr4'!C:AO,MATCH($C$1,'Cost buildup Yr4'!$C$3:$AO$3,0),FALSE),0) -> 364.6821161 | P9: 364.6821161 | R9: =IFERROR(VLOOKUP($A9,'Volumes - Report Summary'!$A:$I,MATCH(R$3,'Volumes - Report Summary'!$A$6:$I$6,0),FALSE),0) -> 1 | S9: =IFERROR(VLOOKUP($A9,'Cost buildup Yr5'!C:AO,MATCH($C$1,'Cost buildup Yr4'!$C$3:$AO$3,0),FALSE),0) -> 370.4911456 | T9: 370.4911456
A10: ='Table of fees'!B9 -> Site visit - credit actions or site issues | B10: =IFERROR(VLOOKUP($A10,'Volumes - Report Summary'!$A:$I,MATCH(B$3,'Volumes - Report Summary'!$A$6:$I$6,0),FALSE),0) -> 1973 | C10: =IFERROR(VLOOKUP(A10,'Cost buildup Yr1'!C:AO,MATCH($C$1,'Cost buildup Yr1'!$C$3:$AO$3,0),FALSE),0) -> 142.968218 | D10: 282076.2941 | F10: =IFERROR(VLOOKUP($A10,'Volumes - Report Summary'!$A:$I,MATCH(F$3,'Volumes - Report Summary'!$A$6:$I$6,0),FALSE),0) -> 1898 | G10: =IFERROR(VLOOKUP($A10,'Cost buildup Yr2'!C:AO,MATCH($C$1,'Cost buildup Yr2'!$C$3:$AO$3,0),FALSE),0) -> 145.0853393 | H10: 275371.9739 | J10: =IFERROR(VLOOKUP($A10,'Volumes - Report Summary'!$A:$I,MATCH(J$3,'Volumes - Report Summary'!$A$6:$I$6,0),FALSE),0) -> 1823 | K10: =IFERROR(VLOOKUP($A10,'Cost buildup Yr3'!C:AO,MATCH($C$1,'Cost buildup Yr3'!$C$3:$AO$3,0),FALSE),0) -> 147.9759222 | L10: 269760.1062 | N10: =IFERROR(VLOOKUP($A10,'Volumes - Report Summary'!$A:$I,MATCH(N$3,'Volumes - Report Summary'!$A$6:$I$6,0),FALSE),0) -> 1747 | O10: =IFERROR(VLOOKUP($A10,'Cost buildup Yr4'!C:AO,MATCH($C$1,'Cost buildup Yr4'!$C$3:$AO$3,0),FALSE),0) -> 149.2336326 | P10: 260711.1562 | R10: =IFERROR(VLOOKUP($A10,'Volumes - Report Summary'!$A:$I,MATCH(R$3,'Volumes - Report Summary'!$A$6:$I$6,0),FALSE),0) -> 1672 | S10: =IFERROR(VLOOKUP($A10,'Cost buildup Yr5'!C:AO,MATCH($C$1,'Cost buildup Yr4'!$C$3:$AO$3,0),FALSE),0) -> 151.673702 | T10: 253598.4298
A11: ='Table of fees'!B10 -> Site visit – credit actions pillar box/pole top | B11: =IFERROR(VLOOKUP($A11,'Volumes - Report Summary'!$A:$I,MATCH(B$3,'Volumes - Report Summary'!$A$6:$I$6,0),FALSE),0) -> 219 | C11: =IFERROR(VLOOKUP(A11,'Cost buildup Yr1'!C:AO,MATCH($C$1,'Cost buildup Yr1'!$C$3:$AO$3,0),FALSE),0) -> 236.618639 | D11: 51819.48194 | F11: =IFERROR(VLOOKUP($A11,'Volumes - Report Summary'!$A:$I,MATCH(F$3,'Volumes - Report Summary'!$A$6:$I$6,0),FALSE),0) -> 210 | G11: =IFERROR(VLOOKUP($A11,'Cost buildup Yr2'!C:AO,MATCH($C$1,'Cost buildup Yr2'!$C$3:$AO$3,0),FALSE),0) -> 239.2961198 | H11: 50252.18517 | J11: =IFERROR(VLOOKUP($A11,'Volumes - Report Summary'!$A:$I,MATCH(J$3,'Volumes - Report Summary'!$A$6:$I$6,0),FALSE),0) -> 202 | K11: =IFERROR(VLOOKUP($A11,'Cost buildup Yr3'!C:AO,MATCH($C$1,'Cost buildup Yr3'!$C$3:$AO$3,0),FALSE),0) -> 243.2814794 | L11: 49142.85884 | N11: =IFERROR(VLOOKUP($A11,'Volumes - Report Summary'!$A:$I,MATCH(N$3,'Volumes - Report Summary'!$A$6:$I$6,0),FALSE),0) -> 194 | O11: =IFERROR(VLOOKUP($A11,'Cost buildup Yr4'!C:AO,MATCH($C$1,'Cost buildup Yr4'!$C$3:$AO$3,0),FALSE),0) -> 244.2570512 | P11: 47385.86793 | R11: =IFERROR(VLOOKUP($A11,'Volumes - Report Summary'!$A:$I,MATCH(R$3,'Volumes - Report Summary'!$A$6:$I$6,0),FALSE),0) -> 185 | S11: =IFERROR(VLOOKUP($A11,'Cost buildup Yr5'!C:AO,MATCH($C$1,'Cost buildup Yr4'!$C$3:$AO$3,0),FALSE),0) -> 247.2553915 | T11: 45742.24742
A12: ='Table of fees'!B11 -> Site visit – current transformer (CT) metering | B12: =IFERROR(VLOOKUP($A12,'Volumes - Report Summary'!$A:$I,MATCH(B$3,'Volumes - Report Summary'!$A$6:$I$6,0),FALSE),0) -> 5 | C12: =IFERROR(VLOOKUP(A12,'Cost buildup Yr1'!C:AO,MATCH($C$1,'Cost buildup Yr1'!$C$3:$AO$3,0),FALSE),0) -> 135.6038709 | D12: 678.0193543 | F12: =IFERROR(VLOOKUP($A12,'Volumes - Report Summary'!$A:$I,MATCH(F$3,'Volumes - Report Summary'!$A$6:$I$6,0),FALSE),0) -> 5 | G12: =IFERROR(VLOOKUP($A12,'Cost buildup Yr2'!C:AO,MATCH($C$1,'Cost buildup Yr2'!$C$3:$AO$3,0),FALSE),0) -> 137.647733 | H12: 688.2386648 | J12: =IFERROR(VLOOKUP($A12,'Volumes - Report Summary'!$A:$I,MATCH(J$3,'Volumes - Report Summary'!$A$6:$I$6,0),FALSE),0) -> 5 | K12: =IFERROR(VLOOKUP($A12,'Cost buildup Yr3'!C:AO,MATCH($C$1,'Cost buildup Yr3'!$C$3:$AO$3,0),FALSE),0) -> 140.3957485 | L12: 701.9787423 | N12: =IFERROR(VLOOKUP($A12,'Volumes - Report Summary'!$A:$I,MATCH(N$3,'Volumes - Report Summary'!$A$6:$I$6,0),FALSE),0) -> 5 | O12: =IFERROR(VLOOKUP($A12,'Cost buildup Yr4'!C:AO,MATCH($C$1,'Cost buildup Yr4'!$C$3:$AO$3,0),FALSE),0) -> 141.6838517 | P12: 708.4192585 | R12: =IFERROR(VLOOKUP($A12,'Volumes - Report Summary'!$A:$I,MATCH(R$3,'Volumes - Report Summary'!$A$6:$I$6,0),FALSE),0) -> 5 | S12: =IFERROR(VLOOKUP($A12,'Cost buildup Yr5'!C:AO,MATCH($C$1,'Cost buildup Yr4'!$C$3:$AO$3,0),FALSE),0) -> 144.0462408 | T12: 720.2312041
A13: ='Table of fees'!B12 -> Site visit – pillar box/pole top | B13: =IFERROR(VLOOKUP($A13,'Volumes - Report Summary'!$A:$I,MATCH(B$3,'Volumes - Report Summary'!$A$6:$I$6,0),FALSE),0) -> 10 | C13: =IFERROR(VLOOKUP(A13,'Cost buildup Yr1'!C:AO,MATCH($C$1,'Cost buildup Yr1'!$C$3:$AO$3,0),FALSE),0) -> 236.618639 | D13: 2366.18639 | F13: =IFERROR(VLOOKUP($A13,'Volumes - Report Summary'!$A:$I,MATCH(F$3,'Volumes - Report Summary'!$A$6:$I$6,0),FALSE),0) -> 10 | G13: =IFERROR(VLOOKUP($A13,'Cost buildup Yr2'!C:AO,MATCH($C$1,'Cost buildup Yr2'!$C$3:$AO$3,0),FALSE),0) -> 239.2961198 | H13: 2392.961198 | J13: =IFERROR(VLOOKUP($A13,'Volumes - Report Summary'!$A:$I,MATCH(J$3,'Volumes - Report Summary'!$A$6:$I$6,0),FALSE),0) -> 10 | K13: =IFERROR(VLOOKUP($A13,'Cost buildup Yr3'!C:AO,MATCH($C$1,'Cost buildup Yr3'!$C$3:$AO$3,0),FALSE),0) -> 243.2814794 | L13: 2432.814794 | N13: =IFERROR(VLOOKUP($A13,'Volumes - Report Summary'!$A:$I,MATCH(N$3,'Volumes - Report Summary'!$A$6:$I$6,0),FALSE),0) -> 10 | O13: =IFERROR(VLOOKUP($A13,'Cost buildup Yr4'!C:AO,MATCH($C$1,'Cost buildup Yr4'!$C$3:$AO$3,0),FALSE),0) -> 244.2570512 | P13: 2442.570512 | R13: =IFERROR(VLOOKUP($A13,'Volumes - Report Summary'!$A:$I,MATCH(R$3,'Volumes - Report Summary'!$A$6:$I$6,0),FALSE),0) -> 10 | S13: =IFERROR(VLOOKUP($A13,'Cost buildup Yr5'!C:AO,MATCH($C$1,'Cost buildup Yr4'!$C$3:$AO$3,0),FALSE),0) -> 247.2553915 | T13: 2472.553915
A14: ='Table of fees'!B13 -> Site visit - pillar box/pole top Wasted Visit | B14: =IFERROR(VLOOKUP($A14,'Volumes - Report Summary'!$A:$I,MATCH(B$3,'Volumes - Report Summary'!$A$6:$I$6,0),FALSE),0) -> 1 | C14: =IFERROR(VLOOKUP(A14,'Cost buildup Yr1'!C:AO,MATCH($C$1,'Cost buildup Yr1'!$C$3:$AO$3,0),FALSE),0) -> 151.3450217 | D14: 151.3450217 | F14: =IFERROR(VLOOKUP($A14,'Volumes - Report Summary'!$A:$I,MATCH(F$3,'Volumes - Report Summary'!$A$6:$I$6,0),FALSE),0) -> 1 | G14: =IFERROR(VLOOKUP($A14,'Cost buildup Yr2'!C:AO,MATCH($C$1,'Cost buildup Yr2'!$C$3:$AO$3,0),FALSE),0) -> 153.4670292 | H14: 153.4670292 | J14: =IFERROR(VLOOKUP($A14,'Volumes - Report Summary'!$A:$I,MATCH(J$3,'Volumes - Report Summary'!$A$6:$I$6,0),FALSE),0) -> 1 | K14: =IFERROR(VLOOKUP($A14,'Cost buildup Yr3'!C:AO,MATCH($C$1,'Cost buildup Yr3'!$C$3:$AO$3,0),FALSE),0) -> 156.3680252 | L14: 156.3680252 | N14: =IFERROR(VLOOKUP($A14,'Volumes - Report Summary'!$A:$I,MATCH(N$3,'Volumes - Report Summary'!$A$6:$I$6,0),FALSE),0) -> 1 | O14: =IFERROR(VLOOKUP($A14,'Cost buildup Yr4'!C:AO,MATCH($C$1,'Cost buildup Yr4'!$C$3:$AO$3,0),FALSE),0) -> 157.6132148 | P14: 157.6132148 | R14: =IFERROR(VLOOKUP($A14,'Volumes - Report Summary'!$A:$I,MATCH(R$3,'Volumes - Report Summary'!$A$6:$I$6,0),FALSE),0) -> 1 | S14: =IFERROR(VLOOKUP($A14,'Cost buildup Yr5'!C:AO,MATCH($C$1,'Cost buildup Yr4'!$C$3:$AO$3,0),FALSE),0) -> 160.0508787 | T14: 160.0508787
A15: ='Table of fees'!B14 -> Transfer of retailer | B15: =IFERROR(VLOOKUP($A15,'Volumes - Report Summary'!$A:$I,MATCH(B$3,'Volumes - Report Summary'!$A$6:$I$6,0),FALSE),0) -> 0 | C15: =IFERROR(VLOOKUP(A15,'Cost buildup Yr1'!C:AO,MATCH($C$1,'Cost buildup Yr1'!$C$3:$AO$3,0),FALSE),0) -> 0 | D15: 0 | F15: =IFERROR(VLOOKUP($A15,'Volumes - Report Summary'!$A:$I,MATCH(F$3,'Volumes - Report Summary'!$A$6:$I$6,0),FALSE),0) -> 0 | G15: =IFERROR(VLOOKUP($A15,'Cost buildup Yr2'!C:AO,MATCH($C$1,'Cost buildup Yr2'!$C$3:$AO$3,0),FALSE),0) -> 0 | H15: 0 | J15: =IFERROR(VLOOKUP($A15,'Volumes - Report Summary'!$A:$I,MATCH(J$3,'Volumes - Report Summary'!$A$6:$I$6,0),FALSE),0) -> 0 | K15: =IFERROR(VLOOKUP($A15,'Cost buildup Yr3'!C:AO,MATCH($C$1,'Cost buildup Yr3'!$C$3:$AO$3,0),FALSE),0) -> 0 | L15: 0 | N15: =IFERROR(VLOOKUP($A15,'Volumes - Report Summary'!$A:$I,MATCH(N$3,'Volumes - Report Summary'!$A$6:$I$6,0),FALSE),0) -> 0 | O15: =IFERROR(VLOOKUP($A15,'Cost buildup Yr4'!C:AO,MATCH($C$1,'Cost buildup Yr4'!$C$3:$AO$3,0),FALSE),0) -> 0 | P15: 0 | R15: =IFERROR(VLOOKUP($A15,'Volumes - Report Summary'!$A:$I,MATCH(R$3,'Volumes - Report Summary'!$A$6:$I$6,0),FALSE),0) -> 0 | S15: =IFERROR(VLOOKUP($A15,'Cost buildup Yr5'!C:AO,MATCH($C$1,'Cost buildup Yr4'!$C$3:$AO$3,0),FALSE),0) -> 0 | T15: 0
A16: ='Table of fees'!A15 -> Meter test
A17: ='Table of fees'!B16 -> Meter test - single phase | B17: =IFERROR(VLOOKUP($A17,'Volumes - Report Summary'!$A:$I,MATCH(B$3,'Volumes - Report Summary'!$A$6:$I$6,0),FALSE),0) -> 17 | C17: =IFERROR(VLOOKUP(A17,'Cost buildup Yr1'!C:AO,MATCH($C$1,'Cost buildup Yr1'!$C$3:$AO$3,0),FALSE),0) -> 193.7793858 | D17: 3294.249558 | F17: =IFERROR(VLOOKUP($A17,'Volumes - Report Summary'!$A:$I,MATCH(F$3,'Volumes - Report Summary'!$A$6:$I$6,0),FALSE),0) -> 17 | G17: =IFERROR(VLOOKUP($A17,'Cost buildup Yr2'!C:AO,MATCH($C$1,'Cost buildup Yr2'!$C$3:$AO$3,0),FALSE),0) -> 195.7956637 | H17: 3328.526283 | J17: =IFERROR(VLOOKUP($A17,'Volumes - Report Summary'!$A:$I,MATCH(J$3,'Volumes - Report Summary'!$A$6:$I$6,0),FALSE),0) -> 17 | K17: =IFERROR(VLOOKUP($A17,'Cost buildup Yr3'!C:AO,MATCH($C$1,'Cost buildup Yr3'!$C$3:$AO$3,0),FALSE),0) -> 198.9550378 | L17: 3382.235643 | N17: =IFERROR(VLOOKUP($A17,'Volumes - Report Summary'!$A:$I,MATCH(N$3,'Volumes - Report Summary'!$A$6:$I$6,0),FALSE),0) -> 17 | O17: =IFERROR(VLOOKUP($A17,'Cost buildup Yr4'!C:AO,MATCH($C$1,'Cost buildup Yr4'!$C$3:$AO$3,0),FALSE),0) -> 199.4073247 | P17: 3389.924521 | R17: =IFERROR(VLOOKUP($A17,'Volumes - Report Summary'!$A:$I,MATCH(R$3,'Volumes - Report Summary'!$A$6:$I$6,0),FALSE),0) -> 17 | S17: =IFERROR(VLOOKUP($A17,'Cost buildup Yr5'!C:AO,MATCH($C$1,'Cost buildup Yr4'!$C$3:$AO$3,0),FALSE),0) -> 201.6338361 | T17: 3427.775213
A18: ='Table of fees'!B17 -> Meter test - multi phase | B18: =IFERROR(VLOOKUP($A18,'Volumes - Report Summary'!$A:$I,MATCH(B$3,'Volumes - Report Summary'!$A$6:$I$6,0),FALSE),0) -> 4 | C18: =IFERROR(VLOOKUP(A18,'Cost buildup Yr1'!C:AO,MATCH($C$1,'Cost buildup Yr1'!$C$3:$AO$3,0),FALSE),0) -> 360.7994195 | D18: 1443.197678 | F18: =IFERROR(VLOOKUP($A18,'Volumes - Report Summary'!$A:$I,MATCH(F$3,'Volumes - Report Summary'!$A$6:$I$6,0),FALSE),0) -> 4 | G18: =IFERROR(VLOOKUP($A18,'Cost buildup Yr2'!C:AO,MATCH($C$1,'Cost buildup Yr2'!$C$3:$AO$3,0),FALSE),0) -> 363.9475744 | H18: 1455.790298 | J18: =IFERROR(VLOOKUP($A18,'Volumes - Report Summary'!$A:$I,MATCH(J$3,'Volumes - Report Summary'!$A$6:$I$6,0),FALSE),0) -> 4 | K18: =IFERROR(VLOOKUP($A18,'Cost buildup Yr3'!C:AO,MATCH($C$1,'Cost buildup Yr3'!$C$3:$AO$3,0),FALSE),0) -> 369.3157621 | L18: 1477.263048 | N18: =IFERROR(VLOOKUP($A18,'Volumes - Report Summary'!$A:$I,MATCH(N$3,'Volumes - Report Summary'!$A$6:$I$6,0),FALSE),0) -> 4 | O18: =IFERROR(VLOOKUP($A18,'Cost buildup Yr4'!C:AO,MATCH($C$1,'Cost buildup Yr4'!$C$3:$AO$3,0),FALSE),0) -> 369.2276238 | P18: 1476.910495 | R18: =IFERROR(VLOOKUP($A18,'Volumes - Report Summary'!$A:$I,MATCH(R$3,'Volumes - Report Summary'!$A$6:$I$6,0),FALSE),0) -> 4 | S18: =IFERROR(VLOOKUP($A18,'Cost buildup Yr5'!C:AO,MATCH($C$1,'Cost buildup Yr4'!$C$3:$AO$3,0),FALSE),0) -> 372.6030991 | T18: 1490.412396
A19: ='Table of fees'!B18 -> Meter test – current transformer (CT) | B19: =IFERROR(VLOOKUP($A19,'Volumes - Report Summary'!$A:$I,MATCH(B$3,'Volumes - Report Summary'!$A$6:$I$6,0),FALSE),0) -> 4 | C19: =IFERROR(VLOOKUP(A19,'Cost buildup Yr1'!C:AO,MATCH($C$1,'Cost buildup Yr1'!$C$3:$AO$3,0),FALSE),0) -> 397.9149825 | D19: 1591.65993 | F19: =IFERROR(VLOOKUP($A19,'Volumes - Report Summary'!$A:$I,MATCH(F$3,'Volumes - Report Summary'!$A$6:$I$6,0),FALSE),0) -> 4 | G19: =IFERROR(VLOOKUP($A19,'Cost buildup Yr2'!C:AO,MATCH($C$1,'Cost buildup Yr2'!$C$3:$AO$3,0),FALSE),0) -> 401.3146657 | H19: 1605.258663 | J19: =IFERROR(VLOOKUP($A19,'Volumes - Report Summary'!$A:$I,MATCH(J$3,'Volumes - Report Summary'!$A$6:$I$6,0),FALSE),0) -> 4 | K19: =IFERROR(VLOOKUP($A19,'Cost buildup Yr3'!C:AO,MATCH($C$1,'Cost buildup Yr3'!$C$3:$AO$3,0),FALSE),0) -> 407.1737009 | L19: 1628.694803 | N19: =IFERROR(VLOOKUP($A19,'Volumes - Report Summary'!$A:$I,MATCH(N$3,'Volumes - Report Summary'!$A$6:$I$6,0),FALSE),0) -> 4 | O19: =IFERROR(VLOOKUP($A19,'Cost buildup Yr4'!C:AO,MATCH($C$1,'Cost buildup Yr4'!$C$3:$AO$3,0),FALSE),0) -> 406.965468 | P19: 1627.861872 | R19: =IFERROR(VLOOKUP($A19,'Volumes - Report Summary'!$A:$I,MATCH(R$3,'Volumes - Report Summary'!$A$6:$I$6,0),FALSE),0) -> 4 | S19: =IFERROR(VLOOKUP($A19,'Cost buildup Yr5'!C:AO,MATCH($C$1,'Cost buildup Yr4'!$C$3:$AO$3,0),FALSE),0) -> 410.5962686 | T19: 1642.385074
A20: ='Table of fees'!B19 -> Meter test - after hours | B20: =IFERROR(VLOOKUP($A20,'Volumes - Report Summary'!$A:$I,MATCH(B$3,'Volumes - Report Summary'!$A$6:$I$6,0),FALSE),0) -> 1 | C20: =IFERROR(VLOOKUP(A20,'Cost buildup Yr1'!C:AO,MATCH($C$1,'Cost buildup Yr1'!$C$3:$AO$3,0),FALSE),0) -> 753.4474075 | D20: 753.4474075 | F20: =IFERROR(VLOOKUP($A20,'Volumes - Report Summary'!$A:$I,MATCH(F$3,'Volumes - Report Summary'!$A$6:$I$6,0),FALSE),0) -> 1 | G20: =IFERROR(VLOOKUP($A20,'Cost buildup Yr2'!C:AO,MATCH($C$1,'Cost buildup Yr2'!$C$3:$AO$3,0),FALSE),0) -> 761.0982744 | H20: 761.0982744 | J20: =IFERROR(VLOOKUP($A20,'Volumes - Report Summary'!$A:$I,MATCH(J$3,'Volumes - Report Summary'!$A$6:$I$6,0),FALSE),0) -> 1 | K20: =IFERROR(VLOOKUP($A20,'Cost buildup Yr3'!C:AO,MATCH($C$1,'Cost buildup Yr3'!$C$3:$AO$3,0),FALSE),0) -> 772.0254652 | L20: 772.0254652 | N20: =IFERROR(VLOOKUP($A20,'Volumes - Report Summary'!$A:$I,MATCH(N$3,'Volumes - Report Summary'!$A$6:$I$6,0),FALSE),0) -> 1 | O20: =IFERROR(VLOOKUP($A20,'Cost buildup Yr4'!C:AO,MATCH($C$1,'Cost buildup Yr4'!$C$3:$AO$3,0),FALSE),0) -> 775.238805 | P20: 775.238805 | R20: =IFERROR(VLOOKUP($A20,'Volumes - Report Summary'!$A:$I,MATCH(R$3,'Volumes - Report Summary'!$A$6:$I$6,0),FALSE),0) -> 1 | S20: =IFERROR(VLOOKUP($A20,'Cost buildup Yr5'!C:AO,MATCH($C$1,'Cost buildup Yr4'!$C$3:$AO$3,0),FALSE),0) -> 783.5459011 | T20: 783.5459011
A21: ='Table of fees'!B20 -> Meter test - wasted visit | B21: =IFERROR(VLOOKUP($A21,'Volumes - Report Summary'!$A:$I,MATCH(B$3,'Volumes - Report Summary'!$A$6:$I$6,0),FALSE),0) -> 1 | C21: =IFERROR(VLOOKUP(A21,'Cost buildup Yr1'!C:AO,MATCH($C$1,'Cost buildup Yr1'!$C$3:$AO$3,0),FALSE),0) -> 82.4326966 | D21: 82.4326966 | F21: =IFERROR(VLOOKUP($A21,'Volumes - Report Summary'!$A:$I,MATCH(F$3,'Volumes - Report Summary'!$A$6:$I$6,0),FALSE),0) -> 1 | G21: =IFERROR(VLOOKUP($A21,'Cost buildup Yr2'!C:AO,MATCH($C$1,'Cost buildup Yr2'!$C$3:$AO$3,0),FALSE),0) -> 83.69438989 | H21: 83.69438989 | J21: =IFERROR(VLOOKUP($A21,'Volumes - Report Summary'!$A:$I,MATCH(J$3,'Volumes - Report Summary'!$A$6:$I$6,0),FALSE),0) -> 1 | K21: =IFERROR(VLOOKUP($A21,'Cost buildup Yr3'!C:AO,MATCH($C$1,'Cost buildup Yr3'!$C$3:$AO$3,0),FALSE),0) -> 85.38122162 | L21: 85.38122162 | N21: =IFERROR(VLOOKUP($A21,'Volumes - Report Summary'!$A:$I,MATCH(N$3,'Volumes - Report Summary'!$A$6:$I$6,0),FALSE),0) -> 1 | O21: =IFERROR(VLOOKUP($A21,'Cost buildup Yr4'!C:AO,MATCH($C$1,'Cost buildup Yr4'!$C$3:$AO$3,0),FALSE),0) -> 86.19379205 | P21: 86.19379205 | R21: =IFERROR(VLOOKUP($A21,'Volumes - Report Summary'!$A:$I,MATCH(R$3,'Volumes - Report Summary'!$A$6:$I$6,0),FALSE),0) -> 1 | S21: =IFERROR(VLOOKUP($A21,'Cost buildup Yr5'!C:AO,MATCH($C$1,'Cost buildup Yr4'!$C$3:$AO$3,0),FALSE),0) -> 87.65432742 | T21: 87.65432742
A22: ='Table of fees'!A21 -> Supply abolishment
A23: ='Table of fees'!B22 -> Remove service & meters | B23: =IFERROR(VLOOKUP($A23,'Volumes - Report Summary'!$A:$I,MATCH(B$3,'Volumes - Report Summary'!$A$6:$I$6,0),FALSE),0) -> 336 | C23: =IFERROR(VLOOKUP(A23,'Cost buildup Yr1'!C:AO,MATCH($C$1,'Cost buildup Yr1'!$C$3:$AO$3,0),FALSE),0) -> 236.618639 | D23: 79503.86271 | F23: =IFERROR(VLOOKUP($A23,'Volumes - Report Summary'!$A:$I,MATCH(F$3,'Volumes - Report Summary'!$A$6:$I$6,0),FALSE),0) -> 336 | G23: =IFERROR(VLOOKUP($A23,'Cost buildup Yr2'!C:AO,MATCH($C$1,'Cost buildup Yr2'!$C$3:$AO$3,0),FALSE),0) -> 239.2961198 | H23: 80403.49627 | J23: =IFERROR(VLOOKUP($A23,'Volumes - Report Summary'!$A:$I,MATCH(J$3,'Volumes - Report Summary'!$A$6:$I$6,0),FALSE),0) -> 336 | K23: =IFERROR(VLOOKUP($A23,'Cost buildup Yr3'!C:AO,MATCH($C$1,'Cost buildup Yr3'!$C$3:$AO$3,0),FALSE),0) -> 243.2814794 | L23: 81742.57708 | N23: =IFERROR(VLOOKUP($A23,'Volumes - Report Summary'!$A:$I,MATCH(N$3,'Volumes - Report Summary'!$A$6:$I$6,0),FALSE),0) -> 336 | O23: =IFERROR(VLOOKUP($A23,'Cost buildup Yr4'!C:AO,MATCH($C$1,'Cost buildup Yr4'!$C$3:$AO$3,0),FALSE),0) -> 244.2570512 | P23: 82070.3692 | R23: =IFERROR(VLOOKUP($A23,'Volumes - Report Summary'!$A:$I,MATCH(R$3,'Volumes - Report Summary'!$A$6:$I$6,0),FALSE),0) -> 336 | S23: =IFERROR(VLOOKUP($A23,'Cost buildup Yr5'!C:AO,MATCH($C$1,'Cost buildup Yr4'!$C$3:$AO$3,0),FALSE),0) -> 247.2553915 | T23: 83077.81154
A24: ='Table of fees'!B23 -> Supply abolishment - after hours | B24: =IFERROR(VLOOKUP($A24,'Volumes - Report Summary'!$A:$I,MATCH(B$3,'Volumes - Report Summary'!$A$6:$I$6,0),FALSE),0) -> 1 | C24: =IFERROR(VLOOKUP(A24,'Cost buildup Yr1'!C:AO,MATCH($C$1,'Cost buildup Yr1'!$C$3:$AO$3,0),FALSE),0) -> 607.391784 | D24: 607.391784 | F24: =IFERROR(VLOOKUP($A24,'Volumes - Report Summary'!$A:$I,MATCH(F$3,'Volumes - Report Summary'!$A$6:$I$6,0),FALSE),0) -> 1 | G24: =IFERROR(VLOOKUP($A24,'Cost buildup Yr2'!C:AO,MATCH($C$1,'Cost buildup Yr2'!$C$3:$AO$3,0),FALSE),0) -> 614.0234037 | H24: 614.0234037 | J24: =IFERROR(VLOOKUP($A24,'Volumes - Report Summary'!$A:$I,MATCH(J$3,'Volumes - Report Summary'!$A$6:$I$6,0),FALSE),0) -> 1 | K24: =IFERROR(VLOOKUP($A24,'Cost buildup Yr3'!C:AO,MATCH($C$1,'Cost buildup Yr3'!$C$3:$AO$3,0),FALSE),0) -> 623.1886834 | L24: 623.1886834 | N24: =IFERROR(VLOOKUP($A24,'Volumes - Report Summary'!$A:$I,MATCH(N$3,'Volumes - Report Summary'!$A$6:$I$6,0),FALSE),0) -> 1 | O24: =IFERROR(VLOOKUP($A24,'Cost buildup Yr4'!C:AO,MATCH($C$1,'Cost buildup Yr4'!$C$3:$AO$3,0),FALSE),0) -> 626.5681625 | P24: 626.5681625 | R24: =IFERROR(VLOOKUP($A24,'Volumes - Report Summary'!$A:$I,MATCH(R$3,'Volumes - Report Summary'!$A$6:$I$6,0),FALSE),0) -> 1 | S24: =IFERROR(VLOOKUP($A24,'Cost buildup Yr5'!C:AO,MATCH($C$1,'Cost buildup Yr4'!$C$3:$AO$3,0),FALSE),0) -> 633.8715675 | T24: 633.8715675
A25: ='Table of fees'!B24 -> Supply abolishment - wasted visit | B25: =IFERROR(VLOOKUP($A25,'Volumes - Report Summary'!$A:$I,MATCH(B$3,'Volumes - Report Summary'!$A$6:$I$6,0),FALSE),0) -> 24 | C25: =IFERROR(VLOOKUP(A25,'Cost buildup Yr1'!C:AO,MATCH($C$1,'Cost buildup Yr1'!$C$3:$AO$3,0),FALSE),0) -> 159.0971687 | D25: 3818.332049 | F25: =IFERROR(VLOOKUP($A25,'Volumes - Report Summary'!$A:$I,MATCH(F$3,'Volumes - Report Summary'!$A$6:$I$6,0),FALSE),0) -> 24 | G25: =IFERROR(VLOOKUP($A25,'Cost buildup Yr2'!C:AO,MATCH($C$1,'Cost buildup Yr2'!$C$3:$AO$3,0),FALSE),0) -> 161.2696738 | H25: 3870.472172 | J25: =IFERROR(VLOOKUP($A25,'Volumes - Report Summary'!$A:$I,MATCH(J$3,'Volumes - Report Summary'!$A$6:$I$6,0),FALSE),0) -> 24 | K25: =IFERROR(VLOOKUP($A25,'Cost buildup Yr3'!C:AO,MATCH($C$1,'Cost buildup Yr3'!$C$3:$AO$3,0),FALSE),0) -> 164.2692483 | L25: 3942.461959 | N25: =IFERROR(VLOOKUP($A25,'Volumes - Report Summary'!$A:$I,MATCH(N$3,'Volumes - Report Summary'!$A$6:$I$6,0),FALSE),0) -> 24 | O25: =IFERROR(VLOOKUP($A25,'Cost buildup Yr4'!C:AO,MATCH($C$1,'Cost buildup Yr4'!$C$3:$AO$3,0),FALSE),0) -> 165.4899272 | P25: 3971.758252 | R25: =IFERROR(VLOOKUP($A25,'Volumes - Report Summary'!$A:$I,MATCH(R$3,'Volumes - Report Summary'!$A$6:$I$6,0),FALSE),0) -> 24 | S25: =IFERROR(VLOOKUP($A25,'Cost buildup Yr5'!C:AO,MATCH($C$1,'Cost buildup Yr4'!$C$3:$AO$3,0),FALSE),0) -> 167.9785617 | T25: 4031.48548
A26: ='Table of fees'!A25 -> Truck tee-up
A27: ='Table of fees'!B26 -> Tee-up/Appointment | B27: =IFERROR(VLOOKUP($A27,'Volumes - Report Summary'!$A:$I,MATCH(B$3,'Volumes - Report Summary'!$A$6:$I$6,0),FALSE),0) -> 3300 | C27: =IFERROR(VLOOKUP(A27,'Cost buildup Yr1'!C:AO,MATCH($C$1,'Cost buildup Yr1'!$C$3:$AO$3,0),FALSE),0) -> 139.8587081 | D27: 461533.7367 | F27: =IFERROR(VLOOKUP($A27,'Volumes - Report Summary'!$A:$I,MATCH(F$3,'Volumes - Report Summary'!$A$6:$I$6,0),FALSE),0) -> 3300 | G27: =IFERROR(VLOOKUP($A27,'Cost buildup Yr2'!C:AO,MATCH($C$1,'Cost buildup Yr2'!$C$3:$AO$3,0),FALSE),0) -> 141.5575352 | H27: 467139.8663 | J27: =IFERROR(VLOOKUP($A27,'Volumes - Report Summary'!$A:$I,MATCH(J$3,'Volumes - Report Summary'!$A$6:$I$6,0),FALSE),0) -> 3300 | K27: =IFERROR(VLOOKUP($A27,'Cost buildup Yr3'!C:AO,MATCH($C$1,'Cost buildup Yr3'!$C$3:$AO$3,0),FALSE),0) -> 143.9439212 | L27: 475014.9399 | N27: =IFERROR(VLOOKUP($A27,'Volumes - Report Summary'!$A:$I,MATCH(N$3,'Volumes - Report Summary'!$A$6:$I$6,0),FALSE),0) -> 3300 | O27: =IFERROR(VLOOKUP($A27,'Cost buildup Yr4'!C:AO,MATCH($C$1,'Cost buildup Yr4'!$C$3:$AO$3,0),FALSE),0) -> 144.812581 | P27: 477881.5172 | R27: =IFERROR(VLOOKUP($A27,'Volumes - Report Summary'!$A:$I,MATCH(R$3,'Volumes - Report Summary'!$A$6:$I$6,0),FALSE),0) -> 3300 | S27: =IFERROR(VLOOKUP($A27,'Cost buildup Yr5'!C:AO,MATCH($C$1,'Cost buildup Yr4'!$C$3:$AO$3,0),FALSE),0) -> 146.7396557 | T27: 484240.8637
A28: ='Table of fees'!B27 -> Tee-up/Appointment – after hours | B28: =IFERROR(VLOOKUP($A28,'Volumes - Report Summary'!$A:$I,MATCH(B$3,'Volumes - Report Summary'!$A$6:$I$6,0),FALSE),0) -> 1 | C28: =IFERROR(VLOOKUP(A28,'Cost buildup Yr1'!C:AO,MATCH($C$1,'Cost buildup Yr1'!$C$3:$AO$3,0),FALSE),0) -> 607.391784 | D28: 607.391784 | F28: =IFERROR(VLOOKUP($A28,'Volumes - Report Summary'!$A:$I,MATCH(F$3,'Volumes - Report Summary'!$A$6:$I$6,0),FALSE),0) -> 1 | G28: =IFERROR(VLOOKUP($A28,'Cost buildup Yr2'!C:AO,MATCH($C$1,'Cost buildup Yr2'!$C$3:$AO$3,0),FALSE),0) -> 614.0234037 | H28: 614.0234037 | J28: =IFERROR(VLOOKUP($A28,'Volumes - Report Summary'!$A:$I,MATCH(J$3,'Volumes - Report Summary'!$A$6:$I$6,0),FALSE),0) -> 1 | K28: =IFERROR(VLOOKUP($A28,'Cost buildup Yr3'!C:AO,MATCH($C$1,'Cost buildup Yr3'!$C$3:$AO$3,0),FALSE),0) -> 623.1886834 | L28: 623.1886834 | N28: =IFERROR(VLOOKUP($A28,'Volumes - Report Summary'!$A:$I,MATCH(N$3,'Volumes - Report Summary'!$A$6:$I$6,0),FALSE),0) -> 1 | O28: =IFERROR(VLOOKUP($A28,'Cost buildup Yr4'!C:AO,MATCH($C$1,'Cost buildup Yr4'!$C$3:$AO$3,0),FALSE),0) -> 626.5681625 | P28: 626.5681625 | R28: =IFERROR(VLOOKUP($A28,'Volumes - Report Summary'!$A:$I,MATCH(R$3,'Volumes - Report Summary'!$A$6:$I$6,0),FALSE),0) -> 1 | S28: =IFERROR(VLOOKUP($A28,'Cost buildup Yr5'!C:AO,MATCH($C$1,'Cost buildup Yr4'!$C$3:$AO$3,0),FALSE),0) -> 633.8715675 | T28: 633.8715675
A29: ='Table of fees'!B28 -> Tee-up/Appointment – no truck – after hours | B29: =IFERROR(VLOOKUP($A29,'Volumes - Report Summary'!$A:$I,MATCH(B$3,'Volumes - Report Summary'!$A$6:$I$6,0),FALSE),0) -> 1 | C29: =IFERROR(VLOOKUP(A29,'Cost buildup Yr1'!C:AO,MATCH($C$1,'Cost buildup Yr1'!$C$3:$AO$3,0),FALSE),0) -> 349.4411579 | D29: 349.4411579 | F29: =IFERROR(VLOOKUP($A29,'Volumes - Report Summary'!$A:$I,MATCH(F$3,'Volumes - Report Summary'!$A$6:$I$6,0),FALSE),0) -> 1 | G29: =IFERROR(VLOOKUP($A29,'Cost buildup Yr2'!C:AO,MATCH($C$1,'Cost buildup Yr2'!$C$3:$AO$3,0),FALSE),0) -> 354.5212353 | H29: 354.5212353 | J29: =IFERROR(VLOOKUP($A29,'Volumes - Report Summary'!$A:$I,MATCH(J$3,'Volumes - Report Summary'!$A$6:$I$6,0),FALSE),0) -> 1 | K29: =IFERROR(VLOOKUP($A29,'Cost buildup Yr3'!C:AO,MATCH($C$1,'Cost buildup Yr3'!$C$3:$AO$3,0),FALSE),0) -> 360.9953333 | L29: 360.9953333 | N29: =IFERROR(VLOOKUP($A29,'Volumes - Report Summary'!$A:$I,MATCH(N$3,'Volumes - Report Summary'!$A$6:$I$6,0),FALSE),0) -> 1 | O29: =IFERROR(VLOOKUP($A29,'Cost buildup Yr4'!C:AO,MATCH($C$1,'Cost buildup Yr4'!$C$3:$AO$3,0),FALSE),0) -> 364.6821161 | P29: 364.6821161 | R29: =IFERROR(VLOOKUP($A29,'Volumes - Report Summary'!$A:$I,MATCH(R$3,'Volumes - Report Summary'!$A$6:$I$6,0),FALSE),0) -> 1 | S29: =IFERROR(VLOOKUP($A29,'Cost buildup Yr5'!C:AO,MATCH($C$1,'Cost buildup Yr4'!$C$3:$AO$3,0),FALSE),0) -> 370.4911456 | T29: 370.4911456
A30: ='Table of fees'!B29 -> Tee-up/Appointment – wasted visit | B30: =IFERROR(VLOOKUP($A30,'Volumes - Report Summary'!$A:$I,MATCH(B$3,'Volumes - Report Summary'!$A$6:$I$6,0),FALSE),0) -> 200 | C30: =IFERROR(VLOOKUP(A30,'Cost buildup Yr1'!C:AO,MATCH($C$1,'Cost buildup Yr1'!$C$3:$AO$3,0),FALSE),0) -> 96.75971382 | D30: 19351.94276 | F30: =IFERROR(VLOOKUP($A30,'Volumes - Report Summary'!$A:$I,MATCH(F$3,'Volumes - Report Summary'!$A$6:$I$6,0),FALSE),0) -> 200 | G30: =IFERROR(VLOOKUP($A30,'Cost buildup Yr2'!C:AO,MATCH($C$1,'Cost buildup Yr2'!$C$3:$AO$3,0),FALSE),0) -> 98.20352257 | H30: 19640.70451 | J30: =IFERROR(VLOOKUP($A30,'Volumes - Report Summary'!$A:$I,MATCH(J$3,'Volumes - Report Summary'!$A$6:$I$6,0),FALSE),0) -> 200 | K30: =IFERROR(VLOOKUP($A30,'Cost buildup Yr3'!C:AO,MATCH($C$1,'Cost buildup Yr3'!$C$3:$AO$3,0),FALSE),0) -> 100.0916232 | L30: 20018.32464 | N30: =IFERROR(VLOOKUP($A30,'Volumes - Report Summary'!$A:$I,MATCH(N$3,'Volumes - Report Summary'!$A$6:$I$6,0),FALSE),0) -> 200 | O30: =IFERROR(VLOOKUP($A30,'Cost buildup Yr4'!C:AO,MATCH($C$1,'Cost buildup Yr4'!$C$3:$AO$3,0),FALSE),0) -> 101.0893209 | P30: 20217.86418 | R30: =IFERROR(VLOOKUP($A30,'Volumes - Report Summary'!$A:$I,MATCH(R$3,'Volumes - Report Summary'!$A$6:$I$6,0),FALSE),0) -> 200 | S30: =IFERROR(VLOOKUP($A30,'Cost buildup Yr5'!C:AO,MATCH($C$1,'Cost buildup Yr4'!$C$3:$AO$3,0),FALSE),0) -> 102.7627885 | T30: 20552.55769
A31: ='Table of fees'!A30 -> Miscellaneous service
A32: ='Table of fees'!B31 -> Open turret | B32: =IFERROR(VLOOKUP($A32,'Volumes - Report Summary'!$A:$I,MATCH(B$3,'Volumes - Report Summary'!$A$6:$I$6,0),FALSE),0) -> 3 | C32: =IFERROR(VLOOKUP(A32,'Cost buildup Yr1'!C:AO,MATCH($C$1,'Cost buildup Yr1'!$C$3:$AO$3,0),FALSE),0) -> 123.7320891 | D32: =B32*C32 -> 371.1962674 | F32: =IFERROR(VLOOKUP($A32,'Volumes - Report Summary'!$A:$I,MATCH(F$3,'Volumes - Report Summary'!$A$6:$I$6,0),FALSE),0) -> 3 | G32: =IFERROR(VLOOKUP($A32,'Cost buildup Yr2'!C:AO,MATCH($C$1,'Cost buildup Yr2'!$C$3:$AO$3,0),FALSE),0) -> 125.1902815 | H32: 375.5708444 | J32: =IFERROR(VLOOKUP($A32,'Volumes - Report Summary'!$A:$I,MATCH(J$3,'Volumes - Report Summary'!$A$6:$I$6,0),FALSE),0) -> 3 | K32: =IFERROR(VLOOKUP($A32,'Cost buildup Yr3'!C:AO,MATCH($C$1,'Cost buildup Yr3'!$C$3:$AO$3,0),FALSE),0) -> 127.261984 | L32: 381.785952 | N32: =IFERROR(VLOOKUP($A32,'Volumes - Report Summary'!$A:$I,MATCH(N$3,'Volumes - Report Summary'!$A$6:$I$6,0),FALSE),0) -> 3 | O32: =IFERROR(VLOOKUP($A32,'Cost buildup Yr4'!C:AO,MATCH($C$1,'Cost buildup Yr4'!$C$3:$AO$3,0),FALSE),0) -> 127.9643608 | P32: 383.8930825 | R32: =IFERROR(VLOOKUP($A32,'Volumes - Report Summary'!$A:$I,MATCH(R$3,'Volumes - Report Summary'!$A$6:$I$6,0),FALSE),0) -> 3 | S32: =IFERROR(VLOOKUP($A32,'Cost buildup Yr5'!C:AO,MATCH($C$1,'Cost buildup Yr4'!$C$3:$AO$3,0),FALSE),0) -> 129.6125242 | T32: 388.8375727
A33: ='Table of fees'!B32 -> Data download | B33: =IFERROR(VLOOKUP($A33,'Volumes - Report Summary'!$A:$I,MATCH(B$3,'Volumes - Report Summary'!$A$6:$I$6,0),FALSE),0) -> 3 | C33: =IFERROR(VLOOKUP(A33,'Cost buildup Yr1'!C:AO,MATCH($C$1,'Cost buildup Yr1'!$C$3:$AO$3,0),FALSE),0) -> 242.2543233 | D33: 726.76297 | F33: =IFERROR(VLOOKUP($A33,'Volumes - Report Summary'!$A:$I,MATCH(F$3,'Volumes - Report Summary'!$A$6:$I$6,0),FALSE),0) -> 3 | G33: =IFERROR(VLOOKUP($A33,'Cost buildup Yr2'!C:AO,MATCH($C$1,'Cost buildup Yr2'!$C$3:$AO$3,0),FALSE),0) -> 244.4138163 | H33: 733.2414489 | J33: =IFERROR(VLOOKUP($A33,'Volumes - Report Summary'!$A:$I,MATCH(J$3,'Volumes - Report Summary'!$A$6:$I$6,0),FALSE),0) -> 3 | K33: =IFERROR(VLOOKUP($A33,'Cost buildup Yr3'!C:AO,MATCH($C$1,'Cost buildup Yr3'!$C$3:$AO$3,0),FALSE),0) -> 247.8558034 | L33: 743.5674103 | N33: =IFERROR(VLOOKUP($A33,'Volumes - Report Summary'!$A:$I,MATCH(N$3,'Volumes - Report Summary'!$A$6:$I$6,0),FALSE),0) -> 3 | O33: =IFERROR(VLOOKUP($A33,'Cost buildup Yr4'!C:AO,MATCH($C$1,'Cost buildup Yr4'!$C$3:$AO$3,0),FALSE),0) -> 248.203326 | P33: 744.6099779 | R33: =IFERROR(VLOOKUP($A33,'Volumes - Report Summary'!$A:$I,MATCH(R$3,'Volumes - Report Summary'!$A$6:$I$6,0),FALSE),0) -> 3 | S33: =IFERROR(VLOOKUP($A33,'Cost buildup Yr5'!C:AO,MATCH($C$1,'Cost buildup Yr4'!$C$3:$AO$3,0),FALSE),0) -> 250.548909 | T33: 751.6467269
A34: ='Table of fees'!B33 -> Alteration to unmetered supply | B34: =IFERROR(VLOOKUP($A34,'Volumes - Report Summary'!$A:$I,MATCH(B$3,'Volumes - Report Summary'!$A$6:$I$6,0),FALSE),0) -> 3 | C34: =IFERROR(VLOOKUP(A34,'Cost buildup Yr1'!C:AO,MATCH($C$1,'Cost buildup Yr1'!$C$3:$AO$3,0),FALSE),0) -> 188.3805805 | D34: 565.1417415 | F34: =IFERROR(VLOOKUP($A34,'Volumes - Report Summary'!$A:$I,MATCH(F$3,'Volumes - Report Summary'!$A$6:$I$6,0),FALSE),0) -> 3 | G34: =IFERROR(VLOOKUP($A34,'Cost buildup Yr2'!C:AO,MATCH($C$1,'Cost buildup Yr2'!$C$3:$AO$3,0),FALSE),0) -> 190.2213005 | H34: 570.6639014 | J34: =IFERROR(VLOOKUP($A34,'Volumes - Report Summary'!$A:$I,MATCH(J$3,'Volumes - Report Summary'!$A$6:$I$6,0),FALSE),0) -> 3 | K34: =IFERROR(VLOOKUP($A34,'Cost buildup Yr3'!C:AO,MATCH($C$1,'Cost buildup Yr3'!$C$3:$AO$3,0),FALSE),0) -> 193.040431 | L34: 579.1212929 | N34: =IFERROR(VLOOKUP($A34,'Volumes - Report Summary'!$A:$I,MATCH(N$3,'Volumes - Report Summary'!$A$6:$I$6,0),FALSE),0) -> 3 | O34: =IFERROR(VLOOKUP($A34,'Cost buildup Yr4'!C:AO,MATCH($C$1,'Cost buildup Yr4'!$C$3:$AO$3,0),FALSE),0) -> 193.5492509 | P34: 580.6477527 | R34: =IFERROR(VLOOKUP($A34,'Volumes - Report Summary'!$A:$I,MATCH(R$3,'Volumes - Report Summary'!$A$6:$I$6,0),FALSE),0) -> 3 | S34: =IFERROR(VLOOKUP($A34,'Cost buildup Yr5'!C:AO,MATCH($C$1,'Cost buildup Yr4'!$C$3:$AO$3,0),FALSE),0) -> 195.577825 | T34: 586.733475
A35: ='Table of fees'!B34 -> Meter Relocation | B35: =IFERROR(VLOOKUP($A35,'Volumes - Report Summary'!$A:$I,MATCH(B$3,'Volumes - Report Summary'!$A$6:$I$6,0),FALSE),0) -> 3 | C35: =IFERROR(VLOOKUP(A35,'Cost buildup Yr1'!C:AO,MATCH($C$1,'Cost buildup Yr1'!$C$3:$AO$3,0),FALSE),0) -> 147.3849319 | D35: 442.1547958 | F35: =IFERROR(VLOOKUP($A35,'Volumes - Report Summary'!$A:$I,MATCH(F$3,'Volumes - Report Summary'!$A$6:$I$6,0),FALSE),0) -> 3 | G35: =IFERROR(VLOOKUP($A35,'Cost buildup Yr2'!C:AO,MATCH($C$1,'Cost buildup Yr2'!$C$3:$AO$3,0),FALSE),0) -> 149.0867996 | H35: 447.2603989 | J35: =IFERROR(VLOOKUP($A35,'Volumes - Report Summary'!$A:$I,MATCH(J$3,'Volumes - Report Summary'!$A$6:$I$6,0),FALSE),0) -> 3 | K35: =IFERROR(VLOOKUP($A35,'Cost buildup Yr3'!C:AO,MATCH($C$1,'Cost buildup Yr3'!$C$3:$AO$3,0),FALSE),0) -> 151.6326144 | L35: 454.8978432 | N35: =IFERROR(VLOOKUP($A35,'Volumes - Report Summary'!$A:$I,MATCH(N$3,'Volumes - Report Summary'!$A$6:$I$6,0),FALSE),0) -> 3 | O35: =IFERROR(VLOOKUP($A35,'Cost buildup Yr4'!C:AO,MATCH($C$1,'Cost buildup Yr4'!$C$3:$AO$3,0),FALSE),0) -> 152.2350195 | P35: 456.7050584 | R35: =IFERROR(VLOOKUP($A35,'Volumes - Report Summary'!$A:$I,MATCH(R$3,'Volumes - Report Summary'!$A$6:$I$6,0),FALSE),0) -> 3 | S35: =IFERROR(VLOOKUP($A35,'Cost buildup Yr5'!C:AO,MATCH($C$1,'Cost buildup Yr4'!$C$3:$AO$3,0),FALSE),0) -> 154.1423741 | T35: 462.4271224
A36: ='Table of fees'!B35 -> Tiger tails - standard single/multi phase | B36: =IFERROR(VLOOKUP($A36,'Volumes - Report Summary'!$A:$I,MATCH(B$3,'Volumes - Report Summary'!$A$6:$I$6,0),FALSE),0) -> 3 | C36: =IFERROR(VLOOKUP(A36,'Cost buildup Yr1'!C:AO,MATCH($C$1,'Cost buildup Yr1'!$C$3:$AO$3,0),FALSE),0) -> 522.9589216 | D36: =B36*C36 -> 1568.876765 | F36: =IFERROR(VLOOKUP($A36,'Volumes - Report Summary'!$A:$I,MATCH(F$3,'Volumes - Report Summary'!$A$6:$I$6,0),FALSE),0) -> 3 | G36: =IFERROR(VLOOKUP($A36,'Cost buildup Yr2'!C:AO,MATCH($C$1,'Cost buildup Yr2'!$C$3:$AO$3,0),FALSE),0) -> 526.4315437 | H36: =F36*G36 -> 1579.294631 | J36: =IFERROR(VLOOKUP($A36,'Volumes - Report Summary'!$A:$I,MATCH(J$3,'Volumes - Report Summary'!$A$6:$I$6,0),FALSE),0) -> 3 | K36: =IFERROR(VLOOKUP($A36,'Cost buildup Yr3'!C:AO,MATCH($C$1,'Cost buildup Yr3'!$C$3:$AO$3,0),FALSE),0) -> 532.4460181 | L36: =J36*K36 -> 1597.338054 | N36: =IFERROR(VLOOKUP($A36,'Volumes - Report Summary'!$A:$I,MATCH(N$3,'Volumes - Report Summary'!$A$6:$I$6,0),FALSE),0) -> 3 | O36: =IFERROR(VLOOKUP($A36,'Cost buildup Yr4'!C:AO,MATCH($C$1,'Cost buildup Yr4'!$C$3:$AO$3,0),FALSE),0) -> 532.0508821 | P36: =N36*O36 -> 1596.152646 | R36: =IFERROR(VLOOKUP($A36,'Volumes - Report Summary'!$A:$I,MATCH(R$3,'Volumes - Report Summary'!$A$6:$I$6,0),FALSE),0) -> 3 | S36: =IFERROR(VLOOKUP($A36,'Cost buildup Yr5'!C:AO,MATCH($C$1,'Cost buildup Yr4'!$C$3:$AO$3,0),FALSE),0) -> 535.6457753 | T36: =R36*S36 -> 1606.937326
A37: ='Table of fees'!B36 -> Tiger tails - scaffolding single phase | B37: =IFERROR(VLOOKUP($A37,'Volumes - Report Summary'!$A:$I,MATCH(B$3,'Volumes - Report Summary'!$A$6:$I$6,0),FALSE),0) -> 3 | C37: =IFERROR(VLOOKUP(A37,'Cost buildup Yr1'!C:AO,MATCH($C$1,'Cost buildup Yr1'!$C$3:$AO$3,0),FALSE),0) -> 820.6786633 | D37: =B37*C37 -> 2462.03599 | F37: =IFERROR(VLOOKUP($A37,'Volumes - Report Summary'!$A:$I,MATCH(F$3,'Volumes - Report Summary'!$A$6:$I$6,0),FALSE),0) -> 3 | G37: =IFERROR(VLOOKUP($A37,'Cost buildup Yr2'!C:AO,MATCH($C$1,'Cost buildup Yr2'!$C$3:$AO$3,0),FALSE),0) -> 825.7042182 | H37: =F37*G37 -> 2477.112655 | J37: =IFERROR(VLOOKUP($A37,'Volumes - Report Summary'!$A:$I,MATCH(J$3,'Volumes - Report Summary'!$A$6:$I$6,0),FALSE),0) -> 3 | K37: =IFERROR(VLOOKUP($A37,'Cost buildup Yr3'!C:AO,MATCH($C$1,'Cost buildup Yr3'!$C$3:$AO$3,0),FALSE),0) -> 834.7570408 | L37: =J37*K37 -> 2504.271122 | N37: =IFERROR(VLOOKUP($A37,'Volumes - Report Summary'!$A:$I,MATCH(N$3,'Volumes - Report Summary'!$A$6:$I$6,0),FALSE),0) -> 3 | O37: =IFERROR(VLOOKUP($A37,'Cost buildup Yr4'!C:AO,MATCH($C$1,'Cost buildup Yr4'!$C$3:$AO$3,0),FALSE),0) -> 833.529196 | P37: =N37*O37 -> 2500.587588 | R37: =IFERROR(VLOOKUP($A37,'Volumes - Report Summary'!$A:$I,MATCH(R$3,'Volumes - Report Summary'!$A$6:$I$6,0),FALSE),0) -> 3 | S37: =IFERROR(VLOOKUP($A37,'Cost buildup Yr5'!C:AO,MATCH($C$1,'Cost buildup Yr4'!$C$3:$AO$3,0),FALSE),0) -> 838.6344966 | T37: =R37*S37 -> 2515.90349
A38: ='Table of fees'!B37 -> Tiger tails - scaffolding multi phase | B38: =IFERROR(VLOOKUP($A38,'Volumes - Report Summary'!$A:$I,MATCH(B$3,'Volumes - Report Summary'!$A$6:$I$6,0),FALSE),0) -> 3 | C38: =IFERROR(VLOOKUP(A38,'Cost buildup Yr1'!C:AO,MATCH($C$1,'Cost buildup Yr1'!$C$3:$AO$3,0),FALSE),0) -> 898.2001336 | D38: 2694.600401 | F38: =IFERROR(VLOOKUP($A38,'Volumes - Report Summary'!$A:$I,MATCH(F$3,'Volumes - Report Summary'!$A$6:$I$6,0),FALSE),0) -> 3 | G38: =IFERROR(VLOOKUP($A38,'Cost buildup Yr2'!C:AO,MATCH($C$1,'Cost buildup Yr2'!$C$3:$AO$3,0),FALSE),0) -> 903.7306642 | H38: 2711.191993 | J38: =IFERROR(VLOOKUP($A38,'Volumes - Report Summary'!$A:$I,MATCH(J$3,'Volumes - Report Summary'!$A$6:$I$6,0),FALSE),0) -> 3 | K38: =IFERROR(VLOOKUP($A38,'Cost buildup Yr3'!C:AO,MATCH($C$1,'Cost buildup Yr3'!$C$3:$AO$3,0),FALSE),0) -> 913.7692719 | L38: 2741.307816 | N38: =IFERROR(VLOOKUP($A38,'Volumes - Report Summary'!$A:$I,MATCH(N$3,'Volumes - Report Summary'!$A$6:$I$6,0),FALSE),0) -> 3 | O38: =IFERROR(VLOOKUP($A38,'Cost buildup Yr4'!C:AO,MATCH($C$1,'Cost buildup Yr4'!$C$3:$AO$3,0),FALSE),0) -> 912.29632 | P38: 2736.88896 | R38: =IFERROR(VLOOKUP($A38,'Volumes - Report Summary'!$A:$I,MATCH(R$3,'Volumes - Report Summary'!$A$6:$I$6,0),FALSE),0) -> 3 | S38: =IFERROR(VLOOKUP($A38,'Cost buildup Yr5'!C:AO,MATCH($C$1,'Cost buildup Yr4'!$C$3:$AO$3,0),FALSE),0) -> 917.9113264 | T38: 2753.733979
A39: ='Table of fees'!B38 -> Miscellaneous service | B39: =IFERROR(VLOOKUP($A39,'Volumes - Report Summary'!$A:$I,MATCH(B$3,'Volumes - Report Summary'!$A$6:$I$6,0),FALSE),0) -> 6 | C39: =IFERROR(VLOOKUP(A39,'Cost buildup Yr1'!C:AO,MATCH($C$1,'Cost buildup Yr1'!$C$3:$AO$3,0),FALSE),0) -> 112.9573406 | D39: 677.7440433 | F39: =IFERROR(VLOOKUP($A39,'Volumes - Report Summary'!$A:$I,MATCH(F$3,'Volumes - Report Summary'!$A$6:$I$6,0),FALSE),0) -> 6 | G39: =IFERROR(VLOOKUP($A39,'Cost buildup Yr2'!C:AO,MATCH($C$1,'Cost buildup Yr2'!$C$3:$AO$3,0),FALSE),0) -> 114.3517783 | H39: 686.1106698 | J39: =IFERROR(VLOOKUP($A39,'Volumes - Report Summary'!$A:$I,MATCH(J$3,'Volumes - Report Summary'!$A$6:$I$6,0),FALSE),0) -> 6 | K39: =IFERROR(VLOOKUP($A39,'Cost buildup Yr3'!C:AO,MATCH($C$1,'Cost buildup Yr3'!$C$3:$AO$3,0),FALSE),0) -> 116.2989095 | L39: 697.793457 | N39: =IFERROR(VLOOKUP($A39,'Volumes - Report Summary'!$A:$I,MATCH(N$3,'Volumes - Report Summary'!$A$6:$I$6,0),FALSE),0) -> 6 | O39: =IFERROR(VLOOKUP($A39,'Cost buildup Yr4'!C:AO,MATCH($C$1,'Cost buildup Yr4'!$C$3:$AO$3,0),FALSE),0) -> 117.0335458 | P39: 702.2012748 | R39: =IFERROR(VLOOKUP($A39,'Volumes - Report Summary'!$A:$I,MATCH(R$3,'Volumes - Report Summary'!$A$6:$I$6,0),FALSE),0) -> 6 | S39: =IFERROR(VLOOKUP($A39,'Cost buildup Yr5'!C:AO,MATCH($C$1,'Cost buildup Yr4'!$C$3:$AO$3,0),FALSE),0) -> 118.6183074 | T39: 711.7098447
A40: ='Table of fees'!B39 -> Miscellaneous service – after hours | B40: =IFERROR(VLOOKUP($A40,'Volumes - Report Summary'!$A:$I,MATCH(B$3,'Volumes - Report Summary'!$A$6:$I$6,0),FALSE),0) -> 3 | C40: =IFERROR(VLOOKUP(A40,'Cost buildup Yr1'!C:AO,MATCH($C$1,'Cost buildup Yr1'!$C$3:$AO$3,0),FALSE),0) -> 528.0881272 | D40: 1584.264381 | F40: =IFERROR(VLOOKUP($A40,'Volumes - Report Summary'!$A:$I,MATCH(F$3,'Volumes - Report Summary'!$A$6:$I$6,0),FALSE),0) -> 3 | G40: =IFERROR(VLOOKUP($A40,'Cost buildup Yr2'!C:AO,MATCH($C$1,'Cost buildup Yr2'!$C$3:$AO$3,0),FALSE),0) -> 534.0507872 | H40: 1602.152362 | J40: =IFERROR(VLOOKUP($A40,'Volumes - Report Summary'!$A:$I,MATCH(J$3,'Volumes - Report Summary'!$A$6:$I$6,0),FALSE),0) -> 3 | K40: =IFERROR(VLOOKUP($A40,'Cost buildup Yr3'!C:AO,MATCH($C$1,'Cost buildup Yr3'!$C$3:$AO$3,0),FALSE),0) -> 542.0639178 | L40: 1626.191753 | N40: =IFERROR(VLOOKUP($A40,'Volumes - Report Summary'!$A:$I,MATCH(N$3,'Volumes - Report Summary'!$A$6:$I$6,0),FALSE),0) -> 3 | O40: =IFERROR(VLOOKUP($A40,'Cost buildup Yr4'!C:AO,MATCH($C$1,'Cost buildup Yr4'!$C$3:$AO$3,0),FALSE),0) -> 545.5271521 | P40: 1636.581456 | R40: =IFERROR(VLOOKUP($A40,'Volumes - Report Summary'!$A:$I,MATCH(R$3,'Volumes - Report Summary'!$A$6:$I$6,0),FALSE),0) -> 3 | S40: =IFERROR(VLOOKUP($A40,'Cost buildup Yr5'!C:AO,MATCH($C$1,'Cost buildup Yr4'!$C$3:$AO$3,0),FALSE),0) -> 552.1562417 | T40: 1656.468725
